Workbook

Sheet FrontPage
B2: =Text!F4&" "&year -> FFURFLEN ANHEDDAU'R DRETH GYNGOR AR GYFER 2026-27 | M2: CT1 | N2: 1.0
L4: 1
G6: 5
F8: =IF(uanumber=0,"",VLOOKUP(uanumber,Addresses,3,FALSE)) -> 
F9: =IF(uanumber=0,"",VLOOKUP(uanumber,Addresses,4,FALSE)) -> 
F10: =IF(uanumber=0,"",VLOOKUP(uanumber,Addresses,5,FALSE)) -> 
F11: =IF(uanumber=0,"",VLOOKUP(uanumber,Addresses,6,FALSE)) -> 
F12: =IF(uanumber=0,"",VLOOKUP(uanumber,Addresses,7,FALSE)) -> 
F13: =IF(uanumber=0,"",VLOOKUP(uanumber,Addresses,8,FALSE)) -> 
D15: =Text!F5 -> Dewiswch eich awdurdod a cywirwch eich cyfeiriad os oes angen
F17: =Text!F7 -> Enw: | G17: =IF(uanumber=0,"",VLOOKUP(uanumber,Addresses,9,FALSE)) -> 
F19: =Text!F8 -> E-bost (rhowch Amh os nad yw ar gael): | G19: =IF(uanumber=0,"",VLOOKUP(uanumber,Addresses,10,FALSE)) -> 
F21: =Text!F9 -> Ffôn: Cod STD: | G21: =IF(uanumber=0,"","( "&VLOOKUP(uanumber,Addresses,11,FALSE)&" )") ->  | H21: =IF(uanumber=0,"","( "&VLOOKUP(uanumber,Addresses,12,FALSE)&" )") -> 
C24: =Text!F11 -> Mae angen i awdurdodau gyfrifo'r sylfaen dreth gyngor ar gyfer 2026-27 drwy gyfeirio at yr anheddau a ddangosir ar restr brisio'r awdurdod ar gyfer 31 Hydref 2025 a gyflenwyd i'r awdurdod o dan adran 22B(7) o Ddeddf Cyllid Llywodraeth Leol 1992.
C26: =Text!F12 -> Dylai'r ffigurau hefyd gymryd i ystyriaeth newidiadau i'r rhestr brisio sy'n debygol o ddigwydd yn ystod 2026-27.
C28: =Text!F13 -> Mae'n rhaid cyflwyno'r wybodaeth y gofynnir amdani ar y ffurflen hon i Cynulliad Llywodraeth Cymru o dan adran 68 o Ddeddf Cyllid Llywodraeth Leol 1992.
D31: =Text!F15 -> Dylir ddychwelyd ffurflenni i'r cyfeiriad isod, yn ôl yr amserlen canlynol
E32: (i) | F32: =Text!F16 -> llofnodi copi ardystiedig a taenlen | J32: =AuthDetails!G33 -> 14 Tachwedd 2025
E33: (ii) | F33: =Text!F17 -> Sylfaen treth derfynol wedi'i chadarnhau | J33: =AuthDetails!G34 -> 9 Ionawr 2026
D35: =Text!F14 -> Gwiriwch y daenlen ddilysu cyn anfon y ffurflen
D36: =Text!F18 -> Dylech gyfeirio unrhyw ymholiadau ynghylch sut i gwblhau'r ffurflen, yn y lle cyntaf, drwy ffon neu e-bost, gan ddilyn y cyfarwyddyd isod:
D37: =Text!F19 -> Mae'n un o ofynion archwiliadau Llywodraeth Cymru fod pob cell yn cael ei llenwi. Gwnewch yn siŵr fod sero ym mhob cell wag. Cymerir yn ganiataol mai sero yw gwerth pob cell sydd heb ei llenwi.
D40: =Text!F20 -> Uned Ystadegau Ariannol Llywodraeth Leol,
D41: =Text!F21 -> Llywodraeth Cymru,
D42: =Text!F22 -> CP2
D43: =Text!F23 -> Parc Cathays,
D44: =Text!F24 -> CAERDYDD
D45: =Text!F25 -> CF10 3NQ
D46: =AuthDetails!I33 -> Ebost: yclll.trosglwyddo@llyw.cymru
D47: =Text!F27&" "&"0300 025 9169 or 0300 025 5673" -> Ffôn: 0300 025 9169 or 0300 025 5673

Sheet PartsAtoD
C1: =Text!F28&": "&AuthDetails!B3&" "&Text!F29&": "&AuthDetails!C3 -> Cod: 0 Awdurdod: Dewiswch eich awdurdod | O1: =FrontPage!M2&" "&year -> CT1 2026-27
E3: 1 | F3: 2 | G3: 3 | H3: 4 | I3: 5 | J3: 6 | K3: 7 | L3: 8 | M3: 9 | N3: 10 | O3: 11
J5: =Text!F58 -> band priso | O5: =Text!F59 -> Cyfanswm ( = swm ffigurau pob band )
C6: =Text!F31 -> Rhan A: Anheddau trethadwy | E6: A* | F6: A | G6: B | H6: C | I6: D | J6: E | K6: F | L6: G | M6: H | N6: I
B7: 1 | C7: A1 | D7: =Text!F32 -> Holl anheddau trethadwy | F7: 0 | G7: 0 | H7: 0 | I7: 0 | J7: 0 | K7: 0 | L7: 0 | M7: 0 | N7: 0 | O7: =SUM(F7:N7) -> 0
B8: 2 | C8: A2 | D8: =Text!F33 -> Anheddau sy'n derbyn gostyngiad anabledd ( sy'n gynwysedig yn llinell A1 ) | F8: 0 | G8: 0 | H8: 0 | I8: 0 | J8: 0 | K8: 0 | L8: 0 | M8: 0 | N8: 0 | O8: =SUM(F8:N8) -> 0
B9: 3 | C9: A3 | D9: =Text!F34 -> Cyfanswm yr anheddau trethadwy wedi'i addasu ( gan gymryd i ystyriaeth y gostyngiadau anabledd ) | E9: =F8 -> 0 | F9: =F7-F8+G8 -> 0 | G9: =G7-G8+H8 -> 0 | H9: 0 | I9: 0 | J9: 0 | K9: 0 | L9: 0 | M9: 0 | N9: =N7-N8 -> 0 | O9: =SUM(E9:N9) -> 0
B11: 4 | C11: B1 | D11: =Text!F36 -> Anheddau heb ddisgownt neu premiwm (gan gynnwys eiddo gwag hirdymor ac ail gartrefi heb ddisgownt neu premiwm) | E11: 0 | F11: 0 | G11: 0 | H11: 0 | I11: 0 | J11: 0 | K11: 0 | L11: 0 | M11: 0 | N11: 0 | O11: =SUM(E11:N11) -> 0
B12: 4.1 | C12: B2a | D12: =Text!F37 -> Anheddau gyda disgownt o 25% (ag eithrio eiddo gwag hirdymor ac ail gartrefi heb ddisgownt) | E12: 0 | F12: 0 | G12: 0 | H12: 0 | I12: 0 | J12: 0 | K12: 0 | L12: 0 | M12: 0 | N12: 0 | O12: 0
B13: 4.2 | C13: B2b | D13: =Text!F38 -> Anheddau gyda disgownt o 50% (ag eithrio eiddo gwag hirdymor ac ail gartrefi heb ddisgownt) | E13: 0 | F13: 0 | G13: 0 | H13: 0 | I13: 0 | J13: 0 | K13: 0 | L13: 0 | M13: 0 | N13: 0 | O13: 0
B14: 7 | C14: B3a | D14: =Text!F39 -> Anheddau gyda disgownt amrywiol ag eithrio 25% neu 50% (Rhan G, llinell 11) | E14: =PartG!G18 -> 0 | F14: =PartG!H18 -> 0 | G14: =PartG!I18 -> 0 | H14: =PartG!J18 -> 0 | I14: =PartG!K18 -> 0 | J14: =PartG!L18 -> 0 | K14: =PartG!M18 -> 0 | L14: =PartG!N18 -> 0 | M14: =PartG!O18 -> 0 | N14: =PartG!P18 -> 0 | O14: 0
B15: 7.1 | C15: B3b | D15: =Text!F40 -> Anheddau gyda disgownt eiddo gwag hirdymor neu ail gartref | F15: =SUM(PartH!E22,PartH!E44) -> 0 | G15: =SUM(PartH!F22,PartH!F44) -> 0 | H15: =SUM(PartH!G22,PartH!G44) -> 0 | I15: =SUM(PartH!H22,PartH!H44) -> 0 | J15: =SUM(PartH!I22,PartH!I44) -> 0 | K15: =SUM(PartH!J22,PartH!J44) -> 0 | L15: =SUM(PartH!K22,PartH!K44) -> 0 | M15: =SUM(PartH!L22,PartH!L44) -> 0 | N15: =SUM(PartH!M22,PartH!M44) -> 0 | O15: 0
B16: 7.2 | C16: B3c | D16: =Text!F41 -> Anheddau gyda phremiwm eiddo gwag hirdymor neu ail gartref | F16: =SUM(PartH!E33,PartH!E55) -> 0 | G16: =SUM(PartH!F33,PartH!F55) -> 0 | H16: =SUM(PartH!G33,PartH!G55) -> 0 | I16: =SUM(PartH!H33,PartH!H55) -> 0 | J16: =SUM(PartH!I33,PartH!I55) -> 0 | K16: =SUM(PartH!J33,PartH!J55) -> 0 | L16: =SUM(PartH!K33,PartH!K55) -> 0 | M16: =SUM(PartH!L33,PartH!L55) -> 0 | N16: =SUM(PartH!M33,PartH!M55) -> 0 | O16: 0
B17: 8 | C17: B4 | D17: =Text!F42 -> Cyfanswm yr anheddau a addaswyd sydd yn daladwy (cyfanswm o B1 i B3c=A3) | E17: =SUM(E11:E16) -> 0 | F17: 0 | G17: 0 | H17: 0 | I17: 0 | J17: 0 | K17: 0 | L17: 0 | M17: 0 | N17: 0 | O17: 0
C18: =IF(PartsAtoD!O18=0,"",Text!F45) ->  | E18: =E17-E9 -> 0 | F18: 0 | G18: 0 | H18: 0 | I18: 0 | J18: 0 | K18: 0 | L18: 0 | M18: 0 | N18: 0 | O18: 0
C19: =Text!F43 -> Addasiadau disgownt a phremiwm
B20: 9 | C20: B5 | D20: =Text!F44 -> Holl disgowntiau newidiol ( =Rhan G, llinell 12 ) | E20: =PartG!G19 -> 0 | F20: =PartG!H19 -> 0 | G20: =PartG!I19 -> 0 | H20: =PartG!J19 -> 0 | I20: =PartG!K19 -> 0 | J20: =PartG!L19 -> 0 | K20: =PartG!M19 -> 0 | L20: =PartG!N19 -> 0 | M20: =PartG!O19 -> 0 | N20: =PartG!P19 -> 0 | O20: 0
B21: 9.1 | C21: B6 | D21: =Text!F47 -> Addasiad disgownt am eiddo gwag tymor hir ac ail gartref (Rhan H, llinio 9g, 11g) | F21: =SUM(PartH!E70,PartH!E90) -> 0.0 | G21: =SUM(PartH!F70,PartH!F90) -> 0.0 | H21: =SUM(PartH!G70,PartH!G90) -> 0.0 | I21: =SUM(PartH!H70,PartH!H90) -> 0.0 | J21: =SUM(PartH!I70,PartH!I90) -> 0.0 | K21: =SUM(PartH!J70,PartH!J90) -> 0.0 | L21: =SUM(PartH!K70,PartH!K90) -> 0.0 | M21: =SUM(PartH!L70,PartH!L90) -> 0.0 | N21: =SUM(PartH!M70,PartH!M90) -> 0.0 | O21: 0.0
B22: 9.2 | C22: B7 | D22: =Text!F48 -> Addasiad premiwm am eiddo gwag tymor hir ac ail gartref (Rhan H, llinio 10g, 12g) | F22: =SUM(PartH!E80,PartH!E100) -> 0.0 | G22: =SUM(PartH!F80,PartH!F100) -> 0.0 | H22: =SUM(PartH!G80,PartH!G100) -> 0.0 | I22: =SUM(PartH!H80,PartH!H100) -> 0.0 | J22: =SUM(PartH!I80,PartH!I100) -> 0.0 | K22: =SUM(PartH!J80,PartH!J100) -> 0.0 | L22: =SUM(PartH!K80,PartH!K100) -> 0.0 | M22: =SUM(PartH!L80,PartH!L100) -> 0.0 | N22: =SUM(PartH!M80,PartH!M100) -> 0.0 | O22: 0.0
C23: =Text!F46 -> Rhan C: Cyfrifiad o anheddau sy'n daladwy gyda disgowntiau a phremiymau
B24: 11 | C24: C2 | D24: =Text!F50 -> Cyfanswm anheddau gan gynnwys disgowntiau a phremiymau (=A3-(B2ax0.25)-(B2bx0.5)-B5-B6+B7) | E24: =E9-(E12*0.25)-(E13*0.5)-E20-E21+E22 -> 0 | F24: 0 | G24: 0 | H24: 0 | I24: 0 | J24: 0 | K24: 0 | L24: 0 | M24: 0 | N24: 0
C25: C3 | D25: =Text!F51 -> Cymhareb â band D | E25: =5/9 -> 0.5555555556 | F25: =6/9 -> 0.6666666667 | G25: =7/9 -> 0.7777777778 | H25: =8/9 -> 0.8888888889 | I25: 1 | J25: =11/9 -> 1.222222222 | K25: =13/9 -> 1.444444444 | L25: =15/9 -> 1.666666667 | M25: =18/9 -> 2 | N25: =21/9 -> 2.333333333 | O25: =Transfer!AG30 -> 
B26: 13 | C26: C4 | D26: =Text!F52 -> Cyfwerthoedd Band D ( = C2 x C3 ) ( wedi'u talgrynnu i ddau le degol ) | E26: =E24*E25 -> 0.00 | F26: =F24*F25 -> 0.00 | G26: 0.00 | H26: 0.00 | I26: 0.00 | J26: 0.00 | K26: 0.00 | L26: 0.00 | M26: 0.00 | N26: 0.00 | O26: =SUM(E26:N26) -> 0.00
B27: 13.3 | C27: C7 | D27: =Text!F53 -> Cyfanswm anheddau gostyngedig ac eithrio addasiad tymor hir gwag ac ail gartref | E27: =E24-E22+E21 -> 0 | F27: =F24-F22+F21 -> 0 | G27: =G24-G22+G21 -> 0 | H27: 0 | I27: 0 | J27: 0 | K27: 0 | L27: 0 | M27: 0 | N27: 0
B28: 13.4 | C28: C8 | D28: =Text!F54 -> Cyfwerthoedd Band D ac eithrio addasiad tymor hir gwag ac ail gartref | E28: =ROUND(E27*E25,2) -> 0.00 | F28: =ROUND(F27*F25,2) -> 0.00 | G28: 0.00 | H28: 0.00 | I28: 0.00 | J28: 0.00 | K28: 0.00 | L28: 0.00 | M28: 0.00 | N28: 0.00 | O28: =SUM(E28:N28) -> 0.00
C29: =Text!F55 -> Rhan D: Eitemau Memorandwm | O29: =Text!F60 -> ( swm y bandiau unigol - cario i E1 )
B30: 14 | C30: D1 | D30: =Text!F56 -> Anheddau ag eithriadau Dosbarthiadau A i N a P i W ( heb eu cynnwys yn adrannau A i C uchod ) ( gweler nodyn 6 ) | F30: 0 | G30: 0 | H30: 0 | I30: 0 | J30: 0 | K30: 0 | L30: 0 | M30: 0 | N30: 0 | O30: =SUM(F30:N30) -> 0
B31: 15 | C31: D2 | D31: =Text!F57 -> Anheddau ag eithriad dosbarth O ( heb eu cynnwys yn adrannau A i C uchod ) ( gweler nodiadau 6 a 7 ) | F31: 0 | G31: 0 | H31: 0 | I31: 0 | J31: 0 | K31: 0 | L31: 0 | M31: 0 | N31: 0 | O31: =SUM(F31:N31) -> 0
G33: =Text!F61 -> Am gweinyddu Llywodraeth Cymru yn unig | I33: =Transfer!AB25 -> ZZZZZZZZZZZZZZ

Sheet PartsEandF
C1: =PartsAtoD!C1 -> Cod: 0 Awdurdod: Dewiswch eich awdurdod | L1: =PartsAtoD!O1 -> CT1 2026-27
K4: 11
C5: =Text!F64 -> Rhan E: Cyfrifo'r sylfaen dreth gyngor
B7: 22 | C7: E1 | D7: =Text!F65 -> Anheddau trethadwy: cyfwerthoedd band D ( = cyfanswm C4 ) | K7: =PartsAtoD!$O$26 -> 0.00
B9: 23 | C9: E2 | D9: =Text!F66 -> Cyfradd gasglu ( wedi'i thalgrynnu i ddau le degol ) | K9: 0.00 | L9: %
B11: 24 | C11: E3 | D11: =Text!F67 -> = E1 x E2 ( wedi'i dalgrynnu i ddau le degol ) | K11: =K7*K9/100 -> 0.00
B13: 25 | C13: E4 | D13: =Text!F68 -> Anheddau Dosbarth O wedi'u heithrio: cyfwerthoedd band D | K13: 0.00
B16: 26 | C16: E5 | D16: =Text!F69 -> Y sylfaen dreth gyngor at ddiben pennu'r dreth ( = E3 + E4 ) | K16: =K11+K13 -> 0.00
B18: 26.2 | C18: E5b | D18: =Text!F70 -> Anheddau trethadwy gostyngedig ac eithrio addasiad tymor hir gwag ac ail gartref | K18: =PartsAtoD!O28 -> 0.00
B20: 27 | C20: E6 | D20: =Text!F71 -> 100% o'r sylfaen dreth gyngor ar gyfer cyfrifo'r grant cynnal refeniw ( =E5b+E4) | K20: =K18+K13 -> 0.00
E23: 11 | H23: 11 | K23: 11
C24: =Text!F72 -> Rhan F: Anheddau wedi'u heithrio yn ôl dosbarth
B26: 28 | D26: =Text!F73&" A" -> Dosbarth A | E26: 0 | G26: =Text!F73&" I" -> Dosbarth I | H26: 0 | J26: =Text!F73&" Q" -> Dosbarth Q | K26: 0
B27: to
B28: 51.5 | D28: =Text!F73&" B" -> Dosbarth B | E28: 0 | G28: =Text!F73&" J" -> Dosbarth J | H28: 0 | J28: =Text!F73&" R" -> Dosbarth R | K28: 0
D30: =Text!F73&" C" -> Dosbarth C | E30: 0 | G30: =Text!F73&" K" -> Dosbarth K | H30: 0 | J30: =Text!F73&" S" -> Dosbarth S | K30: 0
D32: =Text!F73&" D" -> Dosbarth D | E32: 0 | G32: =Text!F73&" L" -> Dosbarth L | H32: 0 | J32: =Text!F73&" T" -> Dosbarth T | K32: 0
D34: =Text!F73&" E" -> Dosbarth E | E34: 0 | G34: =Text!F73&" M" -> Dosbarth M | H34: 0 | J34: =Text!F73&" U" -> Dosbarth U | K34: 0
D36: =Text!F73&" F" -> Dosbarth F | E36: 0 | G36: =Text!F73&" N" -> Dosbarth N | H36: 0 | J36: =Text!F73&" V" -> Dosbarth V | K36: 0
D38: =Text!F73&" G" -> Dosbarth G | E38: 0 | G38: =Text!F73&" O" -> Dosbarth O | H38: 0 | J38: =Text!F73&" W" -> Dosbarth W | K38: 0
D40: =Text!F73&" H" -> Dosbarth H | E40: 0 | G40: =Text!F73&" P" -> Dosbarth P | H40: 0 | J40: =Text!F73&" X" -> Dosbarth X | K40: 0
E42: =Text!F61 -> Am gweinyddu Llywodraeth Cymru yn unig | G42: =Transfer!AB26 -> ZZZZZZZZZZZZZZ | J42: =Text!F74 -> Cyfanswm pob dosbarth | K42: =SUM(E26:E40,H26:H40,K26:K40) -> 0.00
J45: =Text!F78&" D1" -> Cyfanswm llinellau D1 | K45: =PartsAtoD!O30 -> 0.00
J46: =Text!F78&" D2" -> Cyfanswm llinellau D2 | K46: =PartsAtoD!O31 -> 0.00
J48: =Transfer!AG32 ->  | K48: =ABS(K42-PartsAtoD!O30-PartsAtoD!O31) -> 0

Sheet PartG
C1: =PartsAtoD!C1 -> Cod: 0 Awdurdod: Dewiswch eich awdurdod | Q1: =PartsAtoD!O1 -> CT1 2026-27 | AV1: FALSE | AW1: FALSE | AX1: FALSE
C4: =Text!F80 -> Rhan G: Disgowntiau newidiol
E5: 12 | G5: 1 | H5: 2 | I5: 3 | J5: 4 | K5: 5 | L5: 6 | M5: 7 | N5: 8 | O5: 9 | P5: 10 | Q5: 11
L6: =Text!F58 -> band priso
D7: =Text!F81 -> Ardal | E7: =Text!F94 -> Canran disgownt wedi'i gymhwyso | F7: =Text!F95&" / "&Text!F96 -> Eiddo / Disgowntiau | G7: A* | H7: A | I7: B | J7: C | K7: D | L7: E | M7: F | N7: G | O7: H | P7: I | Q7: =Text!F107 -> Cyfanswm
B8: 52 | C8: G1 | D8: =Text!F82&" 1*" -> Cofnodwch enw ardal 1* | E8: 0% | F8: =Text!F98 -> Nifer o eiddo | G8: 0.00 | H8: 0.00 | I8: 0.00 | J8: 0.00 | K8: 0.00 | L8: 0.00 | M8: 0.00 | N8: 0.00 | O8: 0.00 | P8: 0.00 | Q8: =SUM(G8:P8) -> 0.00
B9: 53 | C9: G2 | F9: =Text!F96 -> Disgowntiau | G9: =G8*$E8 -> 0.00 | H9: =H8*$E8 -> 0.00 | I9: =I8*$E8 -> 0.00 | J9: 0.00 | K9: 0.00 | L9: 0.00 | M9: 0.00 | N9: 0.00 | O9: 0.00 | P9: 0.00 | Q9: =SUM(G9:P9) -> 0.00
B10: 54 | C10: G3 | D10: =Text!F82&" 2*" -> Cofnodwch enw ardal 2* | E10: 0% | F10: =Text!F98 -> Nifer o eiddo | G10: 0.00 | H10: 0.00 | I10: 0.00 | J10: 0.00 | K10: 0.00 | L10: 0.00 | M10: 0.00 | N10: 0.00 | O10: 0.00 | P10: 0.00 | Q10: 0.00
B11: 55 | C11: G4 | F11: =Text!F96 -> Disgowntiau | G11: =G10*$E10 -> 0.00 | H11: 0.00 | I11: 0.00 | J11: 0.00 | K11: 0.00 | L11: 0.00 | M11: 0.00 | N11: 0.00 | O11: 0.00 | P11: 0.00 | Q11: 0.00
B12: 56 | C12: G5 | D12: =Text!F82&" 3*" -> Cofnodwch enw ardal 3* | E12: 0% | F12: =Text!F98 -> Nifer o eiddo | G12: 0.00 | H12: 0.00 | I12: 0.00 | J12: 0.00 | K12: 0.00 | L12: 0.00 | M12: 0.00 | N12: 0.00 | O12: 0.00 | P12: 0.00 | Q12: 0.00
B13: 57 | C13: G6 | F13: =Text!F96 -> Disgowntiau | G13: =G12*$E12 -> 0.00 | H13: 0.00 | I13: 0.00 | J13: 0.00 | K13: 0.00 | L13: 0.00 | M13: 0.00 | N13: 0.00 | O13: 0.00 | P13: 0.00 | Q13: 0.00
B14: 58 | C14: G7 | D14: =Text!F82&" 4*" -> Cofnodwch enw ardal 4* | E14: 0% | F14: =Text!F98 -> Nifer o eiddo | G14: 0.00 | H14: 0.00 | I14: 0.00 | J14: 0.00 | K14: 0.00 | L14: 0.00 | M14: 0.00 | N14: 0.00 | O14: 0.00 | P14: 0.00 | Q14: 0.00
B15: 59 | C15: G8 | F15: =Text!F96 -> Disgowntiau | G15: =G14*$E14 -> 0.00 | H15: 0.00 | I15: 0.00 | J15: 0.00 | K15: 0.00 | L15: 0.00 | M15: 0.00 | N15: 0.00 | O15: 0.00 | P15: 0.00 | Q15: 0.00
B16: 60 | C16: G9 | D16: =Text!F82&" 5*" -> Cofnodwch enw ardal 5* | E16: 0% | F16: =Text!F98 -> Nifer o eiddo | G16: 0.00 | H16: 0.00 | I16: 0.00 | J16: 0.00 | K16: 0.00 | L16: 0.00 | M16: 0.00 | N16: 0.00 | O16: 0.00 | P16: 0.00 | Q16: 0.00
B17: 61 | C17: G10 | F17: =Text!F96 -> Disgowntiau | G17: =G16*$E16 -> 0.00 | H17: 0.00 | I17: 0.00 | J17: 0.00 | K17: 0.00 | L17: 0.00 | M17: 0.00 | N17: 0.00 | O17: 0.00 | P17: 0.00 | Q17: 0.00
B18: 62 | C18: G11 | F18: =Text!F99 -> Cyfanswm nifer o eiddo | G18: =SUM(G8,G10,G12,G14,G16) -> 0.00 | H18: =SUM(H8,H10,H12,H14,H16) -> 0.00 | I18: =SUM(I8,I10,I12,I14,I16) -> 0.00 | J18: 0.00 | K18: 0.00 | L18: 0.00 | M18: 0.00 | N18: 0.00 | O18: 0.00 | P18: 0.00 | Q18: 0.00
B19: 63 | C19: G12 | D19: =Text!F83 -> Cyfanswm disgowntiau (G2+G4+G6+G8+G10) (gweler nodyn 11) | G19: =SUM(G9,G11,G13,G15,G17) -> 0.00 | H19: =SUM(H9,H11,H13,H15,H17) -> 0.00 | I19: 0.00 | J19: 0.00 | K19: 0.00 | L19: 0.00 | M19: 0.00 | N19: 0.00 | O19: 0.00 | P19: 0.00 | Q19: 0.00
D21: =Text!F84 -> * gall hyn fod yr 'awdurdod gyfan', ardal cymuned unigol neu nifer o ardaloedd cymunedol
E24: =Text!F85 -> ARDYSTIAD Y PRIF SWYDDOG CYLLID
E25: =Text!F86 -> Tystiaf fod fy awdurdod wedi cyfrifo'r sylfaen dreth gyngor a'r ffigurau eraill a nodir ar y ffurflen hon yn unol â Rheoliadau Llywodraeth Leol (Cyfrifo Sylfaen Treth Gyngor) 1995 (Cymru) (OS 1995/2561) fel y'u diwygiwyd. Lle nodir isod, mae'r ffigurau wedi'u cymeradwyo, yn unol ag adran 67 o Ddeddf Cyllid Llywodraeth Leol 1992, fel y'u diwygiwyd gan adran 84 o Ddeddf Llywodraeth Leol 2003.
I27: =IF(OR($AV$1=TRUE,$AW$1=TRUE,$AX$1=TRUE),"",Text!F87) -> Nodwch tic yn y blwch proiodol
I28: =Text!F88 -> Nid yw'r ffigurau wedi'u cymeradwyo eto; | M28: =Text!F61 -> Am gweinyddu Llywodraeth Cymru yn unig | N28: =Transfer!AB25 -> ZZZZZZZZZZZZZZ | Q28: A-D
G29: =Text!F90 -> neu | N29: =Transfer!AB26 -> ZZZZZZZZZZZZZZ | Q29: E-F
I30: =Text!F89 -> mae'r ffigurau wedi'u cymeradwyo trwy benderfyniad gweithredol; | N30: =Transfer!AB27 -> BKYDCLBKBKBK | Q30: H
G31: =Text!F90 -> neu | N31: =Transfer!AB24 -> BKYDCLBKBKBK | Q31: =Text!F107 -> Cyfanswm
I32: =Text!F91 -> mae'r ffigurau wedi'u cymeradwyo trwy gan y cyngor llawn.
E34: =Text!F92 -> Prif Swyddog Cyllid: | K34: =Text!F93 -> Dyddiad:

Sheet PartH
C1: =PartsAtoD!C1 -> Cod: 0 Awdurdod: Dewiswch eich awdurdod | N1: =FrontPage!M2&" "&year -> CT1 2026-27
C2: =Text!F131 -> Rhan H: Eiddo gwag ac ail gartrefi y codir tâl amdanynt - ag eithrio eithriadau
C3: =Text!F132 -> Os nad yw gwerth y ganran disgownt/premiwm wedi ei ddangos yn y tabl, ychwanegwch y gwerth canran i res waelod y golofn "Canran disgownt" neu "Canran premiwm"
D4: 12 | E4: 2 | F4: 3 | G4: 4 | H4: 5 | I4: 6 | J4: 7 | K4: 8 | L4: 9 | M4: 10 | N4: 11
D5: =Text!F133 -> Cofnodwch y nifer gwirioneddol o anheddau
E6: A | F6: B | G6: C | H6: D | I6: E | J6: F | K6: G | L6: H | M6: I | N6: =Text!F141 -> Cyfanswm
B7: 64 | C7: H1 | D7: =Text!F134 -> Eiddo gwag trethadwy (dros 6 mis) heb unrhyw ddisgownt na phremiwm | E7: 0 | F7: 0 | G7: 0 | H7: 0 | I7: 0 | J7: 0 | K7: 0 | L7: 0 | M7: 0 | N7: =SUM(E7:M7) -> 0
B8: 64.1 | C8: H1.1 | D8: =Text!F135 -> Nodwch nifer yr eiddo trethadwy gwag dros 6 mis ond llai na 12 mis (wedi’u cynnwys yn H1) | E8: 0 | F8: 0 | G8: 0 | H8: 0 | I8: 0 | J8: 0 | K8: 0 | L8: 0 | M8: 0 | N8: =SUM(E8:M8) -> 0
B10: 65 | C10: H2 | D10: =Text!F136 -> Ail gartrefi sydd yn daladwy heb ddisgownt na phremiwm | E10: 0 | F10: 0 | G10: 0 | H10: 0 | I10: 0 | J10: 0 | K10: 0 | L10: 0 | M10: 0 | N10: =SUM(E10:M10) -> 0
B11: 65.1 | C11: H2.1 | D11: =Text!F137 -> Nodwch nifer yr ail gartrefi trethadwy sy’n garafannau, cabanau neu gabanau gwyliau (wedi’u cynnwys yn H2) | E11: 0 | F11: 0 | G11: 0 | H11: 0 | I11: 0 | J11: 0 | K11: 0 | L11: 0 | M11: 0 | N11: =SUM(E11:M11) -> 0
D13: =Text!F138 -> Disgownt eiddo gwag
D14: =Text!F139 -> Nodwch yn ôl band a gostyngiad canrannol, nifer yr anheddau sy'n wag.
D15: =Text!F140 -> Canran disgownt | E15: A | F15: B | G15: C | H15: D | I15: E | J15: F | K15: G | L15: H | M15: I | N15: =Text!F141 -> Cyfanswm
B16: 67 | C16: H3b | D16: 25 | E16: 0 | F16: 0 | G16: 0 | H16: 0 | I16: 0 | J16: 0 | K16: 0 | L16: 0 | M16: 0 | N16: =SUM(E16:M16) -> 0
B17: 68 | C17: H3c | D17: 50 | E17: 0 | F17: 0 | G17: 0 | H17: 0 | I17: 0 | J17: 0 | K17: 0 | L17: 0 | M17: 0 | N17: 0
B18: 70 | C18: H3e | D18: 100 | E18: 0 | F18: 0 | G18: 0 | H18: 0 | I18: 0 | J18: 0 | K18: 0 | L18: 0 | M18: 0 | N18: 0
B19: 71 | C19: H3f | D19: 0 | E19: 0 | F19: 0 | G19: 0 | H19: 0 | I19: 0 | J19: 0 | K19: 0 | L19: 0 | M19: 0 | N19: 0
B20: 71.1 | C20: H3fa | D20: 0 | E20: 0 | F20: 0 | G20: 0 | H20: 0 | I20: 0 | J20: 0 | K20: 0 | L20: 0 | M20: 0 | N20: 0
B21: 71.2 | C21: H3fb | D21: 0 | E21: 0 | F21: 0 | G21: 0 | H21: 0 | I21: 0 | J21: 0 | K21: 0 | L21: 0 | M21: 0 | N21: 0
B22: 72 | C22: H3g | D22: =Text!F141 -> Cyfanswm | E22: =SUM(E16:E21) -> 0 | F22: 0 | G22: 0 | H22: 0 | I22: 0 | J22: 0 | K22: 0 | L22: 0 | M22: =SUM(M16:M21) -> 0 | N22: 0
D24: =Text!F143 -> Premiwm eiddo gwag hirdymor (dros 12 mis)
D25: =Text!F144 -> Cofnodwch, yn ôl band a chanran, y premiwm y mae eich awdurdod yn ei godi ar gyfer eiddo gwag hirdymor nad yw wedi ei gynnwys yn y tabl uchod
D26: =Text!F145 -> Canran premiwm | E26: A | F26: B | G26: C | H26: D | I26: E | J26: F | K26: G | L26: H | M26: I | N26: =Text!F141 -> Cyfanswm
B27: 74 | C27: H4b | D27: 25 | E27: 0 | F27: 0 | G27: 0 | H27: 0 | I27: 0 | J27: 0 | K27: 0 | L27: 0 | M27: 0 | N27: =SUM(E27:M27) -> 0
B28: 75 | C28: H4c | D28: 50 | E28: 0 | F28: 0 | G28: 0 | H28: 0 | I28: 0 | J28: 0 | K28: 0 | L28: 0 | M28: 0 | N28: 0
B29: 77 | C29: H4e | D29: 100 | E29: 0 | F29: 0 | G29: 0 | H29: 0 | I29: 0 | J29: 0 | K29: 0 | L29: 0 | M29: 0 | N29: 0
B30: 78 | C30: H4f | D30: 0 | E30: 0 | F30: 0 | G30: 0 | H30: 0 | I30: 0 | J30: 0 | K30: 0 | L30: 0 | M30: 0 | N30: 0
B31: 78.1 | C31: H4fa | D31: 0 | E31: 0 | F31: 0 | G31: 0 | H31: 0 | I31: 0 | J31: 0 | K31: 0 | L31: 0 | M31: 0 | N31: 0
B32: 78.2 | C32: H4fb | D32: 0 | E32: 0 | F32: 0 | G32: 0 | H32: 0 | I32: 0 | J32: 0 | K32: 0 | L32: 0 | M32: 0 | N32: 0
B33: 79 | C33: H4g | D33: =Text!F141 -> Cyfanswm | E33: =SUM(E27:E32) -> 0 | F33: 0 | G33: 0 | H33: 0 | I33: 0 | J33: 0 | K33: 0 | L33: 0 | M33: =SUM(M27:M32) -> 0 | N33: 0
D35: =Text!F146 -> Disgownt ail gartref
D36: =Text!F147 -> Cofnodwch, yn ôl band a chanran, y disgownt y mae eich awdurdod yn ei ddyfarnu ar gyfer anheddau a gofrestrir fel ail gartrefi
D37: =Text!F140 -> Canran disgownt | E37: A | F37: B | G37: C | H37: D | I37: E | J37: F | K37: G | L37: H | M37: I | N37: =Text!F141 -> Cyfanswm
B38: 81 | C38: H5b | D38: 25 | E38: 0 | F38: 0 | G38: 0 | H38: 0 | I38: 0 | J38: 0 | K38: 0 | L38: 0 | M38: 0 | N38: =SUM(E38:M38) -> 0
B39: 82 | C39: H5c | D39: 50 | E39: 0 | F39: 0 | G39: 0 | H39: 0 | I39: 0 | J39: 0 | K39: 0 | L39: 0 | M39: 0 | N39: 0
B40: 84 | C40: H5e | D40: 100 | E40: 0 | F40: 0 | G40: 0 | H40: 0 | I40: 0 | J40: 0 | K40: 0 | L40: 0 | M40: 0 | N40: 0
B41: 85 | C41: H5f | D41: 0 | E41: 0 | F41: 0 | G41: 0 | H41: 0 | I41: 0 | J41: 0 | K41: 0 | L41: 0 | M41: 0 | N41: 0
B42: 85.1 | C42: H5fa | D42: 0 | E42: 0 | F42: 0 | G42: 0 | H42: 0 | I42: 0 | J42: 0 | K42: 0 | L42: 0 | M42: 0 | N42: 0
B43: 85.2 | C43: H5fb | D43: 0 | E43: 0 | F43: 0 | G43: 0 | H43: 0 | I43: 0 | J43: 0 | K43: 0 | L43: 0 | M43: 0 | N43: 0
B44: 86 | C44: H5g | D44: =Text!F141 -> Cyfanswm | E44: =SUM(E38:E43) -> 0 | F44: 0 | G44: 0 | H44: 0 | I44: 0 | J44: 0 | K44: 0 | L44: =SUM(L38:L43) -> 0 | M44: =SUM(M38:M43) -> 0 | N44: 0
D46: =Text!F148 -> Premiwm ail gartref
D47: =Text!F149 -> Cofnodwch, yn ôl band a chanran, y premiwm y mae eich awdurdod yn ei godi ar gyfer anheddau a gofrestrir fel ail gartrefi nad yw wedi ei gynnwys yn y tabl uchod
D48: =Text!F145 -> Canran premiwm | E48: A | F48: B | G48: C | H48: D | I48: E | J48: F | K48: G | L48: H | M48: I | N48: =Text!F141 -> Cyfanswm
B49: 88 | C49: H6b | D49: 25 | E49: 0 | F49: 0 | G49: 0 | H49: 0 | I49: 0 | J49: 0 | K49: 0 | L49: 0 | M49: 0 | N49: =SUM(E49:M49) -> 0
B50: 89 | C50: H6c | D50: 50 | E50: 0 | F50: 0 | G50: 0 | H50: 0 | I50: 0 | J50: 0 | K50: 0 | L50: 0 | M50: 0 | N50: 0
B51: 91 | C51: H6e | D51: 100 | E51: 0 | F51: 0 | G51: 0 | H51: 0 | I51: 0 | J51: 0 | K51: 0 | L51: 0 | M51: 0 | N51: 0
B52: 92 | C52: H6f | D52: 0 | E52: 0 | F52: 0 | G52: 0 | H52: 0 | I52: 0 | J52: 0 | K52: 0 | L52: 0 | M52: 0 | N52: 0
B53: 92.1 | C53: H6fa | D53: 0 | E53: 0 | F53: 0 | G53: 0 | H53: 0 | I53: 0 | J53: 0 | K53: 0 | L53: 0 | M53: 0 | N53: 0
B54: 92.2 | C54: H6fb | D54: 0 | E54: 0 | F54: 0 | G54: 0 | H54: 0 | I54: 0 | J54: 0 | K54: 0 | L54: 0 | M54: 0 | N54: 0
B55: 93 | C55: H6g | D55: =Text!F141 -> Cyfanswm | E55: =SUM(E49:E54) -> 0 | F55: 0 | G55: 0 | H55: 0 | I55: 0 | J55: 0 | K55: 0 | L55: =SUM(L49:L54) -> 0 | M55: =SUM(M49:M54) -> 0 | N55: 0
B56: 93.1 | C56: H6g.1 | D56: =Text!F142 -> Nodwch nifer yr ail gartrefi trethadwy sy’n garafannau, cabanau neu gabanau gwyliau (wedi’u cynnwys yn H6g) | E56: 0 | F56: 0 | G56: 0 | H56: 0 | I56: 0 | J56: 0 | K56: 0 | L56: 0 | M56: 0 | N56: =SUM(E56:M56) -> 0
B58: 94 | C58: H7 | D58: =Text!F150 -> Cyfanswm eiddo gwag sy'n daladwy | E58: =SUM(E7,E22,E33) -> 0 | F58: 0 | G58: 0 | H58: 0 | I58: 0 | J58: 0 | K58: 0 | L58: 0 | M58: 0 | N58: =SUM(E58:M58) -> 0
B59: 95 | C59: H8 | D59: =Text!F151 -> Cyfanswm ail gartrefi sy'n daladwy | E59: =SUM(E10,E44,E55) -> 0 | F59: 0 | G59: 0 | H59: 0 | I59: 0 | J59: 0 | K59: 0 | L59: 0 | M59: 0 | N59: =SUM(E59:M59) -> 0
D61: =Text!F152 -> Cyfwerthoedd anheddau
D62: =Text!F153 -> Gostyngiad oherwydd disgownt eiddo gwag hirdymor
D63: =Text!F140 -> Canran disgownt | E63: A | F63: B | G63: C | H63: D | I63: E | J63: F | K63: G | L63: H | M63: I | N63: =Text!F141 -> Cyfanswm
B64: 97 | C64: H9b | D64: =+D16 -> 25 | E64: =+E16*($D64/100) -> 0.00 | F64: 0.00 | G64: 0.00 | H64: 0.00 | I64: 0.00 | J64: 0.00 | K64: 0.00 | L64: 0.00 | M64: 0.00 | N64: =SUM(E64:M64) -> 0.00
B65: 98 | C65: H9c | D65: 50 | E65: =+E17*($D65/100) -> 0.00 | F65: 0.00 | G65: 0.00 | H65: 0.00 | I65: 0.00 | J65: 0.00 | K65: 0.00 | L65: 0.00 | M65: 0.00 | N65: 0.00
B66: 100 | C66: H9e | D66: 100 | E66: =+E18*($D66/100) -> 0.00 | F66: 0.00 | G66: 0.00 | H66: 0.00 | I66: 0.00 | J66: 0.00 | K66: 0.00 | L66: 0.00 | M66: 0.00 | N66: 0.00
B67: 101 | C67: H9f | D67: 0 | E67: =+E19*($D67/100) -> 0.00 | F67: 0.00 | G67: 0.00 | H67: 0.00 | I67: 0.00 | J67: 0.00 | K67: 0.00 | L67: 0.00 | M67: 0.00 | N67: 0.00
B68: 101.1 | C68: H9fa | D68: 0 | E68: =+E20*($D68/100) -> 0.00 | F68: 0.00 | G68: 0.00 | H68: 0.00 | I68: 0.00 | J68: 0.00 | K68: 0.00 | L68: 0.00 | M68: 0.00 | N68: 0.00
B69: 101.2 | C69: H9fb | D69: 0 | E69: =+E21*($D69/100) -> 0.00 | F69: 0.00 | G69: 0.00 | H69: 0.00 | I69: 0.00 | J69: 0.00 | K69: 0.00 | L69: 0.00 | M69: 0.00 | N69: 0.00
B70: 102 | C70: H9g | D70: =Text!F141 -> Cyfanswm | E70: =SUM(E64:E69) -> 0.00 | F70: 0.00 | G70: 0.00 | H70: 0.00 | I70: 0.00 | J70: 0.00 | K70: 0.00 | L70: =SUM(L64:L69) -> 0.00 | M70: =SUM(M64:M69) -> 0.00 | N70: 0.00
D72: =Text!F154 -> Cynnydd oherwydd premiwm eiddo gwag hirdymor
D73: =Text!F145 -> Canran premiwm | E73: A | F73: B | G73: C | H73: D | I73: E | J73: F | K73: G | L73: H | M73: I | N73: =Text!F141 -> Cyfanswm
B74: 104 | C74: H10b | D74: =+D27 -> 25 | E74: =+E27*($D74/100) -> 0.00 | F74: 0.00 | G74: 0.00 | H74: 0.00 | I74: 0.00 | J74: 0.00 | K74: 0.00 | L74: 0.00 | M74: 0.00 | N74: =SUM(E74:M74) -> 0.00
B75: 105 | C75: H10c | D75: =+D28 -> 50 | E75: =+E28*($D75/100) -> 0.00 | F75: 0.00 | G75: 0.00 | H75: 0.00 | I75: 0.00 | J75: 0.00 | K75: 0.00 | L75: 0.00 | M75: 0.00 | N75: 0.00
B76: 107 | C76: H10e | D76: 100 | E76: =+E29*($D76/100) -> 0.00 | F76: 0.00 | G76: 0.00 | H76: 0.00 | I76: 0.00 | J76: 0.00 | K76: 0.00 | L76: 0.00 | M76: 0.00 | N76: 0.00
B77: 108 | C77: H10f | D77: =+D30 -> 0 | E77: =+E30*($D77/100) -> 0.00 | F77: 0.00 | G77: 0.00 | H77: 0.00 | I77: 0.00 | J77: 0.00 | K77: 0.00 | L77: 0.00 | M77: 0.00 | N77: 0.00
B78: 108.1 | C78: H10fa | D78: =+D31 -> 0 | E78: =+E31*($D78/100) -> 0.00 | F78: 0.00 | G78: 0.00 | H78: 0.00 | I78: 0.00 | J78: 0.00 | K78: 0.00 | L78: 0.00 | M78: 0.00 | N78: 0.00
B79: 108.2 | C79: H10fb | D79: =+D32 -> 0 | E79: =+E32*($D79/100) -> 0.00 | F79: 0.00 | G79: 0.00 | H79: 0.00 | I79: 0.00 | J79: 0.00 | K79: 0.00 | L79: 0.00 | M79: 0.00 | N79: 0.00
B80: 109 | C80: H10g | D80: =+D33 -> Cyfanswm | E80: =SUM(E74:E79) -> 0.00 | F80: 0.00 | G80: 0.00 | H80: 0.00 | I80: 0.00 | J80: 0.00 | K80: 0.00 | L80: =SUM(L74:L79) -> 0.00 | M80: =SUM(M74:M79) -> 0.00 | N80: 0.00
D82: =Text!F155 -> Gostyngiad oherwydd disgownt ail gartref
D83: =Text!F140 -> Canran disgownt | E83: A | F83: B | G83: C | H83: D | I83: E | J83: F | K83: G | L83: H | M83: I | N83: =Text!F141 -> Cyfanswm
B84: 111 | C84: H11b | D84: =+D38 -> 25 | E84: =+E38*($D84/100) -> 0.00 | F84: 0.00 | G84: 0.00 | H84: 0.00 | I84: 0.00 | J84: 0.00 | K84: 0.00 | L84: 0.00 | M84: 0.00 | N84: =SUM(E84:M84) -> 0.00
B85: 112 | C85: H11c | D85: 50 | E85: =+E39*($D85/100) -> 0.00 | F85: 0.00 | G85: 0.00 | H85: 0.00 | I85: 0.00 | J85: 0.00 | K85: 0.00 | L85: 0.00 | M85: 0.00 | N85: 0.00
B86: 114 | C86: H11e | D86: 100 | E86: =+E40*($D86/100) -> 0.00 | F86: 0.00 | G86: 0.00 | H86: 0.00 | I86: 0.00 | J86: 0.00 | K86: 0.00 | L86: 0.00 | M86: 0.00 | N86: 0.00
B87: 115 | C87: H11f | D87: 0 | E87: =+E41*($D87/100) -> 0.00 | F87: 0.00 | G87: 0.00 | H87: 0.00 | I87: 0.00 | J87: 0.00 | K87: 0.00 | L87: 0.00 | M87: 0.00 | N87: 0.00
B88: 115.1 | C88: H11fa | D88: 0 | E88: =+E42*($D88/100) -> 0.00 | F88: 0.00 | G88: 0.00 | H88: 0.00 | I88: 0.00 | J88: 0.00 | K88: 0.00 | L88: 0.00 | M88: 0.00 | N88: 0.00
B89: 115.2 | C89: H11fb | D89: 0 | E89: =+E43*($D89/100) -> 0.00 | F89: 0.00 | G89: 0.00 | H89: 0.00 | I89: 0.00 | J89: 0.00 | K89: 0.00 | L89: 0.00 | M89: 0.00 | N89: 0.00
B90: 116 | C90: H11g | D90: Cyfanswm | E90: =SUM(E84:E89) -> 0.00 | F90: 0.00 | G90: 0.00 | H90: 0.00 | I90: 0.00 | J90: 0.00 | K90: 0.00 | L90: 0.00 | M90: =SUM(M84:M89) -> 0.00 | N90: 0.00
D92: =Text!F156 -> Cynnydd oherwydd disgownt ail gartref
D93: =Text!F145 -> Canran premiwm | E93: A | F93: B | G93: C | H93: D | I93: E | J93: F | K93: G | L93: H | M93: I | N93: =Text!F141 -> Cyfanswm
B94: 118 | C94: H12b | D94: =+D49 -> 25 | E94: =+E49*($D94/100) -> 0.00 | F94: 0.00 | G94: 0.00 | H94: 0.00 | I94: 0.00 | J94: 0.00 | K94: 0.00 | L94: 0.00 | M94: 0.00 | N94: =SUM(E94:M94) -> 0.00
B95: 119 | C95: H12c | D95: 50 | E95: =+E50*($D95/100) -> 0.00 | F95: 0.00 | G95: 0.00 | H95: 0.00 | I95: 0.00 | J95: 0.00 | K95: 0.00 | L95: 0.00 | M95: 0.00 | N95: 0.00
B96: 121 | C96: H12e | D96: 100 | E96: =+E51*($D96/100) -> 0.00 | F96: 0.00 | G96: 0.00 | H96: 0.00 | I96: 0.00 | J96: 0.00 | K96: 0.00 | L96: 0.00 | M96: 0.00 | N96: 0.00
B97: 122 | C97: H12f | D97: 0 | E97: =+E52*($D97/100) -> 0.00 | F97: 0.00 | G97: 0.00 | H97: 0.00 | I97: 0.00 | J97: 0.00 | K97: 0.00 | L97: 0.00 | M97: 0.00 | N97: 0.00
B98: 122.1 | C98: H12fa | D98: 0 | E98: =+E53*($D98/100) -> 0.00 | F98: 0.00 | G98: 0.00 | H98: 0.00 | I98: 0.00 | J98: 0.00 | K98: 0.00 | L98: 0.00 | M98: 0.00 | N98: 0.00
B99: 122.2 | C99: H12fb | D99: 0 | E99: =+E54*($D99/100) -> 0.00 | F99: 0.00 | G99: 0.00 | H99: 0.00 | I99: 0.00 | J99: 0.00 | K99: 0.00 | L99: 0.00 | M99: 0.00 | N99: 0.00
B100: 123 | C100: H12g | D100: Cyfanswm | E100: =SUM(E94:E99) -> 0.00 | F100: 0.00 | G100: 0.00 | H100: 0.00 | I100: 0.00 | J100: 0.00 | K100: 0.00 | L100: =SUM(L94:L99) -> 0.00 | M100: =SUM(M94:M99) -> 0.00 | N100: 0.00
D107: =Transfer!AG31 ->  | G107: =Text!F61 -> Am gweinyddu Llywodraeth Cymru yn unig | I107: =Transfer!AB27 -> BKYDCLBKBKBK

Sheet Validations
C1: =PartsAtoD!C1 -> Cod: 0 Awdurdod: Dewiswch eich awdurdod | M1: =PartsAtoD!O1 -> CT1 2026-27 | AK1: =Transfer!X2 -> 202526 | AL1: =Transfer!W2 -> 202627 | AM1: Date Lookup from Transfer Sheet
C3: =Text!F127 -> Gwiriadau dilysu - ychwanegwch sylwadau lle gofynnir am hynny
AH4: Validations Lookup Table
F5: =Text!F128 -> Blwyddyn | J5: =Text!F129 -> Goddefiant | AK5: =AK1 -> 202526 | AL5: =AL1 -> 202627
C6: =AH6 -> Rhif ID | D6: Llinio | E6: Band | F6: 2025-26 | G6: 2026-27 | H6: Gwahaniaeth | I6: % Gwahaniaeth | J6: Gwerth | K6: % | L6: Statws | M6: Sylwadau | AB6: Index | AC6: Row | AD6: Col | AE6: Import | AF6: Row | AG6: Col | AH6: =Text!F100 -> Rhif ID | AI6: =Text!F101 -> Llinio | AJ6: =Text!F102 -> Band | AK6: =LEFT(AK1,4)&"-"&RIGHT(AK1,2) -> 2025-26 | AL6: =year -> 2026-27 | AM6: =Text!F103 -> Gwahaniaeth | AN6: ="% "&Text!F103 -> % Gwahaniaeth | AO6: =Text!F104 -> Gwerth | AP6: % | AQ6: =Text!F105 -> Statws | AR6: =Text!F106 -> Sylwadau
C7: Column1 | D7: Column2 | E7: Column3 | F7: Column4 | G7: Column5 | H7: Column6 | I7: Column7 | J7: Column8 | K7: Column9 | L7: Column10 | M7: Column11
B8: =AuthDetails!$B$3 -> 0 | C8: 1 | D8: =VLOOKUP(C8,ValFill,2,FALSE) -> A1 | E8: =VLOOKUP(C8,ValFill,3,FALSE) -> A | F8: =VLOOKUP(C8,ValFill,4,FALSE) -> 0 | G8: =VLOOKUP(C8,ValFill,5,FALSE) -> 0 | H8: =VLOOKUP(C8,ValFill,6,FALSE) -> 0 | I8: =VLOOKUP(C8,ValFill,7,FALSE) ->  | J8: =VLOOKUP(C8,ValFill,8,FALSE) -> 50 | K8: =VLOOKUP(C8,ValFill,9,FALSE) -> 5.0% | L8: =VLOOKUP(C8,ValFill,10,FALSE) -> iawn | AB8: =uanumber&"_"&AC8&"_"&AD8 -> 0_1_2 | AC8: 1 | AD8: 2 | AE8: =$AL$1&"-"&uanumber&"-"&AJ8&"-"&AI8 -> 202627-0-A-A1 | AF8: 1.000 | AG8: 2.00 | AH8: 1 | AI8: A1 | AJ8: A | AK8: =VLOOKUP(AB8,LineData,9,FALSE) -> 0 | AL8: =VLOOKUP(AB8,LineData,10,FALSE) -> 0 | AM8: =AL8-AK8 -> 0 | AN8: =IF(ISERR(AL8/AK8-1),"",AL8/AK8-1) ->  | AO8: 50 | AP8: 5% | AQ8: =IF(AN8="",Text!$F$77,IF(AND(ABS(AN8)>AP8,ABS(AM8)>AO8),Text!$F$126,Text!$F$77)) -> iawn | AR8: =IF(VLOOKUP(AH8,ComFill,11,FALSE)=0,"",VLOOKUP(AH8,ComFill,11,FALSE)) -> 
B9: =AuthDetails!$B$3 -> 0 | C9: 2 | D9: A1 | E9: B | F9: 0 | G9: 0 | H9: 0 | J9: 50 | K9: 5.0% | L9: iawn | AB9: 0_1_3 | AC9: 1 | AD9: 3 | AE9: 202627-0-B-A1 | AF9: 1.000 | AG9: 3.00 | AH9: 2 | AI9: A1 | AJ9: B | AK9: 0 | AL9: 0 | AM9: =AL9-AK9 -> 0 | AN9: =IF(ISERR(AL9/AK9-1),"",AL9/AK9-1) ->  | AO9: 50 | AP9: 5% | AQ9: =IF(AN9="",Text!$F$77,IF(AND(ABS(AN9)>AP9,ABS(AM9)>AO9),Text!$F$126,Text!$F$77)) -> iawn
B10: =AuthDetails!$B$3 -> 0 | C10: 3 | D10: A1 | E10: C | F10: 0 | G10: 0 | H10: 0 | J10: 50 | K10: 5.0% | L10: iawn | AB10: 0_1_4 | AC10: 1 | AD10: 4 | AE10: 202627-0-C-A1 | AF10: 1.000 | AG10: 4.00 | AH10: 3 | AI10: A1 | AJ10: C | AK10: 0 | AL10: 0 | AM10: 0 | AO10: 50 | AP10: 5% | AQ10: =IF(AN10="",Text!$F$77,IF(AND(ABS(AN10)>AP10,ABS(AM10)>AO10),Text!$F$126,Text!$F$77)) -> iawn
B11: =AuthDetails!$B$3 -> 0 | C11: 4 | D11: A1 | E11: D | F11: 0 | G11: 0 | H11: 0 | J11: 50 | K11: 5.0% | L11: iawn | AB11: 0_1_5 | AC11: 1 | AD11: 5 | AE11: 202627-0-D-A1 | AF11: 1.000 | AG11: 5.00 | AH11: 4 | AI11: A1 | AJ11: D | AK11: 0 | AL11: 0 | AM11: 0 | AO11: 50 | AP11: 5% | AQ11: =IF(AN11="",Text!$F$77,IF(AND(ABS(AN11)>AP11,ABS(AM11)>AO11),Text!$F$126,Text!$F$77)) -> iawn
B12: =AuthDetails!$B$3 -> 0 | C12: 5 | D12: A1 | E12: E | F12: 0 | G12: 0 | H12: 0 | J12: 50 | K12: 5.0% | L12: iawn | AB12: 0_1_6 | AC12: 1 | AD12: 6 | AE12: 202627-0-E-A1 | AF12: 1.000 | AG12: 6.00 | AH12: 5 | AI12: A1 | AJ12: E | AK12: 0 | AL12: 0 | AM12: 0 | AO12: 50 | AP12: 5% | AQ12: =IF(AN12="",Text!$F$77,IF(AND(ABS(AN12)>AP12,ABS(AM12)>AO12),Text!$F$126,Text!$F$77)) -> iawn
B13: =AuthDetails!$B$3 -> 0 | C13: 6 | D13: A1 | E13: F | F13: 0 | G13: 0 | H13: 0 | J13: 50 | K13: 5.0% | L13: iawn | AB13: 0_1_7 | AC13: 1 | AD13: 7 | AE13: 202627-0-F-A1 | AF13: 1.000 | AG13: 7.00 | AH13: 6 | AI13: A1 | AJ13: F | AK13: 0 | AL13: 0 | AM13: 0 | AO13: 50 | AP13: 5% | AQ13: =IF(AN13="",Text!$F$77,IF(AND(ABS(AN13)>AP13,ABS(AM13)>AO13),Text!$F$126,Text!$F$77)) -> iawn
B14: =AuthDetails!$B$3 -> 0 | C14: 7 | D14: A1 | E14: G | F14: 0 | G14: 0 | H14: 0 | J14: 30 | K14: 5.0% | L14: iawn | AB14: 0_1_8 | AC14: 1 | AD14: 8 | AE14: 202627-0-G-A1 | AF14: 1.000 | AG14: 8.00 | AH14: 7 | AI14: A1 | AJ14: G | AK14: 0 | AL14: 0 | AM14: 0 | AO14: 30 | AP14: 5% | AQ14: =IF(AN14="",Text!$F$77,IF(AND(ABS(AN14)>AP14,ABS(AM14)>AO14),Text!$F$126,Text!$F$77)) -> iawn
B15: =AuthDetails!$B$3 -> 0 | C15: 8 | D15: A1 | E15: H | F15: 0 | G15: 0 | H15: 0 | J15: 20 | K15: 5.0% | L15: iawn | AB15: 0_1_9 | AC15: 1 | AD15: 9 | AE15: 202627-0-H-A1 | AF15: 1.000 | AG15: 9.00 | AH15: 8 | AI15: A1 | AJ15: H | AK15: 0 | AL15: 0 | AM15: 0 | AO15: 20 | AP15: 5% | AQ15: =IF(AN15="",Text!$F$77,IF(AND(ABS(AN15)>AP15,ABS(AM15)>AO15),Text!$F$126,Text!$F$77)) -> iawn
B16: =AuthDetails!$B$3 -> 0 | C16: 9 | D16: A1 | E16: I | F16: 0 | G16: 0 | H16: 0 | J16: 10 | K16: 5.0% | L16: iawn | AB16: 0_1_10 | AC16: 1 | AD16: 10 | AE16: 202627-0-I-A1 | AF16: 1.000 | AG16: 10.00 | AH16: 9 | AI16: A1 | AJ16: I | AK16: 0 | AL16: 0 | AM16: 0 | AO16: 10 | AP16: 5% | AQ16: =IF(AN16="",Text!$F$77,IF(AND(ABS(AN16)>AP16,ABS(AM16)>AO16),Text!$F$126,Text!$F$77)) -> iawn
B17: =AuthDetails!$B$3 -> 0 | C17: 10 | D17: A1 | E17: Total | F17: 0 | G17: 0 | H17: 0 | J17: 100 | K17: 5.0% | L17: iawn | AB17: 0_1_11 | AC17: 1 | AD17: 11 | AE17: 202627-0-Total-A1 | AF17: 1.000 | AG17: 11.00 | AH17: 10 | AI17: A1 | AJ17: Total | AK17: 0 | AL17: 0 | AM17: 0 | AO17: 100 | AP17: 5% | AQ17: =IF(AN17="",Text!$F$77,IF(AND(ABS(AN17)>AP17,ABS(AM17)>AO17),Text!$F$126,Text!$F$77)) -> iawn
B18: =AuthDetails!$B$3 -> 0 | C18: 11 | D18: B1 | E18: A* | F18: 0 | G18: 0 | H18: 0 | J18: 50 | K18: 10.0% | L18: iawn | AB18: 0_4_1 | AC18: 4 | AD18: 1 | AE18: 202627-0-A*-B1 | AF18: 4.000 | AG18: 1.00 | AH18: 11 | AI18: B1 | AJ18: A* | AK18: 0 | AL18: 0 | AM18: 0 | AO18: 50 | AP18: 10% | AQ18: =IF(AN18="",Text!$F$77,IF(AND(ABS(AN18)>AP18,ABS(AM18)>AO18),Text!$F$126,Text!$F$77)) -> iawn
B19: =AuthDetails!$B$3 -> 0 | C19: 12 | D19: B1 | E19: A | F19: 0 | G19: 0 | H19: 0 | J19: 100 | K19: 15.0% | L19: iawn | AB19: 0_4_2 | AC19: 4 | AD19: 2 | AE19: 202627-0-A-B1 | AF19: 4.000 | AG19: 2.00 | AH19: 12 | AI19: B1 | AJ19: A | AK19: 0 | AL19: 0 | AM19: 0 | AO19: 100 | AP19: 15% | AQ19: =IF(AN19="",Text!$F$77,IF(AND(ABS(AN19)>AP19,ABS(AM19)>AO19),Text!$F$126,Text!$F$77)) -> iawn
B20: =AuthDetails!$B$3 -> 0 | C20: 13 | D20: B1 | E20: B | F20: 0 | G20: 0 | H20: 0 | J20: 50 | K20: 10.0% | L20: iawn | AB20: 0_4_3 | AC20: 4 | AD20: 3 | AE20: 202627-0-B-B1 | AF20: 4.000 | AG20: 3.00 | AH20: 13 | AI20: B1 | AJ20: B | AK20: 0 | AL20: 0 | AM20: 0 | AO20: 50 | AP20: 10% | AQ20: =IF(AN20="",Text!$F$77,IF(AND(ABS(AN20)>AP20,ABS(AM20)>AO20),Text!$F$126,Text!$F$77)) -> iawn
B21: =AuthDetails!$B$3 -> 0 | C21: 14 | D21: B1 | E21: C | F21: 0 | G21: 0 | H21: 0 | J21: 50 | K21: 10.0% | L21: iawn | AB21: 0_4_4 | AC21: 4 | AD21: 4 | AE21: 202627-0-C-B1 | AF21: 4.000 | AG21: 4.00 | AH21: 14 | AI21: B1 | AJ21: C | AK21: 0 | AL21: 0 | AM21: 0 | AO21: 50 | AP21: 10% | AQ21: =IF(AN21="",Text!$F$77,IF(AND(ABS(AN21)>AP21,ABS(AM21)>AO21),Text!$F$126,Text!$F$77)) -> iawn
B22: =AuthDetails!$B$3 -> 0 | C22: 15 | D22: B1 | E22: D | F22: 0 | G22: 0 | H22: 0 | J22: 50 | K22: 10.0% | L22: iawn | AB22: 0_4_5 | AC22: 4 | AD22: 5 | AE22: 202627-0-D-B1 | AF22: 4.000 | AG22: 5.00 | AH22: 15 | AI22: B1 | AJ22: D | AK22: 0 | AL22: 0 | AM22: 0 | AO22: 50 | AP22: 10% | AQ22: =IF(AN22="",Text!$F$77,IF(AND(ABS(AN22)>AP22,ABS(AM22)>AO22),Text!$F$126,Text!$F$77)) -> iawn
B23: =AuthDetails!$B$3 -> 0 | C23: 16 | D23: B1 | E23: E | F23: 0 | G23: 0 | H23: 0 | J23: 50 | K23: 10.0% | L23: iawn | AB23: 0_4_6 | AC23: 4 | AD23: 6 | AE23: 202627-0-E-B1 | AF23: 4.000 | AG23: 6.00 | AH23: 16 | AI23: B1 | AJ23: E | AK23: 0 | AL23: 0 | AM23: 0 | AO23: 50 | AP23: 10% | AQ23: =IF(AN23="",Text!$F$77,IF(AND(ABS(AN23)>AP23,ABS(AM23)>AO23),Text!$F$126,Text!$F$77)) -> iawn
B24: =AuthDetails!$B$3 -> 0 | C24: 17 | D24: B1 | E24: F | F24: 0 | G24: 0 | H24: 0 | J24: 50 | K24: 10.0% | L24: iawn | AB24: 0_4_7 | AC24: 4 | AD24: 7 | AE24: 202627-0-F-B1 | AF24: 4.000 | AG24: 7.00 | AH24: 17 | AI24: B1 | AJ24: F | AK24: 0 | AL24: 0 | AM24: 0 | AO24: 50 | AP24: 10% | AQ24: =IF(AN24="",Text!$F$77,IF(AND(ABS(AN24)>AP24,ABS(AM24)>AO24),Text!$F$126,Text!$F$77)) -> iawn
B25: =AuthDetails!$B$3 -> 0 | C25: 18 | D25: B1 | E25: G | F25: 0 | G25: 0 | H25: 0 | J25: 30 | K25: 10.0% | L25: iawn | AB25: 0_4_8 | AC25: 4 | AD25: 8 | AE25: 202627-0-G-B1 | AF25: 4.000 | AG25: 8.00 | AH25: 18 | AI25: B1 | AJ25: G | AK25: 0 | AL25: 0 | AM25: 0 | AO25: 30 | AP25: 10% | AQ25: =IF(AN25="",Text!$F$77,IF(AND(ABS(AN25)>AP25,ABS(AM25)>AO25),Text!$F$126,Text!$F$77)) -> iawn
B26: =AuthDetails!$B$3 -> 0 | C26: 19 | D26: B1 | E26: H | F26: 0 | G26: 0 | H26: 0 | J26: 20 | K26: 10.0% | L26: iawn | AB26: 0_4_9 | AC26: 4 | AD26: 9 | AE26: 202627-0-H-B1 | AF26: 4.000 | AG26: 9.00 | AH26: 19 | AI26: B1 | AJ26: H | AK26: 0 | AL26: 0 | AM26: 0 | AO26: 20 | AP26: 10% | AQ26: =IF(AN26="",Text!$F$77,IF(AND(ABS(AN26)>AP26,ABS(AM26)>AO26),Text!$F$126,Text!$F$77)) -> iawn
B27: =AuthDetails!$B$3 -> 0 | C27: 20 | D27: B1 | E27: I | F27: 0 | G27: 0 | H27: 0 | J27: 10 | K27: 10.0% | L27: iawn | AB27: 0_4_10 | AC27: 4 | AD27: 10 | AE27: 202627-0-I-B1 | AF27: 4.000 | AG27: 10.00 | AH27: 20 | AI27: B1 | AJ27: I | AK27: 0 | AL27: 0 | AM27: 0 | AO27: 10 | AP27: 10% | AQ27: =IF(AN27="",Text!$F$77,IF(AND(ABS(AN27)>AP27,ABS(AM27)>AO27),Text!$F$126,Text!$F$77)) -> iawn
B28: =AuthDetails!$B$3 -> 0 | C28: 21 | D28: B1 | E28: Total | F28: 0 | G28: 0 | H28: 0 | J28: 100 | K28: 10.0% | L28: iawn | AB28: 0_4_11 | AC28: 4 | AD28: 11 | AE28: 202627-0-Total-B1 | AF28: 4.000 | AG28: 11.00 | AH28: 21 | AI28: B1 | AJ28: Total | AK28: 0 | AL28: 0 | AM28: 0 | AO28: 100 | AP28: 10% | AQ28: =IF(AN28="",Text!$F$77,IF(AND(ABS(AN28)>AP28,ABS(AM28)>AO28),Text!$F$126,Text!$F$77)) -> iawn
B29: =AuthDetails!$B$3 -> 0 | C29: 97 | D29: =VLOOKUP(C29,ValFill,2,FALSE) -> E1 | E29: =VLOOKUP(C29,ValFill,3,FALSE) -> TOTAL | F29: =VLOOKUP(C29,ValFill,4,FALSE) -> 0 | G29: =VLOOKUP(C29,ValFill,5,FALSE) -> 0 | H29: =VLOOKUP(C29,ValFill,6,FALSE) -> 0 | I29: =VLOOKUP(C29,ValFill,7,FALSE) ->  | J29: =VLOOKUP(C29,ValFill,8,FALSE) -> 0 | K29: =VLOOKUP(C29,ValFill,9,FALSE) -> 0.3% | L29: =VLOOKUP(C29,ValFill,10,FALSE) -> iawn | AB29: 0_22_11 | AC29: 22 | AD29: 11 | AE29: 202627-0-TOTAL-E1 | AF29: 22.000 | AG29: 11.00 | AH29: 97 | AI29: E1 | AJ29: TOTAL | AK29: 0 | AL29: 0 | AM29: =AL29-AK29 -> 0 | AN29: =IF(ISERR(AL29/AK29-1),"",AL29/AK29-1) ->  | AP29: 0% | AQ29: =IF(AN29="",Text!$F$77,IF(AND(ABS(AN29)>AP29,ABS(AM29)>AO29),Text!$F$126,Text!$F$77)) -> iawn
B30: =AuthDetails!$B$3 -> 0 | C30: 98 | D30: =VLOOKUP(C30,ValFill,2,FALSE) -> E2 | E30: =VLOOKUP(C30,ValFill,3,FALSE) -> TOTAL | F30: =VLOOKUP(C30,ValFill,4,FALSE) -> 0 | G30: =VLOOKUP(C30,ValFill,5,FALSE) -> 0 | H30: =VLOOKUP(C30,ValFill,6,FALSE) -> 0 | I30: =VLOOKUP(C30,ValFill,7,FALSE) ->  | J30: =VLOOKUP(C30,ValFill,8,FALSE) -> 0 | K30: =VLOOKUP(C30,ValFill,9,FALSE) -> 1.6% | L30: =VLOOKUP(C30,ValFill,10,FALSE) -> iawn | AB30: 0_23_11 | AC30: 23 | AD30: 11 | AE30: 202627-0-TOTAL-E2 | AF30: 23.000 | AG30: 11.00 | AH30: 98 | AI30: E2 | AJ30: TOTAL | AK30: 0 | AL30: 0 | AM30: =AL30-AK30 -> 0 | AN30: =IF(ISERR(AL30/AK30-1),"",AL30/AK30-1) ->  | AP30: 2% | AQ30: =IF(AN30="",Text!$F$77,IF(AND(ABS(AN30)>AP30,ABS(AM30)>AO30),Text!$F$126,Text!$F$77)) -> iawn
B31: =AuthDetails!$B$3 -> 0 | C31: 99 | D31: =VLOOKUP(C31,ValFill,2,FALSE) -> E4 | E31: =VLOOKUP(C31,ValFill,3,FALSE) -> TOTAL | F31: =VLOOKUP(C31,ValFill,4,FALSE) -> 0 | G31: =VLOOKUP(C31,ValFill,5,FALSE) -> 0 | H31: =VLOOKUP(C31,ValFill,6,FALSE) -> 0 | I31: =VLOOKUP(C31,ValFill,7,FALSE) ->  | J31: =VLOOKUP(C31,ValFill,8,FALSE) -> 50 | K31: =VLOOKUP(C31,ValFill,9,FALSE) -> 10.0% | L31: =VLOOKUP(C31,ValFill,10,FALSE) -> iawn | AB31: 0_25_11 | AC31: 25 | AD31: 11 | AE31: 202627-0-TOTAL-E4 | AF31: 25.000 | AG31: 11.00 | AH31: 99 | AI31: E4 | AJ31: TOTAL | AK31: 0 | AL31: 0 | AM31: =AL31-AK31 -> 0 | AN31: =IF(ISERR(AL31/AK31-1),"",AL31/AK31-1) ->  | AO31: 50 | AP31: 10% | AQ31: =IF(AN31="",Text!$F$77,IF(AND(ABS(AN31)>AP31,ABS(AM31)>AO31),Text!$F$126,Text!$F$77)) -> iawn
B32: =AuthDetails!$B$3 -> 0 | C32: 100 | D32: =VLOOKUP(C32,ValFill,2,FALSE) -> E6 | E32: =VLOOKUP(C32,ValFill,3,FALSE) -> TOTAL | F32: =VLOOKUP(C32,ValFill,4,FALSE) -> 0 | G32: =VLOOKUP(C32,ValFill,5,FALSE) -> 0 | H32: =VLOOKUP(C32,ValFill,6,FALSE) -> 0 | I32: =VLOOKUP(C32,ValFill,7,FALSE) ->  | J32: =VLOOKUP(C32,ValFill,8,FALSE) -> 50 | K32: =VLOOKUP(C32,ValFill,9,FALSE) -> 2.0% | L32: =VLOOKUP(C32,ValFill,10,FALSE) -> iawn | AB32: 0_27_11 | AC32: 27 | AD32: 11 | AE32: =$AL$1&"-"&uanumber&"-"&AJ32&"-"&AI32 -> 202627-0-TOTAL-E6 | AF32: 27.000 | AG32: 11.00 | AH32: 100 | AI32: E6 | AJ32: TOTAL | AK32: 0 | AL32: 0 | AM32: =AL32-AK32 -> 0 | AN32: =IF(ISERR(AL32/AK32-1),"",AL32/AK32-1) ->  | AO32: 50 | AP32: 2% | AQ32: =IF(AN32="",Text!$F$77,IF(AN32>AP32,Text!$F$126,Text!$F$77)) -> iawn
B33: =AuthDetails!$B$3 -> 0 | C33: 101 | D33: FA | E33: TOTAL | F33: 0 | G33: 0 | H33: 0 | J33: 50 | K33: 10.0% | L33: iawn | AB33: 0_28_11 | AC33: 28 | AD33: 11 | AE33: 202627-0-TOTAL-FA | AF33: 28.000 | AG33: 11.00 | AH33: 101 | AI33: FA | AJ33: TOTAL | AK33: 0 | AL33: 0 | AM33: 0 | AO33: 50 | AP33: 10% | AQ33: =IF(AN33="",Text!$F$77,IF(AND(ABS(AN33)>AP33,ABS(AM33)>AO33),Text!$F$126,Text!$F$77)) -> iawn
B34: =AuthDetails!$B$3 -> 0 | C34: 102 | D34: FB | E34: TOTAL | F34: 0 | G34: 0 | H34: 0 | J34: 50 | K34: 10.0% | L34: iawn | AB34: 0_29_11 | AC34: 29 | AD34: 11 | AE34: 202627-0-TOTAL-FB | AF34: 29.000 | AG34: 11.00 | AH34: 102 | AI34: FB | AJ34: TOTAL | AK34: 0 | AL34: 0 | AM34: 0 | AO34: 50 | AP34: 10% | AQ34: =IF(AN34="",Text!$F$77,IF(AND(ABS(AN34)>AP34,ABS(AM34)>AO34),Text!$F$126,Text!$F$77)) -> iawn
B35: =AuthDetails!$B$3 -> 0 | C35: 103 | D35: FC | E35: TOTAL | F35: 0 | G35: 0 | H35: 0 | J35: 50 | K35: 10.0% | L35: iawn | AB35: 0_30_11 | AC35: 30 | AD35: 11 | AE35: 202627-0-TOTAL-FC | AF35: 30.000 | AG35: 11.00 | AH35: 103 | AI35: FC | AJ35: TOTAL | AK35: 0 | AL35: 0 | AM35: 0 | AO35: 50 | AP35: 10% | AQ35: =IF(AN35="",Text!$F$77,IF(AND(ABS(AN35)>AP35,ABS(AM35)>AO35),Text!$F$126,Text!$F$77)) -> iawn
B36: =AuthDetails!$B$3 -> 0 | C36: 104 | D36: FD | E36: TOTAL | F36: 0 | G36: 0 | H36: 0 | J36: 50 | K36: 10.0% | L36: iawn | AB36: 0_31_11 | AC36: 31 | AD36: 11 | AE36: 202627-0-TOTAL-FD | AF36: 31.000 | AG36: 11.00 | AH36: 104 | AI36: FD | AJ36: TOTAL | AK36: 0 | AL36: 0 | AM36: 0 | AO36: 50 | AP36: 10% | AQ36: =IF(AN36="",Text!$F$77,IF(AND(ABS(AN36)>AP36,ABS(AM36)>AO36),Text!$F$126,Text!$F$77)) -> iawn
B37: =AuthDetails!$B$3 -> 0 | C37: 105 | D37: FE | E37: TOTAL | F37: 0 | G37: 0 | H37: 0 | J37: 50 | K37: 10.0% | L37: iawn | AB37: 0_32_11 | AC37: 32 | AD37: 11 | AE37: 202627-0-TOTAL-FE | AF37: 32.000 | AG37: 11.00 | AH37: 105 | AI37: FE | AJ37: TOTAL | AK37: 0 | AL37: 0 | AM37: 0 | AO37: 50 | AP37: 10% | AQ37: =IF(AN37="",Text!$F$77,IF(AND(ABS(AN37)>AP37,ABS(AM37)>AO37),Text!$F$126,Text!$F$77)) -> iawn
B38: =AuthDetails!$B$3 -> 0 | C38: 106 | D38: FF | E38: TOTAL | F38: 0 | G38: 0 | H38: 0 | J38: 50 | K38: 10.0% | L38: iawn | AB38: 0_33_11 | AC38: 33 | AD38: 11 | AE38: 202627-0-TOTAL-FF | AF38: 33.000 | AG38: 11.00 | AH38: 106 | AI38: FF | AJ38: TOTAL | AK38: 0 | AL38: 0 | AM38: 0 | AO38: 50 | AP38: 10% | AQ38: =IF(AN38="",Text!$F$77,IF(AND(ABS(AN38)>AP38,ABS(AM38)>AO38),Text!$F$126,Text!$F$77)) -> iawn
B39: =AuthDetails!$B$3 -> 0 | C39: 107 | D39: FG | E39: TOTAL | F39: 0 | G39: 0 | H39: 0 | J39: 50 | K39: 10.0% | L39: iawn | AB39: 0_34_11 | AC39: 34 | AD39: 11 | AE39: 202627-0-TOTAL-FG | AF39: 34.000 | AG39: 11.00 | AH39: 107 | AI39: FG | AJ39: TOTAL | AK39: 0 | AL39: 0 | AM39: 0 | AO39: 50 | AP39: 10% | AQ39: =IF(AN39="",Text!$F$77,IF(AND(ABS(AN39)>AP39,ABS(AM39)>AO39),Text!$F$126,Text!$F$77)) -> iawn
B40: =AuthDetails!$B$3 -> 0 | C40: 108 | D40: FH | E40: TOTAL | F40: 0 | G40: 0 | H40: 0 | J40: 50 | K40: 10.0% | L40: iawn | AB40: =uanumber&"_"&AC40&"_"&AD40 -> 0_35_11 | AC40: 35 | AD40: 11 | AE40: 202627-0-TOTAL-FH | AF40: 35.000 | AG40: 11.00 | AH40: 108 | AI40: FH | AJ40: TOTAL | AK40: =VLOOKUP(AB40,LineData,9,FALSE) -> 0 | AL40: =VLOOKUP(AB40,LineData,10,FALSE) -> 0 | AM40: 0 | AO40: 50 | AP40: 10% | AQ40: =IF(AN40="",Text!$F$77,IF(AND(ABS(AN40)>AP40,ABS(AM40)>AO40),Text!$F$126,Text!$F$77)) -> iawn
B41: =AuthDetails!$B$3 -> 0 | C41: 109 | D41: FI | E41: TOTAL | F41: 0 | G41: 0 | H41: 0 | J41: 50 | K41: 10.0% | L41: iawn | AB41: 0_36_11 | AC41: 36 | AD41: 11 | AE41: 202627-0-TOTAL-FI | AF41: 36.000 | AG41: 11.00 | AH41: 109 | AI41: FI | AJ41: TOTAL | AK41: 0 | AL41: 0 | AM41: 0 | AO41: 50 | AP41: 10% | AQ41: =IF(AN41="",Text!$F$77,IF(AND(ABS(AN41)>AP41,ABS(AM41)>AO41),Text!$F$126,Text!$F$77)) -> iawn
B42: =AuthDetails!$B$3 -> 0 | C42: 110 | D42: FJ | E42: TOTAL | F42: 0 | G42: 0 | H42: 0 | J42: 50 | K42: 10.0% | L42: iawn | AB42: 0_37_11 | AC42: 37 | AD42: 11 | AE42: 202627-0-TOTAL-FJ | AF42: 37.000 | AG42: 11.00 | AH42: 110 | AI42: FJ | AJ42: TOTAL | AK42: 0 | AL42: 0 | AM42: 0 | AO42: 50 | AP42: 10% | AQ42: =IF(AN42="",Text!$F$77,IF(AND(ABS(AN42)>AP42,ABS(AM42)>AO42),Text!$F$126,Text!$F$77)) -> iawn
B43: =AuthDetails!$B$3 -> 0 | C43: 111 | D43: FK | E43: TOTAL | F43: 0 | G43: 0 | H43: 0 | J43: 50 | K43: 10.0% | L43: iawn | AB43: 0_38_11 | AC43: 38 | AD43: 11 | AE43: 202627-0-TOTAL-FK | AF43: 38.000 | AG43: 11.00 | AH43: 111 | AI43: FK | AJ43: TOTAL | AK43: 0 | AL43: 0 | AM43: 0 | AO43: 50 | AP43: 10% | AQ43: =IF(AN43="",Text!$F$77,IF(AND(ABS(AN43)>AP43,ABS(AM43)>AO43),Text!$F$126,Text!$F$77)) -> iawn
B44: =AuthDetails!$B$3 -> 0 | C44: 112 | D44: FL | E44: TOTAL | F44: 0 | G44: 0 | H44: 0 | J44: 50 | K44: 10.0% | L44: iawn | AB44: 0_39_11 | AC44: 39 | AD44: 11 | AE44: 202627-0-TOTAL-FL | AF44: 39.000 | AG44: 11.00 | AH44: 112 | AI44: FL | AJ44: TOTAL | AK44: 0 | AL44: 0 | AM44: 0 | AO44: 50 | AP44: 10% | AQ44: =IF(AN44="",Text!$F$77,IF(AND(ABS(AN44)>AP44,ABS(AM44)>AO44),Text!$F$126,Text!$F$77)) -> iawn
B45: =AuthDetails!$B$3 -> 0 | C45: 113 | D45: FM | E45: TOTAL | F45: 0 | G45: 0 | H45: 0 | J45: 50 | K45: 10.0% | L45: iawn | AB45: 0_40_11 | AC45: 40 | AD45: 11 | AE45: 202627-0-TOTAL-FM | AF45: 40.000 | AG45: 11.00 | AH45: 113 | AI45: FM | AJ45: TOTAL | AK45: 0 | AL45: 0 | AM45: 0 | AO45: 50 | AP45: 10% | AQ45: =IF(AN45="",Text!$F$77,IF(AND(ABS(AN45)>AP45,ABS(AM45)>AO45),Text!$F$126,Text!$F$77)) -> iawn
B46: =AuthDetails!$B$3 -> 0 | C46: 114 | D46: FN | E46: TOTAL | F46: 0 | G46: 0 | H46: 0 | J46: 50 | K46: 10.0% | L46: iawn | AB46: 0_41_11 | AC46: 41 | AD46: 11 | AE46: 202627-0-TOTAL-FN | AF46: 41.000 | AG46: 11.00 | AH46: 114 | AI46: FN | AJ46: TOTAL | AK46: 0 | AL46: 0 | AM46: 0 | AO46: 50 | AP46: 10% | AQ46: =IF(AN46="",Text!$F$77,IF(AND(ABS(AN46)>AP46,ABS(AM46)>AO46),Text!$F$126,Text!$F$77)) -> iawn
B47: =AuthDetails!$B$3 -> 0 | C47: 115 | D47: FO | E47: TOTAL | F47: 0 | G47: 0 | H47: 0 | J47: 50 | K47: 10.0% | L47: iawn | AB47: 0_42_11 | AC47: 42 | AD47: 11 | AE47: 202627-0-TOTAL-FO | AF47: 42.000 | AG47: 11.00 | AH47: 115 | AI47: FO | AJ47: TOTAL | AK47: 0 | AL47: 0 | AM47: 0 | AO47: 50 | AP47: 10% | AQ47: =IF(AN47="",Text!$F$77,IF(AND(ABS(AN47)>AP47,ABS(AM47)>AO47),Text!$F$126,Text!$F$77)) -> iawn
B48: =AuthDetails!$B$3 -> 0 | C48: 116 | D48: FP | E48: TOTAL | F48: 0 | G48: 0 | H48: 0 | J48: 50 | K48: 10.0% | L48: iawn | AB48: 0_43_11 | AC48: 43 | AD48: 11 | AE48: 202627-0-TOTAL-FP | AF48: 43.000 | AG48: 11.00 | AH48: 116 | AI48: FP | AJ48: TOTAL | AK48: 0 | AL48: 0 | AM48: 0 | AO48: 50 | AP48: 10% | AQ48: =IF(AN48="",Text!$F$77,IF(AND(ABS(AN48)>AP48,ABS(AM48)>AO48),Text!$F$126,Text!$F$77)) -> iawn
B49: =AuthDetails!$B$3 -> 0 | C49: 117 | D49: FQ | E49: TOTAL | F49: 0 | G49: 0 | H49: 0 | J49: 50 | K49: 10.0% | L49: iawn | AB49: 0_44_11 | AC49: 44 | AD49: 11 | AE49: 202627-0-TOTAL-FQ | AF49: 44.000 | AG49: 11.00 | AH49: 117 | AI49: FQ | AJ49: TOTAL | AK49: 0 | AL49: 0 | AM49: 0 | AO49: 50 | AP49: 10% | AQ49: =IF(AN49="",Text!$F$77,IF(AND(ABS(AN49)>AP49,ABS(AM49)>AO49),Text!$F$126,Text!$F$77)) -> iawn
B50: =AuthDetails!$B$3 -> 0 | C50: 118 | D50: FR | E50: TOTAL | F50: 0 | G50: 0 | H50: 0 | J50: 50 | K50: 10.0% | L50: iawn | AB50: 0_45_11 | AC50: 45 | AD50: 11 | AE50: 202627-0-TOTAL-FR | AF50: 45.000 | AG50: 11.00 | AH50: 118 | AI50: FR | AJ50: TOTAL | AK50: 0 | AL50: 0 | AM50: 0 | AO50: 50 | AP50: 10% | AQ50: =IF(AN50="",Text!$F$77,IF(AND(ABS(AN50)>AP50,ABS(AM50)>AO50),Text!$F$126,Text!$F$77)) -> iawn
B51: =AuthDetails!$B$3 -> 0 | C51: 119 | D51: FS | E51: TOTAL | F51: 0 | G51: 0 | H51: 0 | J51: 50 | K51: 10.0% | L51: iawn | AB51: 0_46_11 | AC51: 46 | AD51: 11 | AE51: 202627-0-TOTAL-FS | AF51: 46.000 | AG51: 11.00 | AH51: 119 | AI51: FS | AJ51: TOTAL | AK51: 0 | AL51: 0 | AM51: 0 | AO51: 50 | AP51: 10% | AQ51: =IF(AN51="",Text!$F$77,IF(AND(ABS(AN51)>AP51,ABS(AM51)>AO51),Text!$F$126,Text!$F$77)) -> iawn
B52: =AuthDetails!$B$3 -> 0 | C52: 120 | D52: FT | E52: TOTAL | F52: 0 | G52: 0 | H52: 0 | J52: 50 | K52: 10.0% | L52: =VLOOKUP(C52,ValFill,10,FALSE) -> iawn | AB52: 0_47_11 | AC52: 47 | AD52: 11 | AE52: 202627-0-TOTAL-FT | AF52: 47.000 | AG52: 11.00 | AH52: 120 | AI52: FT | AJ52: TOTAL | AK52: 0 | AL52: 0 | AM52: 0 | AO52: 50 | AP52: 10% | AQ52: =IF(AN52="",Text!$F$77,IF(AND(ABS(AN52)>AP52,ABS(AM52)>AO52),Text!$F$126,Text!$F$77)) -> iawn
B53: =AuthDetails!$B$3 -> 0 | C53: 121 | D53: FU | E53: TOTAL | F53: 0 | G53: 0 | H53: 0 | J53: 50 | K53: 10.0% | L53: =VLOOKUP(C53,ValFill,10,FALSE) -> iawn | AB53: 0_49_11 | AC53: 49 | AD53: 11 | AE53: 202627-0-TOTAL-FU | AF53: 49.000 | AG53: 11.00 | AH53: 121 | AI53: FU | AJ53: TOTAL | AK53: 0 | AL53: 0 | AM53: 0 | AO53: 50 | AP53: 10% | AQ53: =IF(AN53="",Text!$F$77,IF(AND(ABS(AN53)>AP53,ABS(AM53)>AO53),Text!$F$126,Text!$F$77)) -> iawn
B54: =AuthDetails!$B$3 -> 0 | C54: 122 | D54: FV | E54: TOTAL | F54: 0 | G54: 0 | H54: 0 | J54: 50 | K54: 10.0% | L54: =VLOOKUP(C54,ValFill,10,FALSE) -> iawn | AB54: 0_50_11 | AC54: 50 | AD54: 11 | AE54: 202627-0-TOTAL-FV | AF54: 50.000 | AG54: 11.00 | AH54: 122 | AI54: FV | AJ54: TOTAL | AK54: 0 | AL54: 0 | AM54: 0 | AO54: 50 | AP54: 10% | AQ54: =IF(AN54="",Text!$F$77,IF(AND(ABS(AN54)>AP54,ABS(AM54)>AO54),Text!$F$126,Text!$F$77)) -> iawn
B55: =AuthDetails!$B$3 -> 0 | C55: 123 | D55: FW | E55: TOTAL | F55: 0 | G55: 0 | H55: 0 | J55: 50 | K55: 10.0% | L55: =VLOOKUP(C55,ValFill,10,FALSE) -> iawn | AB55: 0_51_11 | AC55: 51 | AD55: 11 | AE55: 202627-0-TOTAL-FW | AF55: 51.000 | AG55: 11.00 | AH55: 123 | AI55: FW | AJ55: TOTAL | AK55: 0 | AL55: 0 | AM55: 0 | AO55: 50 | AP55: 10% | AQ55: =IF(AN55="",Text!$F$77,IF(AND(ABS(AN55)>AP55,ABS(AM55)>AO55),Text!$F$126,Text!$F$77)) -> iawn
B56: =AuthDetails!$B$3 -> 0 | C56: 124 | D56: F | E56: TOTAL | F56: 0 | G56: 0 | H56: 0 | J56: 50 | K56: 10.0% | L56: =VLOOKUP(C56,ValFill,10,FALSE) -> iawn | AB56: 0_51.5_11 | AC56: 51.5 | AD56: 11 | AE56: 202627-0-TOTAL-F | AF56: 51.500 | AG56: 11.00 | AH56: 124 | AI56: F | AJ56: TOTAL | AK56: 0 | AL56: 0 | AM56: =AL56-AK56 -> 0 | AN56: =IF(ISERR(AL56/AK56-1),"",AL56/AK56-1) ->  | AO56: 50 | AP56: 10% | AQ56: =IF(AN56="",Text!$F$77,IF(AND(ABS(AN56)>AP56,ABS(AM56)>AO56),Text!$F$126,Text!$F$77)) -> iawn
C58: =Text!F108&" "&TEXT(ValidationData!D4,"dd/mm/yy") -> Gwiriad Asiantaeth y Swyddfa Brisio 25/09/25 | J58: =Text!F129 -> Goddefiant | AH58: Valuation Office Agency Check: 30/10/16
E59: =AJ59 -> Band | F59: VOA | G59: A1+D1+D2 | H59: Gwahaniaeth | I59: % Gwahaniaeth | J59: Abs | K59: % | L59: Statws | M59: =AR114 -> Sylwadau | AH59: =Text!F100 -> Rhif ID | AI59: =Text!F101 -> Llinio | AJ59: Band | AK59: VOA | AL59: A1+D1+D2 | AM59: =Text!F103 -> Gwahaniaeth | AN59: ="% "&Text!F103 -> % Gwahaniaeth | AO59: Abs | AP59: % | AQ59: =Text!F105 -> Statws | AR59: =Text!F106 -> Sylwadau
C60: Column1 | D60: Column2 | E60: Column3 | F60: Column4 | G60: Column5 | H60: Column6 | I60: Column7 | J60: Column8 | K60: Column9 | L60: Column10 | M60: Column11
B61: =AuthDetails!$B$3 -> 0 | C61: 125 | E61: =VLOOKUP($C61,ValFill,3,FALSE) -> A | F61: =VLOOKUP($C61,ValFill,4,FALSE) ->  | G61: =VLOOKUP($C61,ValFill,5,FALSE) -> 0 | H61: =VLOOKUP($C61,ValFill,6,FALSE) ->  | I61: =VLOOKUP($C61,ValFill,7,FALSE) ->  | J61: =VLOOKUP($C61,ValFill,8,FALSE) -> 50 | K61: =VLOOKUP($C61,ValFill,9,FALSE) -> 5.0% | L61: =VLOOKUP($C61,ValFill,10,FALSE) ->  | AE61: =$AL$1&"-"&uanumber&"-"&AJ61&"-"&AI61 -> 202627-0-A-Z | AH61: 125 | AI61: Z | AJ61: A | AK61: =VLOOKUP(uanumber&AJ61,VOAList[],4,FALSE) ->  | AL61: =PartsAtoD!$F$7+PartsAtoD!$F$30+PartsAtoD!$F$31 -> 0 | AM61: =AL61-AK61 ->  | AN61: =IF(ISERR(AL61/AK61-1),"",AL61/AK61-1) ->  | AO61: 50 | AP61: 5% | AQ61: =IF(AN61="",Text!$F$77,IF(AND(ABS(AN61)>AP61,ABS(AM61)>AO61),Text!$F$126,Text!$F$77)) ->  | AR61: =IF(VLOOKUP(AH61,ComFill,11,FALSE)=0,"",VLOOKUP(AH61,ComFill,11,FALSE)) -> 
B62: =AuthDetails!$B$3 -> 0 | C62: 126 | E62: B | G62: 0 | J62: 50 | K62: 5.0% | AE62: 202627-0-B-Z | AH62: 126 | AI62: Z | AJ62: B | AK62: =VLOOKUP(uanumber&AJ62,VOAList1,4,FALSE) ->  | AL62: =PartsAtoD!$G$7+PartsAtoD!$G$30+PartsAtoD!$G$31 -> 0 | AM62: =AL62-AK62 ->  | AN62: =IF(ISERR(AL62/AK62-1),"",AL62/AK62-1) ->  | AO62: 50 | AP62: 5% | AQ62: =IF(AN62="",Text!$F$77,IF(AND(ABS(AN62)>AP62,ABS(AM62)>AO62),Text!$F$126,Text!$F$77)) -> 
B63: =AuthDetails!$B$3 -> 0 | C63: 127 | E63: C | G63: 0 | J63: 50 | K63: 5.0% | AE63: 202627-0-C-Z | AH63: 127 | AI63: Z | AJ63: C | AL63: =PartsAtoD!$H$7+PartsAtoD!H$30+PartsAtoD!$H$31 -> 0 | AO63: 50 | AP63: 5% | AQ63: =IF(AN63="",Text!$F$77,IF(AND(ABS(AN63)>AP63,ABS(AM63)>AO63),Text!$F$126,Text!$F$77)) -> 
B64: =AuthDetails!$B$3 -> 0 | C64: 128 | E64: D | G64: 0 | J64: 50 | K64: 5.0% | AE64: 202627-0-D-Z | AH64: 128 | AI64: Z | AJ64: D | AL64: =PartsAtoD!$I$7+PartsAtoD!$I$30+PartsAtoD!$I$31 -> 0 | AO64: 50 | AP64: 5% | AQ64: =IF(AN64="",Text!$F$77,IF(AND(ABS(AN64)>AP64,ABS(AM64)>AO64),Text!$F$126,Text!$F$77)) -> 
B65: =AuthDetails!$B$3 -> 0 | C65: 129 | E65: E | G65: 0 | J65: 50 | K65: 5.0% | AE65: 202627-0-E-Z | AH65: 129 | AI65: Z | AJ65: E | AL65: =PartsAtoD!$J$7+PartsAtoD!$J$30+PartsAtoD!$J$31 -> 0 | AO65: 50 | AP65: 5% | AQ65: =IF(AN65="",Text!$F$77,IF(AND(ABS(AN65)>AP65,ABS(AM65)>AO65),Text!$F$126,Text!$F$77)) -> 
B66: =AuthDetails!$B$3 -> 0 | C66: 130 | E66: F | G66: 0 | J66: 50 | K66: 5.0% | AE66: 202627-0-F-Z | AH66: 130 | AI66: Z | AJ66: F | AL66: =PartsAtoD!$K$7+PartsAtoD!$K$30+PartsAtoD!$K$31 -> 0 | AO66: 50 | AP66: 5% | AQ66: =IF(AN66="",Text!$F$77,IF(AND(ABS(AN66)>AP66,ABS(AM66)>AO66),Text!$F$126,Text!$F$77)) -> 
B67: =AuthDetails!$B$3 -> 0 | C67: 131 | E67: G | G67: 0 | J67: 30 | K67: 5.0% | AE67: 202627-0-G-Z | AH67: 131 | AI67: Z | AJ67: G | AL67: =PartsAtoD!$L$7+PartsAtoD!$L$30+PartsAtoD!$L$31 -> 0 | AO67: 30 | AP67: 5% | AQ67: =IF(AN67="",Text!$F$77,IF(AND(ABS(AN67)>AP67,ABS(AM67)>AO67),Text!$F$126,Text!$F$77)) -> 
B68: =AuthDetails!$B$3 -> 0 | C68: 132 | E68: H | G68: 0 | J68: 20 | K68: 5.0% | AE68: 202627-0-H-Z | AH68: 132 | AI68: Z | AJ68: H | AL68: =PartsAtoD!$M$7+PartsAtoD!$M$30+PartsAtoD!$M$31 -> 0 | AO68: 20 | AP68: 5% | AQ68: =IF(AN68="",Text!$F$77,IF(AND(ABS(AN68)>AP68,ABS(AM68)>AO68),Text!$F$126,Text!$F$77)) -> 
B69: =AuthDetails!$B$3 -> 0 | C69: 133 | E69: I | G69: 0 | J69: 10 | K69: 5.0% | AE69: 202627-0-I-Z | AH69: 133 | AI69: Z | AJ69: I | AL69: =PartsAtoD!$N$7+PartsAtoD!$N$30+PartsAtoD!$N$31 -> 0 | AO69: 10 | AP69: 5% | AQ69: =IF(AN69="",Text!$F$77,IF(AND(ABS(AN69)>AP69,ABS(AM69)>AO69),Text!$F$126,Text!$F$77)) -> 
B70: =AuthDetails!$B$3 -> 0 | C70: 134 | E70: TOTAL | G70: 0 | J70: 50 | K70: 5.0% | AE70: 202627-0-TOTAL-Z | AH70: 134 | AI70: Z | AJ70: TOTAL | AK70: =SUM(AK61:AK69) ->  | AL70: =PartsAtoD!$O$7+PartsAtoD!$O$30+PartsAtoD!$O$31 -> 0 | AO70: 50 | AP70: 5% | AQ70: =IF(AN70="",Text!$F$77,IF(AND(ABS(AN70)>AP70,ABS(AM70)>AO70),Text!$F$126,Text!$F$77)) -> 
AF76: =IF(EXACT(AG76,AJ76),0,1) ->  | AG76: =VLOOKUP(uanumber,Addresses,6,FALSE) ->  | AJ76: =#REF! -> 
AF77: =IF(EXACT(AG77,AJ77),0,1) ->  | AG77: =VLOOKUP(uanumber,Addresses,7,FALSE) ->  | AJ77: =#REF! -> 
AR87: =IF(VLOOKUP(AH32,ComFill,11,FALSE)=0,"",VLOOKUP(AH32,ComFill,11,FALSE)) -> 
AO107: 100 | AP107: 10%
AO108: 100 | AP108: 75%
AO109: 50 | AP109: 10%
AO110: 50 | AP110: 10%
AO111: 50 | AP111: 10%
AO112: 50 | AP112: 10%
AO113: 50 | AP113: 10%
AO114: 50 | AP114: 10% | AR114: =Text!F106 -> Sylwadau
AO115: 50 | AP115: 10%
AO116: 50 | AP116: 10% | AR116: =IF(VLOOKUP(AH61,ComFill,11,FALSE)=0,"",VLOOKUP(AH61,ComFill,11,FALSE)) -> 
AO117: 200 | AP117: 10%
AO118: 50 | AP118: 10%

Sheet LineChecks
C1: =Data!AK1 -> GWIRIADAU LLINELL - cymhariaeth o ffigurau flwyddyn ar flwyddyn | V1: =Data!AK2 -> Dilynwch y cyfarwyddiadau isod wrth lenwi'r dudalen hon:
D2: =uanumber -> 0 | G2: =AuthDetails!C3 -> Dewiswch eich awdurdod
M5: =Data!AD21 -> goddefiant
M6: =M10 -> prisio | N6: % | R6: =E10 -> colofn
M7: 100 | N7: 10% | R7: =Data!AD23 -> Cyfansymiau
K9: =Data!AD20 -> gwahaniaeth | M9: =M5 -> goddefiant | O9: =Data!AD22 -> sero? | R9: =SUM(R12:R187) -> 0 | S9: =SUM(S12:S187) -> 1 | T9: 1
A10: Index | B10: ValSheet? | C10: =Data!AD6 -> dewiswch | D10: =Data!AD7 -> rhes | E10: =Data!AD8 -> colofn | F10: T/E | G10: =Data!AD9 -> disgrifiad rhes (Llinellau swm a ddangosir mewn print trwm) | H10: =I10-101 -> 202425 | I10: =J10-101 -> 202526 | J10: =Yearcode -> 202627 | K10: =Data!AD10 -> prisio | L10: % | M10: =Data!AD10 -> prisio | N10: % | O10: =I10 -> 202526 | P10: =J10 -> 202627 | Q10: =Data!AD11 -> deipio | R10: =Data!AD12 -> awto | S10: =Data!AD13 -> marcio | T10: =Data!AD14 -> wirio | U10: =Data!AD15 -> statws | V10: =Data!AD16 -> Eich Sylwadau | W10: =Data!AD17 -> ein sylwadau | X10: =Data!AD18 -> arwydd gan | Y10: =Data!AD19 -> dyddiad
C11: S | D11: row | E11: column | F11: T/E | G11: row description (sum lines shown in bold) | H11: 201819 | I11: 201920 | J11: 202021 | K11: value | L11: % | M11: value | N11: % | O11: 201920 | P11: 202021 | Q11: type | R11: auto | S11: mark | T11: check | U11: status | V11: Your Comments | W11: our comments | X11: sign by | Y11: date
A12: =uanumber&"_"&D12&"_"&E12 -> 0_1_2 | B12: =IF(COUNTIF(Validations!$AB$8:$AB$56,A12)=1,1,"") -> 1 | D12: 1 | E12: 2 | G12: =IF(ISNA(VLOOKUP(D12,Rows[],4,FALSE)),"",VLOOKUP(D12,Rows[],4,FALSE)) -> A1 - Holl anheddau trethadwy | H12: =IF(ISERROR(VLOOKUP($A12&"_"&H$10,qData1[],7,FALSE)),"",VLOOKUP($A12&"_"&H$10,qData1[],7,FALSE)) ->  | I12: =IF(ISERROR(VLOOKUP($A12&"_"&I$10,qData1[],7,FALSE)),0,VLOOKUP($A12&"_"&I$10,qData1[],7,FALSE)) -> 0 | J12: =IF(ISERROR(VLOOKUP(D12&"_"&E12,Figs,8,FALSE)),0,VLOOKUP(D12&"_"&E12,Figs,8,FALSE)) -> 0 | K12: =J12-I12 -> 0 | L12: =IF(OR(I12=0,J12=0),0,K12/I12*100) -> 0 | M12: =IF(ISNA(VLOOKUP($D12&"_"&$E12,Tol[],6,FALSE)),$M$7,VLOOKUP($D12&"_"&$E12,Tol[],6,FALSE)) -> 50 | N12: =IF(ISNA(VLOOKUP($D12&"_"&$E12,Tol[],7,FALSE)),$N$7*100,VLOOKUP($D12&"_"&$E12,Tol[],7,FALSE)*100) -> 5 | O12: =IF(I12=0,1,"") -> 1 | P12: =IF(J12=0,1,"") -> 1 | Q12: =IF(SUM(O12:P12)=2,"",IF(SUM(O12:P12)=1,9,IF(AND(ABS(K12)>M12,ABS(L12)>N12),3,IF(ABS(K12)>M12,1,IF(ABS(L12)>N12,2,""))))) ->  | R12: =IF(Q12=3,1,"") ->  | T12: =IF(OR(U12="C",U12="T"),"",IF(S12=1,1,"")) ->  | W12: =IF(ISERROR(VLOOKUP($A12,#REF!,8,FALSE)),"",VLOOKUP($A12,#REF!,8,FALSE)) ->  | X12: =IF(ISERROR(VLOOKUP($A12,#REF!,9,FALSE)),"",VLOOKUP($A12,#REF!,9,FALSE)) ->  | Y12: =IF(ISERROR(VLOOKUP($A12,#REF!,10,FALSE)),0,VLOOKUP($A12,#REF!,10,FALSE)) -> 00:00:00
A13: 0_1_3 | B13: =IF(COUNTIF(Validations!$AB$8:$AB$56,A13)=1,1,"") -> 1 | D13: 1 | E13: 3 | G13: =IF(ISNA(VLOOKUP(D13,Rows[],4,FALSE)),"",VLOOKUP(D13,Rows[],4,FALSE)) -> A1 - Holl anheddau trethadwy | H13: =IF(ISERROR(VLOOKUP($A13&"_"&H$10,qData1[],7,FALSE)),"",VLOOKUP($A13&"_"&H$10,qData1[],7,FALSE)) ->  | I13: =IF(ISERROR(VLOOKUP($A13&"_"&I$10,qData1[],7,FALSE)),0,VLOOKUP($A13&"_"&I$10,qData1[],7,FALSE)) -> 0 | J13: 0 | K13: =J13-I13 -> 0 | L13: =IF(OR(I13=0,J13=0),0,K13/I13*100) -> 0 | M13: =IF(ISNA(VLOOKUP($D13&"_"&$E13,Tol[],6,FALSE)),$M$7,VLOOKUP($D13&"_"&$E13,Tol[],6,FALSE)) -> 50 | N13: =IF(ISNA(VLOOKUP($D13&"_"&$E13,Tol[],7,FALSE)),$N$7*100,VLOOKUP($D13&"_"&$E13,Tol[],7,FALSE)*100) -> 5 | O13: =IF(I13=0,1,"") -> 1 | P13: =IF(J13=0,1,"") -> 1 | Q13: =IF(SUM(O13:P13)=2,"",IF(SUM(O13:P13)=1,9,IF(AND(ABS(K13)>M13,ABS(L13)>N13),3,IF(ABS(K13)>M13,1,IF(ABS(L13)>N13,2,""))))) ->  | R13: =IF(Q13=3,1,"") ->  | T13: =IF(OR(U13="C",U13="T"),"",IF(S13=1,1,"")) ->  | W13: =IF(ISERROR(VLOOKUP($A13,#REF!,8,FALSE)),"",VLOOKUP($A13,#REF!,8,FALSE)) ->  | X13: =IF(ISERROR(VLOOKUP($A13,#REF!,9,FALSE)),"",VLOOKUP($A13,#REF!,9,FALSE)) ->  | Y13: =IF(ISERROR(VLOOKUP($A13,#REF!,10,FALSE)),0,VLOOKUP($A13,#REF!,10,FALSE)) -> 00:00:00
A14: 0_1_4 | B14: =IF(COUNTIF(Validations!$AB$8:$AB$56,A14)=1,1,"") -> 1 | D14: 1 | E14: 4 | G14: =IF(ISNA(VLOOKUP(D14,Rows[],4,FALSE)),"",VLOOKUP(D14,Rows[],4,FALSE)) -> A1 - Holl anheddau trethadwy | H14: =IF(ISERROR(VLOOKUP($A14&"_"&H$10,qData1[],7,FALSE)),"",VLOOKUP($A14&"_"&H$10,qData1[],7,FALSE)) ->  | I14: =IF(ISERROR(VLOOKUP($A14&"_"&I$10,qData1[],7,FALSE)),0,VLOOKUP($A14&"_"&I$10,qData1[],7,FALSE)) -> 0 | J14: 0 | K14: 0 | L14: 0 | M14: =IF(ISNA(VLOOKUP($D14&"_"&$E14,Tol[],6,FALSE)),$M$7,VLOOKUP($D14&"_"&$E14,Tol[],6,FALSE)) -> 50 | N14: =IF(ISNA(VLOOKUP($D14&"_"&$E14,Tol[],7,FALSE)),$N$7*100,VLOOKUP($D14&"_"&$E14,Tol[],7,FALSE)*100) -> 5 | O14: 1 | P14: 1 | W14: =IF(ISERROR(VLOOKUP($A14,#REF!,8,FALSE)),"",VLOOKUP($A14,#REF!,8,FALSE)) ->  | X14: =IF(ISERROR(VLOOKUP($A14,#REF!,9,FALSE)),"",VLOOKUP($A14,#REF!,9,FALSE)) ->  | Y14: =IF(ISERROR(VLOOKUP($A14,#REF!,10,FALSE)),0,VLOOKUP($A14,#REF!,10,FALSE)) -> 00:00:00
A15: 0_1_5 | B15: =IF(COUNTIF(Validations!$AB$8:$AB$56,A15)=1,1,"") -> 1 | D15: 1 | E15: 5 | G15: =IF(ISNA(VLOOKUP(D15,Rows[],4,FALSE)),"",VLOOKUP(D15,Rows[],4,FALSE)) -> A1 - Holl anheddau trethadwy | H15: =IF(ISERROR(VLOOKUP($A15&"_"&H$10,qData1[],7,FALSE)),"",VLOOKUP($A15&"_"&H$10,qData1[],7,FALSE)) ->  | I15: =IF(ISERROR(VLOOKUP($A15&"_"&I$10,qData1[],7,FALSE)),0,VLOOKUP($A15&"_"&I$10,qData1[],7,FALSE)) -> 0 | J15: 0 | K15: 0 | L15: 0 | M15: =IF(ISNA(VLOOKUP($D15&"_"&$E15,Tol[],6,FALSE)),$M$7,VLOOKUP($D15&"_"&$E15,Tol[],6,FALSE)) -> 50 | N15: =IF(ISNA(VLOOKUP($D15&"_"&$E15,Tol[],7,FALSE)),$N$7*100,VLOOKUP($D15&"_"&$E15,Tol[],7,FALSE)*100) -> 5 | O15: 1 | P15: 1 | W15: =IF(ISERROR(VLOOKUP($A15,#REF!,8,FALSE)),"",VLOOKUP($A15,#REF!,8,FALSE)) ->  | X15: =IF(ISERROR(VLOOKUP($A15,#REF!,9,FALSE)),"",VLOOKUP($A15,#REF!,9,FALSE)) ->  | Y15: =IF(ISERROR(VLOOKUP($A15,#REF!,10,FALSE)),0,VLOOKUP($A15,#REF!,10,FALSE)) -> 00:00:00
A16: 0_1_6 | B16: =IF(COUNTIF(Validations!$AB$8:$AB$56,A16)=1,1,"") -> 1 | D16: 1 | E16: 6 | G16: =IF(ISNA(VLOOKUP(D16,Rows[],4,FALSE)),"",VLOOKUP(D16,Rows[],4,FALSE)) -> A1 - Holl anheddau trethadwy | H16: =IF(ISERROR(VLOOKUP($A16&"_"&H$10,qData1[],7,FALSE)),"",VLOOKUP($A16&"_"&H$10,qData1[],7,FALSE)) ->  | I16: =IF(ISERROR(VLOOKUP($A16&"_"&I$10,qData1[],7,FALSE)),0,VLOOKUP($A16&"_"&I$10,qData1[],7,FALSE)) -> 0 | J16: 0 | K16: 0 | L16: 0 | M16: =IF(ISNA(VLOOKUP($D16&"_"&$E16,Tol[],6,FALSE)),$M$7,VLOOKUP($D16&"_"&$E16,Tol[],6,FALSE)) -> 50 | N16: =IF(ISNA(VLOOKUP($D16&"_"&$E16,Tol[],7,FALSE)),$N$7*100,VLOOKUP($D16&"_"&$E16,Tol[],7,FALSE)*100) -> 5 | O16: 1 | P16: 1 | W16: =IF(ISERROR(VLOOKUP($A16,#REF!,8,FALSE)),"",VLOOKUP($A16,#REF!,8,FALSE)) ->  | X16: =IF(ISERROR(VLOOKUP($A16,#REF!,9,FALSE)),"",VLOOKUP($A16,#REF!,9,FALSE)) ->  | Y16: =IF(ISERROR(VLOOKUP($A16,#REF!,10,FALSE)),0,VLOOKUP($A16,#REF!,10,FALSE)) -> 00:00:00
A17: 0_1_7 | B17: =IF(COUNTIF(Validations!$AB$8:$AB$56,A17)=1,1,"") -> 1 | D17: 1 | E17: 7 | G17: =IF(ISNA(VLOOKUP(D17,Rows[],4,FALSE)),"",VLOOKUP(D17,Rows[],4,FALSE)) -> A1 - Holl anheddau trethadwy | H17: =IF(ISERROR(VLOOKUP($A17&"_"&H$10,qData1[],7,FALSE)),"",VLOOKUP($A17&"_"&H$10,qData1[],7,FALSE)) ->  | I17: =IF(ISERROR(VLOOKUP($A17&"_"&I$10,qData1[],7,FALSE)),0,VLOOKUP($A17&"_"&I$10,qData1[],7,FALSE)) -> 0 | J17: 0 | K17: 0 | L17: 0 | M17: =IF(ISNA(VLOOKUP($D17&"_"&$E17,Tol[],6,FALSE)),$M$7,VLOOKUP($D17&"_"&$E17,Tol[],6,FALSE)) -> 50 | N17: =IF(ISNA(VLOOKUP($D17&"_"&$E17,Tol[],7,FALSE)),$N$7*100,VLOOKUP($D17&"_"&$E17,Tol[],7,FALSE)*100) -> 5 | O17: 1 | P17: 1 | W17: =IF(ISERROR(VLOOKUP($A17,#REF!,8,FALSE)),"",VLOOKUP($A17,#REF!,8,FALSE)) ->  | X17: =IF(ISERROR(VLOOKUP($A17,#REF!,9,FALSE)),"",VLOOKUP($A17,#REF!,9,FALSE)) ->  | Y17: =IF(ISERROR(VLOOKUP($A17,#REF!,10,FALSE)),0,VLOOKUP($A17,#REF!,10,FALSE)) -> 00:00:00
A18: 0_1_8 | B18: =IF(COUNTIF(Validations!$AB$8:$AB$56,A18)=1,1,"") -> 1 | D18: 1 | E18: 8 | G18: =IF(ISNA(VLOOKUP(D18,Rows[],4,FALSE)),"",VLOOKUP(D18,Rows[],4,FALSE)) -> A1 - Holl anheddau trethadwy | H18: =IF(ISERROR(VLOOKUP($A18&"_"&H$10,qData1[],7,FALSE)),"",VLOOKUP($A18&"_"&H$10,qData1[],7,FALSE)) ->  | I18: =IF(ISERROR(VLOOKUP($A18&"_"&I$10,qData1[],7,FALSE)),0,VLOOKUP($A18&"_"&I$10,qData1[],7,FALSE)) -> 0 | J18: 0 | K18: 0 | L18: 0 | M18: =IF(ISNA(VLOOKUP($D18&"_"&$E18,Tol[],6,FALSE)),$M$7,VLOOKUP($D18&"_"&$E18,Tol[],6,FALSE)) -> 30 | N18: =IF(ISNA(VLOOKUP($D18&"_"&$E18,Tol[],7,FALSE)),$N$7*100,VLOOKUP($D18&"_"&$E18,Tol[],7,FALSE)*100) -> 5 | O18: 1 | P18: 1 | W18: =IF(ISERROR(VLOOKUP($A18,#REF!,8,FALSE)),"",VLOOKUP($A18,#REF!,8,FALSE)) ->  | X18: =IF(ISERROR(VLOOKUP($A18,#REF!,9,FALSE)),"",VLOOKUP($A18,#REF!,9,FALSE)) ->  | Y18: =IF(ISERROR(VLOOKUP($A18,#REF!,10,FALSE)),0,VLOOKUP($A18,#REF!,10,FALSE)) -> 00:00:00
A19: 0_1_9 | B19: =IF(COUNTIF(Validations!$AB$8:$AB$56,A19)=1,1,"") -> 1 | D19: 1 | E19: 9 | G19: =IF(ISNA(VLOOKUP(D19,Rows[],4,FALSE)),"",VLOOKUP(D19,Rows[],4,FALSE)) -> A1 - Holl anheddau trethadwy | H19: =IF(ISERROR(VLOOKUP($A19&"_"&H$10,qData1[],7,FALSE)),"",VLOOKUP($A19&"_"&H$10,qData1[],7,FALSE)) ->  | I19: =IF(ISERROR(VLOOKUP($A19&"_"&I$10,qData1[],7,FALSE)),0,VLOOKUP($A19&"_"&I$10,qData1[],7,FALSE)) -> 0 | J19: 0 | K19: 0 | L19: 0 | M19: =IF(ISNA(VLOOKUP($D19&"_"&$E19,Tol[],6,FALSE)),$M$7,VLOOKUP($D19&"_"&$E19,Tol[],6,FALSE)) -> 20 | N19: =IF(ISNA(VLOOKUP($D19&"_"&$E19,Tol[],7,FALSE)),$N$7*100,VLOOKUP($D19&"_"&$E19,Tol[],7,FALSE)*100) -> 5 | O19: 1 | P19: 1 | W19: =IF(ISERROR(VLOOKUP($A19,#REF!,8,FALSE)),"",VLOOKUP($A19,#REF!,8,FALSE)) ->  | X19: =IF(ISERROR(VLOOKUP($A19,#REF!,9,FALSE)),"",VLOOKUP($A19,#REF!,9,FALSE)) ->  | Y19: =IF(ISERROR(VLOOKUP($A19,#REF!,10,FALSE)),0,VLOOKUP($A19,#REF!,10,FALSE)) -> 00:00:00
A20: 0_1_10 | B20: =IF(COUNTIF(Validations!$AB$8:$AB$56,A20)=1,1,"") -> 1 | D20: 1 | E20: 10 | G20: =IF(ISNA(VLOOKUP(D20,Rows[],4,FALSE)),"",VLOOKUP(D20,Rows[],4,FALSE)) -> A1 - Holl anheddau trethadwy | H20: =IF(ISERROR(VLOOKUP($A20&"_"&H$10,qData1[],7,FALSE)),"",VLOOKUP($A20&"_"&H$10,qData1[],7,FALSE)) ->  | I20: =IF(ISERROR(VLOOKUP($A20&"_"&I$10,qData1[],7,FALSE)),0,VLOOKUP($A20&"_"&I$10,qData1[],7,FALSE)) -> 0 | J20: 0 | K20: 0 | L20: 0 | M20: =IF(ISNA(VLOOKUP($D20&"_"&$E20,Tol[],6,FALSE)),$M$7,VLOOKUP($D20&"_"&$E20,Tol[],6,FALSE)) -> 10 | N20: =IF(ISNA(VLOOKUP($D20&"_"&$E20,Tol[],7,FALSE)),$N$7*100,VLOOKUP($D20&"_"&$E20,Tol[],7,FALSE)*100) -> 5 | O20: 1 | P20: 1 | W20: =IF(ISERROR(VLOOKUP($A20,#REF!,8,FALSE)),"",VLOOKUP($A20,#REF!,8,FALSE)) ->  | X20: =IF(ISERROR(VLOOKUP($A20,#REF!,9,FALSE)),"",VLOOKUP($A20,#REF!,9,FALSE)) ->  | Y20: =IF(ISERROR(VLOOKUP($A20,#REF!,10,FALSE)),0,VLOOKUP($A20,#REF!,10,FALSE)) -> 00:00:00
A21: 0_1_11 | B21: =IF(COUNTIF(Validations!$AB$8:$AB$56,A21)=1,1,"") -> 1 | D21: 1 | E21: 11 | F21: T | G21: =IF(ISNA(VLOOKUP(D21,Rows[],4,FALSE)),"",VLOOKUP(D21,Rows[],4,FALSE)) -> A1 - Holl anheddau trethadwy | H21: =IF(ISERROR(VLOOKUP($A21&"_"&H$10,qData1[],7,FALSE)),"",VLOOKUP($A21&"_"&H$10,qData1[],7,FALSE)) ->  | I21: =IF(ISERROR(VLOOKUP($A21&"_"&I$10,qData1[],7,FALSE)),0,VLOOKUP($A21&"_"&I$10,qData1[],7,FALSE)) -> 0 | J21: 0 | K21: 0 | L21: 0 | M21: =IF(ISNA(VLOOKUP($D21&"_"&$E21,Tol[],6,FALSE)),$M$7,VLOOKUP($D21&"_"&$E21,Tol[],6,FALSE)) -> 100 | N21: =IF(ISNA(VLOOKUP($D21&"_"&$E21,Tol[],7,FALSE)),$N$7*100,VLOOKUP($D21&"_"&$E21,Tol[],7,FALSE)*100) -> 5 | O21: 1 | P21: 1 | W21: =IF(ISERROR(VLOOKUP($A21,#REF!,8,FALSE)),"",VLOOKUP($A21,#REF!,8,FALSE)) ->  | X21: =IF(ISERROR(VLOOKUP($A21,#REF!,9,FALSE)),"",VLOOKUP($A21,#REF!,9,FALSE)) ->  | Y21: =IF(ISERROR(VLOOKUP($A21,#REF!,10,FALSE)),0,VLOOKUP($A21,#REF!,10,FALSE)) -> 00:00:00
A22: 0_2_2 | B22: =IF(COUNTIF(Validations!$AB$8:$AB$56,A22)=1,1,"") ->  | D22: 2 | E22: 2 | G22: =IF(ISNA(VLOOKUP(D22,Rows[],4,FALSE)),"",VLOOKUP(D22,Rows[],4,FALSE)) -> A2 - Anheddau sy'n derbyn gostyngiad anabledd ( sy'n gynwysedig yn llinell A1 ) | H22: =IF(ISERROR(VLOOKUP($A22&"_"&H$10,qData1[],7,FALSE)),"",VLOOKUP($A22&"_"&H$10,qData1[],7,FALSE)) ->  | I22: =IF(ISERROR(VLOOKUP($A22&"_"&I$10,qData1[],7,FALSE)),0,VLOOKUP($A22&"_"&I$10,qData1[],7,FALSE)) -> 0 | J22: 0 | K22: 0 | L22: 0 | M22: =IF(ISNA(VLOOKUP($D22&"_"&$E22,Tol[],6,FALSE)),$M$7,VLOOKUP($D22&"_"&$E22,Tol[],6,FALSE)) -> 30 | N22: =IF(ISNA(VLOOKUP($D22&"_"&$E22,Tol[],7,FALSE)),$N$7*100,VLOOKUP($D22&"_"&$E22,Tol[],7,FALSE)*100) -> 10 | O22: 1 | P22: 1 | W22: =IF(ISERROR(VLOOKUP($A22,#REF!,8,FALSE)),"",VLOOKUP($A22,#REF!,8,FALSE)) ->  | X22: =IF(ISERROR(VLOOKUP($A22,#REF!,9,FALSE)),"",VLOOKUP($A22,#REF!,9,FALSE)) ->  | Y22: =IF(ISERROR(VLOOKUP($A22,#REF!,10,FALSE)),0,VLOOKUP($A22,#REF!,10,FALSE)) -> 00:00:00
A23: 0_2_3 | B23: =IF(COUNTIF(Validations!$AB$8:$AB$56,A23)=1,1,"") ->  | D23: 2 | E23: 3 | G23: =IF(ISNA(VLOOKUP(D23,Rows[],4,FALSE)),"",VLOOKUP(D23,Rows[],4,FALSE)) -> A2 - Anheddau sy'n derbyn gostyngiad anabledd ( sy'n gynwysedig yn llinell A1 ) | H23: =IF(ISERROR(VLOOKUP($A23&"_"&H$10,qData1[],7,FALSE)),"",VLOOKUP($A23&"_"&H$10,qData1[],7,FALSE)) ->  | I23: =IF(ISERROR(VLOOKUP($A23&"_"&I$10,qData1[],7,FALSE)),0,VLOOKUP($A23&"_"&I$10,qData1[],7,FALSE)) -> 0 | J23: 0 | K23: 0 | L23: 0 | M23: =IF(ISNA(VLOOKUP($D23&"_"&$E23,Tol[],6,FALSE)),$M$7,VLOOKUP($D23&"_"&$E23,Tol[],6,FALSE)) -> 30 | N23: =IF(ISNA(VLOOKUP($D23&"_"&$E23,Tol[],7,FALSE)),$N$7*100,VLOOKUP($D23&"_"&$E23,Tol[],7,FALSE)*100) -> 10 | O23: 1 | P23: 1 | W23: =IF(ISERROR(VLOOKUP($A23,#REF!,8,FALSE)),"",VLOOKUP($A23,#REF!,8,FALSE)) ->  | X23: =IF(ISERROR(VLOOKUP($A23,#REF!,9,FALSE)),"",VLOOKUP($A23,#REF!,9,FALSE)) ->  | Y23: =IF(ISERROR(VLOOKUP($A23,#REF!,10,FALSE)),0,VLOOKUP($A23,#REF!,10,FALSE)) -> 00:00:00
A24: 0_2_4 | B24: =IF(COUNTIF(Validations!$AB$8:$AB$56,A24)=1,1,"") ->  | D24: 2 | E24: 4 | G24: =IF(ISNA(VLOOKUP(D24,Rows[],4,FALSE)),"",VLOOKUP(D24,Rows[],4,FALSE)) -> A2 - Anheddau sy'n derbyn gostyngiad anabledd ( sy'n gynwysedig yn llinell A1 ) | H24: =IF(ISERROR(VLOOKUP($A24&"_"&H$10,qData1[],7,FALSE)),"",VLOOKUP($A24&"_"&H$10,qData1[],7,FALSE)) ->  | I24: =IF(ISERROR(VLOOKUP($A24&"_"&I$10,qData1[],7,FALSE)),0,VLOOKUP($A24&"_"&I$10,qData1[],7,FALSE)) -> 0 | J24: 0 | K24: 0 | L24: 0 | M24: =IF(ISNA(VLOOKUP($D24&"_"&$E24,Tol[],6,FALSE)),$M$7,VLOOKUP($D24&"_"&$E24,Tol[],6,FALSE)) -> 30 | N24: =IF(ISNA(VLOOKUP($D24&"_"&$E24,Tol[],7,FALSE)),$N$7*100,VLOOKUP($D24&"_"&$E24,Tol[],7,FALSE)*100) -> 10 | O24: 1 | P24: 1 | W24: =IF(ISERROR(VLOOKUP($A24,#REF!,8,FALSE)),"",VLOOKUP($A24,#REF!,8,FALSE)) ->  | X24: =IF(ISERROR(VLOOKUP($A24,#REF!,9,FALSE)),"",VLOOKUP($A24,#REF!,9,FALSE)) ->  | Y24: =IF(ISERROR(VLOOKUP($A24,#REF!,10,FALSE)),0,VLOOKUP($A24,#REF!,10,FALSE)) -> 00:00:00
A25: 0_2_5 | B25: =IF(COUNTIF(Validations!$AB$8:$AB$56,A25)=1,1,"") ->  | D25: 2 | E25: 5 | G25: =IF(ISNA(VLOOKUP(D25,Rows[],4,FALSE)),"",VLOOKUP(D25,Rows[],4,FALSE)) -> A2 - Anheddau sy'n derbyn gostyngiad anabledd ( sy'n gynwysedig yn llinell A1 ) | H25: =IF(ISERROR(VLOOKUP($A25&"_"&H$10,qData1[],7,FALSE)),"",VLOOKUP($A25&"_"&H$10,qData1[],7,FALSE)) ->  | I25: =IF(ISERROR(VLOOKUP($A25&"_"&I$10,qData1[],7,FALSE)),0,VLOOKUP($A25&"_"&I$10,qData1[],7,FALSE)) -> 0 | J25: 0 | K25: 0 | L25: 0 | M25: =IF(ISNA(VLOOKUP($D25&"_"&$E25,Tol[],6,FALSE)),$M$7,VLOOKUP($D25&"_"&$E25,Tol[],6,FALSE)) -> 30 | N25: =IF(ISNA(VLOOKUP($D25&"_"&$E25,Tol[],7,FALSE)),$N$7*100,VLOOKUP($D25&"_"&$E25,Tol[],7,FALSE)*100) -> 10 | O25: 1 | P25: 1 | W25: =IF(ISERROR(VLOOKUP($A25,#REF!,8,FALSE)),"",VLOOKUP($A25,#REF!,8,FALSE)) ->  | X25: =IF(ISERROR(VLOOKUP($A25,#REF!,9,FALSE)),"",VLOOKUP($A25,#REF!,9,FALSE)) ->  | Y25: =IF(ISERROR(VLOOKUP($A25,#REF!,10,FALSE)),0,VLOOKUP($A25,#REF!,10,FALSE)) -> 00:00:00
A26: 0_2_6 | B26: =IF(COUNTIF(Validations!$AB$8:$AB$56,A26)=1,1,"") ->  | D26: 2 | E26: 6 | G26: =IF(ISNA(VLOOKUP(D26,Rows[],4,FALSE)),"",VLOOKUP(D26,Rows[],4,FALSE)) -> A2 - Anheddau sy'n derbyn gostyngiad anabledd ( sy'n gynwysedig yn llinell A1 ) | H26: =IF(ISERROR(VLOOKUP($A26&"_"&H$10,qData1[],7,FALSE)),"",VLOOKUP($A26&"_"&H$10,qData1[],7,FALSE)) ->  | I26: =IF(ISERROR(VLOOKUP($A26&"_"&I$10,qData1[],7,FALSE)),0,VLOOKUP($A26&"_"&I$10,qData1[],7,FALSE)) -> 0 | J26: 0 | K26: 0 | L26: 0 | M26: =IF(ISNA(VLOOKUP($D26&"_"&$E26,Tol[],6,FALSE)),$M$7,VLOOKUP($D26&"_"&$E26,Tol[],6,FALSE)) -> 30 | N26: =IF(ISNA(VLOOKUP($D26&"_"&$E26,Tol[],7,FALSE)),$N$7*100,VLOOKUP($D26&"_"&$E26,Tol[],7,FALSE)*100) -> 10 | O26: 1 | P26: 1 | W26: =IF(ISERROR(VLOOKUP($A26,#REF!,8,FALSE)),"",VLOOKUP($A26,#REF!,8,FALSE)) ->  | X26: =IF(ISERROR(VLOOKUP($A26,#REF!,9,FALSE)),"",VLOOKUP($A26,#REF!,9,FALSE)) ->  | Y26: =IF(ISERROR(VLOOKUP($A26,#REF!,10,FALSE)),0,VLOOKUP($A26,#REF!,10,FALSE)) -> 00:00:00
A27: 0_2_7 | B27: =IF(COUNTIF(Validations!$AB$8:$AB$56,A27)=1,1,"") ->  | D27: 2 | E27: 7 | G27: =IF(ISNA(VLOOKUP(D27,Rows[],4,FALSE)),"",VLOOKUP(D27,Rows[],4,FALSE)) -> A2 - Anheddau sy'n derbyn gostyngiad anabledd ( sy'n gynwysedig yn llinell A1 ) | H27: =IF(ISERROR(VLOOKUP($A27&"_"&H$10,qData1[],7,FALSE)),"",VLOOKUP($A27&"_"&H$10,qData1[],7,FALSE)) ->  | I27: =IF(ISERROR(VLOOKUP($A27&"_"&I$10,qData1[],7,FALSE)),0,VLOOKUP($A27&"_"&I$10,qData1[],7,FALSE)) -> 0 | J27: 0 | K27: 0 | L27: 0 | M27: =IF(ISNA(VLOOKUP($D27&"_"&$E27,Tol[],6,FALSE)),$M$7,VLOOKUP($D27&"_"&$E27,Tol[],6,FALSE)) -> 30 | N27: =IF(ISNA(VLOOKUP($D27&"_"&$E27,Tol[],7,FALSE)),$N$7*100,VLOOKUP($D27&"_"&$E27,Tol[],7,FALSE)*100) -> 10 | O27: 1 | P27: 1 | W27: =IF(ISERROR(VLOOKUP($A27,#REF!,8,FALSE)),"",VLOOKUP($A27,#REF!,8,FALSE)) ->  | X27: =IF(ISERROR(VLOOKUP($A27,#REF!,9,FALSE)),"",VLOOKUP($A27,#REF!,9,FALSE)) ->  | Y27: =IF(ISERROR(VLOOKUP($A27,#REF!,10,FALSE)),0,VLOOKUP($A27,#REF!,10,FALSE)) -> 00:00:00
A28: 0_2_8 | B28: =IF(COUNTIF(Validations!$AB$8:$AB$56,A28)=1,1,"") ->  | D28: 2 | E28: 8 | G28: =IF(ISNA(VLOOKUP(D28,Rows[],4,FALSE)),"",VLOOKUP(D28,Rows[],4,FALSE)) -> A2 - Anheddau sy'n derbyn gostyngiad anabledd ( sy'n gynwysedig yn llinell A1 ) | H28: =IF(ISERROR(VLOOKUP($A28&"_"&H$10,qData1[],7,FALSE)),"",VLOOKUP($A28&"_"&H$10,qData1[],7,FALSE)) ->  | I28: =IF(ISERROR(VLOOKUP($A28&"_"&I$10,qData1[],7,FALSE)),0,VLOOKUP($A28&"_"&I$10,qData1[],7,FALSE)) -> 0 | J28: 0 | K28: 0 | L28: 0 | M28: =IF(ISNA(VLOOKUP($D28&"_"&$E28,Tol[],6,FALSE)),$M$7,VLOOKUP($D28&"_"&$E28,Tol[],6,FALSE)) -> 30 | N28: =IF(ISNA(VLOOKUP($D28&"_"&$E28,Tol[],7,FALSE)),$N$7*100,VLOOKUP($D28&"_"&$E28,Tol[],7,FALSE)*100) -> 10 | O28: 1 | P28: 1 | W28: =IF(ISERROR(VLOOKUP($A28,#REF!,8,FALSE)),"",VLOOKUP($A28,#REF!,8,FALSE)) ->  | X28: =IF(ISERROR(VLOOKUP($A28,#REF!,9,FALSE)),"",VLOOKUP($A28,#REF!,9,FALSE)) ->  | Y28: =IF(ISERROR(VLOOKUP($A28,#REF!,10,FALSE)),0,VLOOKUP($A28,#REF!,10,FALSE)) -> 00:00:00
A29: 0_2_9 | B29: =IF(COUNTIF(Validations!$AB$8:$AB$56,A29)=1,1,"") ->  | D29: 2 | E29: 9 | G29: =IF(ISNA(VLOOKUP(D29,Rows[],4,FALSE)),"",VLOOKUP(D29,Rows[],4,FALSE)) -> A2 - Anheddau sy'n derbyn gostyngiad anabledd ( sy'n gynwysedig yn llinell A1 ) | H29: =IF(ISERROR(VLOOKUP($A29&"_"&H$10,qData1[],7,FALSE)),"",VLOOKUP($A29&"_"&H$10,qData1[],7,FALSE)) ->  | I29: =IF(ISERROR(VLOOKUP($A29&"_"&I$10,qData1[],7,FALSE)),0,VLOOKUP($A29&"_"&I$10,qData1[],7,FALSE)) -> 0 | J29: 0 | K29: 0 | L29: 0 | M29: =IF(ISNA(VLOOKUP($D29&"_"&$E29,Tol[],6,FALSE)),$M$7,VLOOKUP($D29&"_"&$E29,Tol[],6,FALSE)) -> 30 | N29: =IF(ISNA(VLOOKUP($D29&"_"&$E29,Tol[],7,FALSE)),$N$7*100,VLOOKUP($D29&"_"&$E29,Tol[],7,FALSE)*100) -> 10 | O29: 1 | P29: 1 | W29: =IF(ISERROR(VLOOKUP($A29,#REF!,8,FALSE)),"",VLOOKUP($A29,#REF!,8,FALSE)) ->  | X29: =IF(ISERROR(VLOOKUP($A29,#REF!,9,FALSE)),"",VLOOKUP($A29,#REF!,9,FALSE)) ->  | Y29: =IF(ISERROR(VLOOKUP($A29,#REF!,10,FALSE)),0,VLOOKUP($A29,#REF!,10,FALSE)) -> 00:00:00
A30: 0_2_10 | B30: =IF(COUNTIF(Validations!$AB$8:$AB$56,A30)=1,1,"") ->  | D30: 2 | E30: 10 | G30: =IF(ISNA(VLOOKUP(D30,Rows[],4,FALSE)),"",VLOOKUP(D30,Rows[],4,FALSE)) -> A2 - Anheddau sy'n derbyn gostyngiad anabledd ( sy'n gynwysedig yn llinell A1 ) | H30: =IF(ISERROR(VLOOKUP($A30&"_"&H$10,qData1[],7,FALSE)),"",VLOOKUP($A30&"_"&H$10,qData1[],7,FALSE)) ->  | I30: =IF(ISERROR(VLOOKUP($A30&"_"&I$10,qData1[],7,FALSE)),0,VLOOKUP($A30&"_"&I$10,qData1[],7,FALSE)) -> 0 | J30: 0 | K30: 0 | L30: 0 | M30: =IF(ISNA(VLOOKUP($D30&"_"&$E30,Tol[],6,FALSE)),$M$7,VLOOKUP($D30&"_"&$E30,Tol[],6,FALSE)) -> 20 | N30: =IF(ISNA(VLOOKUP($D30&"_"&$E30,Tol[],7,FALSE)),$N$7*100,VLOOKUP($D30&"_"&$E30,Tol[],7,FALSE)*100) -> 10 | O30: 1 | P30: 1 | W30: =IF(ISERROR(VLOOKUP($A30,#REF!,8,FALSE)),"",VLOOKUP($A30,#REF!,8,FALSE)) ->  | X30: =IF(ISERROR(VLOOKUP($A30,#REF!,9,FALSE)),"",VLOOKUP($A30,#REF!,9,FALSE)) ->  | Y30: =IF(ISERROR(VLOOKUP($A30,#REF!,10,FALSE)),0,VLOOKUP($A30,#REF!,10,FALSE)) -> 00:00:00
A31: 0_2_11 | B31: =IF(COUNTIF(Validations!$AB$8:$AB$56,A31)=1,1,"") ->  | D31: 2 | E31: 11 | F31: T | G31: =IF(ISNA(VLOOKUP(D31,Rows[],4,FALSE)),"",VLOOKUP(D31,Rows[],4,FALSE)) -> A2 - Anheddau sy'n derbyn gostyngiad anabledd ( sy'n gynwysedig yn llinell A1 ) | H31: =IF(ISERROR(VLOOKUP($A31&"_"&H$10,qData1[],7,FALSE)),"",VLOOKUP($A31&"_"&H$10,qData1[],7,FALSE)) ->  | I31: =IF(ISERROR(VLOOKUP($A31&"_"&I$10,qData1[],7,FALSE)),0,VLOOKUP($A31&"_"&I$10,qData1[],7,FALSE)) -> 0 | J31: 0 | K31: 0 | L31: 0 | M31: =IF(ISNA(VLOOKUP($D31&"_"&$E31,Tol[],6,FALSE)),$M$7,VLOOKUP($D31&"_"&$E31,Tol[],6,FALSE)) -> 50 | N31: =IF(ISNA(VLOOKUP($D31&"_"&$E31,Tol[],7,FALSE)),$N$7*100,VLOOKUP($D31&"_"&$E31,Tol[],7,FALSE)*100) -> 10 | O31: 1 | P31: 1 | W31: =IF(ISERROR(VLOOKUP($A31,#REF!,8,FALSE)),"",VLOOKUP($A31,#REF!,8,FALSE)) ->  | X31: =IF(ISERROR(VLOOKUP($A31,#REF!,9,FALSE)),"",VLOOKUP($A31,#REF!,9,FALSE)) ->  | Y31: =IF(ISERROR(VLOOKUP($A31,#REF!,10,FALSE)),0,VLOOKUP($A31,#REF!,10,FALSE)) -> 00:00:00
A32: 0_4_1 | B32: =IF(COUNTIF(Validations!$AB$8:$AB$56,A32)=1,1,"") -> 1 | D32: 4 | E32: 1 | G32: =IF(ISNA(VLOOKUP(D32,Rows[],4,FALSE)),"",VLOOKUP(D32,Rows[],4,FALSE)) -> B1 - Anheddau heb ddisgownt neu premiwm (gan gynnwys eiddo gwag hirdymor ac ail gartrefi heb ddisgownt neu premiwm) | H32: =IF(ISERROR(VLOOKUP($A32&"_"&H$10,qData1[],7,FALSE)),"",VLOOKUP($A32&"_"&H$10,qData1[],7,FALSE)) ->  | I32: =IF(ISERROR(VLOOKUP($A32&"_"&I$10,qData1[],7,FALSE)),0,VLOOKUP($A32&"_"&I$10,qData1[],7,FALSE)) -> 0 | J32: 0 | K32: 0 | L32: 0 | M32: =IF(ISNA(VLOOKUP($D32&"_"&$E32,Tol[],6,FALSE)),$M$7,VLOOKUP($D32&"_"&$E32,Tol[],6,FALSE)) -> 50 | N32: =IF(ISNA(VLOOKUP($D32&"_"&$E32,Tol[],7,FALSE)),$N$7*100,VLOOKUP($D32&"_"&$E32,Tol[],7,FALSE)*100) -> 10 | O32: 1 | P32: 1 | W32: =IF(ISERROR(VLOOKUP($A32,#REF!,8,FALSE)),"",VLOOKUP($A32,#REF!,8,FALSE)) ->  | X32: =IF(ISERROR(VLOOKUP($A32,#REF!,9,FALSE)),"",VLOOKUP($A32,#REF!,9,FALSE)) ->  | Y32: =IF(ISERROR(VLOOKUP($A32,#REF!,10,FALSE)),0,VLOOKUP($A32,#REF!,10,FALSE)) -> 00:00:00
A33: 0_4_2 | B33: =IF(COUNTIF(Validations!$AB$8:$AB$56,A33)=1,1,"") -> 1 | D33: 4 | E33: 2 | G33: =IF(ISNA(VLOOKUP(D33,Rows[],4,FALSE)),"",VLOOKUP(D33,Rows[],4,FALSE)) -> B1 - Anheddau heb ddisgownt neu premiwm (gan gynnwys eiddo gwag hirdymor ac ail gartrefi heb ddisgownt neu premiwm) | H33: =IF(ISERROR(VLOOKUP($A33&"_"&H$10,qData1[],7,FALSE)),"",VLOOKUP($A33&"_"&H$10,qData1[],7,FALSE)) ->  | I33: =IF(ISERROR(VLOOKUP($A33&"_"&I$10,qData1[],7,FALSE)),0,VLOOKUP($A33&"_"&I$10,qData1[],7,FALSE)) -> 0 | J33: 0 | K33: 0 | L33: 0 | M33: =IF(ISNA(VLOOKUP($D33&"_"&$E33,Tol[],6,FALSE)),$M$7,VLOOKUP($D33&"_"&$E33,Tol[],6,FALSE)) -> 100 | N33: =IF(ISNA(VLOOKUP($D33&"_"&$E33,Tol[],7,FALSE)),$N$7*100,VLOOKUP($D33&"_"&$E33,Tol[],7,FALSE)*100) -> 15 | O33: 1 | P33: 1 | W33: =IF(ISERROR(VLOOKUP($A33,#REF!,8,FALSE)),"",VLOOKUP($A33,#REF!,8,FALSE)) ->  | X33: =IF(ISERROR(VLOOKUP($A33,#REF!,9,FALSE)),"",VLOOKUP($A33,#REF!,9,FALSE)) ->  | Y33: =IF(ISERROR(VLOOKUP($A33,#REF!,10,FALSE)),0,VLOOKUP($A33,#REF!,10,FALSE)) -> 00:00:00
A34: 0_4_3 | B34: =IF(COUNTIF(Validations!$AB$8:$AB$56,A34)=1,1,"") -> 1 | D34: 4 | E34: 3 | G34: =IF(ISNA(VLOOKUP(D34,Rows[],4,FALSE)),"",VLOOKUP(D34,Rows[],4,FALSE)) -> B1 - Anheddau heb ddisgownt neu premiwm (gan gynnwys eiddo gwag hirdymor ac ail gartrefi heb ddisgownt neu premiwm) | H34: =IF(ISERROR(VLOOKUP($A34&"_"&H$10,qData1[],7,FALSE)),"",VLOOKUP($A34&"_"&H$10,qData1[],7,FALSE)) ->  | I34: =IF(ISERROR(VLOOKUP($A34&"_"&I$10,qData1[],7,FALSE)),0,VLOOKUP($A34&"_"&I$10,qData1[],7,FALSE)) -> 0 | J34: 0 | K34: 0 | L34: 0 | M34: =IF(ISNA(VLOOKUP($D34&"_"&$E34,Tol[],6,FALSE)),$M$7,VLOOKUP($D34&"_"&$E34,Tol[],6,FALSE)) -> 50 | N34: =IF(ISNA(VLOOKUP($D34&"_"&$E34,Tol[],7,FALSE)),$N$7*100,VLOOKUP($D34&"_"&$E34,Tol[],7,FALSE)*100) -> 10 | O34: 1 | P34: 1 | W34: =IF(ISERROR(VLOOKUP($A34,#REF!,8,FALSE)),"",VLOOKUP($A34,#REF!,8,FALSE)) ->  | X34: =IF(ISERROR(VLOOKUP($A34,#REF!,9,FALSE)),"",VLOOKUP($A34,#REF!,9,FALSE)) ->  | Y34: =IF(ISERROR(VLOOKUP($A34,#REF!,10,FALSE)),0,VLOOKUP($A34,#REF!,10,FALSE)) -> 00:00:00
A35: 0_4_4 | B35: =IF(COUNTIF(Validations!$AB$8:$AB$56,A35)=1,1,"") -> 1 | D35: 4 | E35: 4 | G35: =IF(ISNA(VLOOKUP(D35,Rows[],4,FALSE)),"",VLOOKUP(D35,Rows[],4,FALSE)) -> B1 - Anheddau heb ddisgownt neu premiwm (gan gynnwys eiddo gwag hirdymor ac ail gartrefi heb ddisgownt neu premiwm) | H35: =IF(ISERROR(VLOOKUP($A35&"_"&H$10,qData1[],7,FALSE)),"",VLOOKUP($A35&"_"&H$10,qData1[],7,FALSE)) ->  | I35: =IF(ISERROR(VLOOKUP($A35&"_"&I$10,qData1[],7,FALSE)),0,VLOOKUP($A35&"_"&I$10,qData1[],7,FALSE)) -> 0 | J35: 0 | K35: 0 | L35: 0 | M35: =IF(ISNA(VLOOKUP($D35&"_"&$E35,Tol[],6,FALSE)),$M$7,VLOOKUP($D35&"_"&$E35,Tol[],6,FALSE)) -> 50 | N35: =IF(ISNA(VLOOKUP($D35&"_"&$E35,Tol[],7,FALSE)),$N$7*100,VLOOKUP($D35&"_"&$E35,Tol[],7,FALSE)*100) -> 10 | O35: 1 | P35: 1 | W35: =IF(ISERROR(VLOOKUP($A35,#REF!,8,FALSE)),"",VLOOKUP($A35,#REF!,8,FALSE)) ->  | X35: =IF(ISERROR(VLOOKUP($A35,#REF!,9,FALSE)),"",VLOOKUP($A35,#REF!,9,FALSE)) ->  | Y35: =IF(ISERROR(VLOOKUP($A35,#REF!,10,FALSE)),0,VLOOKUP($A35,#REF!,10,FALSE)) -> 00:00:00
A36: 0_4_5 | B36: =IF(COUNTIF(Validations!$AB$8:$AB$56,A36)=1,1,"") -> 1 | D36: 4 | E36: 5 | G36: =IF(ISNA(VLOOKUP(D36,Rows[],4,FALSE)),"",VLOOKUP(D36,Rows[],4,FALSE)) -> B1 - Anheddau heb ddisgownt neu premiwm (gan gynnwys eiddo gwag hirdymor ac ail gartrefi heb ddisgownt neu premiwm) | H36: =IF(ISERROR(VLOOKUP($A36&"_"&H$10,qData1[],7,FALSE)),"",VLOOKUP($A36&"_"&H$10,qData1[],7,FALSE)) ->  | I36: =IF(ISERROR(VLOOKUP($A36&"_"&I$10,qData1[],7,FALSE)),0,VLOOKUP($A36&"_"&I$10,qData1[],7,FALSE)) -> 0 | J36: 0 | K36: 0 | L36: 0 | M36: =IF(ISNA(VLOOKUP($D36&"_"&$E36,Tol[],6,FALSE)),$M$7,VLOOKUP($D36&"_"&$E36,Tol[],6,FALSE)) -> 50 | N36: =IF(ISNA(VLOOKUP($D36&"_"&$E36,Tol[],7,FALSE)),$N$7*100,VLOOKUP($D36&"_"&$E36,Tol[],7,FALSE)*100) -> 10 | O36: 1 | P36: 1 | W36: =IF(ISERROR(VLOOKUP($A36,#REF!,8,FALSE)),"",VLOOKUP($A36,#REF!,8,FALSE)) ->  | X36: =IF(ISERROR(VLOOKUP($A36,#REF!,9,FALSE)),"",VLOOKUP($A36,#REF!,9,FALSE)) ->  | Y36: =IF(ISERROR(VLOOKUP($A36,#REF!,10,FALSE)),0,VLOOKUP($A36,#REF!,10,FALSE)) -> 00:00:00
A37: 0_4_6 | B37: =IF(COUNTIF(Validations!$AB$8:$AB$56,A37)=1,1,"") -> 1 | D37: 4 | E37: 6 | G37: =IF(ISNA(VLOOKUP(D37,Rows[],4,FALSE)),"",VLOOKUP(D37,Rows[],4,FALSE)) -> B1 - Anheddau heb ddisgownt neu premiwm (gan gynnwys eiddo gwag hirdymor ac ail gartrefi heb ddisgownt neu premiwm) | H37: =IF(ISERROR(VLOOKUP($A37&"_"&H$10,qData1[],7,FALSE)),"",VLOOKUP($A37&"_"&H$10,qData1[],7,FALSE)) ->  | I37: =IF(ISERROR(VLOOKUP($A37&"_"&I$10,qData1[],7,FALSE)),0,VLOOKUP($A37&"_"&I$10,qData1[],7,FALSE)) -> 0 | J37: 0 | K37: 0 | L37: 0 | M37: =IF(ISNA(VLOOKUP($D37&"_"&$E37,Tol[],6,FALSE)),$M$7,VLOOKUP($D37&"_"&$E37,Tol[],6,FALSE)) -> 50 | N37: =IF(ISNA(VLOOKUP($D37&"_"&$E37,Tol[],7,FALSE)),$N$7*100,VLOOKUP($D37&"_"&$E37,Tol[],7,FALSE)*100) -> 10 | O37: 1 | P37: 1 | W37: =IF(ISERROR(VLOOKUP($A37,#REF!,8,FALSE)),"",VLOOKUP($A37,#REF!,8,FALSE)) ->  | X37: =IF(ISERROR(VLOOKUP($A37,#REF!,9,FALSE)),"",VLOOKUP($A37,#REF!,9,FALSE)) ->  | Y37: =IF(ISERROR(VLOOKUP($A37,#REF!,10,FALSE)),0,VLOOKUP($A37,#REF!,10,FALSE)) -> 00:00:00
A38: 0_4_7 | B38: =IF(COUNTIF(Validations!$AB$8:$AB$56,A38)=1,1,"") -> 1 | D38: 4 | E38: 7 | G38: =IF(ISNA(VLOOKUP(D38,Rows[],4,FALSE)),"",VLOOKUP(D38,Rows[],4,FALSE)) -> B1 - Anheddau heb ddisgownt neu premiwm (gan gynnwys eiddo gwag hirdymor ac ail gartrefi heb ddisgownt neu premiwm) | H38: =IF(ISERROR(VLOOKUP($A38&"_"&H$10,qData1[],7,FALSE)),"",VLOOKUP($A38&"_"&H$10,qData1[],7,FALSE)) ->  | I38: =IF(ISERROR(VLOOKUP($A38&"_"&I$10,qData1[],7,FALSE)),0,VLOOKUP($A38&"_"&I$10,qData1[],7,FALSE)) -> 0 | J38: 0 | K38: 0 | L38: 0 | M38: =IF(ISNA(VLOOKUP($D38&"_"&$E38,Tol[],6,FALSE)),$M$7,VLOOKUP($D38&"_"&$E38,Tol[],6,FALSE)) -> 50 | N38: =IF(ISNA(VLOOKUP($D38&"_"&$E38,Tol[],7,FALSE)),$N$7*100,VLOOKUP($D38&"_"&$E38,Tol[],7,FALSE)*100) -> 10 | O38: 1 | P38: 1 | W38: =IF(ISERROR(VLOOKUP($A38,#REF!,8,FALSE)),"",VLOOKUP($A38,#REF!,8,FALSE)) ->  | X38: =IF(ISERROR(VLOOKUP($A38,#REF!,9,FALSE)),"",VLOOKUP($A38,#REF!,9,FALSE)) ->  | Y38: =IF(ISERROR(VLOOKUP($A38,#REF!,10,FALSE)),0,VLOOKUP($A38,#REF!,10,FALSE)) -> 00:00:00
A39: 0_4_8 | B39: =IF(COUNTIF(Validations!$AB$8:$AB$56,A39)=1,1,"") -> 1 | D39: 4 | E39: 8 | G39: =IF(ISNA(VLOOKUP(D39,Rows[],4,FALSE)),"",VLOOKUP(D39,Rows[],4,FALSE)) -> B1 - Anheddau heb ddisgownt neu premiwm (gan gynnwys eiddo gwag hirdymor ac ail gartrefi heb ddisgownt neu premiwm) | H39: =IF(ISERROR(VLOOKUP($A39&"_"&H$10,qData1[],7,FALSE)),"",VLOOKUP($A39&"_"&H$10,qData1[],7,FALSE)) ->  | I39: =IF(ISERROR(VLOOKUP($A39&"_"&I$10,qData1[],7,FALSE)),0,VLOOKUP($A39&"_"&I$10,qData1[],7,FALSE)) -> 0 | J39: 0 | K39: 0 | L39: 0 | M39: =IF(ISNA(VLOOKUP($D39&"_"&$E39,Tol[],6,FALSE)),$M$7,VLOOKUP($D39&"_"&$E39,Tol[],6,FALSE)) -> 30 | N39: =IF(ISNA(VLOOKUP($D39&"_"&$E39,Tol[],7,FALSE)),$N$7*100,VLOOKUP($D39&"_"&$E39,Tol[],7,FALSE)*100) -> 10 | O39: 1 | P39: 1 | W39: =IF(ISERROR(VLOOKUP($A39,#REF!,8,FALSE)),"",VLOOKUP($A39,#REF!,8,FALSE)) ->  | X39: =IF(ISERROR(VLOOKUP($A39,#REF!,9,FALSE)),"",VLOOKUP($A39,#REF!,9,FALSE)) ->  | Y39: =IF(ISERROR(VLOOKUP($A39,#REF!,10,FALSE)),0,VLOOKUP($A39,#REF!,10,FALSE)) -> 00:00:00
A40: 0_4_9 | B40: =IF(COUNTIF(Validations!$AB$8:$AB$56,A40)=1,1,"") -> 1 | D40: 4 | E40: 9 | G40: =IF(ISNA(VLOOKUP(D40,Rows[],4,FALSE)),"",VLOOKUP(D40,Rows[],4,FALSE)) -> B1 - Anheddau heb ddisgownt neu premiwm (gan gynnwys eiddo gwag hirdymor ac ail gartrefi heb ddisgownt neu premiwm) | H40: =IF(ISERROR(VLOOKUP($A40&"_"&H$10,qData1[],7,FALSE)),"",VLOOKUP($A40&"_"&H$10,qData1[],7,FALSE)) ->  | I40: =IF(ISERROR(VLOOKUP($A40&"_"&I$10,qData1[],7,FALSE)),0,VLOOKUP($A40&"_"&I$10,qData1[],7,FALSE)) -> 0 | J40: 0 | K40: 0 | L40: 0 | M40: =IF(ISNA(VLOOKUP($D40&"_"&$E40,Tol[],6,FALSE)),$M$7,VLOOKUP($D40&"_"&$E40,Tol[],6,FALSE)) -> 20 | N40: =IF(ISNA(VLOOKUP($D40&"_"&$E40,Tol[],7,FALSE)),$N$7*100,VLOOKUP($D40&"_"&$E40,Tol[],7,FALSE)*100) -> 10 | O40: 1 | P40: 1 | W40: =IF(ISERROR(VLOOKUP($A40,#REF!,8,FALSE)),"",VLOOKUP($A40,#REF!,8,FALSE)) ->  | X40: =IF(ISERROR(VLOOKUP($A40,#REF!,9,FALSE)),"",VLOOKUP($A40,#REF!,9,FALSE)) ->  | Y40: =IF(ISERROR(VLOOKUP($A40,#REF!,10,FALSE)),0,VLOOKUP($A40,#REF!,10,FALSE)) -> 00:00:00
A41: 0_4_10 | B41: =IF(COUNTIF(Validations!$AB$8:$AB$56,A41)=1,1,"") -> 1 | D41: 4 | E41: 10 | G41: =IF(ISNA(VLOOKUP(D41,Rows[],4,FALSE)),"",VLOOKUP(D41,Rows[],4,FALSE)) -> B1 - Anheddau heb ddisgownt neu premiwm (gan gynnwys eiddo gwag hirdymor ac ail gartrefi heb ddisgownt neu premiwm) | H41: =IF(ISERROR(VLOOKUP($A41&"_"&H$10,qData1[],7,FALSE)),"",VLOOKUP($A41&"_"&H$10,qData1[],7,FALSE)) ->  | I41: =IF(ISERROR(VLOOKUP($A41&"_"&I$10,qData1[],7,FALSE)),0,VLOOKUP($A41&"_"&I$10,qData1[],7,FALSE)) -> 0 | J41: 0 | K41: 0 | L41: 0 | M41: =IF(ISNA(VLOOKUP($D41&"_"&$E41,Tol[],6,FALSE)),$M$7,VLOOKUP($D41&"_"&$E41,Tol[],6,FALSE)) -> 10 | N41: =IF(ISNA(VLOOKUP($D41&"_"&$E41,Tol[],7,FALSE)),$N$7*100,VLOOKUP($D41&"_"&$E41,Tol[],7,FALSE)*100) -> 10 | O41: 1 | P41: 1 | W41: =IF(ISERROR(VLOOKUP($A41,#REF!,8,FALSE)),"",VLOOKUP($A41,#REF!,8,FALSE)) ->  | X41: =IF(ISERROR(VLOOKUP($A41,#REF!,9,FALSE)),"",VLOOKUP($A41,#REF!,9,FALSE)) ->  | Y41: =IF(ISERROR(VLOOKUP($A41,#REF!,10,FALSE)),0,VLOOKUP($A41,#REF!,10,FALSE)) -> 00:00:00
A42: 0_4_11 | B42: =IF(COUNTIF(Validations!$AB$8:$AB$56,A42)=1,1,"") -> 1 | D42: 4 | E42: 11 | F42: T | G42: =IF(ISNA(VLOOKUP(D42,Rows[],4,FALSE)),"",VLOOKUP(D42,Rows[],4,FALSE)) -> B1 - Anheddau heb ddisgownt neu premiwm (gan gynnwys eiddo gwag hirdymor ac ail gartrefi heb ddisgownt neu premiwm) | H42: =IF(ISERROR(VLOOKUP($A42&"_"&H$10,qData1[],7,FALSE)),"",VLOOKUP($A42&"_"&H$10,qData1[],7,FALSE)) ->  | I42: =IF(ISERROR(VLOOKUP($A42&"_"&I$10,qData1[],7,FALSE)),0,VLOOKUP($A42&"_"&I$10,qData1[],7,FALSE)) -> 0 | J42: 0 | K42: 0 | L42: 0 | M42: =IF(ISNA(VLOOKUP($D42&"_"&$E42,Tol[],6,FALSE)),$M$7,VLOOKUP($D42&"_"&$E42,Tol[],6,FALSE)) -> 100 | N42: =IF(ISNA(VLOOKUP($D42&"_"&$E42,Tol[],7,FALSE)),$N$7*100,VLOOKUP($D42&"_"&$E42,Tol[],7,FALSE)*100) -> 10 | O42: 1 | P42: 1 | W42: =IF(ISERROR(VLOOKUP($A42,#REF!,8,FALSE)),"",VLOOKUP($A42,#REF!,8,FALSE)) ->  | X42: =IF(ISERROR(VLOOKUP($A42,#REF!,9,FALSE)),"",VLOOKUP($A42,#REF!,9,FALSE)) ->  | Y42: =IF(ISERROR(VLOOKUP($A42,#REF!,10,FALSE)),0,VLOOKUP($A42,#REF!,10,FALSE)) -> 00:00:00
A43: 0_4.1_1 | B43: =IF(COUNTIF(Validations!$AB$8:$AB$56,A43)=1,1,"") ->  | D43: 4.1 | E43: 1 | G43: =IF(ISNA(VLOOKUP(D43,Rows[],4,FALSE)),"",VLOOKUP(D43,Rows[],4,FALSE)) -> B2a - Anheddau gyda disgownt o 25% (ag eithrio eiddo gwag hirdymor ac ail gartrefi heb ddisgownt) | H43: =IF(ISERROR(VLOOKUP($A43&"_"&H$10,qData1[],7,FALSE)),"",VLOOKUP($A43&"_"&H$10,qData1[],7,FALSE)) ->  | I43: =IF(ISERROR(VLOOKUP($A43&"_"&I$10,qData1[],7,FALSE)),0,VLOOKUP($A43&"_"&I$10,qData1[],7,FALSE)) -> 0 | J43: 0 | K43: 0 | L43: 0 | M43: =IF(ISNA(VLOOKUP($D43&"_"&$E43,Tol[],6,FALSE)),$M$7,VLOOKUP($D43&"_"&$E43,Tol[],6,FALSE)) -> 100 | N43: =IF(ISNA(VLOOKUP($D43&"_"&$E43,Tol[],7,FALSE)),$N$7*100,VLOOKUP($D43&"_"&$E43,Tol[],7,FALSE)*100) -> 10 | O43: 1 | P43: 1 | W43: =IF(ISERROR(VLOOKUP($A43,#REF!,8,FALSE)),"",VLOOKUP($A43,#REF!,8,FALSE)) ->  | X43: =IF(ISERROR(VLOOKUP($A43,#REF!,9,FALSE)),"",VLOOKUP($A43,#REF!,9,FALSE)) ->  | Y43: =IF(ISERROR(VLOOKUP($A43,#REF!,10,FALSE)),0,VLOOKUP($A43,#REF!,10,FALSE)) -> 00:00:00
A44: =uanumber&"_"&D44&"_"&E44 -> 0_4.1_2 | B44: =IF(COUNTIF(Validations!$AB$8:$AB$56,A44)=1,1,"") ->  | D44: 4.1 | E44: 2 | G44: =IF(ISNA(VLOOKUP(D44,Rows[],4,FALSE)),"",VLOOKUP(D44,Rows[],4,FALSE)) -> B2a - Anheddau gyda disgownt o 25% (ag eithrio eiddo gwag hirdymor ac ail gartrefi heb ddisgownt) | H44: =IF(ISERROR(VLOOKUP($A44&"_"&H$10,qData1[],7,FALSE)),"",VLOOKUP($A44&"_"&H$10,qData1[],7,FALSE)) ->  | I44: =IF(ISERROR(VLOOKUP($A44&"_"&I$10,qData1[],7,FALSE)),0,VLOOKUP($A44&"_"&I$10,qData1[],7,FALSE)) -> 0 | J44: =IF(ISERROR(VLOOKUP(D44&"_"&E44,Figs,8,FALSE)),0,VLOOKUP(D44&"_"&E44,Figs,8,FALSE)) -> 0 | K44: 0 | L44: 0 | M44: =IF(ISNA(VLOOKUP($D44&"_"&$E44,Tol[],6,FALSE)),$M$7,VLOOKUP($D44&"_"&$E44,Tol[],6,FALSE)) -> 100 | N44: =IF(ISNA(VLOOKUP($D44&"_"&$E44,Tol[],7,FALSE)),$N$7*100,VLOOKUP($D44&"_"&$E44,Tol[],7,FALSE)*100) -> 10 | O44: 1 | P44: 1 | W44: =IF(ISERROR(VLOOKUP($A44,#REF!,8,FALSE)),"",VLOOKUP($A44,#REF!,8,FALSE)) ->  | X44: =IF(ISERROR(VLOOKUP($A44,#REF!,9,FALSE)),"",VLOOKUP($A44,#REF!,9,FALSE)) ->  | Y44: =IF(ISERROR(VLOOKUP($A44,#REF!,10,FALSE)),0,VLOOKUP($A44,#REF!,10,FALSE)) -> 00:00:00
A45: 0_4.1_3 | B45: =IF(COUNTIF(Validations!$AB$8:$AB$56,A45)=1,1,"") ->  | D45: 4.1 | E45: 3 | G45: =IF(ISNA(VLOOKUP(D45,Rows[],4,FALSE)),"",VLOOKUP(D45,Rows[],4,FALSE)) -> B2a - Anheddau gyda disgownt o 25% (ag eithrio eiddo gwag hirdymor ac ail gartrefi heb ddisgownt) | H45: =IF(ISERROR(VLOOKUP($A45&"_"&H$10,qData1[],7,FALSE)),"",VLOOKUP($A45&"_"&H$10,qData1[],7,FALSE)) ->  | I45: =IF(ISERROR(VLOOKUP($A45&"_"&I$10,qData1[],7,FALSE)),0,VLOOKUP($A45&"_"&I$10,qData1[],7,FALSE)) -> 0 | J45: 0 | K45: 0 | L45: 0 | M45: =IF(ISNA(VLOOKUP($D45&"_"&$E45,Tol[],6,FALSE)),$M$7,VLOOKUP($D45&"_"&$E45,Tol[],6,FALSE)) -> 100 | N45: =IF(ISNA(VLOOKUP($D45&"_"&$E45,Tol[],7,FALSE)),$N$7*100,VLOOKUP($D45&"_"&$E45,Tol[],7,FALSE)*100) -> 10 | O45: 1 | P45: 1 | W45: =IF(ISERROR(VLOOKUP($A45,#REF!,8,FALSE)),"",VLOOKUP($A45,#REF!,8,FALSE)) ->  | X45: =IF(ISERROR(VLOOKUP($A45,#REF!,9,FALSE)),"",VLOOKUP($A45,#REF!,9,FALSE)) ->  | Y45: =IF(ISERROR(VLOOKUP($A45,#REF!,10,FALSE)),0,VLOOKUP($A45,#REF!,10,FALSE)) -> 00:00:00
A46: 0_4.1_4 | B46: =IF(COUNTIF(Validations!$AB$8:$AB$56,A46)=1,1,"") ->  | D46: 4.1 | E46: 4 | G46: =IF(ISNA(VLOOKUP(D46,Rows[],4,FALSE)),"",VLOOKUP(D46,Rows[],4,FALSE)) -> B2a - Anheddau gyda disgownt o 25% (ag eithrio eiddo gwag hirdymor ac ail gartrefi heb ddisgownt) | H46: =IF(ISERROR(VLOOKUP($A46&"_"&H$10,qData1[],7,FALSE)),"",VLOOKUP($A46&"_"&H$10,qData1[],7,FALSE)) ->  | I46: =IF(ISERROR(VLOOKUP($A46&"_"&I$10,qData1[],7,FALSE)),0,VLOOKUP($A46&"_"&I$10,qData1[],7,FALSE)) -> 0 | J46: 0 | K46: 0 | L46: 0 | M46: =IF(ISNA(VLOOKUP($D46&"_"&$E46,Tol[],6,FALSE)),$M$7,VLOOKUP($D46&"_"&$E46,Tol[],6,FALSE)) -> 100 | N46: =IF(ISNA(VLOOKUP($D46&"_"&$E46,Tol[],7,FALSE)),$N$7*100,VLOOKUP($D46&"_"&$E46,Tol[],7,FALSE)*100) -> 10 | O46: 1 | P46: 1 | W46: =IF(ISERROR(VLOOKUP($A46,#REF!,8,FALSE)),"",VLOOKUP($A46,#REF!,8,FALSE)) ->  | X46: =IF(ISERROR(VLOOKUP($A46,#REF!,9,FALSE)),"",VLOOKUP($A46,#REF!,9,FALSE)) ->  | Y46: =IF(ISERROR(VLOOKUP($A46,#REF!,10,FALSE)),0,VLOOKUP($A46,#REF!,10,FALSE)) -> 00:00:00
A47: 0_4.1_5 | B47: =IF(COUNTIF(Validations!$AB$8:$AB$56,A47)=1,1,"") ->  | D47: 4.1 | E47: 5 | G47: =IF(ISNA(VLOOKUP(D47,Rows[],4,FALSE)),"",VLOOKUP(D47,Rows[],4,FALSE)) -> B2a - Anheddau gyda disgownt o 25% (ag eithrio eiddo gwag hirdymor ac ail gartrefi heb ddisgownt) | H47: =IF(ISERROR(VLOOKUP($A47&"_"&H$10,qData1[],7,FALSE)),"",VLOOKUP($A47&"_"&H$10,qData1[],7,FALSE)) ->  | I47: =IF(ISERROR(VLOOKUP($A47&"_"&I$10,qData1[],7,FALSE)),0,VLOOKUP($A47&"_"&I$10,qData1[],7,FALSE)) -> 0 | J47: 0 | K47: 0 | L47: 0 | M47: =IF(ISNA(VLOOKUP($D47&"_"&$E47,Tol[],6,FALSE)),$M$7,VLOOKUP($D47&"_"&$E47,Tol[],6,FALSE)) -> 100 | N47: =IF(ISNA(VLOOKUP($D47&"_"&$E47,Tol[],7,FALSE)),$N$7*100,VLOOKUP($D47&"_"&$E47,Tol[],7,FALSE)*100) -> 10 | O47: 1 | P47: 1 | W47: =IF(ISERROR(VLOOKUP($A47,#REF!,8,FALSE)),"",VLOOKUP($A47,#REF!,8,FALSE)) ->  | X47: =IF(ISERROR(VLOOKUP($A47,#REF!,9,FALSE)),"",VLOOKUP($A47,#REF!,9,FALSE)) ->  | Y47: =IF(ISERROR(VLOOKUP($A47,#REF!,10,FALSE)),0,VLOOKUP($A47,#REF!,10,FALSE)) -> 00:00:00
A48: 0_4.1_6 | B48: =IF(COUNTIF(Validations!$AB$8:$AB$56,A48)=1,1,"") ->  | D48: 4.1 | E48: 6 | G48: =IF(ISNA(VLOOKUP(D48,Rows[],4,FALSE)),"",VLOOKUP(D48,Rows[],4,FALSE)) -> B2a - Anheddau gyda disgownt o 25% (ag eithrio eiddo gwag hirdymor ac ail gartrefi heb ddisgownt) | H48: =IF(ISERROR(VLOOKUP($A48&"_"&H$10,qData1[],7,FALSE)),"",VLOOKUP($A48&"_"&H$10,qData1[],7,FALSE)) ->  | I48: =IF(ISERROR(VLOOKUP($A48&"_"&I$10,qData1[],7,FALSE)),0,VLOOKUP($A48&"_"&I$10,qData1[],7,FALSE)) -> 0 | J48: 0 | K48: 0 | L48: 0 | M48: =IF(ISNA(VLOOKUP($D48&"_"&$E48,Tol[],6,FALSE)),$M$7,VLOOKUP($D48&"_"&$E48,Tol[],6,FALSE)) -> 100 | N48: =IF(ISNA(VLOOKUP($D48&"_"&$E48,Tol[],7,FALSE)),$N$7*100,VLOOKUP($D48&"_"&$E48,Tol[],7,FALSE)*100) -> 10 | O48: 1 | P48: 1 | W48: =IF(ISERROR(VLOOKUP($A48,#REF!,8,FALSE)),"",VLOOKUP($A48,#REF!,8,FALSE)) ->  | X48: =IF(ISERROR(VLOOKUP($A48,#REF!,9,FALSE)),"",VLOOKUP($A48,#REF!,9,FALSE)) ->  | Y48: =IF(ISERROR(VLOOKUP($A48,#REF!,10,FALSE)),0,VLOOKUP($A48,#REF!,10,FALSE)) -> 00:00:00
A49: 0_4.1_7 | B49: =IF(COUNTIF(Validations!$AB$8:$AB$56,A49)=1,1,"") ->  | D49: 4.1 | E49: 7 | G49: =IF(ISNA(VLOOKUP(D49,Rows[],4,FALSE)),"",VLOOKUP(D49,Rows[],4,FALSE)) -> B2a - Anheddau gyda disgownt o 25% (ag eithrio eiddo gwag hirdymor ac ail gartrefi heb ddisgownt) | H49: =IF(ISERROR(VLOOKUP($A49&"_"&H$10,qData1[],7,FALSE)),"",VLOOKUP($A49&"_"&H$10,qData1[],7,FALSE)) ->  | I49: =IF(ISERROR(VLOOKUP($A49&"_"&I$10,qData1[],7,FALSE)),0,VLOOKUP($A49&"_"&I$10,qData1[],7,FALSE)) -> 0 | J49: 0 | K49: 0 | L49: 0 | M49: =IF(ISNA(VLOOKUP($D49&"_"&$E49,Tol[],6,FALSE)),$M$7,VLOOKUP($D49&"_"&$E49,Tol[],6,FALSE)) -> 100 | N49: =IF(ISNA(VLOOKUP($D49&"_"&$E49,Tol[],7,FALSE)),$N$7*100,VLOOKUP($D49&"_"&$E49,Tol[],7,FALSE)*100) -> 10 | O49: 1 | P49: 1 | W49: =IF(ISERROR(VLOOKUP($A49,#REF!,8,FALSE)),"",VLOOKUP($A49,#REF!,8,FALSE)) ->  | X49: =IF(ISERROR(VLOOKUP($A49,#REF!,9,FALSE)),"",VLOOKUP($A49,#REF!,9,FALSE)) ->  | Y49: =IF(ISERROR(VLOOKUP($A49,#REF!,10,FALSE)),0,VLOOKUP($A49,#REF!,10,FALSE)) -> 00:00:00
A50: 0_4.1_8 | B50: =IF(COUNTIF(Validations!$AB$8:$AB$56,A50)=1,1,"") ->  | D50: 4.1 | E50: 8 | G50: =IF(ISNA(VLOOKUP(D50,Rows[],4,FALSE)),"",VLOOKUP(D50,Rows[],4,FALSE)) -> B2a - Anheddau gyda disgownt o 25% (ag eithrio eiddo gwag hirdymor ac ail gartrefi heb ddisgownt) | H50: =IF(ISERROR(VLOOKUP($A50&"_"&H$10,qData1[],7,FALSE)),"",VLOOKUP($A50&"_"&H$10,qData1[],7,FALSE)) ->  | I50: =IF(ISERROR(VLOOKUP($A50&"_"&I$10,qData1[],7,FALSE)),0,VLOOKUP($A50&"_"&I$10,qData1[],7,FALSE)) -> 0 | J50: 0 | K50: 0 | L50: 0 | M50: =IF(ISNA(VLOOKUP($D50&"_"&$E50,Tol[],6,FALSE)),$M$7,VLOOKUP($D50&"_"&$E50,Tol[],6,FALSE)) -> 100 | N50: =IF(ISNA(VLOOKUP($D50&"_"&$E50,Tol[],7,FALSE)),$N$7*100,VLOOKUP($D50&"_"&$E50,Tol[],7,FALSE)*100) -> 10 | O50: 1 | P50: 1 | W50: =IF(ISERROR(VLOOKUP($A50,#REF!,8,FALSE)),"",VLOOKUP($A50,#REF!,8,FALSE)) ->  | X50: =IF(ISERROR(VLOOKUP($A50,#REF!,9,FALSE)),"",VLOOKUP($A50,#REF!,9,FALSE)) ->  | Y50: =IF(ISERROR(VLOOKUP($A50,#REF!,10,FALSE)),0,VLOOKUP($A50,#REF!,10,FALSE)) -> 00:00:00
A51: 0_4.1_9 | B51: =IF(COUNTIF(Validations!$AB$8:$AB$56,A51)=1,1,"") ->  | D51: 4.1 | E51: 9 | G51: =IF(ISNA(VLOOKUP(D51,Rows[],4,FALSE)),"",VLOOKUP(D51,Rows[],4,FALSE)) -> B2a - Anheddau gyda disgownt o 25% (ag eithrio eiddo gwag hirdymor ac ail gartrefi heb ddisgownt) | H51: =IF(ISERROR(VLOOKUP($A51&"_"&H$10,qData1[],7,FALSE)),"",VLOOKUP($A51&"_"&H$10,qData1[],7,FALSE)) ->  | I51: =IF(ISERROR(VLOOKUP($A51&"_"&I$10,qData1[],7,FALSE)),0,VLOOKUP($A51&"_"&I$10,qData1[],7,FALSE)) -> 0 | J51: 0 | K51: 0 | L51: 0 | M51: =IF(ISNA(VLOOKUP($D51&"_"&$E51,Tol[],6,FALSE)),$M$7,VLOOKUP($D51&"_"&$E51,Tol[],6,FALSE)) -> 100 | N51: =IF(ISNA(VLOOKUP($D51&"_"&$E51,Tol[],7,FALSE)),$N$7*100,VLOOKUP($D51&"_"&$E51,Tol[],7,FALSE)*100) -> 10 | O51: 1 | P51: 1 | W51: =IF(ISERROR(VLOOKUP($A51,#REF!,8,FALSE)),"",VLOOKUP($A51,#REF!,8,FALSE)) ->  | X51: =IF(ISERROR(VLOOKUP($A51,#REF!,9,FALSE)),"",VLOOKUP($A51,#REF!,9,FALSE)) ->  | Y51: =IF(ISERROR(VLOOKUP($A51,#REF!,10,FALSE)),0,VLOOKUP($A51,#REF!,10,FALSE)) -> 00:00:00
A52: 0_4.1_10 | B52: =IF(COUNTIF(Validations!$AB$8:$AB$56,A52)=1,1,"") ->  | D52: 4.1 | E52: 10 | G52: =IF(ISNA(VLOOKUP(D52,Rows[],4,FALSE)),"",VLOOKUP(D52,Rows[],4,FALSE)) -> B2a - Anheddau gyda disgownt o 25% (ag eithrio eiddo gwag hirdymor ac ail gartrefi heb ddisgownt) | H52: =IF(ISERROR(VLOOKUP($A52&"_"&H$10,qData1[],7,FALSE)),"",VLOOKUP($A52&"_"&H$10,qData1[],7,FALSE)) ->  | I52: =IF(ISERROR(VLOOKUP($A52&"_"&I$10,qData1[],7,FALSE)),0,VLOOKUP($A52&"_"&I$10,qData1[],7,FALSE)) -> 0 | J52: 0 | K52: 0 | L52: 0 | M52: =IF(ISNA(VLOOKUP($D52&"_"&$E52,Tol[],6,FALSE)),$M$7,VLOOKUP($D52&"_"&$E52,Tol[],6,FALSE)) -> 100 | N52: =IF(ISNA(VLOOKUP($D52&"_"&$E52,Tol[],7,FALSE)),$N$7*100,VLOOKUP($D52&"_"&$E52,Tol[],7,FALSE)*100) -> 10 | O52: 1 | P52: 1 | W52: =IF(ISERROR(VLOOKUP($A52,#REF!,8,FALSE)),"",VLOOKUP($A52,#REF!,8,FALSE)) ->  | X52: =IF(ISERROR(VLOOKUP($A52,#REF!,9,FALSE)),"",VLOOKUP($A52,#REF!,9,FALSE)) ->  | Y52: =IF(ISERROR(VLOOKUP($A52,#REF!,10,FALSE)),0,VLOOKUP($A52,#REF!,10,FALSE)) -> 00:00:00
A53: 0_4.1_11 | B53: =IF(COUNTIF(Validations!$AB$8:$AB$56,A53)=1,1,"") ->  | D53: 4.1 | E53: 11 | F53: T | G53: =IF(ISNA(VLOOKUP(D53,Rows[],4,FALSE)),"",VLOOKUP(D53,Rows[],4,FALSE)) -> B2a - Anheddau gyda disgownt o 25% (ag eithrio eiddo gwag hirdymor ac ail gartrefi heb ddisgownt) | H53: =IF(ISERROR(VLOOKUP($A53&"_"&H$10,qData1[],7,FALSE)),"",VLOOKUP($A53&"_"&H$10,qData1[],7,FALSE)) ->  | I53: =IF(ISERROR(VLOOKUP($A53&"_"&I$10,qData1[],7,FALSE)),0,VLOOKUP($A53&"_"&I$10,qData1[],7,FALSE)) -> 0 | J53: 0 | K53: 0 | L53: 0 | M53: =IF(ISNA(VLOOKUP($D53&"_"&$E53,Tol[],6,FALSE)),$M$7,VLOOKUP($D53&"_"&$E53,Tol[],6,FALSE)) -> 100 | N53: =IF(ISNA(VLOOKUP($D53&"_"&$E53,Tol[],7,FALSE)),$N$7*100,VLOOKUP($D53&"_"&$E53,Tol[],7,FALSE)*100) -> 10 | O53: 1 | P53: 1 | W53: =IF(ISERROR(VLOOKUP($A53,#REF!,8,FALSE)),"",VLOOKUP($A53,#REF!,8,FALSE)) ->  | X53: =IF(ISERROR(VLOOKUP($A53,#REF!,9,FALSE)),"",VLOOKUP($A53,#REF!,9,FALSE)) ->  | Y53: =IF(ISERROR(VLOOKUP($A53,#REF!,10,FALSE)),0,VLOOKUP($A53,#REF!,10,FALSE)) -> 00:00:00
A54: 0_4.2_1 | B54: =IF(COUNTIF(Validations!$AB$8:$AB$56,A54)=1,1,"") ->  | D54: 4.2 | E54: 1 | G54: =IF(ISNA(VLOOKUP(D54,Rows[],4,FALSE)),"",VLOOKUP(D54,Rows[],4,FALSE)) -> B2b - Anheddau gyda disgownt o 50% (ag eithrio eiddo gwag hirdymor ac ail gartrefi heb ddisgownt) | H54: =IF(ISERROR(VLOOKUP($A54&"_"&H$10,qData1[],7,FALSE)),"",VLOOKUP($A54&"_"&H$10,qData1[],7,FALSE)) ->  | I54: =IF(ISERROR(VLOOKUP($A54&"_"&I$10,qData1[],7,FALSE)),0,VLOOKUP($A54&"_"&I$10,qData1[],7,FALSE)) -> 0 | J54: 0 | K54: 0 | L54: 0 | M54: =IF(ISNA(VLOOKUP($D54&"_"&$E54,Tol[],6,FALSE)),$M$7,VLOOKUP($D54&"_"&$E54,Tol[],6,FALSE)) -> 100 | N54: =IF(ISNA(VLOOKUP($D54&"_"&$E54,Tol[],7,FALSE)),$N$7*100,VLOOKUP($D54&"_"&$E54,Tol[],7,FALSE)*100) -> 10 | O54: 1 | P54: 1 | W54: =IF(ISERROR(VLOOKUP($A54,#REF!,8,FALSE)),"",VLOOKUP($A54,#REF!,8,FALSE)) ->  | X54: =IF(ISERROR(VLOOKUP($A54,#REF!,9,FALSE)),"",VLOOKUP($A54,#REF!,9,FALSE)) ->  | Y54: =IF(ISERROR(VLOOKUP($A54,#REF!,10,FALSE)),0,VLOOKUP($A54,#REF!,10,FALSE)) -> 00:00:00
A55: 0_4.2_2 | B55: =IF(COUNTIF(Validations!$AB$8:$AB$56,A55)=1,1,"") ->  | D55: 4.2 | E55: 2 | G55: =IF(ISNA(VLOOKUP(D55,Rows[],4,FALSE)),"",VLOOKUP(D55,Rows[],4,FALSE)) -> B2b - Anheddau gyda disgownt o 50% (ag eithrio eiddo gwag hirdymor ac ail gartrefi heb ddisgownt) | H55: =IF(ISERROR(VLOOKUP($A55&"_"&H$10,qData1[],7,FALSE)),"",VLOOKUP($A55&"_"&H$10,qData1[],7,FALSE)) ->  | I55: =IF(ISERROR(VLOOKUP($A55&"_"&I$10,qData1[],7,FALSE)),0,VLOOKUP($A55&"_"&I$10,qData1[],7,FALSE)) -> 0 | J55: 0 | K55: 0 | L55: 0 | M55: =IF(ISNA(VLOOKUP($D55&"_"&$E55,Tol[],6,FALSE)),$M$7,VLOOKUP($D55&"_"&$E55,Tol[],6,FALSE)) -> 100 | N55: =IF(ISNA(VLOOKUP($D55&"_"&$E55,Tol[],7,FALSE)),$N$7*100,VLOOKUP($D55&"_"&$E55,Tol[],7,FALSE)*100) -> 10 | O55: 1 | P55: 1 | W55: =IF(ISERROR(VLOOKUP($A55,#REF!,8,FALSE)),"",VLOOKUP($A55,#REF!,8,FALSE)) ->  | X55: =IF(ISERROR(VLOOKUP($A55,#REF!,9,FALSE)),"",VLOOKUP($A55,#REF!,9,FALSE)) ->  | Y55: =IF(ISERROR(VLOOKUP($A55,#REF!,10,FALSE)),0,VLOOKUP($A55,#REF!,10,FALSE)) -> 00:00:00
A56: 0_4.2_3 | B56: =IF(COUNTIF(Validations!$AB$8:$AB$56,A56)=1,1,"") ->  | D56: 4.2 | E56: 3 | G56: =IF(ISNA(VLOOKUP(D56,Rows[],4,FALSE)),"",VLOOKUP(D56,Rows[],4,FALSE)) -> B2b - Anheddau gyda disgownt o 50% (ag eithrio eiddo gwag hirdymor ac ail gartrefi heb ddisgownt) | H56: =IF(ISERROR(VLOOKUP($A56&"_"&H$10,qData1[],7,FALSE)),"",VLOOKUP($A56&"_"&H$10,qData1[],7,FALSE)) ->  | I56: =IF(ISERROR(VLOOKUP($A56&"_"&I$10,qData1[],7,FALSE)),0,VLOOKUP($A56&"_"&I$10,qData1[],7,FALSE)) -> 0 | J56: 0 | K56: 0 | L56: 0 | M56: =IF(ISNA(VLOOKUP($D56&"_"&$E56,Tol[],6,FALSE)),$M$7,VLOOKUP($D56&"_"&$E56,Tol[],6,FALSE)) -> 100 | N56: =IF(ISNA(VLOOKUP($D56&"_"&$E56,Tol[],7,FALSE)),$N$7*100,VLOOKUP($D56&"_"&$E56,Tol[],7,FALSE)*100) -> 10 | O56: 1 | P56: 1 | W56: =IF(ISERROR(VLOOKUP($A56,#REF!,8,FALSE)),"",VLOOKUP($A56,#REF!,8,FALSE)) ->  | X56: =IF(ISERROR(VLOOKUP($A56,#REF!,9,FALSE)),"",VLOOKUP($A56,#REF!,9,FALSE)) ->  | Y56: =IF(ISERROR(VLOOKUP($A56,#REF!,10,FALSE)),0,VLOOKUP($A56,#REF!,10,FALSE)) -> 00:00:00
A57: 0_4.2_4 | B57: =IF(COUNTIF(Validations!$AB$8:$AB$56,A57)=1,1,"") ->  | D57: 4.2 | E57: 4 | G57: =IF(ISNA(VLOOKUP(D57,Rows[],4,FALSE)),"",VLOOKUP(D57,Rows[],4,FALSE)) -> B2b - Anheddau gyda disgownt o 50% (ag eithrio eiddo gwag hirdymor ac ail gartrefi heb ddisgownt) | H57: =IF(ISERROR(VLOOKUP($A57&"_"&H$10,qData1[],7,FALSE)),"",VLOOKUP($A57&"_"&H$10,qData1[],7,FALSE)) ->  | I57: =IF(ISERROR(VLOOKUP($A57&"_"&I$10,qData1[],7,FALSE)),0,VLOOKUP($A57&"_"&I$10,qData1[],7,FALSE)) -> 0 | J57: 0 | K57: 0 | L57: 0 | M57: =IF(ISNA(VLOOKUP($D57&"_"&$E57,Tol[],6,FALSE)),$M$7,VLOOKUP($D57&"_"&$E57,Tol[],6,FALSE)) -> 100 | N57: =IF(ISNA(VLOOKUP($D57&"_"&$E57,Tol[],7,FALSE)),$N$7*100,VLOOKUP($D57&"_"&$E57,Tol[],7,FALSE)*100) -> 10 | O57: 1 | P57: 1 | W57: =IF(ISERROR(VLOOKUP($A57,#REF!,8,FALSE)),"",VLOOKUP($A57,#REF!,8,FALSE)) ->  | X57: =IF(ISERROR(VLOOKUP($A57,#REF!,9,FALSE)),"",VLOOKUP($A57,#REF!,9,FALSE)) ->  | Y57: =IF(ISERROR(VLOOKUP($A57,#REF!,10,FALSE)),0,VLOOKUP($A57,#REF!,10,FALSE)) -> 00:00:00
A58: 0_4.2_5 | B58: =IF(COUNTIF(Validations!$AB$8:$AB$56,A58)=1,1,"") ->  | D58: 4.2 | E58: 5 | G58: =IF(ISNA(VLOOKUP(D58,Rows[],4,FALSE)),"",VLOOKUP(D58,Rows[],4,FALSE)) -> B2b - Anheddau gyda disgownt o 50% (ag eithrio eiddo gwag hirdymor ac ail gartrefi heb ddisgownt) | H58: =IF(ISERROR(VLOOKUP($A58&"_"&H$10,qData1[],7,FALSE)),"",VLOOKUP($A58&"_"&H$10,qData1[],7,FALSE)) ->  | I58: =IF(ISERROR(VLOOKUP($A58&"_"&I$10,qData1[],7,FALSE)),0,VLOOKUP($A58&"_"&I$10,qData1[],7,FALSE)) -> 0 | J58: 0 | K58: 0 | L58: 0 | M58: =IF(ISNA(VLOOKUP($D58&"_"&$E58,Tol[],6,FALSE)),$M$7,VLOOKUP($D58&"_"&$E58,Tol[],6,FALSE)) -> 100 | N58: =IF(ISNA(VLOOKUP($D58&"_"&$E58,Tol[],7,FALSE)),$N$7*100,VLOOKUP($D58&"_"&$E58,Tol[],7,FALSE)*100) -> 10 | O58: 1 | P58: 1 | W58: =IF(ISERROR(VLOOKUP($A58,#REF!,8,FALSE)),"",VLOOKUP($A58,#REF!,8,FALSE)) ->  | X58: =IF(ISERROR(VLOOKUP($A58,#REF!,9,FALSE)),"",VLOOKUP($A58,#REF!,9,FALSE)) ->  | Y58: =IF(ISERROR(VLOOKUP($A58,#REF!,10,FALSE)),0,VLOOKUP($A58,#REF!,10,FALSE)) -> 00:00:00
A59: 0_4.2_6 | B59: =IF(COUNTIF(Validations!$AB$8:$AB$56,A59)=1,1,"") ->  | D59: 4.2 | E59: 6 | G59: =IF(ISNA(VLOOKUP(D59,Rows[],4,FALSE)),"",VLOOKUP(D59,Rows[],4,FALSE)) -> B2b - Anheddau gyda disgownt o 50% (ag eithrio eiddo gwag hirdymor ac ail gartrefi heb ddisgownt) | H59: =IF(ISERROR(VLOOKUP($A59&"_"&H$10,qData1[],7,FALSE)),"",VLOOKUP($A59&"_"&H$10,qData1[],7,FALSE)) ->  | I59: =IF(ISERROR(VLOOKUP($A59&"_"&I$10,qData1[],7,FALSE)),0,VLOOKUP($A59&"_"&I$10,qData1[],7,FALSE)) -> 0 | J59: 0 | K59: 0 | L59: 0 | M59: =IF(ISNA(VLOOKUP($D59&"_"&$E59,Tol[],6,FALSE)),$M$7,VLOOKUP($D59&"_"&$E59,Tol[],6,FALSE)) -> 100 | N59: =IF(ISNA(VLOOKUP($D59&"_"&$E59,Tol[],7,FALSE)),$N$7*100,VLOOKUP($D59&"_"&$E59,Tol[],7,FALSE)*100) -> 10 | O59: 1 | P59: 1 | W59: =IF(ISERROR(VLOOKUP($A59,#REF!,8,FALSE)),"",VLOOKUP($A59,#REF!,8,FALSE)) ->  | X59: =IF(ISERROR(VLOOKUP($A59,#REF!,9,FALSE)),"",VLOOKUP($A59,#REF!,9,FALSE)) ->  | Y59: =IF(ISERROR(VLOOKUP($A59,#REF!,10,FALSE)),0,VLOOKUP($A59,#REF!,10,FALSE)) -> 00:00:00
A60: 0_4.2_7 | B60: =IF(COUNTIF(Validations!$AB$8:$AB$56,A60)=1,1,"") ->  | D60: 4.2 | E60: 7 | G60: =IF(ISNA(VLOOKUP(D60,Rows[],4,FALSE)),"",VLOOKUP(D60,Rows[],4,FALSE)) -> B2b - Anheddau gyda disgownt o 50% (ag eithrio eiddo gwag hirdymor ac ail gartrefi heb ddisgownt) | H60: =IF(ISERROR(VLOOKUP($A60&"_"&H$10,qData1[],7,FALSE)),"",VLOOKUP($A60&"_"&H$10,qData1[],7,FALSE)) ->  | I60: =IF(ISERROR(VLOOKUP($A60&"_"&I$10,qData1[],7,FALSE)),0,VLOOKUP($A60&"_"&I$10,qData1[],7,FALSE)) -> 0 | J60: 0 | K60: 0 | L60: 0 | M60: =IF(ISNA(VLOOKUP($D60&"_"&$E60,Tol[],6,FALSE)),$M$7,VLOOKUP($D60&"_"&$E60,Tol[],6,FALSE)) -> 100 | N60: =IF(ISNA(VLOOKUP($D60&"_"&$E60,Tol[],7,FALSE)),$N$7*100,VLOOKUP($D60&"_"&$E60,Tol[],7,FALSE)*100) -> 10 | O60: 1 | P60: 1 | W60: =IF(ISERROR(VLOOKUP($A60,#REF!,8,FALSE)),"",VLOOKUP($A60,#REF!,8,FALSE)) ->  | X60: =IF(ISERROR(VLOOKUP($A60,#REF!,9,FALSE)),"",VLOOKUP($A60,#REF!,9,FALSE)) ->  | Y60: =IF(ISERROR(VLOOKUP($A60,#REF!,10,FALSE)),0,VLOOKUP($A60,#REF!,10,FALSE)) -> 00:00:00
A61: 0_4.2_8 | B61: =IF(COUNTIF(Validations!$AB$8:$AB$56,A61)=1,1,"") ->  | D61: 4.2 | E61: 8 | G61: =IF(ISNA(VLOOKUP(D61,Rows[],4,FALSE)),"",VLOOKUP(D61,Rows[],4,FALSE)) -> B2b - Anheddau gyda disgownt o 50% (ag eithrio eiddo gwag hirdymor ac ail gartrefi heb ddisgownt) | H61: =IF(ISERROR(VLOOKUP($A61&"_"&H$10,qData1[],7,FALSE)),"",VLOOKUP($A61&"_"&H$10,qData1[],7,FALSE)) ->  | I61: =IF(ISERROR(VLOOKUP($A61&"_"&I$10,qData1[],7,FALSE)),0,VLOOKUP($A61&"_"&I$10,qData1[],7,FALSE)) -> 0 | J61: 0 | K61: 0 | L61: 0 | M61: =IF(ISNA(VLOOKUP($D61&"_"&$E61,Tol[],6,FALSE)),$M$7,VLOOKUP($D61&"_"&$E61,Tol[],6,FALSE)) -> 100 | N61: =IF(ISNA(VLOOKUP($D61&"_"&$E61,Tol[],7,FALSE)),$N$7*100,VLOOKUP($D61&"_"&$E61,Tol[],7,FALSE)*100) -> 10 | O61: 1 | P61: 1 | W61: =IF(ISERROR(VLOOKUP($A61,#REF!,8,FALSE)),"",VLOOKUP($A61,#REF!,8,FALSE)) ->  | X61: =IF(ISERROR(VLOOKUP($A61,#REF!,9,FALSE)),"",VLOOKUP($A61,#REF!,9,FALSE)) ->  | Y61: =IF(ISERROR(VLOOKUP($A61,#REF!,10,FALSE)),0,VLOOKUP($A61,#REF!,10,FALSE)) -> 00:00:00
A62: 0_4.2_9 | B62: =IF(COUNTIF(Validations!$AB$8:$AB$56,A62)=1,1,"") ->  | D62: 4.2 | E62: 9 | G62: =IF(ISNA(VLOOKUP(D62,Rows[],4,FALSE)),"",VLOOKUP(D62,Rows[],4,FALSE)) -> B2b - Anheddau gyda disgownt o 50% (ag eithrio eiddo gwag hirdymor ac ail gartrefi heb ddisgownt) | H62: =IF(ISERROR(VLOOKUP($A62&"_"&H$10,qData1[],7,FALSE)),"",VLOOKUP($A62&"_"&H$10,qData1[],7,FALSE)) ->  | I62: =IF(ISERROR(VLOOKUP($A62&"_"&I$10,qData1[],7,FALSE)),0,VLOOKUP($A62&"_"&I$10,qData1[],7,FALSE)) -> 0 | J62: 0 | K62: 0 | L62: 0 | M62: =IF(ISNA(VLOOKUP($D62&"_"&$E62,Tol[],6,FALSE)),$M$7,VLOOKUP($D62&"_"&$E62,Tol[],6,FALSE)) -> 100 | N62: =IF(ISNA(VLOOKUP($D62&"_"&$E62,Tol[],7,FALSE)),$N$7*100,VLOOKUP($D62&"_"&$E62,Tol[],7,FALSE)*100) -> 10 | O62: 1 | P62: 1 | W62: =IF(ISERROR(VLOOKUP($A62,#REF!,8,FALSE)),"",VLOOKUP($A62,#REF!,8,FALSE)) ->  | X62: =IF(ISERROR(VLOOKUP($A62,#REF!,9,FALSE)),"",VLOOKUP($A62,#REF!,9,FALSE)) ->  | Y62: =IF(ISERROR(VLOOKUP($A62,#REF!,10,FALSE)),0,VLOOKUP($A62,#REF!,10,FALSE)) -> 00:00:00
A63: 0_4.2_10 | B63: =IF(COUNTIF(Validations!$AB$8:$AB$56,A63)=1,1,"") ->  | D63: 4.2 | E63: 10 | G63: =IF(ISNA(VLOOKUP(D63,Rows[],4,FALSE)),"",VLOOKUP(D63,Rows[],4,FALSE)) -> B2b - Anheddau gyda disgownt o 50% (ag eithrio eiddo gwag hirdymor ac ail gartrefi heb ddisgownt) | H63: =IF(ISERROR(VLOOKUP($A63&"_"&H$10,qData1[],7,FALSE)),"",VLOOKUP($A63&"_"&H$10,qData1[],7,FALSE)) ->  | I63: =IF(ISERROR(VLOOKUP($A63&"_"&I$10,qData1[],7,FALSE)),0,VLOOKUP($A63&"_"&I$10,qData1[],7,FALSE)) -> 0 | J63: 0 | K63: 0 | L63: 0 | M63: =IF(ISNA(VLOOKUP($D63&"_"&$E63,Tol[],6,FALSE)),$M$7,VLOOKUP($D63&"_"&$E63,Tol[],6,FALSE)) -> 100 | N63: =IF(ISNA(VLOOKUP($D63&"_"&$E63,Tol[],7,FALSE)),$N$7*100,VLOOKUP($D63&"_"&$E63,Tol[],7,FALSE)*100) -> 10 | O63: 1 | P63: 1 | W63: =IF(ISERROR(VLOOKUP($A63,#REF!,8,FALSE)),"",VLOOKUP($A63,#REF!,8,FALSE)) ->  | X63: =IF(ISERROR(VLOOKUP($A63,#REF!,9,FALSE)),"",VLOOKUP($A63,#REF!,9,FALSE)) ->  | Y63: =IF(ISERROR(VLOOKUP($A63,#REF!,10,FALSE)),0,VLOOKUP($A63,#REF!,10,FALSE)) -> 00:00:00
A64: 0_4.2_11 | B64: =IF(COUNTIF(Validations!$AB$8:$AB$56,A64)=1,1,"") ->  | D64: 4.2 | E64: 11 | F64: T | G64: =IF(ISNA(VLOOKUP(D64,Rows[],4,FALSE)),"",VLOOKUP(D64,Rows[],4,FALSE)) -> B2b - Anheddau gyda disgownt o 50% (ag eithrio eiddo gwag hirdymor ac ail gartrefi heb ddisgownt) | H64: =IF(ISERROR(VLOOKUP($A64&"_"&H$10,qData1[],7,FALSE)),"",VLOOKUP($A64&"_"&H$10,qData1[],7,FALSE)) ->  | I64: =IF(ISERROR(VLOOKUP($A64&"_"&I$10,qData1[],7,FALSE)),0,VLOOKUP($A64&"_"&I$10,qData1[],7,FALSE)) -> 0 | J64: 0 | K64: 0 | L64: 0 | M64: =IF(ISNA(VLOOKUP($D64&"_"&$E64,Tol[],6,FALSE)),$M$7,VLOOKUP($D64&"_"&$E64,Tol[],6,FALSE)) -> 100 | N64: =IF(ISNA(VLOOKUP($D64&"_"&$E64,Tol[],7,FALSE)),$N$7*100,VLOOKUP($D64&"_"&$E64,Tol[],7,FALSE)*100) -> 10 | O64: 1 | P64: 1 | W64: =IF(ISERROR(VLOOKUP($A64,#REF!,8,FALSE)),"",VLOOKUP($A64,#REF!,8,FALSE)) ->  | X64: =IF(ISERROR(VLOOKUP($A64,#REF!,9,FALSE)),"",VLOOKUP($A64,#REF!,9,FALSE)) ->  | Y64: =IF(ISERROR(VLOOKUP($A64,#REF!,10,FALSE)),0,VLOOKUP($A64,#REF!,10,FALSE)) -> 00:00:00
A65: 0_8_1 | B65: =IF(COUNTIF(Validations!$AB$8:$AB$56,A65)=1,1,"") ->  | D65: 8 | E65: 1 | F65: T | G65: =IF(ISNA(VLOOKUP(D65,Rows[],4,FALSE)),"",VLOOKUP(D65,Rows[],4,FALSE)) -> B4 - Cyfanswm yr anheddau a addaswyd sydd yn daladwy (cyfanswm o B1 i B3c=A3) | H65: =IF(ISERROR(VLOOKUP($A65&"_"&H$10,qData1[],7,FALSE)),"",VLOOKUP($A65&"_"&H$10,qData1[],7,FALSE)) ->  | I65: =IF(ISERROR(VLOOKUP($A65&"_"&I$10,qData1[],7,FALSE)),0,VLOOKUP($A65&"_"&I$10,qData1[],7,FALSE)) -> 0 | J65: 0 | K65: 0 | L65: 0 | M65: =IF(ISNA(VLOOKUP($D65&"_"&$E65,Tol[],6,FALSE)),$M$7,VLOOKUP($D65&"_"&$E65,Tol[],6,FALSE)) -> 100 | N65: =IF(ISNA(VLOOKUP($D65&"_"&$E65,Tol[],7,FALSE)),$N$7*100,VLOOKUP($D65&"_"&$E65,Tol[],7,FALSE)*100) -> 10 | O65: 1 | P65: 1 | W65: =IF(ISERROR(VLOOKUP($A65,#REF!,8,FALSE)),"",VLOOKUP($A65,#REF!,8,FALSE)) ->  | X65: =IF(ISERROR(VLOOKUP($A65,#REF!,9,FALSE)),"",VLOOKUP($A65,#REF!,9,FALSE)) ->  | Y65: =IF(ISERROR(VLOOKUP($A65,#REF!,10,FALSE)),0,VLOOKUP($A65,#REF!,10,FALSE)) -> 00:00:00
A66: 0_8_2 | B66: =IF(COUNTIF(Validations!$AB$8:$AB$56,A66)=1,1,"") ->  | D66: 8 | E66: 2 | F66: T | G66: =IF(ISNA(VLOOKUP(D66,Rows[],4,FALSE)),"",VLOOKUP(D66,Rows[],4,FALSE)) -> B4 - Cyfanswm yr anheddau a addaswyd sydd yn daladwy (cyfanswm o B1 i B3c=A3) | H66: =IF(ISERROR(VLOOKUP($A66&"_"&H$10,qData1[],7,FALSE)),"",VLOOKUP($A66&"_"&H$10,qData1[],7,FALSE)) ->  | I66: =IF(ISERROR(VLOOKUP($A66&"_"&I$10,qData1[],7,FALSE)),0,VLOOKUP($A66&"_"&I$10,qData1[],7,FALSE)) -> 0 | J66: 0 | K66: 0 | L66: 0 | M66: =IF(ISNA(VLOOKUP($D66&"_"&$E66,Tol[],6,FALSE)),$M$7,VLOOKUP($D66&"_"&$E66,Tol[],6,FALSE)) -> 100 | N66: =IF(ISNA(VLOOKUP($D66&"_"&$E66,Tol[],7,FALSE)),$N$7*100,VLOOKUP($D66&"_"&$E66,Tol[],7,FALSE)*100) -> 10 | O66: 1 | P66: 1 | W66: =IF(ISERROR(VLOOKUP($A66,#REF!,8,FALSE)),"",VLOOKUP($A66,#REF!,8,FALSE)) ->  | X66: =IF(ISERROR(VLOOKUP($A66,#REF!,9,FALSE)),"",VLOOKUP($A66,#REF!,9,FALSE)) ->  | Y66: =IF(ISERROR(VLOOKUP($A66,#REF!,10,FALSE)),0,VLOOKUP($A66,#REF!,10,FALSE)) -> 00:00:00
A67: 0_8_3 | B67: =IF(COUNTIF(Validations!$AB$8:$AB$56,A67)=1,1,"") ->  | D67: 8 | E67: 3 | F67: T | G67: =IF(ISNA(VLOOKUP(D67,Rows[],4,FALSE)),"",VLOOKUP(D67,Rows[],4,FALSE)) -> B4 - Cyfanswm yr anheddau a addaswyd sydd yn daladwy (cyfanswm o B1 i B3c=A3) | H67: =IF(ISERROR(VLOOKUP($A67&"_"&H$10,qData1[],7,FALSE)),"",VLOOKUP($A67&"_"&H$10,qData1[],7,FALSE)) ->  | I67: =IF(ISERROR(VLOOKUP($A67&"_"&I$10,qData1[],7,FALSE)),0,VLOOKUP($A67&"_"&I$10,qData1[],7,FALSE)) -> 0 | J67: 0 | K67: 0 | L67: 0 | M67: =IF(ISNA(VLOOKUP($D67&"_"&$E67,Tol[],6,FALSE)),$M$7,VLOOKUP($D67&"_"&$E67,Tol[],6,FALSE)) -> 100 | N67: =IF(ISNA(VLOOKUP($D67&"_"&$E67,Tol[],7,FALSE)),$N$7*100,VLOOKUP($D67&"_"&$E67,Tol[],7,FALSE)*100) -> 10 | O67: 1 | P67: 1 | W67: =IF(ISERROR(VLOOKUP($A67,#REF!,8,FALSE)),"",VLOOKUP($A67,#REF!,8,FALSE)) ->  | X67: =IF(ISERROR(VLOOKUP($A67,#REF!,9,FALSE)),"",VLOOKUP($A67,#REF!,9,FALSE)) ->  | Y67: =IF(ISERROR(VLOOKUP($A67,#REF!,10,FALSE)),0,VLOOKUP($A67,#REF!,10,FALSE)) -> 00:00:00
A68: 0_8_4 | B68: =IF(COUNTIF(Validations!$AB$8:$AB$56,A68)=1,1,"") ->  | D68: 8 | E68: 4 | F68: T | G68: =IF(ISNA(VLOOKUP(D68,Rows[],4,FALSE)),"",VLOOKUP(D68,Rows[],4,FALSE)) -> B4 - Cyfanswm yr anheddau a addaswyd sydd yn daladwy (cyfanswm o B1 i B3c=A3) | H68: =IF(ISERROR(VLOOKUP($A68&"_"&H$10,qData1[],7,FALSE)),"",VLOOKUP($A68&"_"&H$10,qData1[],7,FALSE)) ->  | I68: =IF(ISERROR(VLOOKUP($A68&"_"&I$10,qData1[],7,FALSE)),0,VLOOKUP($A68&"_"&I$10,qData1[],7,FALSE)) -> 0 | J68: 0 | K68: 0 | L68: 0 | M68: =IF(ISNA(VLOOKUP($D68&"_"&$E68,Tol[],6,FALSE)),$M$7,VLOOKUP($D68&"_"&$E68,Tol[],6,FALSE)) -> 100 | N68: =IF(ISNA(VLOOKUP($D68&"_"&$E68,Tol[],7,FALSE)),$N$7*100,VLOOKUP($D68&"_"&$E68,Tol[],7,FALSE)*100) -> 10 | O68: 1 | P68: 1 | W68: =IF(ISERROR(VLOOKUP($A68,#REF!,8,FALSE)),"",VLOOKUP($A68,#REF!,8,FALSE)) ->  | X68: =IF(ISERROR(VLOOKUP($A68,#REF!,9,FALSE)),"",VLOOKUP($A68,#REF!,9,FALSE)) ->  | Y68: =IF(ISERROR(VLOOKUP($A68,#REF!,10,FALSE)),0,VLOOKUP($A68,#REF!,10,FALSE)) -> 00:00:00
A69: 0_8_5 | B69: =IF(COUNTIF(Validations!$AB$8:$AB$56,A69)=1,1,"") ->  | D69: 8 | E69: 5 | F69: T | G69: =IF(ISNA(VLOOKUP(D69,Rows[],4,FALSE)),"",VLOOKUP(D69,Rows[],4,FALSE)) -> B4 - Cyfanswm yr anheddau a addaswyd sydd yn daladwy (cyfanswm o B1 i B3c=A3) | H69: =IF(ISERROR(VLOOKUP($A69&"_"&H$10,qData1[],7,FALSE)),"",VLOOKUP($A69&"_"&H$10,qData1[],7,FALSE)) ->  | I69: =IF(ISERROR(VLOOKUP($A69&"_"&I$10,qData1[],7,FALSE)),0,VLOOKUP($A69&"_"&I$10,qData1[],7,FALSE)) -> 0 | J69: 0 | K69: 0 | L69: 0 | M69: =IF(ISNA(VLOOKUP($D69&"_"&$E69,Tol[],6,FALSE)),$M$7,VLOOKUP($D69&"_"&$E69,Tol[],6,FALSE)) -> 100 | N69: =IF(ISNA(VLOOKUP($D69&"_"&$E69,Tol[],7,FALSE)),$N$7*100,VLOOKUP($D69&"_"&$E69,Tol[],7,FALSE)*100) -> 10 | O69: 1 | P69: 1 | W69: =IF(ISERROR(VLOOKUP($A69,#REF!,8,FALSE)),"",VLOOKUP($A69,#REF!,8,FALSE)) ->  | X69: =IF(ISERROR(VLOOKUP($A69,#REF!,9,FALSE)),"",VLOOKUP($A69,#REF!,9,FALSE)) ->  | Y69: =IF(ISERROR(VLOOKUP($A69,#REF!,10,FALSE)),0,VLOOKUP($A69,#REF!,10,FALSE)) -> 00:00:00
A70: 0_8_6 | B70: =IF(COUNTIF(Validations!$AB$8:$AB$56,A70)=1,1,"") ->  | D70: 8 | E70: 6 | F70: T | G70: =IF(ISNA(VLOOKUP(D70,Rows[],4,FALSE)),"",VLOOKUP(D70,Rows[],4,FALSE)) -> B4 - Cyfanswm yr anheddau a addaswyd sydd yn daladwy (cyfanswm o B1 i B3c=A3) | H70: =IF(ISERROR(VLOOKUP($A70&"_"&H$10,qData1[],7,FALSE)),"",VLOOKUP($A70&"_"&H$10,qData1[],7,FALSE)) ->  | I70: =IF(ISERROR(VLOOKUP($A70&"_"&I$10,qData1[],7,FALSE)),0,VLOOKUP($A70&"_"&I$10,qData1[],7,FALSE)) -> 0 | J70: 0 | K70: 0 | L70: 0 | M70: =IF(ISNA(VLOOKUP($D70&"_"&$E70,Tol[],6,FALSE)),$M$7,VLOOKUP($D70&"_"&$E70,Tol[],6,FALSE)) -> 100 | N70: =IF(ISNA(VLOOKUP($D70&"_"&$E70,Tol[],7,FALSE)),$N$7*100,VLOOKUP($D70&"_"&$E70,Tol[],7,FALSE)*100) -> 10 | O70: 1 | P70: 1 | W70: =IF(ISERROR(VLOOKUP($A70,#REF!,8,FALSE)),"",VLOOKUP($A70,#REF!,8,FALSE)) ->  | X70: =IF(ISERROR(VLOOKUP($A70,#REF!,9,FALSE)),"",VLOOKUP($A70,#REF!,9,FALSE)) ->  | Y70: =IF(ISERROR(VLOOKUP($A70,#REF!,10,FALSE)),0,VLOOKUP($A70,#REF!,10,FALSE)) -> 00:00:00
A71: 0_8_7 | B71: =IF(COUNTIF(Validations!$AB$8:$AB$56,A71)=1,1,"") ->  | D71: 8 | E71: 7 | F71: T | G71: =IF(ISNA(VLOOKUP(D71,Rows[],4,FALSE)),"",VLOOKUP(D71,Rows[],4,FALSE)) -> B4 - Cyfanswm yr anheddau a addaswyd sydd yn daladwy (cyfanswm o B1 i B3c=A3) | H71: =IF(ISERROR(VLOOKUP($A71&"_"&H$10,qData1[],7,FALSE)),"",VLOOKUP($A71&"_"&H$10,qData1[],7,FALSE)) ->  | I71: =IF(ISERROR(VLOOKUP($A71&"_"&I$10,qData1[],7,FALSE)),0,VLOOKUP($A71&"_"&I$10,qData1[],7,FALSE)) -> 0 | J71: 0 | K71: 0 | L71: 0 | M71: =IF(ISNA(VLOOKUP($D71&"_"&$E71,Tol[],6,FALSE)),$M$7,VLOOKUP($D71&"_"&$E71,Tol[],6,FALSE)) -> 100 | N71: =IF(ISNA(VLOOKUP($D71&"_"&$E71,Tol[],7,FALSE)),$N$7*100,VLOOKUP($D71&"_"&$E71,Tol[],7,FALSE)*100) -> 10 | O71: 1 | P71: 1 | W71: =IF(ISERROR(VLOOKUP($A71,#REF!,8,FALSE)),"",VLOOKUP($A71,#REF!,8,FALSE)) ->  | X71: =IF(ISERROR(VLOOKUP($A71,#REF!,9,FALSE)),"",VLOOKUP($A71,#REF!,9,FALSE)) ->  | Y71: =IF(ISERROR(VLOOKUP($A71,#REF!,10,FALSE)),0,VLOOKUP($A71,#REF!,10,FALSE)) -> 00:00:00
A72: 0_8_8 | B72: =IF(COUNTIF(Validations!$AB$8:$AB$56,A72)=1,1,"") ->  | D72: 8 | E72: 8 | F72: T | G72: =IF(ISNA(VLOOKUP(D72,Rows[],4,FALSE)),"",VLOOKUP(D72,Rows[],4,FALSE)) -> B4 - Cyfanswm yr anheddau a addaswyd sydd yn daladwy (cyfanswm o B1 i B3c=A3) | H72: =IF(ISERROR(VLOOKUP($A72&"_"&H$10,qData1[],7,FALSE)),"",VLOOKUP($A72&"_"&H$10,qData1[],7,FALSE)) ->  | I72: =IF(ISERROR(VLOOKUP($A72&"_"&I$10,qData1[],7,FALSE)),0,VLOOKUP($A72&"_"&I$10,qData1[],7,FALSE)) -> 0 | J72: 0 | K72: 0 | L72: 0 | M72: =IF(ISNA(VLOOKUP($D72&"_"&$E72,Tol[],6,FALSE)),$M$7,VLOOKUP($D72&"_"&$E72,Tol[],6,FALSE)) -> 100 | N72: =IF(ISNA(VLOOKUP($D72&"_"&$E72,Tol[],7,FALSE)),$N$7*100,VLOOKUP($D72&"_"&$E72,Tol[],7,FALSE)*100) -> 10 | O72: 1 | P72: 1 | W72: =IF(ISERROR(VLOOKUP($A72,#REF!,8,FALSE)),"",VLOOKUP($A72,#REF!,8,FALSE)) ->  | X72: =IF(ISERROR(VLOOKUP($A72,#REF!,9,FALSE)),"",VLOOKUP($A72,#REF!,9,FALSE)) ->  | Y72: =IF(ISERROR(VLOOKUP($A72,#REF!,10,FALSE)),0,VLOOKUP($A72,#REF!,10,FALSE)) -> 00:00:00
A73: 0_8_9 | B73: =IF(COUNTIF(Validations!$AB$8:$AB$56,A73)=1,1,"") ->  | D73: 8 | E73: 9 | F73: T | G73: =IF(ISNA(VLOOKUP(D73,Rows[],4,FALSE)),"",VLOOKUP(D73,Rows[],4,FALSE)) -> B4 - Cyfanswm yr anheddau a addaswyd sydd yn daladwy (cyfanswm o B1 i B3c=A3) | H73: =IF(ISERROR(VLOOKUP($A73&"_"&H$10,qData1[],7,FALSE)),"",VLOOKUP($A73&"_"&H$10,qData1[],7,FALSE)) ->  | I73: =IF(ISERROR(VLOOKUP($A73&"_"&I$10,qData1[],7,FALSE)),0,VLOOKUP($A73&"_"&I$10,qData1[],7,FALSE)) -> 0 | J73: 0 | K73: 0 | L73: 0 | M73: =IF(ISNA(VLOOKUP($D73&"_"&$E73,Tol[],6,FALSE)),$M$7,VLOOKUP($D73&"_"&$E73,Tol[],6,FALSE)) -> 100 | N73: =IF(ISNA(VLOOKUP($D73&"_"&$E73,Tol[],7,FALSE)),$N$7*100,VLOOKUP($D73&"_"&$E73,Tol[],7,FALSE)*100) -> 10 | O73: 1 | P73: 1 | W73: =IF(ISERROR(VLOOKUP($A73,#REF!,8,FALSE)),"",VLOOKUP($A73,#REF!,8,FALSE)) ->  | X73: =IF(ISERROR(VLOOKUP($A73,#REF!,9,FALSE)),"",VLOOKUP($A73,#REF!,9,FALSE)) ->  | Y73: =IF(ISERROR(VLOOKUP($A73,#REF!,10,FALSE)),0,VLOOKUP($A73,#REF!,10,FALSE)) -> 00:00:00
A74: 0_8_10 | B74: =IF(COUNTIF(Validations!$AB$8:$AB$56,A74)=1,1,"") ->  | D74: 8 | E74: 10 | F74: T | G74: =IF(ISNA(VLOOKUP(D74,Rows[],4,FALSE)),"",VLOOKUP(D74,Rows[],4,FALSE)) -> B4 - Cyfanswm yr anheddau a addaswyd sydd yn daladwy (cyfanswm o B1 i B3c=A3) | H74: =IF(ISERROR(VLOOKUP($A74&"_"&H$10,qData1[],7,FALSE)),"",VLOOKUP($A74&"_"&H$10,qData1[],7,FALSE)) ->  | I74: =IF(ISERROR(VLOOKUP($A74&"_"&I$10,qData1[],7,FALSE)),0,VLOOKUP($A74&"_"&I$10,qData1[],7,FALSE)) -> 0 | J74: 0 | K74: 0 | L74: 0 | M74: =IF(ISNA(VLOOKUP($D74&"_"&$E74,Tol[],6,FALSE)),$M$7,VLOOKUP($D74&"_"&$E74,Tol[],6,FALSE)) -> 100 | N74: =IF(ISNA(VLOOKUP($D74&"_"&$E74,Tol[],7,FALSE)),$N$7*100,VLOOKUP($D74&"_"&$E74,Tol[],7,FALSE)*100) -> 10 | O74: 1 | P74: 1 | W74: =IF(ISERROR(VLOOKUP($A74,#REF!,8,FALSE)),"",VLOOKUP($A74,#REF!,8,FALSE)) ->  | X74: =IF(ISERROR(VLOOKUP($A74,#REF!,9,FALSE)),"",VLOOKUP($A74,#REF!,9,FALSE)) ->  | Y74: =IF(ISERROR(VLOOKUP($A74,#REF!,10,FALSE)),0,VLOOKUP($A74,#REF!,10,FALSE)) -> 00:00:00
A75: 0_8_11 | B75: =IF(COUNTIF(Validations!$AB$8:$AB$56,A75)=1,1,"") ->  | D75: 8 | E75: 11 | F75: T | G75: =IF(ISNA(VLOOKUP(D75,Rows[],4,FALSE)),"",VLOOKUP(D75,Rows[],4,FALSE)) -> B4 - Cyfanswm yr anheddau a addaswyd sydd yn daladwy (cyfanswm o B1 i B3c=A3) | H75: =IF(ISERROR(VLOOKUP($A75&"_"&H$10,qData1[],7,FALSE)),"",VLOOKUP($A75&"_"&H$10,qData1[],7,FALSE)) ->  | I75: =IF(ISERROR(VLOOKUP($A75&"_"&I$10,qData1[],7,FALSE)),0,VLOOKUP($A75&"_"&I$10,qData1[],7,FALSE)) -> 0 | J75: 0 | K75: 0 | L75: 0 | M75: =IF(ISNA(VLOOKUP($D75&"_"&$E75,Tol[],6,FALSE)),$M$7,VLOOKUP($D75&"_"&$E75,Tol[],6,FALSE)) -> 100 | N75: =IF(ISNA(VLOOKUP($D75&"_"&$E75,Tol[],7,FALSE)),$N$7*100,VLOOKUP($D75&"_"&$E75,Tol[],7,FALSE)*100) -> 10 | O75: 1 | P75: 1 | W75: =IF(ISERROR(VLOOKUP($A75,#REF!,8,FALSE)),"",VLOOKUP($A75,#REF!,8,FALSE)) ->  | X75: =IF(ISERROR(VLOOKUP($A75,#REF!,9,FALSE)),"",VLOOKUP($A75,#REF!,9,FALSE)) ->  | Y75: =IF(ISERROR(VLOOKUP($A75,#REF!,10,FALSE)),0,VLOOKUP($A75,#REF!,10,FALSE)) -> 00:00:00
A76: =uanumber&"_"&D76&"_"&E76 -> 0_14_2 | B76: =IF(COUNTIF(Validations!$AB$8:$AB$56,A76)=1,1,"") ->  | D76: 14 | E76: 2 | G76: =IF(ISNA(VLOOKUP(D76,Rows[],4,FALSE)),"",VLOOKUP(D76,Rows[],4,FALSE)) -> D1 - Anheddau ag eithriadau Dosbarthiadau A i N a P i W ( heb eu cynnwys yn adrannau A i C uchod ) ( gweler nodyn 6 ) | H76: =IF(ISERROR(VLOOKUP($A76&"_"&H$10,qData1[],7,FALSE)),"",VLOOKUP($A76&"_"&H$10,qData1[],7,FALSE)) ->  | I76: =IF(ISERROR(VLOOKUP($A76&"_"&I$10,qData1[],7,FALSE)),0,VLOOKUP($A76&"_"&I$10,qData1[],7,FALSE)) -> 0 | J76: =IF(ISERROR(VLOOKUP(D76&"_"&E76,Figs,8,FALSE)),0,VLOOKUP(D76&"_"&E76,Figs,8,FALSE)) -> 0 | K76: 0 | L76: 0 | M76: =IF(ISNA(VLOOKUP($D76&"_"&$E76,Tol[],6,FALSE)),$M$7,VLOOKUP($D76&"_"&$E76,Tol[],6,FALSE)) -> 50 | N76: =IF(ISNA(VLOOKUP($D76&"_"&$E76,Tol[],7,FALSE)),$N$7*100,VLOOKUP($D76&"_"&$E76,Tol[],7,FALSE)*100) -> 10 | O76: 1 | P76: 1 | W76: =IF(ISERROR(VLOOKUP($A76,#REF!,8,FALSE)),"",VLOOKUP($A76,#REF!,8,FALSE)) ->  | X76: =IF(ISERROR(VLOOKUP($A76,#REF!,9,FALSE)),"",VLOOKUP($A76,#REF!,9,FALSE)) ->  | Y76: =IF(ISERROR(VLOOKUP($A76,#REF!,10,FALSE)),0,VLOOKUP($A76,#REF!,10,FALSE)) -> 00:00:00
A77: 0_14_3 | B77: =IF(COUNTIF(Validations!$AB$8:$AB$56,A77)=1,1,"") ->  | D77: 14 | E77: 3 | G77: =IF(ISNA(VLOOKUP(D77,Rows[],4,FALSE)),"",VLOOKUP(D77,Rows[],4,FALSE)) -> D1 - Anheddau ag eithriadau Dosbarthiadau A i N a P i W ( heb eu cynnwys yn adrannau A i C uchod ) ( gweler nodyn 6 ) | H77: =IF(ISERROR(VLOOKUP($A77&"_"&H$10,qData1[],7,FALSE)),"",VLOOKUP($A77&"_"&H$10,qData1[],7,FALSE)) ->  | I77: =IF(ISERROR(VLOOKUP($A77&"_"&I$10,qData1[],7,FALSE)),0,VLOOKUP($A77&"_"&I$10,qData1[],7,FALSE)) -> 0 | J77: 0 | K77: =J77-I77 -> 0 | L77: =IF(OR(I77=0,J77=0),0,K77/I77*100) -> 0 | M77: =IF(ISNA(VLOOKUP($D77&"_"&$E77,Tol[],6,FALSE)),$M$7,VLOOKUP($D77&"_"&$E77,Tol[],6,FALSE)) -> 50 | N77: =IF(ISNA(VLOOKUP($D77&"_"&$E77,Tol[],7,FALSE)),$N$7*100,VLOOKUP($D77&"_"&$E77,Tol[],7,FALSE)*100) -> 10 | O77: =IF(I77=0,1,"") -> 1 | P77: =IF(J77=0,1,"") -> 1 | Q77: =IF(SUM(O77:P77)=2,"",IF(SUM(O77:P77)=1,9,IF(AND(ABS(K77)>M77,ABS(L77)>N77),3,IF(ABS(K77)>M77,1,IF(ABS(L77)>N77,2,""))))) ->  | R77: =IF(Q77=3,1,"") ->  | T77: =IF(OR(U77="C",U77="T"),"",IF(S77=1,1,"")) ->  | W77: =IF(ISERROR(VLOOKUP($A77,#REF!,8,FALSE)),"",VLOOKUP($A77,#REF!,8,FALSE)) ->  | X77: =IF(ISERROR(VLOOKUP($A77,#REF!,9,FALSE)),"",VLOOKUP($A77,#REF!,9,FALSE)) ->  | Y77: =IF(ISERROR(VLOOKUP($A77,#REF!,10,FALSE)),0,VLOOKUP($A77,#REF!,10,FALSE)) -> 00:00:00
A78: 0_14_4 | B78: =IF(COUNTIF(Validations!$AB$8:$AB$56,A78)=1,1,"") ->  | D78: 14 | E78: 4 | G78: =IF(ISNA(VLOOKUP(D78,Rows[],4,FALSE)),"",VLOOKUP(D78,Rows[],4,FALSE)) -> D1 - Anheddau ag eithriadau Dosbarthiadau A i N a P i W ( heb eu cynnwys yn adrannau A i C uchod ) ( gweler nodyn 6 ) | H78: =IF(ISERROR(VLOOKUP($A78&"_"&H$10,qData1[],7,FALSE)),"",VLOOKUP($A78&"_"&H$10,qData1[],7,FALSE)) ->  | I78: =IF(ISERROR(VLOOKUP($A78&"_"&I$10,qData1[],7,FALSE)),0,VLOOKUP($A78&"_"&I$10,qData1[],7,FALSE)) -> 0 | J78: 0 | K78: 0 | L78: 0 | M78: =IF(ISNA(VLOOKUP($D78&"_"&$E78,Tol[],6,FALSE)),$M$7,VLOOKUP($D78&"_"&$E78,Tol[],6,FALSE)) -> 50 | N78: =IF(ISNA(VLOOKUP($D78&"_"&$E78,Tol[],7,FALSE)),$N$7*100,VLOOKUP($D78&"_"&$E78,Tol[],7,FALSE)*100) -> 10 | O78: 1 | P78: 1 | W78: =IF(ISERROR(VLOOKUP($A78,#REF!,8,FALSE)),"",VLOOKUP($A78,#REF!,8,FALSE)) ->  | X78: =IF(ISERROR(VLOOKUP($A78,#REF!,9,FALSE)),"",VLOOKUP($A78,#REF!,9,FALSE)) ->  | Y78: =IF(ISERROR(VLOOKUP($A78,#REF!,10,FALSE)),0,VLOOKUP($A78,#REF!,10,FALSE)) -> 00:00:00
A79: 0_14_5 | B79: =IF(COUNTIF(Validations!$AB$8:$AB$56,A79)=1,1,"") ->  | D79: 14 | E79: 5 | G79: =IF(ISNA(VLOOKUP(D79,Rows[],4,FALSE)),"",VLOOKUP(D79,Rows[],4,FALSE)) -> D1 - Anheddau ag eithriadau Dosbarthiadau A i N a P i W ( heb eu cynnwys yn adrannau A i C uchod ) ( gweler nodyn 6 ) | H79: =IF(ISERROR(VLOOKUP($A79&"_"&H$10,qData1[],7,FALSE)),"",VLOOKUP($A79&"_"&H$10,qData1[],7,FALSE)) ->  | I79: =IF(ISERROR(VLOOKUP($A79&"_"&I$10,qData1[],7,FALSE)),0,VLOOKUP($A79&"_"&I$10,qData1[],7,FALSE)) -> 0 | J79: 0 | K79: 0 | L79: 0 | M79: =IF(ISNA(VLOOKUP($D79&"_"&$E79,Tol[],6,FALSE)),$M$7,VLOOKUP($D79&"_"&$E79,Tol[],6,FALSE)) -> 50 | N79: =IF(ISNA(VLOOKUP($D79&"_"&$E79,Tol[],7,FALSE)),$N$7*100,VLOOKUP($D79&"_"&$E79,Tol[],7,FALSE)*100) -> 10 | O79: 1 | P79: 1 | W79: =IF(ISERROR(VLOOKUP($A79,#REF!,8,FALSE)),"",VLOOKUP($A79,#REF!,8,FALSE)) ->  | X79: =IF(ISERROR(VLOOKUP($A79,#REF!,9,FALSE)),"",VLOOKUP($A79,#REF!,9,FALSE)) ->  | Y79: =IF(ISERROR(VLOOKUP($A79,#REF!,10,FALSE)),0,VLOOKUP($A79,#REF!,10,FALSE)) -> 00:00:00
A80: 0_14_6 | B80: =IF(COUNTIF(Validations!$AB$8:$AB$56,A80)=1,1,"") ->  | D80: 14 | E80: 6 | G80: =IF(ISNA(VLOOKUP(D80,Rows[],4,FALSE)),"",VLOOKUP(D80,Rows[],4,FALSE)) -> D1 - Anheddau ag eithriadau Dosbarthiadau A i N a P i W ( heb eu cynnwys yn adrannau A i C uchod ) ( gweler nodyn 6 ) | H80: =IF(ISERROR(VLOOKUP($A80&"_"&H$10,qData1[],7,FALSE)),"",VLOOKUP($A80&"_"&H$10,qData1[],7,FALSE)) ->  | I80: =IF(ISERROR(VLOOKUP($A80&"_"&I$10,qData1[],7,FALSE)),0,VLOOKUP($A80&"_"&I$10,qData1[],7,FALSE)) -> 0 | J80: 0 | K80: 0 | L80: 0 | M80: =IF(ISNA(VLOOKUP($D80&"_"&$E80,Tol[],6,FALSE)),$M$7,VLOOKUP($D80&"_"&$E80,Tol[],6,FALSE)) -> 50 | N80: =IF(ISNA(VLOOKUP($D80&"_"&$E80,Tol[],7,FALSE)),$N$7*100,VLOOKUP($D80&"_"&$E80,Tol[],7,FALSE)*100) -> 10 | O80: 1 | P80: 1 | W80: =IF(ISERROR(VLOOKUP($A80,#REF!,8,FALSE)),"",VLOOKUP($A80,#REF!,8,FALSE)) ->  | X80: =IF(ISERROR(VLOOKUP($A80,#REF!,9,FALSE)),"",VLOOKUP($A80,#REF!,9,FALSE)) ->  | Y80: =IF(ISERROR(VLOOKUP($A80,#REF!,10,FALSE)),0,VLOOKUP($A80,#REF!,10,FALSE)) -> 00:00:00
A81: 0_14_7 | B81: =IF(COUNTIF(Validations!$AB$8:$AB$56,A81)=1,1,"") ->  | D81: 14 | E81: 7 | G81: =IF(ISNA(VLOOKUP(D81,Rows[],4,FALSE)),"",VLOOKUP(D81,Rows[],4,FALSE)) -> D1 - Anheddau ag eithriadau Dosbarthiadau A i N a P i W ( heb eu cynnwys yn adrannau A i C uchod ) ( gweler nodyn 6 ) | H81: =IF(ISERROR(VLOOKUP($A81&"_"&H$10,qData1[],7,FALSE)),"",VLOOKUP($A81&"_"&H$10,qData1[],7,FALSE)) ->  | I81: =IF(ISERROR(VLOOKUP($A81&"_"&I$10,qData1[],7,FALSE)),0,VLOOKUP($A81&"_"&I$10,qData1[],7,FALSE)) -> 0 | J81: 0 | K81: 0 | L81: 0 | M81: =IF(ISNA(VLOOKUP($D81&"_"&$E81,Tol[],6,FALSE)),$M$7,VLOOKUP($D81&"_"&$E81,Tol[],6,FALSE)) -> 50 | N81: =IF(ISNA(VLOOKUP($D81&"_"&$E81,Tol[],7,FALSE)),$N$7*100,VLOOKUP($D81&"_"&$E81,Tol[],7,FALSE)*100) -> 10 | O81: 1 | P81: 1 | W81: =IF(ISERROR(VLOOKUP($A81,#REF!,8,FALSE)),"",VLOOKUP($A81,#REF!,8,FALSE)) ->  | X81: =IF(ISERROR(VLOOKUP($A81,#REF!,9,FALSE)),"",VLOOKUP($A81,#REF!,9,FALSE)) ->  | Y81: =IF(ISERROR(VLOOKUP($A81,#REF!,10,FALSE)),0,VLOOKUP($A81,#REF!,10,FALSE)) -> 00:00:00
A82: 0_14_8 | B82: =IF(COUNTIF(Validations!$AB$8:$AB$56,A82)=1,1,"") ->  | D82: 14 | E82: 8 | G82: =IF(ISNA(VLOOKUP(D82,Rows[],4,FALSE)),"",VLOOKUP(D82,Rows[],4,FALSE)) -> D1 - Anheddau ag eithriadau Dosbarthiadau A i N a P i W ( heb eu cynnwys yn adrannau A i C uchod ) ( gweler nodyn 6 ) | H82: =IF(ISERROR(VLOOKUP($A82&"_"&H$10,qData1[],7,FALSE)),"",VLOOKUP($A82&"_"&H$10,qData1[],7,FALSE)) ->  | I82: =IF(ISERROR(VLOOKUP($A82&"_"&I$10,qData1[],7,FALSE)),0,VLOOKUP($A82&"_"&I$10,qData1[],7,FALSE)) -> 0 | J82: 0 | K82: 0 | L82: 0 | M82: =IF(ISNA(VLOOKUP($D82&"_"&$E82,Tol[],6,FALSE)),$M$7,VLOOKUP($D82&"_"&$E82,Tol[],6,FALSE)) -> 50 | N82: =IF(ISNA(VLOOKUP($D82&"_"&$E82,Tol[],7,FALSE)),$N$7*100,VLOOKUP($D82&"_"&$E82,Tol[],7,FALSE)*100) -> 10 | O82: 1 | P82: 1 | W82: =IF(ISERROR(VLOOKUP($A82,#REF!,8,FALSE)),"",VLOOKUP($A82,#REF!,8,FALSE)) ->  | X82: =IF(ISERROR(VLOOKUP($A82,#REF!,9,FALSE)),"",VLOOKUP($A82,#REF!,9,FALSE)) ->  | Y82: =IF(ISERROR(VLOOKUP($A82,#REF!,10,FALSE)),0,VLOOKUP($A82,#REF!,10,FALSE)) -> 00:00:00
A83: 0_14_9 | B83: =IF(COUNTIF(Validations!$AB$8:$AB$56,A83)=1,1,"") ->  | D83: 14 | E83: 9 | G83: =IF(ISNA(VLOOKUP(D83,Rows[],4,FALSE)),"",VLOOKUP(D83,Rows[],4,FALSE)) -> D1 - Anheddau ag eithriadau Dosbarthiadau A i N a P i W ( heb eu cynnwys yn adrannau A i C uchod ) ( gweler nodyn 6 ) | H83: =IF(ISERROR(VLOOKUP($A83&"_"&H$10,qData1[],7,FALSE)),"",VLOOKUP($A83&"_"&H$10,qData1[],7,FALSE)) ->  | I83: =IF(ISERROR(VLOOKUP($A83&"_"&I$10,qData1[],7,FALSE)),0,VLOOKUP($A83&"_"&I$10,qData1[],7,FALSE)) -> 0 | J83: 0 | K83: 0 | L83: 0 | M83: =IF(ISNA(VLOOKUP($D83&"_"&$E83,Tol[],6,FALSE)),$M$7,VLOOKUP($D83&"_"&$E83,Tol[],6,FALSE)) -> 50 | N83: =IF(ISNA(VLOOKUP($D83&"_"&$E83,Tol[],7,FALSE)),$N$7*100,VLOOKUP($D83&"_"&$E83,Tol[],7,FALSE)*100) -> 10 | O83: 1 | P83: 1 | W83: =IF(ISERROR(VLOOKUP($A83,#REF!,8,FALSE)),"",VLOOKUP($A83,#REF!,8,FALSE)) ->  | X83: =IF(ISERROR(VLOOKUP($A83,#REF!,9,FALSE)),"",VLOOKUP($A83,#REF!,9,FALSE)) ->  | Y83: =IF(ISERROR(VLOOKUP($A83,#REF!,10,FALSE)),0,VLOOKUP($A83,#REF!,10,FALSE)) -> 00:00:00
A84: 0_14_10 | B84: =IF(COUNTIF(Validations!$AB$8:$AB$56,A84)=1,1,"") ->  | D84: 14 | E84: 10 | G84: =IF(ISNA(VLOOKUP(D84,Rows[],4,FALSE)),"",VLOOKUP(D84,Rows[],4,FALSE)) -> D1 - Anheddau ag eithriadau Dosbarthiadau A i N a P i W ( heb eu cynnwys yn adrannau A i C uchod ) ( gweler nodyn 6 ) | H84: =IF(ISERROR(VLOOKUP($A84&"_"&H$10,qData1[],7,FALSE)),"",VLOOKUP($A84&"_"&H$10,qData1[],7,FALSE)) ->  | I84: =IF(ISERROR(VLOOKUP($A84&"_"&I$10,qData1[],7,FALSE)),0,VLOOKUP($A84&"_"&I$10,qData1[],7,FALSE)) -> 0 | J84: 0 | K84: 0 | L84: 0 | M84: =IF(ISNA(VLOOKUP($D84&"_"&$E84,Tol[],6,FALSE)),$M$7,VLOOKUP($D84&"_"&$E84,Tol[],6,FALSE)) -> 50 | N84: =IF(ISNA(VLOOKUP($D84&"_"&$E84,Tol[],7,FALSE)),$N$7*100,VLOOKUP($D84&"_"&$E84,Tol[],7,FALSE)*100) -> 10 | O84: 1 | P84: 1 | W84: =IF(ISERROR(VLOOKUP($A84,#REF!,8,FALSE)),"",VLOOKUP($A84,#REF!,8,FALSE)) ->  | X84: =IF(ISERROR(VLOOKUP($A84,#REF!,9,FALSE)),"",VLOOKUP($A84,#REF!,9,FALSE)) ->  | Y84: =IF(ISERROR(VLOOKUP($A84,#REF!,10,FALSE)),0,VLOOKUP($A84,#REF!,10,FALSE)) -> 00:00:00
A85: 0_14_11 | B85: =IF(COUNTIF(Validations!$AB$8:$AB$56,A85)=1,1,"") ->  | D85: 14 | E85: 11 | F85: T | G85: =IF(ISNA(VLOOKUP(D85,Rows[],4,FALSE)),"",VLOOKUP(D85,Rows[],4,FALSE)) -> D1 - Anheddau ag eithriadau Dosbarthiadau A i N a P i W ( heb eu cynnwys yn adrannau A i C uchod ) ( gweler nodyn 6 ) | H85: =IF(ISERROR(VLOOKUP($A85&"_"&H$10,qData1[],7,FALSE)),"",VLOOKUP($A85&"_"&H$10,qData1[],7,FALSE)) ->  | I85: =IF(ISERROR(VLOOKUP($A85&"_"&I$10,qData1[],7,FALSE)),0,VLOOKUP($A85&"_"&I$10,qData1[],7,FALSE)) -> 0 | J85: 0 | K85: 0 | L85: 0 | M85: =IF(ISNA(VLOOKUP($D85&"_"&$E85,Tol[],6,FALSE)),$M$7,VLOOKUP($D85&"_"&$E85,Tol[],6,FALSE)) -> 200 | N85: =IF(ISNA(VLOOKUP($D85&"_"&$E85,Tol[],7,FALSE)),$N$7*100,VLOOKUP($D85&"_"&$E85,Tol[],7,FALSE)*100) -> 10 | O85: 1 | P85: 1 | W85: =IF(ISERROR(VLOOKUP($A85,#REF!,8,FALSE)),"",VLOOKUP($A85,#REF!,8,FALSE)) ->  | X85: =IF(ISERROR(VLOOKUP($A85,#REF!,9,FALSE)),"",VLOOKUP($A85,#REF!,9,FALSE)) ->  | Y85: =IF(ISERROR(VLOOKUP($A85,#REF!,10,FALSE)),0,VLOOKUP($A85,#REF!,10,FALSE)) -> 00:00:00
A86: 0_15_2 | B86: =IF(COUNTIF(Validations!$AB$8:$AB$56,A86)=1,1,"") ->  | D86: 15 | E86: 2 | G86: =IF(ISNA(VLOOKUP(D86,Rows[],4,FALSE)),"",VLOOKUP(D86,Rows[],4,FALSE)) -> D2 - Anheddau ag eithriad dosbarth O ( heb eu cynnwys yn adrannau A i C uchod ) ( gweler nodiadau 6 a 7 ) | H86: =IF(ISERROR(VLOOKUP($A86&"_"&H$10,qData1[],7,FALSE)),"",VLOOKUP($A86&"_"&H$10,qData1[],7,FALSE)) ->  | I86: =IF(ISERROR(VLOOKUP($A86&"_"&I$10,qData1[],7,FALSE)),0,VLOOKUP($A86&"_"&I$10,qData1[],7,FALSE)) -> 0 | J86: 0 | K86: 0 | L86: 0 | M86: =IF(ISNA(VLOOKUP($D86&"_"&$E86,Tol[],6,FALSE)),$M$7,VLOOKUP($D86&"_"&$E86,Tol[],6,FALSE)) -> 50 | N86: =IF(ISNA(VLOOKUP($D86&"_"&$E86,Tol[],7,FALSE)),$N$7*100,VLOOKUP($D86&"_"&$E86,Tol[],7,FALSE)*100) -> 10 | O86: 1 | P86: 1 | W86: =IF(ISERROR(VLOOKUP($A86,#REF!,8,FALSE)),"",VLOOKUP($A86,#REF!,8,FALSE)) ->  | X86: =IF(ISERROR(VLOOKUP($A86,#REF!,9,FALSE)),"",VLOOKUP($A86,#REF!,9,FALSE)) ->  | Y86: =IF(ISERROR(VLOOKUP($A86,#REF!,10,FALSE)),0,VLOOKUP($A86,#REF!,10,FALSE)) -> 00:00:00
A87: 0_15_3 | B87: =IF(COUNTIF(Validations!$AB$8:$AB$56,A87)=1,1,"") ->  | D87: 15 | E87: 3 | G87: =IF(ISNA(VLOOKUP(D87,Rows[],4,FALSE)),"",VLOOKUP(D87,Rows[],4,FALSE)) -> D2 - Anheddau ag eithriad dosbarth O ( heb eu cynnwys yn adrannau A i C uchod ) ( gweler nodiadau 6 a 7 ) | H87: =IF(ISERROR(VLOOKUP($A87&"_"&H$10,qData1[],7,FALSE)),"",VLOOKUP($A87&"_"&H$10,qData1[],7,FALSE)) ->  | I87: =IF(ISERROR(VLOOKUP($A87&"_"&I$10,qData1[],7,FALSE)),0,VLOOKUP($A87&"_"&I$10,qData1[],7,FALSE)) -> 0 | J87: 0 | K87: 0 | L87: 0 | M87: =IF(ISNA(VLOOKUP($D87&"_"&$E87,Tol[],6,FALSE)),$M$7,VLOOKUP($D87&"_"&$E87,Tol[],6,FALSE)) -> 50 | N87: =IF(ISNA(VLOOKUP($D87&"_"&$E87,Tol[],7,FALSE)),$N$7*100,VLOOKUP($D87&"_"&$E87,Tol[],7,FALSE)*100) -> 10 | O87: 1 | P87: 1 | W87: =IF(ISERROR(VLOOKUP($A87,#REF!,8,FALSE)),"",VLOOKUP($A87,#REF!,8,FALSE)) ->  | X87: =IF(ISERROR(VLOOKUP($A87,#REF!,9,FALSE)),"",VLOOKUP($A87,#REF!,9,FALSE)) ->  | Y87: =IF(ISERROR(VLOOKUP($A87,#REF!,10,FALSE)),0,VLOOKUP($A87,#REF!,10,FALSE)) -> 00:00:00
A88: 0_15_4 | B88: =IF(COUNTIF(Validations!$AB$8:$AB$56,A88)=1,1,"") ->  | D88: 15 | E88: 4 | G88: =IF(ISNA(VLOOKUP(D88,Rows[],4,FALSE)),"",VLOOKUP(D88,Rows[],4,FALSE)) -> D2 - Anheddau ag eithriad dosbarth O ( heb eu cynnwys yn adrannau A i C uchod ) ( gweler nodiadau 6 a 7 ) | H88: =IF(ISERROR(VLOOKUP($A88&"_"&H$10,qData1[],7,FALSE)),"",VLOOKUP($A88&"_"&H$10,qData1[],7,FALSE)) ->  | I88: =IF(ISERROR(VLOOKUP($A88&"_"&I$10,qData1[],7,FALSE)),0,VLOOKUP($A88&"_"&I$10,qData1[],7,FALSE)) -> 0 | J88: 0 | K88: 0 | L88: 0 | M88: =IF(ISNA(VLOOKUP($D88&"_"&$E88,Tol[],6,FALSE)),$M$7,VLOOKUP($D88&"_"&$E88,Tol[],6,FALSE)) -> 50 | N88: =IF(ISNA(VLOOKUP($D88&"_"&$E88,Tol[],7,FALSE)),$N$7*100,VLOOKUP($D88&"_"&$E88,Tol[],7,FALSE)*100) -> 10 | O88: 1 | P88: 1 | W88: =IF(ISERROR(VLOOKUP($A88,#REF!,8,FALSE)),"",VLOOKUP($A88,#REF!,8,FALSE)) ->  | X88: =IF(ISERROR(VLOOKUP($A88,#REF!,9,FALSE)),"",VLOOKUP($A88,#REF!,9,FALSE)) ->  | Y88: =IF(ISERROR(VLOOKUP($A88,#REF!,10,FALSE)),0,VLOOKUP($A88,#REF!,10,FALSE)) -> 00:00:00
A89: 0_15_5 | B89: =IF(COUNTIF(Validations!$AB$8:$AB$56,A89)=1,1,"") ->  | D89: 15 | E89: 5 | G89: =IF(ISNA(VLOOKUP(D89,Rows[],4,FALSE)),"",VLOOKUP(D89,Rows[],4,FALSE)) -> D2 - Anheddau ag eithriad dosbarth O ( heb eu cynnwys yn adrannau A i C uchod ) ( gweler nodiadau 6 a 7 ) | H89: =IF(ISERROR(VLOOKUP($A89&"_"&H$10,qData1[],7,FALSE)),"",VLOOKUP($A89&"_"&H$10,qData1[],7,FALSE)) ->  | I89: =IF(ISERROR(VLOOKUP($A89&"_"&I$10,qData1[],7,FALSE)),0,VLOOKUP($A89&"_"&I$10,qData1[],7,FALSE)) -> 0 | J89: 0 | K89: 0 | L89: 0 | M89: =IF(ISNA(VLOOKUP($D89&"_"&$E89,Tol[],6,FALSE)),$M$7,VLOOKUP($D89&"_"&$E89,Tol[],6,FALSE)) -> 50 | N89: =IF(ISNA(VLOOKUP($D89&"_"&$E89,Tol[],7,FALSE)),$N$7*100,VLOOKUP($D89&"_"&$E89,Tol[],7,FALSE)*100) -> 10 | O89: 1 | P89: 1 | W89: =IF(ISERROR(VLOOKUP($A89,#REF!,8,FALSE)),"",VLOOKUP($A89,#REF!,8,FALSE)) ->  | X89: =IF(ISERROR(VLOOKUP($A89,#REF!,9,FALSE)),"",VLOOKUP($A89,#REF!,9,FALSE)) ->  | Y89: =IF(ISERROR(VLOOKUP($A89,#REF!,10,FALSE)),0,VLOOKUP($A89,#REF!,10,FALSE)) -> 00:00:00
A90: 0_15_6 | B90: =IF(COUNTIF(Validations!$AB$8:$AB$56,A90)=1,1,"") ->  | D90: 15 | E90: 6 | G90: =IF(ISNA(VLOOKUP(D90,Rows[],4,FALSE)),"",VLOOKUP(D90,Rows[],4,FALSE)) -> D2 - Anheddau ag eithriad dosbarth O ( heb eu cynnwys yn adrannau A i C uchod ) ( gweler nodiadau 6 a 7 ) | H90: =IF(ISERROR(VLOOKUP($A90&"_"&H$10,qData1[],7,FALSE)),"",VLOOKUP($A90&"_"&H$10,qData1[],7,FALSE)) ->  | I90: =IF(ISERROR(VLOOKUP($A90&"_"&I$10,qData1[],7,FALSE)),0,VLOOKUP($A90&"_"&I$10,qData1[],7,FALSE)) -> 0 | J90: 0 | K90: 0 | L90: 0 | M90: =IF(ISNA(VLOOKUP($D90&"_"&$E90,Tol[],6,FALSE)),$M$7,VLOOKUP($D90&"_"&$E90,Tol[],6,FALSE)) -> 50 | N90: =IF(ISNA(VLOOKUP($D90&"_"&$E90,Tol[],7,FALSE)),$N$7*100,VLOOKUP($D90&"_"&$E90,Tol[],7,FALSE)*100) -> 10 | O90: 1 | P90: 1 | W90: =IF(ISERROR(VLOOKUP($A90,#REF!,8,FALSE)),"",VLOOKUP($A90,#REF!,8,FALSE)) ->  | X90: =IF(ISERROR(VLOOKUP($A90,#REF!,9,FALSE)),"",VLOOKUP($A90,#REF!,9,FALSE)) ->  | Y90: =IF(ISERROR(VLOOKUP($A90,#REF!,10,FALSE)),0,VLOOKUP($A90,#REF!,10,FALSE)) -> 00:00:00
A91: 0_15_7 | B91: =IF(COUNTIF(Validations!$AB$8:$AB$56,A91)=1,1,"") ->  | D91: 15 | E91: 7 | G91: =IF(ISNA(VLOOKUP(D91,Rows[],4,FALSE)),"",VLOOKUP(D91,Rows[],4,FALSE)) -> D2 - Anheddau ag eithriad dosbarth O ( heb eu cynnwys yn adrannau A i C uchod ) ( gweler nodiadau 6 a 7 ) | H91: =IF(ISERROR(VLOOKUP($A91&"_"&H$10,qData1[],7,FALSE)),"",VLOOKUP($A91&"_"&H$10,qData1[],7,FALSE)) ->  | I91: =IF(ISERROR(VLOOKUP($A91&"_"&I$10,qData1[],7,FALSE)),0,VLOOKUP($A91&"_"&I$10,qData1[],7,FALSE)) -> 0 | J91: 0 | K91: 0 | L91: 0 | M91: =IF(ISNA(VLOOKUP($D91&"_"&$E91,Tol[],6,FALSE)),$M$7,VLOOKUP($D91&"_"&$E91,Tol[],6,FALSE)) -> 50 | N91: =IF(ISNA(VLOOKUP($D91&"_"&$E91,Tol[],7,FALSE)),$N$7*100,VLOOKUP($D91&"_"&$E91,Tol[],7,FALSE)*100) -> 10 | O91: 1 | P91: 1 | W91: =IF(ISERROR(VLOOKUP($A91,#REF!,8,FALSE)),"",VLOOKUP($A91,#REF!,8,FALSE)) ->  | X91: =IF(ISERROR(VLOOKUP($A91,#REF!,9,FALSE)),"",VLOOKUP($A91,#REF!,9,FALSE)) ->  | Y91: =IF(ISERROR(VLOOKUP($A91,#REF!,10,FALSE)),0,VLOOKUP($A91,#REF!,10,FALSE)) -> 00:00:00
A92: 0_15_8 | B92: =IF(COUNTIF(Validations!$AB$8:$AB$56,A92)=1,1,"") ->  | D92: 15 | E92: 8 | G92: =IF(ISNA(VLOOKUP(D92,Rows[],4,FALSE)),"",VLOOKUP(D92,Rows[],4,FALSE)) -> D2 - Anheddau ag eithriad dosbarth O ( heb eu cynnwys yn adrannau A i C uchod ) ( gweler nodiadau 6 a 7 ) | H92: =IF(ISERROR(VLOOKUP($A92&"_"&H$10,qData1[],7,FALSE)),"",VLOOKUP($A92&"_"&H$10,qData1[],7,FALSE)) ->  | I92: =IF(ISERROR(VLOOKUP($A92&"_"&I$10,qData1[],7,FALSE)),0,VLOOKUP($A92&"_"&I$10,qData1[],7,FALSE)) -> 0 | J92: 0 | K92: 0 | L92: 0 | M92: =IF(ISNA(VLOOKUP($D92&"_"&$E92,Tol[],6,FALSE)),$M$7,VLOOKUP($D92&"_"&$E92,Tol[],6,FALSE)) -> 50 | N92: =IF(ISNA(VLOOKUP($D92&"_"&$E92,Tol[],7,FALSE)),$N$7*100,VLOOKUP($D92&"_"&$E92,Tol[],7,FALSE)*100) -> 10 | O92: 1 | P92: 1 | W92: =IF(ISERROR(VLOOKUP($A92,#REF!,8,FALSE)),"",VLOOKUP($A92,#REF!,8,FALSE)) ->  | X92: =IF(ISERROR(VLOOKUP($A92,#REF!,9,FALSE)),"",VLOOKUP($A92,#REF!,9,FALSE)) ->  | Y92: =IF(ISERROR(VLOOKUP($A92,#REF!,10,FALSE)),0,VLOOKUP($A92,#REF!,10,FALSE)) -> 00:00:00
A93: 0_15_9 | B93: =IF(COUNTIF(Validations!$AB$8:$AB$56,A93)=1,1,"") ->  | D93: 15 | E93: 9 | G93: =IF(ISNA(VLOOKUP(D93,Rows[],4,FALSE)),"",VLOOKUP(D93,Rows[],4,FALSE)) -> D2 - Anheddau ag eithriad dosbarth O ( heb eu cynnwys yn adrannau A i C uchod ) ( gweler nodiadau 6 a 7 ) | H93: =IF(ISERROR(VLOOKUP($A93&"_"&H$10,qData1[],7,FALSE)),"",VLOOKUP($A93&"_"&H$10,qData1[],7,FALSE)) ->  | I93: =IF(ISERROR(VLOOKUP($A93&"_"&I$10,qData1[],7,FALSE)),0,VLOOKUP($A93&"_"&I$10,qData1[],7,FALSE)) -> 0 | J93: 0 | K93: 0 | L93: 0 | M93: =IF(ISNA(VLOOKUP($D93&"_"&$E93,Tol[],6,FALSE)),$M$7,VLOOKUP($D93&"_"&$E93,Tol[],6,FALSE)) -> 50 | N93: =IF(ISNA(VLOOKUP($D93&"_"&$E93,Tol[],7,FALSE)),$N$7*100,VLOOKUP($D93&"_"&$E93,Tol[],7,FALSE)*100) -> 10 | O93: 1 | P93: 1 | W93: =IF(ISERROR(VLOOKUP($A93,#REF!,8,FALSE)),"",VLOOKUP($A93,#REF!,8,FALSE)) ->  | X93: =IF(ISERROR(VLOOKUP($A93,#REF!,9,FALSE)),"",VLOOKUP($A93,#REF!,9,FALSE)) ->  | Y93: =IF(ISERROR(VLOOKUP($A93,#REF!,10,FALSE)),0,VLOOKUP($A93,#REF!,10,FALSE)) -> 00:00:00
A94: 0_15_10 | B94: =IF(COUNTIF(Validations!$AB$8:$AB$56,A94)=1,1,"") ->  | D94: 15 | E94: 10 | G94: =IF(ISNA(VLOOKUP(D94,Rows[],4,FALSE)),"",VLOOKUP(D94,Rows[],4,FALSE)) -> D2 - Anheddau ag eithriad dosbarth O ( heb eu cynnwys yn adrannau A i C uchod ) ( gweler nodiadau 6 a 7 ) | H94: =IF(ISERROR(VLOOKUP($A94&"_"&H$10,qData1[],7,FALSE)),"",VLOOKUP($A94&"_"&H$10,qData1[],7,FALSE)) ->  | I94: =IF(ISERROR(VLOOKUP($A94&"_"&I$10,qData1[],7,FALSE)),0,VLOOKUP($A94&"_"&I$10,qData1[],7,FALSE)) -> 0 | J94: 0 | K94: 0 | L94: 0 | M94: =IF(ISNA(VLOOKUP($D94&"_"&$E94,Tol[],6,FALSE)),$M$7,VLOOKUP($D94&"_"&$E94,Tol[],6,FALSE)) -> 50 | N94: =IF(ISNA(VLOOKUP($D94&"_"&$E94,Tol[],7,FALSE)),$N$7*100,VLOOKUP($D94&"_"&$E94,Tol[],7,FALSE)*100) -> 10 | O94: 1 | P94: 1 | W94: =IF(ISERROR(VLOOKUP($A94,#REF!,8,FALSE)),"",VLOOKUP($A94,#REF!,8,FALSE)) ->  | X94: =IF(ISERROR(VLOOKUP($A94,#REF!,9,FALSE)),"",VLOOKUP($A94,#REF!,9,FALSE)) ->  | Y94: =IF(ISERROR(VLOOKUP($A94,#REF!,10,FALSE)),0,VLOOKUP($A94,#REF!,10,FALSE)) -> 00:00:00
A95: 0_15_11 | B95: =IF(COUNTIF(Validations!$AB$8:$AB$56,A95)=1,1,"") ->  | D95: 15 | E95: 11 | F95: T | G95: =IF(ISNA(VLOOKUP(D95,Rows[],4,FALSE)),"",VLOOKUP(D95,Rows[],4,FALSE)) -> D2 - Anheddau ag eithriad dosbarth O ( heb eu cynnwys yn adrannau A i C uchod ) ( gweler nodiadau 6 a 7 ) | H95: =IF(ISERROR(VLOOKUP($A95&"_"&H$10,qData1[],7,FALSE)),"",VLOOKUP($A95&"_"&H$10,qData1[],7,FALSE)) ->  | I95: =IF(ISERROR(VLOOKUP($A95&"_"&I$10,qData1[],7,FALSE)),0,VLOOKUP($A95&"_"&I$10,qData1[],7,FALSE)) -> 0 | J95: 0 | K95: 0 | L95: 0 | M95: =IF(ISNA(VLOOKUP($D95&"_"&$E95,Tol[],6,FALSE)),$M$7,VLOOKUP($D95&"_"&$E95,Tol[],6,FALSE)) -> 200 | N95: =IF(ISNA(VLOOKUP($D95&"_"&$E95,Tol[],7,FALSE)),$N$7*100,VLOOKUP($D95&"_"&$E95,Tol[],7,FALSE)*100) -> 10 | O95: 1 | P95: 1 | W95: =IF(ISERROR(VLOOKUP($A95,#REF!,8,FALSE)),"",VLOOKUP($A95,#REF!,8,FALSE)) ->  | X95: =IF(ISERROR(VLOOKUP($A95,#REF!,9,FALSE)),"",VLOOKUP($A95,#REF!,9,FALSE)) ->  | Y95: =IF(ISERROR(VLOOKUP($A95,#REF!,10,FALSE)),0,VLOOKUP($A95,#REF!,10,FALSE)) -> 00:00:00
A96: 0_22_11 | B96: =IF(COUNTIF(Validations!$AB$8:$AB$56,A96)=1,1,"") -> 1 | D96: 22 | E96: 11 | F96: T | G96: =IF(ISNA(VLOOKUP(D96,Rows[],4,FALSE)),"",VLOOKUP(D96,Rows[],4,FALSE)) -> E1 - Anheddau trethadwy: cyfwerthoedd band D ( = cyfanswm C4 ) | H96: =IF(ISERROR(VLOOKUP($A96&"_"&H$10,qData1[],7,FALSE)),"",VLOOKUP($A96&"_"&H$10,qData1[],7,FALSE)) ->  | I96: =IF(ISERROR(VLOOKUP($A96&"_"&I$10,qData1[],7,FALSE)),0,VLOOKUP($A96&"_"&I$10,qData1[],7,FALSE)) -> 0 | J96: 0 | K96: 0.00 | L96: 0.00 | M96: =IF(ISNA(VLOOKUP($D96&"_"&$E96,Tol[],6,FALSE)),$M$7,VLOOKUP($D96&"_"&$E96,Tol[],6,FALSE)) -> 0 | N96: =IF(ISNA(VLOOKUP($D96&"_"&$E96,Tol[],7,FALSE)),$N$7*100,VLOOKUP($D96&"_"&$E96,Tol[],7,FALSE)*100) -> 0.3 | O96: 1 | P96: 1 | W96: =IF(ISERROR(VLOOKUP($A96,#REF!,8,FALSE)),"",VLOOKUP($A96,#REF!,8,FALSE)) ->  | X96: =IF(ISERROR(VLOOKUP($A96,#REF!,9,FALSE)),"",VLOOKUP($A96,#REF!,9,FALSE)) ->  | Y96: =IF(ISERROR(VLOOKUP($A96,#REF!,10,FALSE)),0,VLOOKUP($A96,#REF!,10,FALSE)) -> 00:00:00
A97: 0_23_11 | B97: =IF(COUNTIF(Validations!$AB$8:$AB$56,A97)=1,1,"") -> 1 | D97: 23 | E97: 11 | F97: T | G97: =IF(ISNA(VLOOKUP(D97,Rows[],4,FALSE)),"",VLOOKUP(D97,Rows[],4,FALSE)) -> E2 - Cyfradd gasglu ( wedi'i thalgrynnu i ddau le degol ) | H97: =IF(ISERROR(VLOOKUP($A97&"_"&H$10,qData1[],7,FALSE)),"",VLOOKUP($A97&"_"&H$10,qData1[],7,FALSE)) ->  | I97: =IF(ISERROR(VLOOKUP($A97&"_"&I$10,qData1[],7,FALSE)),0,VLOOKUP($A97&"_"&I$10,qData1[],7,FALSE)) -> 0 | J97: 0 | K97: 0.00 | L97: 0.00 | M97: =IF(ISNA(VLOOKUP($D97&"_"&$E97,Tol[],6,FALSE)),$M$7,VLOOKUP($D97&"_"&$E97,Tol[],6,FALSE)) -> 0 | N97: =IF(ISNA(VLOOKUP($D97&"_"&$E97,Tol[],7,FALSE)),$N$7*100,VLOOKUP($D97&"_"&$E97,Tol[],7,FALSE)*100) -> 1.6 | O97: 1 | P97: 1 | W97: =IF(ISERROR(VLOOKUP($A97,#REF!,8,FALSE)),"",VLOOKUP($A97,#REF!,8,FALSE)) ->  | X97: =IF(ISERROR(VLOOKUP($A97,#REF!,9,FALSE)),"",VLOOKUP($A97,#REF!,9,FALSE)) ->  | Y97: =IF(ISERROR(VLOOKUP($A97,#REF!,10,FALSE)),0,VLOOKUP($A97,#REF!,10,FALSE)) -> 00:00:00
A98: 0_24_11 | B98: =IF(COUNTIF(Validations!$AB$8:$AB$56,A98)=1,1,"") ->  | D98: 24 | E98: 11 | F98: T | G98: =IF(ISNA(VLOOKUP(D98,Rows[],4,FALSE)),"",VLOOKUP(D98,Rows[],4,FALSE)) -> E3 - = E1 x E2 ( wedi'i dalgrynnu i ddau le degol ) | H98: =IF(ISERROR(VLOOKUP($A98&"_"&H$10,qData1[],7,FALSE)),"",VLOOKUP($A98&"_"&H$10,qData1[],7,FALSE)) ->  | I98: =IF(ISERROR(VLOOKUP($A98&"_"&I$10,qData1[],7,FALSE)),0,VLOOKUP($A98&"_"&I$10,qData1[],7,FALSE)) -> 0 | J98: 0 | K98: 0.00 | L98: 0.00 | M98: =IF(ISNA(VLOOKUP($D98&"_"&$E98,Tol[],6,FALSE)),$M$7,VLOOKUP($D98&"_"&$E98,Tol[],6,FALSE)) -> 100 | N98: =IF(ISNA(VLOOKUP($D98&"_"&$E98,Tol[],7,FALSE)),$N$7*100,VLOOKUP($D98&"_"&$E98,Tol[],7,FALSE)*100) -> 10 | O98: 1 | P98: 1 | W98: =IF(ISERROR(VLOOKUP($A98,#REF!,8,FALSE)),"",VLOOKUP($A98,#REF!,8,FALSE)) ->  | X98: =IF(ISERROR(VLOOKUP($A98,#REF!,9,FALSE)),"",VLOOKUP($A98,#REF!,9,FALSE)) ->  | Y98: =IF(ISERROR(VLOOKUP($A98,#REF!,10,FALSE)),0,VLOOKUP($A98,#REF!,10,FALSE)) -> 00:00:00
A99: 0_25_11 | B99: =IF(COUNTIF(Validations!$AB$8:$AB$56,A99)=1,1,"") -> 1 | D99: 25 | E99: 11 | F99: T | G99: =IF(ISNA(VLOOKUP(D99,Rows[],4,FALSE)),"",VLOOKUP(D99,Rows[],4,FALSE)) -> E4 - Anheddau Dosbarth O wedi'u heithrio: cyfwerthoedd band D | H99: =IF(ISERROR(VLOOKUP($A99&"_"&H$10,qData1[],7,FALSE)),"",VLOOKUP($A99&"_"&H$10,qData1[],7,FALSE)) ->  | I99: =IF(ISERROR(VLOOKUP($A99&"_"&I$10,qData1[],7,FALSE)),0,VLOOKUP($A99&"_"&I$10,qData1[],7,FALSE)) -> 0 | J99: 0 | K99: 0.00 | L99: 0.00 | M99: =IF(ISNA(VLOOKUP($D99&"_"&$E99,Tol[],6,FALSE)),$M$7,VLOOKUP($D99&"_"&$E99,Tol[],6,FALSE)) -> 50 | N99: =IF(ISNA(VLOOKUP($D99&"_"&$E99,Tol[],7,FALSE)),$N$7*100,VLOOKUP($D99&"_"&$E99,Tol[],7,FALSE)*100) -> 10 | O99: 1 | P99: 1 | W99: =IF(ISERROR(VLOOKUP($A99,#REF!,8,FALSE)),"",VLOOKUP($A99,#REF!,8,FALSE)) ->  | X99: =IF(ISERROR(VLOOKUP($A99,#REF!,9,FALSE)),"",VLOOKUP($A99,#REF!,9,FALSE)) ->  | Y99: =IF(ISERROR(VLOOKUP($A99,#REF!,10,FALSE)),0,VLOOKUP($A99,#REF!,10,FALSE)) -> 00:00:00
A100: 0_26_11 | B100: =IF(COUNTIF(Validations!$AB$8:$AB$56,A100)=1,1,"") ->  | D100: 26 | E100: 11 | F100: T | G100: =IF(ISNA(VLOOKUP(D100,Rows[],4,FALSE)),"",VLOOKUP(D100,Rows[],4,FALSE)) -> E5 - Y sylfaen dreth gyngor at ddiben pennu'r dreth ( = E3 + E4 ) | H100: =IF(ISERROR(VLOOKUP($A100&"_"&H$10,qData1[],7,FALSE)),"",VLOOKUP($A100&"_"&H$10,qData1[],7,FALSE)) ->  | I100: =IF(ISERROR(VLOOKUP($A100&"_"&I$10,qData1[],7,FALSE)),0,VLOOKUP($A100&"_"&I$10,qData1[],7,FALSE)) -> 0 | J100: 0 | K100: 0.00 | L100: 0.00 | M100: =IF(ISNA(VLOOKUP($D100&"_"&$E100,Tol[],6,FALSE)),$M$7,VLOOKUP($D100&"_"&$E100,Tol[],6,FALSE)) -> 100 | N100: =IF(ISNA(VLOOKUP($D100&"_"&$E100,Tol[],7,FALSE)),$N$7*100,VLOOKUP($D100&"_"&$E100,Tol[],7,FALSE)*100) -> 10 | O100: 1 | P100: 1 | W100: =IF(ISERROR(VLOOKUP($A100,#REF!,8,FALSE)),"",VLOOKUP($A100,#REF!,8,FALSE)) ->  | X100: =IF(ISERROR(VLOOKUP($A100,#REF!,9,FALSE)),"",VLOOKUP($A100,#REF!,9,FALSE)) ->  | Y100: =IF(ISERROR(VLOOKUP($A100,#REF!,10,FALSE)),0,VLOOKUP($A100,#REF!,10,FALSE)) -> 00:00:00
A101: 0_26.2_11 | B101: =IF(COUNTIF(Validations!$AB$8:$AB$56,A101)=1,1,"") ->  | D101: 26.2 | E101: 11 | F101: T | G101: =IF(ISNA(VLOOKUP(D101,Rows[],4,FALSE)),"",VLOOKUP(D101,Rows[],4,FALSE)) -> E5b - Anheddau trethadwy gostyngedig ac eithrio addasiad tymor hir gwag ac ail gartref | H101: =IF(ISERROR(VLOOKUP($A101&"_"&H$10,qData1[],7,FALSE)),"",VLOOKUP($A101&"_"&H$10,qData1[],7,FALSE)) ->  | I101: =IF(ISERROR(VLOOKUP($A101&"_"&I$10,qData1[],7,FALSE)),0,VLOOKUP($A101&"_"&I$10,qData1[],7,FALSE)) -> 0 | J101: 0 | K101: 0.00 | L101: 0.00 | M101: =IF(ISNA(VLOOKUP($D101&"_"&$E101,Tol[],6,FALSE)),$M$7,VLOOKUP($D101&"_"&$E101,Tol[],6,FALSE)) -> 100 | N101: =IF(ISNA(VLOOKUP($D101&"_"&$E101,Tol[],7,FALSE)),$N$7*100,VLOOKUP($D101&"_"&$E101,Tol[],7,FALSE)*100) -> 10 | O101: 1 | P101: 1 | W101: =IF(ISERROR(VLOOKUP($A101,#REF!,8,FALSE)),"",VLOOKUP($A101,#REF!,8,FALSE)) ->  | X101: =IF(ISERROR(VLOOKUP($A101,#REF!,9,FALSE)),"",VLOOKUP($A101,#REF!,9,FALSE)) ->  | Y101: =IF(ISERROR(VLOOKUP($A101,#REF!,10,FALSE)),0,VLOOKUP($A101,#REF!,10,FALSE)) -> 00:00:00
A102: 0_27_11 | B102: =IF(COUNTIF(Validations!$AB$8:$AB$56,A102)=1,1,"") -> 1 | D102: 27 | E102: 11 | F102: T | G102: =IF(ISNA(VLOOKUP(D102,Rows[],4,FALSE)),"",VLOOKUP(D102,Rows[],4,FALSE)) -> E6 - 100% o'r sylfaen dreth gyngor ar gyfer cyfrifo'r grant cynnal refeniw ( =E5a+E4) | H102: =IF(ISERROR(VLOOKUP($A102&"_"&H$10,qData1[],7,FALSE)),"",VLOOKUP($A102&"_"&H$10,qData1[],7,FALSE)) ->  | I102: =IF(ISERROR(VLOOKUP($A102&"_"&I$10,qData1[],7,FALSE)),0,VLOOKUP($A102&"_"&I$10,qData1[],7,FALSE)) -> 0 | J102: 0 | K102: 0.00 | L102: 0.00 | M102: =IF(ISNA(VLOOKUP($D102&"_"&$E102,Tol[],6,FALSE)),$M$7,VLOOKUP($D102&"_"&$E102,Tol[],6,FALSE)) -> 50 | N102: =IF(ISNA(VLOOKUP($D102&"_"&$E102,Tol[],7,FALSE)),$N$7*100,VLOOKUP($D102&"_"&$E102,Tol[],7,FALSE)*100) -> 2 | O102: 1 | P102: 1 | W102: =IF(ISERROR(VLOOKUP($A102,#REF!,8,FALSE)),"",VLOOKUP($A102,#REF!,8,FALSE)) ->  | X102: =IF(ISERROR(VLOOKUP($A102,#REF!,9,FALSE)),"",VLOOKUP($A102,#REF!,9,FALSE)) ->  | Y102: =IF(ISERROR(VLOOKUP($A102,#REF!,10,FALSE)),0,VLOOKUP($A102,#REF!,10,FALSE)) -> 00:00:00
A103: 0_28_11 | B103: =IF(COUNTIF(Validations!$AB$8:$AB$56,A103)=1,1,"") -> 1 | D103: 28 | E103: 11 | F103: T | G103: =IF(ISNA(VLOOKUP(D103,Rows[],4,FALSE)),"",VLOOKUP(D103,Rows[],4,FALSE)) -> Rhan F: Anheddau wedi'u heithrio yn ôl dosbarth - Dosbarth A | H103: =IF(ISERROR(VLOOKUP($A103&"_"&H$10,qData1[],7,FALSE)),"",VLOOKUP($A103&"_"&H$10,qData1[],7,FALSE)) ->  | I103: =IF(ISERROR(VLOOKUP($A103&"_"&I$10,qData1[],7,FALSE)),0,VLOOKUP($A103&"_"&I$10,qData1[],7,FALSE)) -> 0 | J103: 0 | K103: 0 | L103: 0 | M103: =IF(ISNA(VLOOKUP($D103&"_"&$E103,Tol[],6,FALSE)),$M$7,VLOOKUP($D103&"_"&$E103,Tol[],6,FALSE)) -> 50 | N103: =IF(ISNA(VLOOKUP($D103&"_"&$E103,Tol[],7,FALSE)),$N$7*100,VLOOKUP($D103&"_"&$E103,Tol[],7,FALSE)*100) -> 10 | O103: 1 | P103: 1 | W103: =IF(ISERROR(VLOOKUP($A103,#REF!,8,FALSE)),"",VLOOKUP($A103,#REF!,8,FALSE)) ->  | X103: =IF(ISERROR(VLOOKUP($A103,#REF!,9,FALSE)),"",VLOOKUP($A103,#REF!,9,FALSE)) ->  | Y103: =IF(ISERROR(VLOOKUP($A103,#REF!,10,FALSE)),0,VLOOKUP($A103,#REF!,10,FALSE)) -> 00:00:00
A104: 0_29_11 | B104: =IF(COUNTIF(Validations!$AB$8:$AB$56,A104)=1,1,"") -> 1 | D104: 29 | E104: 11 | F104: T | G104: =IF(ISNA(VLOOKUP(D104,Rows[],4,FALSE)),"",VLOOKUP(D104,Rows[],4,FALSE)) -> Rhan F: Anheddau wedi'u heithrio yn ôl dosbarth - Dosbarth B | H104: =IF(ISERROR(VLOOKUP($A104&"_"&H$10,qData1[],7,FALSE)),"",VLOOKUP($A104&"_"&H$10,qData1[],7,FALSE)) ->  | I104: =IF(ISERROR(VLOOKUP($A104&"_"&I$10,qData1[],7,FALSE)),0,VLOOKUP($A104&"_"&I$10,qData1[],7,FALSE)) -> 0 | J104: 0 | K104: 0 | L104: 0 | M104: =IF(ISNA(VLOOKUP($D104&"_"&$E104,Tol[],6,FALSE)),$M$7,VLOOKUP($D104&"_"&$E104,Tol[],6,FALSE)) -> 50 | N104: =IF(ISNA(VLOOKUP($D104&"_"&$E104,Tol[],7,FALSE)),$N$7*100,VLOOKUP($D104&"_"&$E104,Tol[],7,FALSE)*100) -> 10 | O104: 1 | P104: 1 | S104: 1 | T104: 1 | W104: =IF(ISERROR(VLOOKUP($A104,#REF!,8,FALSE)),"",VLOOKUP($A104,#REF!,8,FALSE)) ->  | X104: =IF(ISERROR(VLOOKUP($A104,#REF!,9,FALSE)),"",VLOOKUP($A104,#REF!,9,FALSE)) ->  | Y104: =IF(ISERROR(VLOOKUP($A104,#REF!,10,FALSE)),0,VLOOKUP($A104,#REF!,10,FALSE)) -> 00:00:00
A105: 0_30_11 | B105: =IF(COUNTIF(Validations!$AB$8:$AB$56,A105)=1,1,"") -> 1 | D105: 30 | E105: 11 | F105: T | G105: =IF(ISNA(VLOOKUP(D105,Rows[],4,FALSE)),"",VLOOKUP(D105,Rows[],4,FALSE)) -> Rhan F: Anheddau wedi'u heithrio yn ôl dosbarth - Dosbarth C | H105: =IF(ISERROR(VLOOKUP($A105&"_"&H$10,qData1[],7,FALSE)),"",VLOOKUP($A105&"_"&H$10,qData1[],7,FALSE)) ->  | I105: =IF(ISERROR(VLOOKUP($A105&"_"&I$10,qData1[],7,FALSE)),0,VLOOKUP($A105&"_"&I$10,qData1[],7,FALSE)) -> 0 | J105: 0 | K105: 0 | L105: 0 | M105: =IF(ISNA(VLOOKUP($D105&"_"&$E105,Tol[],6,FALSE)),$M$7,VLOOKUP($D105&"_"&$E105,Tol[],6,FALSE)) -> 50 | N105: =IF(ISNA(VLOOKUP($D105&"_"&$E105,Tol[],7,FALSE)),$N$7*100,VLOOKUP($D105&"_"&$E105,Tol[],7,FALSE)*100) -> 10 | O105: 1 | P105: 1 | W105: =IF(ISERROR(VLOOKUP($A105,#REF!,8,FALSE)),"",VLOOKUP($A105,#REF!,8,FALSE)) ->  | X105: =IF(ISERROR(VLOOKUP($A105,#REF!,9,FALSE)),"",VLOOKUP($A105,#REF!,9,FALSE)) ->  | Y105: =IF(ISERROR(VLOOKUP($A105,#REF!,10,FALSE)),0,VLOOKUP($A105,#REF!,10,FALSE)) -> 00:00:00
A106: 0_31_11 | B106: =IF(COUNTIF(Validations!$AB$8:$AB$56,A106)=1,1,"") -> 1 | D106: 31 | E106: 11 | F106: T | G106: =IF(ISNA(VLOOKUP(D106,Rows[],4,FALSE)),"",VLOOKUP(D106,Rows[],4,FALSE)) -> Rhan F: Anheddau wedi'u heithrio yn ôl dosbarth - Dosbarth D | H106: =IF(ISERROR(VLOOKUP($A106&"_"&H$10,qData1[],7,FALSE)),"",VLOOKUP($A106&"_"&H$10,qData1[],7,FALSE)) ->  | I106: =IF(ISERROR(VLOOKUP($A106&"_"&I$10,qData1[],7,FALSE)),0,VLOOKUP($A106&"_"&I$10,qData1[],7,FALSE)) -> 0 | J106: 0 | K106: 0 | L106: 0 | M106: =IF(ISNA(VLOOKUP($D106&"_"&$E106,Tol[],6,FALSE)),$M$7,VLOOKUP($D106&"_"&$E106,Tol[],6,FALSE)) -> 50 | N106: =IF(ISNA(VLOOKUP($D106&"_"&$E106,Tol[],7,FALSE)),$N$7*100,VLOOKUP($D106&"_"&$E106,Tol[],7,FALSE)*100) -> 10 | O106: 1 | P106: 1 | W106: =IF(ISERROR(VLOOKUP($A106,#REF!,8,FALSE)),"",VLOOKUP($A106,#REF!,8,FALSE)) ->  | X106: =IF(ISERROR(VLOOKUP($A106,#REF!,9,FALSE)),"",VLOOKUP($A106,#REF!,9,FALSE)) ->  | Y106: =IF(ISERROR(VLOOKUP($A106,#REF!,10,FALSE)),0,VLOOKUP($A106,#REF!,10,FALSE)) -> 00:00:00
A107: 0_32_11 | B107: =IF(COUNTIF(Validations!$AB$8:$AB$56,A107)=1,1,"") -> 1 | D107: 32 | E107: 11 | F107: T | G107: =IF(ISNA(VLOOKUP(D107,Rows[],4,FALSE)),"",VLOOKUP(D107,Rows[],4,FALSE)) -> Rhan F: Anheddau wedi'u heithrio yn ôl dosbarth - Dosbarth E | H107: =IF(ISERROR(VLOOKUP($A107&"_"&H$10,qData1[],7,FALSE)),"",VLOOKUP($A107&"_"&H$10,qData1[],7,FALSE)) ->  | I107: =IF(ISERROR(VLOOKUP($A107&"_"&I$10,qData1[],7,FALSE)),0,VLOOKUP($A107&"_"&I$10,qData1[],7,FALSE)) -> 0 | J107: 0 | K107: 0 | L107: 0 | M107: =IF(ISNA(VLOOKUP($D107&"_"&$E107,Tol[],6,FALSE)),$M$7,VLOOKUP($D107&"_"&$E107,Tol[],6,FALSE)) -> 50 | N107: =IF(ISNA(VLOOKUP($D107&"_"&$E107,Tol[],7,FALSE)),$N$7*100,VLOOKUP($D107&"_"&$E107,Tol[],7,FALSE)*100) -> 10 | O107: 1 | P107: 1 | W107: =IF(ISERROR(VLOOKUP($A107,#REF!,8,FALSE)),"",VLOOKUP($A107,#REF!,8,FALSE)) ->  | X107: =IF(ISERROR(VLOOKUP($A107,#REF!,9,FALSE)),"",VLOOKUP($A107,#REF!,9,FALSE)) ->  | Y107: =IF(ISERROR(VLOOKUP($A107,#REF!,10,FALSE)),0,VLOOKUP($A107,#REF!,10,FALSE)) -> 00:00:00
A108: =uanumber&"_"&D108&"_"&E108 -> 0_33_11 | B108: =IF(COUNTIF(Validations!$AB$8:$AB$56,A108)=1,1,"") -> 1 | D108: 33 | E108: 11 | F108: T | G108: =IF(ISNA(VLOOKUP(D108,Rows[],4,FALSE)),"",VLOOKUP(D108,Rows[],4,FALSE)) -> Rhan F: Anheddau wedi'u heithrio yn ôl dosbarth - Dosbarth F | H108: =IF(ISERROR(VLOOKUP($A108&"_"&H$10,qData1[],7,FALSE)),"",VLOOKUP($A108&"_"&H$10,qData1[],7,FALSE)) ->  | I108: =IF(ISERROR(VLOOKUP($A108&"_"&I$10,qData1[],7,FALSE)),0,VLOOKUP($A108&"_"&I$10,qData1[],7,FALSE)) -> 0 | J108: =IF(ISERROR(VLOOKUP(D108&"_"&E108,Figs,8,FALSE)),0,VLOOKUP(D108&"_"&E108,Figs,8,FALSE)) -> 0 | K108: 0 | L108: 0 | M108: =IF(ISNA(VLOOKUP($D108&"_"&$E108,Tol[],6,FALSE)),$M$7,VLOOKUP($D108&"_"&$E108,Tol[],6,FALSE)) -> 50 | N108: =IF(ISNA(VLOOKUP($D108&"_"&$E108,Tol[],7,FALSE)),$N$7*100,VLOOKUP($D108&"_"&$E108,Tol[],7,FALSE)*100) -> 10 | O108: 1 | P108: 1 | W108: =IF(ISERROR(VLOOKUP($A108,#REF!,8,FALSE)),"",VLOOKUP($A108,#REF!,8,FALSE)) ->  | X108: =IF(ISERROR(VLOOKUP($A108,#REF!,9,FALSE)),"",VLOOKUP($A108,#REF!,9,FALSE)) ->  | Y108: =IF(ISERROR(VLOOKUP($A108,#REF!,10,FALSE)),0,VLOOKUP($A108,#REF!,10,FALSE)) -> 00:00:00
A109: 0_34_11 | B109: =IF(COUNTIF(Validations!$AB$8:$AB$56,A109)=1,1,"") -> 1 | D109: 34 | E109: 11 | F109: T | G109: =IF(ISNA(VLOOKUP(D109,Rows[],4,FALSE)),"",VLOOKUP(D109,Rows[],4,FALSE)) -> Rhan F: Anheddau wedi'u heithrio yn ôl dosbarth - Dosbarth G | H109: =IF(ISERROR(VLOOKUP($A109&"_"&H$10,qData1[],7,FALSE)),"",VLOOKUP($A109&"_"&H$10,qData1[],7,FALSE)) ->  | I109: =IF(ISERROR(VLOOKUP($A109&"_"&I$10,qData1[],7,FALSE)),0,VLOOKUP($A109&"_"&I$10,qData1[],7,FALSE)) -> 0 | J109: 0 | K109: 0 | L109: 0 | M109: =IF(ISNA(VLOOKUP($D109&"_"&$E109,Tol[],6,FALSE)),$M$7,VLOOKUP($D109&"_"&$E109,Tol[],6,FALSE)) -> 50 | N109: =IF(ISNA(VLOOKUP($D109&"_"&$E109,Tol[],7,FALSE)),$N$7*100,VLOOKUP($D109&"_"&$E109,Tol[],7,FALSE)*100) -> 10 | O109: 1 | P109: 1 | W109: =IF(ISERROR(VLOOKUP($A109,#REF!,8,FALSE)),"",VLOOKUP($A109,#REF!,8,FALSE)) ->  | X109: =IF(ISERROR(VLOOKUP($A109,#REF!,9,FALSE)),"",VLOOKUP($A109,#REF!,9,FALSE)) ->  | Y109: =IF(ISERROR(VLOOKUP($A109,#REF!,10,FALSE)),0,VLOOKUP($A109,#REF!,10,FALSE)) -> 00:00:00
A110: 0_35_11 | B110: =IF(COUNTIF(Validations!$AB$8:$AB$56,A110)=1,1,"") -> 1 | D110: 35 | E110: 11 | F110: T | G110: =IF(ISNA(VLOOKUP(D110,Rows[],4,FALSE)),"",VLOOKUP(D110,Rows[],4,FALSE)) -> Rhan F: Anheddau wedi'u heithrio yn ôl dosbarth - Dosbarth H | H110: =IF(ISERROR(VLOOKUP($A110&"_"&H$10,qData1[],7,FALSE)),"",VLOOKUP($A110&"_"&H$10,qData1[],7,FALSE)) ->  | I110: =IF(ISERROR(VLOOKUP($A110&"_"&I$10,qData1[],7,FALSE)),0,VLOOKUP($A110&"_"&I$10,qData1[],7,FALSE)) -> 0 | J110: 0 | K110: 0 | L110: 0 | M110: =IF(ISNA(VLOOKUP($D110&"_"&$E110,Tol[],6,FALSE)),$M$7,VLOOKUP($D110&"_"&$E110,Tol[],6,FALSE)) -> 50 | N110: =IF(ISNA(VLOOKUP($D110&"_"&$E110,Tol[],7,FALSE)),$N$7*100,VLOOKUP($D110&"_"&$E110,Tol[],7,FALSE)*100) -> 10 | O110: 1 | P110: 1 | W110: =IF(ISERROR(VLOOKUP($A110,#REF!,8,FALSE)),"",VLOOKUP($A110,#REF!,8,FALSE)) ->  | X110: =IF(ISERROR(VLOOKUP($A110,#REF!,9,FALSE)),"",VLOOKUP($A110,#REF!,9,FALSE)) ->  | Y110: =IF(ISERROR(VLOOKUP($A110,#REF!,10,FALSE)),0,VLOOKUP($A110,#REF!,10,FALSE)) -> 00:00:00
A111: 0_36_11 | B111: =IF(COUNTIF(Validations!$AB$8:$AB$56,A111)=1,1,"") -> 1 | D111: 36 | E111: 11 | F111: T | G111: =IF(ISNA(VLOOKUP(D111,Rows[],4,FALSE)),"",VLOOKUP(D111,Rows[],4,FALSE)) -> Rhan F: Anheddau wedi'u heithrio yn ôl dosbarth - Dosbarth I | H111: =IF(ISERROR(VLOOKUP($A111&"_"&H$10,qData1[],7,FALSE)),"",VLOOKUP($A111&"_"&H$10,qData1[],7,FALSE)) ->  | I111: =IF(ISERROR(VLOOKUP($A111&"_"&I$10,qData1[],7,FALSE)),0,VLOOKUP($A111&"_"&I$10,qData1[],7,FALSE)) -> 0 | J111: 0 | K111: 0 | L111: 0 | M111: =IF(ISNA(VLOOKUP($D111&"_"&$E111,Tol[],6,FALSE)),$M$7,VLOOKUP($D111&"_"&$E111,Tol[],6,FALSE)) -> 50 | N111: =IF(ISNA(VLOOKUP($D111&"_"&$E111,Tol[],7,FALSE)),$N$7*100,VLOOKUP($D111&"_"&$E111,Tol[],7,FALSE)*100) -> 10 | O111: 1 | P111: 1 | W111: =IF(ISERROR(VLOOKUP($A111,#REF!,8,FALSE)),"",VLOOKUP($A111,#REF!,8,FALSE)) ->  | X111: =IF(ISERROR(VLOOKUP($A111,#REF!,9,FALSE)),"",VLOOKUP($A111,#REF!,9,FALSE)) ->  | Y111: =IF(ISERROR(VLOOKUP($A111,#REF!,10,FALSE)),0,VLOOKUP($A111,#REF!,10,FALSE)) -> 00:00:00
A112: 0_37_11 | B112: =IF(COUNTIF(Validations!$AB$8:$AB$56,A112)=1,1,"") -> 1 | D112: 37 | E112: 11 | F112: T | G112: =IF(ISNA(VLOOKUP(D112,Rows[],4,FALSE)),"",VLOOKUP(D112,Rows[],4,FALSE)) -> Rhan F: Anheddau wedi'u heithrio yn ôl dosbarth - Dosbarth J | H112: =IF(ISERROR(VLOOKUP($A112&"_"&H$10,qData1[],7,FALSE)),"",VLOOKUP($A112&"_"&H$10,qData1[],7,FALSE)) ->  | I112: =IF(ISERROR(VLOOKUP($A112&"_"&I$10,qData1[],7,FALSE)),0,VLOOKUP($A112&"_"&I$10,qData1[],7,FALSE)) -> 0 | J112: 0 | K112: 0 | L112: 0 | M112: =IF(ISNA(VLOOKUP($D112&"_"&$E112,Tol[],6,FALSE)),$M$7,VLOOKUP($D112&"_"&$E112,Tol[],6,FALSE)) -> 50 | N112: =IF(ISNA(VLOOKUP($D112&"_"&$E112,Tol[],7,FALSE)),$N$7*100,VLOOKUP($D112&"_"&$E112,Tol[],7,FALSE)*100) -> 10 | O112: 1 | P112: 1 | W112: =IF(ISERROR(VLOOKUP($A112,#REF!,8,FALSE)),"",VLOOKUP($A112,#REF!,8,FALSE)) ->  | X112: =IF(ISERROR(VLOOKUP($A112,#REF!,9,FALSE)),"",VLOOKUP($A112,#REF!,9,FALSE)) ->  | Y112: =IF(ISERROR(VLOOKUP($A112,#REF!,10,FALSE)),0,VLOOKUP($A112,#REF!,10,FALSE)) -> 00:00:00
A113: 0_38_11 | B113: =IF(COUNTIF(Validations!$AB$8:$AB$56,A113)=1,1,"") -> 1 | D113: 38 | E113: 11 | F113: T | G113: =IF(ISNA(VLOOKUP(D113,Rows[],4,FALSE)),"",VLOOKUP(D113,Rows[],4,FALSE)) -> Rhan F: Anheddau wedi'u heithrio yn ôl dosbarth - Dosbarth K | H113: =IF(ISERROR(VLOOKUP($A113&"_"&H$10,qData1[],7,FALSE)),"",VLOOKUP($A113&"_"&H$10,qData1[],7,FALSE)) ->  | I113: =IF(ISERROR(VLOOKUP($A113&"_"&I$10,qData1[],7,FALSE)),0,VLOOKUP($A113&"_"&I$10,qData1[],7,FALSE)) -> 0 | J113: 0 | K113: 0 | L113: 0 | M113: =IF(ISNA(VLOOKUP($D113&"_"&$E113,Tol[],6,FALSE)),$M$7,VLOOKUP($D113&"_"&$E113,Tol[],6,FALSE)) -> 50 | N113: =IF(ISNA(VLOOKUP($D113&"_"&$E113,Tol[],7,FALSE)),$N$7*100,VLOOKUP($D113&"_"&$E113,Tol[],7,FALSE)*100) -> 10 | O113: 1 | P113: 1 | W113: =IF(ISERROR(VLOOKUP($A113,#REF!,8,FALSE)),"",VLOOKUP($A113,#REF!,8,FALSE)) ->  | X113: =IF(ISERROR(VLOOKUP($A113,#REF!,9,FALSE)),"",VLOOKUP($A113,#REF!,9,FALSE)) ->  | Y113: =IF(ISERROR(VLOOKUP($A113,#REF!,10,FALSE)),0,VLOOKUP($A113,#REF!,10,FALSE)) -> 00:00:00
A114: 0_39_11 | B114: =IF(COUNTIF(Validations!$AB$8:$AB$56,A114)=1,1,"") -> 1 | D114: 39 | E114: 11 | F114: T | G114: =IF(ISNA(VLOOKUP(D114,Rows[],4,FALSE)),"",VLOOKUP(D114,Rows[],4,FALSE)) -> Rhan F: Anheddau wedi'u heithrio yn ôl dosbarth - Dosbarth L | H114: =IF(ISERROR(VLOOKUP($A114&"_"&H$10,qData1[],7,FALSE)),"",VLOOKUP($A114&"_"&H$10,qData1[],7,FALSE)) ->  | I114: =IF(ISERROR(VLOOKUP($A114&"_"&I$10,qData1[],7,FALSE)),0,VLOOKUP($A114&"_"&I$10,qData1[],7,FALSE)) -> 0 | J114: 0 | K114: 0 | L114: 0 | M114: =IF(ISNA(VLOOKUP($D114&"_"&$E114,Tol[],6,FALSE)),$M$7,VLOOKUP($D114&"_"&$E114,Tol[],6,FALSE)) -> 50 | N114: =IF(ISNA(VLOOKUP($D114&"_"&$E114,Tol[],7,FALSE)),$N$7*100,VLOOKUP($D114&"_"&$E114,Tol[],7,FALSE)*100) -> 10 | O114: 1 | P114: 1 | W114: =IF(ISERROR(VLOOKUP($A114,#REF!,8,FALSE)),"",VLOOKUP($A114,#REF!,8,FALSE)) ->  | X114: =IF(ISERROR(VLOOKUP($A114,#REF!,9,FALSE)),"",VLOOKUP($A114,#REF!,9,FALSE)) ->  | Y114: =IF(ISERROR(VLOOKUP($A114,#REF!,10,FALSE)),0,VLOOKUP($A114,#REF!,10,FALSE)) -> 00:00:00
A115: 0_40_11 | B115: =IF(COUNTIF(Validations!$AB$8:$AB$56,A115)=1,1,"") -> 1 | D115: 40 | E115: 11 | F115: T | G115: =IF(ISNA(VLOOKUP(D115,Rows[],4,FALSE)),"",VLOOKUP(D115,Rows[],4,FALSE)) -> Rhan F: Anheddau wedi'u heithrio yn ôl dosbarth - Dosbarth M | H115: =IF(ISERROR(VLOOKUP($A115&"_"&H$10,qData1[],7,FALSE)),"",VLOOKUP($A115&"_"&H$10,qData1[],7,FALSE)) ->  | I115: =IF(ISERROR(VLOOKUP($A115&"_"&I$10,qData1[],7,FALSE)),0,VLOOKUP($A115&"_"&I$10,qData1[],7,FALSE)) -> 0 | J115: 0 | K115: 0 | L115: 0 | M115: =IF(ISNA(VLOOKUP($D115&"_"&$E115,Tol[],6,FALSE)),$M$7,VLOOKUP($D115&"_"&$E115,Tol[],6,FALSE)) -> 50 | N115: =IF(ISNA(VLOOKUP($D115&"_"&$E115,Tol[],7,FALSE)),$N$7*100,VLOOKUP($D115&"_"&$E115,Tol[],7,FALSE)*100) -> 10 | O115: 1 | P115: 1 | W115: =IF(ISERROR(VLOOKUP($A115,#REF!,8,FALSE)),"",VLOOKUP($A115,#REF!,8,FALSE)) ->  | X115: =IF(ISERROR(VLOOKUP($A115,#REF!,9,FALSE)),"",VLOOKUP($A115,#REF!,9,FALSE)) ->  | Y115: =IF(ISERROR(VLOOKUP($A115,#REF!,10,FALSE)),0,VLOOKUP($A115,#REF!,10,FALSE)) -> 00:00:00
A116: 0_41_11 | B116: =IF(COUNTIF(Validations!$AB$8:$AB$56,A116)=1,1,"") -> 1 | D116: 41 | E116: 11 | F116: T | G116: =IF(ISNA(VLOOKUP(D116,Rows[],4,FALSE)),"",VLOOKUP(D116,Rows[],4,FALSE)) -> Rhan F: Anheddau wedi'u heithrio yn ôl dosbarth - Dosbarth N | H116: =IF(ISERROR(VLOOKUP($A116&"_"&H$10,qData1[],7,FALSE)),"",VLOOKUP($A116&"_"&H$10,qData1[],7,FALSE)) ->  | I116: =IF(ISERROR(VLOOKUP($A116&"_"&I$10,qData1[],7,FALSE)),0,VLOOKUP($A116&"_"&I$10,qData1[],7,FALSE)) -> 0 | J116: 0 | K116: 0 | L116: 0 | M116: =IF(ISNA(VLOOKUP($D116&"_"&$E116,Tol[],6,FALSE)),$M$7,VLOOKUP($D116&"_"&$E116,Tol[],6,FALSE)) -> 50 | N116: =IF(ISNA(VLOOKUP($D116&"_"&$E116,Tol[],7,FALSE)),$N$7*100,VLOOKUP($D116&"_"&$E116,Tol[],7,FALSE)*100) -> 10 | O116: 1 | P116: 1 | W116: =IF(ISERROR(VLOOKUP($A116,#REF!,8,FALSE)),"",VLOOKUP($A116,#REF!,8,FALSE)) ->  | X116: =IF(ISERROR(VLOOKUP($A116,#REF!,9,FALSE)),"",VLOOKUP($A116,#REF!,9,FALSE)) ->  | Y116: =IF(ISERROR(VLOOKUP($A116,#REF!,10,FALSE)),0,VLOOKUP($A116,#REF!,10,FALSE)) -> 00:00:00
A117: 0_42_11 | B117: =IF(COUNTIF(Validations!$AB$8:$AB$56,A117)=1,1,"") -> 1 | D117: 42 | E117: 11 | F117: T | G117: =IF(ISNA(VLOOKUP(D117,Rows[],4,FALSE)),"",VLOOKUP(D117,Rows[],4,FALSE)) -> Rhan F: Anheddau wedi'u heithrio yn ôl dosbarth - Dosbarth O | H117: =IF(ISERROR(VLOOKUP($A117&"_"&H$10,qData1[],7,FALSE)),"",VLOOKUP($A117&"_"&H$10,qData1[],7,FALSE)) ->  | I117: =IF(ISERROR(VLOOKUP($A117&"_"&I$10,qData1[],7,FALSE)),0,VLOOKUP($A117&"_"&I$10,qData1[],7,FALSE)) -> 0 | J117: 0 | K117: 0 | L117: 0 | M117: =IF(ISNA(VLOOKUP($D117&"_"&$E117,Tol[],6,FALSE)),$M$7,VLOOKUP($D117&"_"&$E117,Tol[],6,FALSE)) -> 50 | N117: =IF(ISNA(VLOOKUP($D117&"_"&$E117,Tol[],7,FALSE)),$N$7*100,VLOOKUP($D117&"_"&$E117,Tol[],7,FALSE)*100) -> 10 | O117: 1 | P117: 1 | W117: =IF(ISERROR(VLOOKUP($A117,#REF!,8,FALSE)),"",VLOOKUP($A117,#REF!,8,FALSE)) ->  | X117: =IF(ISERROR(VLOOKUP($A117,#REF!,9,FALSE)),"",VLOOKUP($A117,#REF!,9,FALSE)) ->  | Y117: =IF(ISERROR(VLOOKUP($A117,#REF!,10,FALSE)),0,VLOOKUP($A117,#REF!,10,FALSE)) -> 00:00:00
A118: 0_43_11 | B118: =IF(COUNTIF(Validations!$AB$8:$AB$56,A118)=1,1,"") -> 1 | D118: 43 | E118: 11 | F118: T | G118: =IF(ISNA(VLOOKUP(D118,Rows[],4,FALSE)),"",VLOOKUP(D118,Rows[],4,FALSE)) -> Rhan F: Anheddau wedi'u heithrio yn ôl dosbarth - Dosbarth P | H118: =IF(ISERROR(VLOOKUP($A118&"_"&H$10,qData1[],7,FALSE)),"",VLOOKUP($A118&"_"&H$10,qData1[],7,FALSE)) ->  | I118: =IF(ISERROR(VLOOKUP($A118&"_"&I$10,qData1[],7,FALSE)),0,VLOOKUP($A118&"_"&I$10,qData1[],7,FALSE)) -> 0 | J118: 0 | K118: 0 | L118: 0 | M118: =IF(ISNA(VLOOKUP($D118&"_"&$E118,Tol[],6,FALSE)),$M$7,VLOOKUP($D118&"_"&$E118,Tol[],6,FALSE)) -> 50 | N118: =IF(ISNA(VLOOKUP($D118&"_"&$E118,Tol[],7,FALSE)),$N$7*100,VLOOKUP($D118&"_"&$E118,Tol[],7,FALSE)*100) -> 10 | O118: 1 | P118: 1 | W118: =IF(ISERROR(VLOOKUP($A118,#REF!,8,FALSE)),"",VLOOKUP($A118,#REF!,8,FALSE)) ->  | X118: =IF(ISERROR(VLOOKUP($A118,#REF!,9,FALSE)),"",VLOOKUP($A118,#REF!,9,FALSE)) ->  | Y118: =IF(ISERROR(VLOOKUP($A118,#REF!,10,FALSE)),0,VLOOKUP($A118,#REF!,10,FALSE)) -> 00:00:00
A119: 0_44_11 | B119: =IF(COUNTIF(Validations!$AB$8:$AB$56,A119)=1,1,"") -> 1 | D119: 44 | E119: 11 | F119: T | G119: =IF(ISNA(VLOOKUP(D119,Rows[],4,FALSE)),"",VLOOKUP(D119,Rows[],4,FALSE)) -> Rhan F: Anheddau wedi'u heithrio yn ôl dosbarth - Dosbarth Q | H119: =IF(ISERROR(VLOOKUP($A119&"_"&H$10,qData1[],7,FALSE)),"",VLOOKUP($A119&"_"&H$10,qData1[],7,FALSE)) ->  | I119: =IF(ISERROR(VLOOKUP($A119&"_"&I$10,qData1[],7,FALSE)),0,VLOOKUP($A119&"_"&I$10,qData1[],7,FALSE)) -> 0 | J119: 0 | K119: 0 | L119: 0 | M119: =IF(ISNA(VLOOKUP($D119&"_"&$E119,Tol[],6,FALSE)),$M$7,VLOOKUP($D119&"_"&$E119,Tol[],6,FALSE)) -> 50 | N119: =IF(ISNA(VLOOKUP($D119&"_"&$E119,Tol[],7,FALSE)),$N$7*100,VLOOKUP($D119&"_"&$E119,Tol[],7,FALSE)*100) -> 10 | O119: 1 | P119: 1 | W119: =IF(ISERROR(VLOOKUP($A119,#REF!,8,FALSE)),"",VLOOKUP($A119,#REF!,8,FALSE)) ->  | X119: =IF(ISERROR(VLOOKUP($A119,#REF!,9,FALSE)),"",VLOOKUP($A119,#REF!,9,FALSE)) ->  | Y119: =IF(ISERROR(VLOOKUP($A119,#REF!,10,FALSE)),0,VLOOKUP($A119,#REF!,10,FALSE)) -> 00:00:00
A120: 0_45_11 | B120: =IF(COUNTIF(Validations!$AB$8:$AB$56,A120)=1,1,"") -> 1 | D120: 45 | E120: 11 | F120: T | G120: =IF(ISNA(VLOOKUP(D120,Rows[],4,FALSE)),"",VLOOKUP(D120,Rows[],4,FALSE)) -> Rhan F: Anheddau wedi'u heithrio yn ôl dosbarth - Dosbarth R | H120: =IF(ISERROR(VLOOKUP($A120&"_"&H$10,qData1[],7,FALSE)),"",VLOOKUP($A120&"_"&H$10,qData1[],7,FALSE)) ->  | I120: =IF(ISERROR(VLOOKUP($A120&"_"&I$10,qData1[],7,FALSE)),0,VLOOKUP($A120&"_"&I$10,qData1[],7,FALSE)) -> 0 | J120: 0 | K120: 0 | L120: 0 | M120: =IF(ISNA(VLOOKUP($D120&"_"&$E120,Tol[],6,FALSE)),$M$7,VLOOKUP($D120&"_"&$E120,Tol[],6,FALSE)) -> 50 | N120: =IF(ISNA(VLOOKUP($D120&"_"&$E120,Tol[],7,FALSE)),$N$7*100,VLOOKUP($D120&"_"&$E120,Tol[],7,FALSE)*100) -> 10 | O120: 1 | P120: 1 | W120: =IF(ISERROR(VLOOKUP($A120,#REF!,8,FALSE)),"",VLOOKUP($A120,#REF!,8,FALSE)) ->  | X120: =IF(ISERROR(VLOOKUP($A120,#REF!,9,FALSE)),"",VLOOKUP($A120,#REF!,9,FALSE)) ->  | Y120: =IF(ISERROR(VLOOKUP($A120,#REF!,10,FALSE)),0,VLOOKUP($A120,#REF!,10,FALSE)) -> 00:00:00
A121: 0_46_11 | B121: =IF(COUNTIF(Validations!$AB$8:$AB$56,A121)=1,1,"") -> 1 | D121: 46 | E121: 11 | F121: T | G121: =IF(ISNA(VLOOKUP(D121,Rows[],4,FALSE)),"",VLOOKUP(D121,Rows[],4,FALSE)) -> Rhan F: Anheddau wedi'u heithrio yn ôl dosbarth - Dosbarth S | H121: =IF(ISERROR(VLOOKUP($A121&"_"&H$10,qData1[],7,FALSE)),"",VLOOKUP($A121&"_"&H$10,qData1[],7,FALSE)) ->  | I121: =IF(ISERROR(VLOOKUP($A121&"_"&I$10,qData1[],7,FALSE)),0,VLOOKUP($A121&"_"&I$10,qData1[],7,FALSE)) -> 0 | J121: 0 | K121: 0 | L121: 0 | M121: =IF(ISNA(VLOOKUP($D121&"_"&$E121,Tol[],6,FALSE)),$M$7,VLOOKUP($D121&"_"&$E121,Tol[],6,FALSE)) -> 50 | N121: =IF(ISNA(VLOOKUP($D121&"_"&$E121,Tol[],7,FALSE)),$N$7*100,VLOOKUP($D121&"_"&$E121,Tol[],7,FALSE)*100) -> 10 | O121: 1 | P121: 1 | W121: =IF(ISERROR(VLOOKUP($A121,#REF!,8,FALSE)),"",VLOOKUP($A121,#REF!,8,FALSE)) ->  | X121: =IF(ISERROR(VLOOKUP($A121,#REF!,9,FALSE)),"",VLOOKUP($A121,#REF!,9,FALSE)) ->  | Y121: =IF(ISERROR(VLOOKUP($A121,#REF!,10,FALSE)),0,VLOOKUP($A121,#REF!,10,FALSE)) -> 00:00:00
A122: 0_47_11 | B122: =IF(COUNTIF(Validations!$AB$8:$AB$56,A122)=1,1,"") -> 1 | D122: 47 | E122: 11 | F122: T | G122: =IF(ISNA(VLOOKUP(D122,Rows[],4,FALSE)),"",VLOOKUP(D122,Rows[],4,FALSE)) -> Rhan F: Anheddau wedi'u heithrio yn ôl dosbarth - Dosbarth T | H122: =IF(ISERROR(VLOOKUP($A122&"_"&H$10,qData1[],7,FALSE)),"",VLOOKUP($A122&"_"&H$10,qData1[],7,FALSE)) ->  | I122: =IF(ISERROR(VLOOKUP($A122&"_"&I$10,qData1[],7,FALSE)),0,VLOOKUP($A122&"_"&I$10,qData1[],7,FALSE)) -> 0 | J122: 0 | K122: 0 | L122: 0 | M122: =IF(ISNA(VLOOKUP($D122&"_"&$E122,Tol[],6,FALSE)),$M$7,VLOOKUP($D122&"_"&$E122,Tol[],6,FALSE)) -> 50 | N122: =IF(ISNA(VLOOKUP($D122&"_"&$E122,Tol[],7,FALSE)),$N$7*100,VLOOKUP($D122&"_"&$E122,Tol[],7,FALSE)*100) -> 10 | O122: 1 | P122: 1 | W122: =IF(ISERROR(VLOOKUP($A122,#REF!,8,FALSE)),"",VLOOKUP($A122,#REF!,8,FALSE)) ->  | X122: =IF(ISERROR(VLOOKUP($A122,#REF!,9,FALSE)),"",VLOOKUP($A122,#REF!,9,FALSE)) ->  | Y122: =IF(ISERROR(VLOOKUP($A122,#REF!,10,FALSE)),0,VLOOKUP($A122,#REF!,10,FALSE)) -> 00:00:00
A123: 0_49_11 | B123: =IF(COUNTIF(Validations!$AB$8:$AB$56,A123)=1,1,"") -> 1 | D123: 49 | E123: 11 | F123: T | G123: =IF(ISNA(VLOOKUP(D123,Rows[],4,FALSE)),"",VLOOKUP(D123,Rows[],4,FALSE)) -> Rhan F: Anheddau wedi'u heithrio yn ôl dosbarth - Dosbarth U | H123: =IF(ISERROR(VLOOKUP($A123&"_"&H$10,qData1[],7,FALSE)),"",VLOOKUP($A123&"_"&H$10,qData1[],7,FALSE)) ->  | I123: =IF(ISERROR(VLOOKUP($A123&"_"&I$10,qData1[],7,FALSE)),0,VLOOKUP($A123&"_"&I$10,qData1[],7,FALSE)) -> 0 | J123: 0 | K123: 0 | L123: 0 | M123: =IF(ISNA(VLOOKUP($D123&"_"&$E123,Tol[],6,FALSE)),$M$7,VLOOKUP($D123&"_"&$E123,Tol[],6,FALSE)) -> 50 | N123: =IF(ISNA(VLOOKUP($D123&"_"&$E123,Tol[],7,FALSE)),$N$7*100,VLOOKUP($D123&"_"&$E123,Tol[],7,FALSE)*100) -> 10 | O123: 1 | P123: 1 | W123: =IF(ISERROR(VLOOKUP($A123,#REF!,8,FALSE)),"",VLOOKUP($A123,#REF!,8,FALSE)) ->  | X123: =IF(ISERROR(VLOOKUP($A123,#REF!,9,FALSE)),"",VLOOKUP($A123,#REF!,9,FALSE)) ->  | Y123: =IF(ISERROR(VLOOKUP($A123,#REF!,10,FALSE)),0,VLOOKUP($A123,#REF!,10,FALSE)) -> 00:00:00
A124: 0_50_11 | B124: =IF(COUNTIF(Validations!$AB$8:$AB$56,A124)=1,1,"") -> 1 | D124: 50 | E124: 11 | F124: T | G124: =IF(ISNA(VLOOKUP(D124,Rows[],4,FALSE)),"",VLOOKUP(D124,Rows[],4,FALSE)) -> Rhan F: Anheddau wedi'u heithrio yn ôl dosbarth - Dosbarth V | H124: =IF(ISERROR(VLOOKUP($A124&"_"&H$10,qData1[],7,FALSE)),"",VLOOKUP($A124&"_"&H$10,qData1[],7,FALSE)) ->  | I124: =IF(ISERROR(VLOOKUP($A124&"_"&I$10,qData1[],7,FALSE)),0,VLOOKUP($A124&"_"&I$10,qData1[],7,FALSE)) -> 0 | J124: 0 | K124: 0 | L124: 0 | M124: =IF(ISNA(VLOOKUP($D124&"_"&$E124,Tol[],6,FALSE)),$M$7,VLOOKUP($D124&"_"&$E124,Tol[],6,FALSE)) -> 50 | N124: =IF(ISNA(VLOOKUP($D124&"_"&$E124,Tol[],7,FALSE)),$N$7*100,VLOOKUP($D124&"_"&$E124,Tol[],7,FALSE)*100) -> 10 | O124: 1 | P124: 1 | W124: =IF(ISERROR(VLOOKUP($A124,#REF!,8,FALSE)),"",VLOOKUP($A124,#REF!,8,FALSE)) ->  | X124: =IF(ISERROR(VLOOKUP($A124,#REF!,9,FALSE)),"",VLOOKUP($A124,#REF!,9,FALSE)) ->  | Y124: =IF(ISERROR(VLOOKUP($A124,#REF!,10,FALSE)),0,VLOOKUP($A124,#REF!,10,FALSE)) -> 00:00:00
A125: 0_51_11 | B125: =IF(COUNTIF(Validations!$AB$8:$AB$56,A125)=1,1,"") -> 1 | D125: 51 | E125: 11 | F125: T | G125: =IF(ISNA(VLOOKUP(D125,Rows[],4,FALSE)),"",VLOOKUP(D125,Rows[],4,FALSE)) -> Rhan F: Anheddau wedi'u heithrio yn ôl dosbarth - Dosbarth W | H125: =IF(ISERROR(VLOOKUP($A125&"_"&H$10,qData1[],7,FALSE)),"",VLOOKUP($A125&"_"&H$10,qData1[],7,FALSE)) ->  | I125: =IF(ISERROR(VLOOKUP($A125&"_"&I$10,qData1[],7,FALSE)),0,VLOOKUP($A125&"_"&I$10,qData1[],7,FALSE)) -> 0 | J125: 0 | K125: 0 | L125: 0 | M125: =IF(ISNA(VLOOKUP($D125&"_"&$E125,Tol[],6,FALSE)),$M$7,VLOOKUP($D125&"_"&$E125,Tol[],6,FALSE)) -> 50 | N125: =IF(ISNA(VLOOKUP($D125&"_"&$E125,Tol[],7,FALSE)),$N$7*100,VLOOKUP($D125&"_"&$E125,Tol[],7,FALSE)*100) -> 10 | O125: 1 | P125: 1 | W125: =IF(ISERROR(VLOOKUP($A125,#REF!,8,FALSE)),"",VLOOKUP($A125,#REF!,8,FALSE)) ->  | X125: =IF(ISERROR(VLOOKUP($A125,#REF!,9,FALSE)),"",VLOOKUP($A125,#REF!,9,FALSE)) ->  | Y125: =IF(ISERROR(VLOOKUP($A125,#REF!,10,FALSE)),0,VLOOKUP($A125,#REF!,10,FALSE)) -> 00:00:00
A126: =uanumber&"_"&D126&"_"&E126 -> 0_51.1_11 | B126: =IF(COUNTIF(Validations!$AB$8:$AB$56,A126)=1,1,"") ->  | D126: 51.1 | E126: 11 | F126: T | G126: =IF(ISNA(VLOOKUP(D126,Rows[],4,FALSE)),"",VLOOKUP(D126,Rows[],4,FALSE)) -> Rhan F: Pobl sy'n gadael gofal - Dosbarth X | H126: =IF(ISERROR(VLOOKUP($A126&"_"&H$10,qData1[],7,FALSE)),"",VLOOKUP($A126&"_"&H$10,qData1[],7,FALSE)) ->  | I126: =IF(ISERROR(VLOOKUP($A126&"_"&I$10,qData1[],7,FALSE)),0,VLOOKUP($A126&"_"&I$10,qData1[],7,FALSE)) -> 0 | J126: 0 | K126: =J126-I126 -> 0 | L126: =IF(OR(I126=0,J126=0),0,K126/I126*100) -> 0 | M126: =IF(ISNA(VLOOKUP($D126&"_"&$E126,Tol[],6,FALSE)),$M$7,VLOOKUP($D126&"_"&$E126,Tol[],6,FALSE)) -> 100 | N126: =IF(ISNA(VLOOKUP($D126&"_"&$E126,Tol[],7,FALSE)),$N$7*100,VLOOKUP($D126&"_"&$E126,Tol[],7,FALSE)*100) -> 10 | O126: =IF(I126=0,1,"") -> 1 | P126: =IF(J126=0,1,"") -> 1 | Q126: =IF(SUM(O126:P126)=2,"",IF(SUM(O126:P126)=1,9,IF(AND(ABS(K126)>M126,ABS(L126)>N126),3,IF(ABS(K126)>M126,1,IF(ABS(L126)>N126,2,""))))) ->  | R126: =IF(Q126=3,1,"") -> 
A127: 0_51.5_11 | B127: =IF(COUNTIF(Validations!$AB$8:$AB$56,A127)=1,1,"") -> 1 | D127: 51.5 | E127: 11 | F127: T | G127: =IF(ISNA(VLOOKUP(D127,Rows[],4,FALSE)),"",VLOOKUP(D127,Rows[],4,FALSE)) -> Rhan F: Anheddau wedi'u heithrio yn ôl dosbarth - Cyfanswm pob dosbarth | H127: =IF(ISERROR(VLOOKUP($A127&"_"&H$10,qData1[],7,FALSE)),"",VLOOKUP($A127&"_"&H$10,qData1[],7,FALSE)) ->  | I127: =IF(ISERROR(VLOOKUP($A127&"_"&I$10,qData1[],7,FALSE)),0,VLOOKUP($A127&"_"&I$10,qData1[],7,FALSE)) -> 0 | J127: 0 | K127: 0 | L127: 0 | M127: =IF(ISNA(VLOOKUP($D127&"_"&$E127,Tol[],6,FALSE)),$M$7,VLOOKUP($D127&"_"&$E127,Tol[],6,FALSE)) -> 50 | N127: =IF(ISNA(VLOOKUP($D127&"_"&$E127,Tol[],7,FALSE)),$N$7*100,VLOOKUP($D127&"_"&$E127,Tol[],7,FALSE)*100) -> 10 | O127: 1 | P127: 1 | W127: =IF(ISERROR(VLOOKUP($A127,#REF!,8,FALSE)),"",VLOOKUP($A127,#REF!,8,FALSE)) ->  | X127: =IF(ISERROR(VLOOKUP($A127,#REF!,9,FALSE)),"",VLOOKUP($A127,#REF!,9,FALSE)) ->  | Y127: =IF(ISERROR(VLOOKUP($A127,#REF!,10,FALSE)),0,VLOOKUP($A127,#REF!,10,FALSE)) -> 00:00:00
A128: 0_64_2 | B128: =IF(COUNTIF(Validations!$AB$8:$AB$56,A128)=1,1,"") ->  | D128: 64 | E128: 2 | G128: =IF(ISNA(VLOOKUP(D128,Rows[],4,FALSE)),"",VLOOKUP(D128,Rows[],4,FALSE)) -> H1 - Eiddo gwag hirdymor trethadwy heb unrhyw ddisgownt na phremiwm | H128: =IF(ISERROR(VLOOKUP($A128&"_"&H$10,qData1[],7,FALSE)),"",VLOOKUP($A128&"_"&H$10,qData1[],7,FALSE)) ->  | I128: =IF(ISERROR(VLOOKUP($A128&"_"&I$10,qData1[],7,FALSE)),0,VLOOKUP($A128&"_"&I$10,qData1[],7,FALSE)) -> 0 | J128: 0 | K128: 0 | L128: 0 | M128: =IF(ISNA(VLOOKUP($D128&"_"&$E128,Tol[],6,FALSE)),$M$7,VLOOKUP($D128&"_"&$E128,Tol[],6,FALSE)) -> 100 | N128: =IF(ISNA(VLOOKUP($D128&"_"&$E128,Tol[],7,FALSE)),$N$7*100,VLOOKUP($D128&"_"&$E128,Tol[],7,FALSE)*100) -> 10 | O128: 1 | P128: 1 | W128: =IF(ISERROR(VLOOKUP($A128,#REF!,8,FALSE)),"",VLOOKUP($A128,#REF!,8,FALSE)) ->  | X128: =IF(ISERROR(VLOOKUP($A128,#REF!,9,FALSE)),"",VLOOKUP($A128,#REF!,9,FALSE)) ->  | Y128: =IF(ISERROR(VLOOKUP($A128,#REF!,10,FALSE)),0,VLOOKUP($A128,#REF!,10,FALSE)) -> 00:00:00
A129: 0_64_3 | B129: =IF(COUNTIF(Validations!$AB$8:$AB$56,A129)=1,1,"") ->  | D129: 64 | E129: 3 | G129: =IF(ISNA(VLOOKUP(D129,Rows[],4,FALSE)),"",VLOOKUP(D129,Rows[],4,FALSE)) -> H1 - Eiddo gwag hirdymor trethadwy heb unrhyw ddisgownt na phremiwm | H129: =IF(ISERROR(VLOOKUP($A129&"_"&H$10,qData1[],7,FALSE)),"",VLOOKUP($A129&"_"&H$10,qData1[],7,FALSE)) ->  | I129: =IF(ISERROR(VLOOKUP($A129&"_"&I$10,qData1[],7,FALSE)),0,VLOOKUP($A129&"_"&I$10,qData1[],7,FALSE)) -> 0 | J129: 0 | K129: 0 | L129: 0 | M129: =IF(ISNA(VLOOKUP($D129&"_"&$E129,Tol[],6,FALSE)),$M$7,VLOOKUP($D129&"_"&$E129,Tol[],6,FALSE)) -> 100 | N129: =IF(ISNA(VLOOKUP($D129&"_"&$E129,Tol[],7,FALSE)),$N$7*100,VLOOKUP($D129&"_"&$E129,Tol[],7,FALSE)*100) -> 10 | O129: 1 | P129: 1 | W129: =IF(ISERROR(VLOOKUP($A129,#REF!,8,FALSE)),"",VLOOKUP($A129,#REF!,8,FALSE)) ->  | X129: =IF(ISERROR(VLOOKUP($A129,#REF!,9,FALSE)),"",VLOOKUP($A129,#REF!,9,FALSE)) ->  | Y129: =IF(ISERROR(VLOOKUP($A129,#REF!,10,FALSE)),0,VLOOKUP($A129,#REF!,10,FALSE)) -> 00:00:00
A130: 0_64_4 | B130: =IF(COUNTIF(Validations!$AB$8:$AB$56,A130)=1,1,"") ->  | D130: 64 | E130: 4 | G130: =IF(ISNA(VLOOKUP(D130,Rows[],4,FALSE)),"",VLOOKUP(D130,Rows[],4,FALSE)) -> H1 - Eiddo gwag hirdymor trethadwy heb unrhyw ddisgownt na phremiwm | H130: =IF(ISERROR(VLOOKUP($A130&"_"&H$10,qData1[],7,FALSE)),"",VLOOKUP($A130&"_"&H$10,qData1[],7,FALSE)) ->  | I130: =IF(ISERROR(VLOOKUP($A130&"_"&I$10,qData1[],7,FALSE)),0,VLOOKUP($A130&"_"&I$10,qData1[],7,FALSE)) -> 0 | J130: 0 | K130: 0 | L130: 0 | M130: =IF(ISNA(VLOOKUP($D130&"_"&$E130,Tol[],6,FALSE)),$M$7,VLOOKUP($D130&"_"&$E130,Tol[],6,FALSE)) -> 100 | N130: =IF(ISNA(VLOOKUP($D130&"_"&$E130,Tol[],7,FALSE)),$N$7*100,VLOOKUP($D130&"_"&$E130,Tol[],7,FALSE)*100) -> 10 | O130: 1 | P130: 1 | W130: =IF(ISERROR(VLOOKUP($A130,#REF!,8,FALSE)),"",VLOOKUP($A130,#REF!,8,FALSE)) ->  | X130: =IF(ISERROR(VLOOKUP($A130,#REF!,9,FALSE)),"",VLOOKUP($A130,#REF!,9,FALSE)) ->  | Y130: =IF(ISERROR(VLOOKUP($A130,#REF!,10,FALSE)),0,VLOOKUP($A130,#REF!,10,FALSE)) -> 00:00:00
A131: 0_64_5 | B131: =IF(COUNTIF(Validations!$AB$8:$AB$56,A131)=1,1,"") ->  | D131: 64 | E131: 5 | G131: =IF(ISNA(VLOOKUP(D131,Rows[],4,FALSE)),"",VLOOKUP(D131,Rows[],4,FALSE)) -> H1 - Eiddo gwag hirdymor trethadwy heb unrhyw ddisgownt na phremiwm | H131: =IF(ISERROR(VLOOKUP($A131&"_"&H$10,qData1[],7,FALSE)),"",VLOOKUP($A131&"_"&H$10,qData1[],7,FALSE)) ->  | I131: =IF(ISERROR(VLOOKUP($A131&"_"&I$10,qData1[],7,FALSE)),0,VLOOKUP($A131&"_"&I$10,qData1[],7,FALSE)) -> 0 | J131: 0 | K131: 0 | L131: 0 | M131: =IF(ISNA(VLOOKUP($D131&"_"&$E131,Tol[],6,FALSE)),$M$7,VLOOKUP($D131&"_"&$E131,Tol[],6,FALSE)) -> 100 | N131: =IF(ISNA(VLOOKUP($D131&"_"&$E131,Tol[],7,FALSE)),$N$7*100,VLOOKUP($D131&"_"&$E131,Tol[],7,FALSE)*100) -> 10 | O131: 1 | P131: 1 | W131: =IF(ISERROR(VLOOKUP($A131,#REF!,8,FALSE)),"",VLOOKUP($A131,#REF!,8,FALSE)) ->  | X131: =IF(ISERROR(VLOOKUP($A131,#REF!,9,FALSE)),"",VLOOKUP($A131,#REF!,9,FALSE)) ->  | Y131: =IF(ISERROR(VLOOKUP($A131,#REF!,10,FALSE)),0,VLOOKUP($A131,#REF!,10,FALSE)) -> 00:00:00
A132: 0_64_6 | B132: =IF(COUNTIF(Validations!$AB$8:$AB$56,A132)=1,1,"") ->  | D132: 64 | E132: 6 | G132: =IF(ISNA(VLOOKUP(D132,Rows[],4,FALSE)),"",VLOOKUP(D132,Rows[],4,FALSE)) -> H1 - Eiddo gwag hirdymor trethadwy heb unrhyw ddisgownt na phremiwm | H132: =IF(ISERROR(VLOOKUP($A132&"_"&H$10,qData1[],7,FALSE)),"",VLOOKUP($A132&"_"&H$10,qData1[],7,FALSE)) ->  | I132: =IF(ISERROR(VLOOKUP($A132&"_"&I$10,qData1[],7,FALSE)),0,VLOOKUP($A132&"_"&I$10,qData1[],7,FALSE)) -> 0 | J132: 0 | K132: 0 | L132: 0 | M132: =IF(ISNA(VLOOKUP($D132&"_"&$E132,Tol[],6,FALSE)),$M$7,VLOOKUP($D132&"_"&$E132,Tol[],6,FALSE)) -> 100 | N132: =IF(ISNA(VLOOKUP($D132&"_"&$E132,Tol[],7,FALSE)),$N$7*100,VLOOKUP($D132&"_"&$E132,Tol[],7,FALSE)*100) -> 10 | O132: 1 | P132: 1 | W132: =IF(ISERROR(VLOOKUP($A132,#REF!,8,FALSE)),"",VLOOKUP($A132,#REF!,8,FALSE)) ->  | X132: =IF(ISERROR(VLOOKUP($A132,#REF!,9,FALSE)),"",VLOOKUP($A132,#REF!,9,FALSE)) ->  | Y132: =IF(ISERROR(VLOOKUP($A132,#REF!,10,FALSE)),0,VLOOKUP($A132,#REF!,10,FALSE)) -> 00:00:00
A133: 0_64_7 | B133: =IF(COUNTIF(Validations!$AB$8:$AB$56,A133)=1,1,"") ->  | D133: 64 | E133: 7 | G133: =IF(ISNA(VLOOKUP(D133,Rows[],4,FALSE)),"",VLOOKUP(D133,Rows[],4,FALSE)) -> H1 - Eiddo gwag hirdymor trethadwy heb unrhyw ddisgownt na phremiwm | H133: =IF(ISERROR(VLOOKUP($A133&"_"&H$10,qData1[],7,FALSE)),"",VLOOKUP($A133&"_"&H$10,qData1[],7,FALSE)) ->  | I133: =IF(ISERROR(VLOOKUP($A133&"_"&I$10,qData1[],7,FALSE)),0,VLOOKUP($A133&"_"&I$10,qData1[],7,FALSE)) -> 0 | J133: 0 | K133: 0 | L133: 0 | M133: =IF(ISNA(VLOOKUP($D133&"_"&$E133,Tol[],6,FALSE)),$M$7,VLOOKUP($D133&"_"&$E133,Tol[],6,FALSE)) -> 100 | N133: =IF(ISNA(VLOOKUP($D133&"_"&$E133,Tol[],7,FALSE)),$N$7*100,VLOOKUP($D133&"_"&$E133,Tol[],7,FALSE)*100) -> 10 | O133: 1 | P133: 1 | W133: =IF(ISERROR(VLOOKUP($A133,#REF!,8,FALSE)),"",VLOOKUP($A133,#REF!,8,FALSE)) ->  | X133: =IF(ISERROR(VLOOKUP($A133,#REF!,9,FALSE)),"",VLOOKUP($A133,#REF!,9,FALSE)) ->  | Y133: =IF(ISERROR(VLOOKUP($A133,#REF!,10,FALSE)),0,VLOOKUP($A133,#REF!,10,FALSE)) -> 00:00:00
A134: 0_64_8 | B134: =IF(COUNTIF(Validations!$AB$8:$AB$56,A134)=1,1,"") ->  | D134: 64 | E134: 8 | G134: =IF(ISNA(VLOOKUP(D134,Rows[],4,FALSE)),"",VLOOKUP(D134,Rows[],4,FALSE)) -> H1 - Eiddo gwag hirdymor trethadwy heb unrhyw ddisgownt na phremiwm | H134: =IF(ISERROR(VLOOKUP($A134&"_"&H$10,qData1[],7,FALSE)),"",VLOOKUP($A134&"_"&H$10,qData1[],7,FALSE)) ->  | I134: =IF(ISERROR(VLOOKUP($A134&"_"&I$10,qData1[],7,FALSE)),0,VLOOKUP($A134&"_"&I$10,qData1[],7,FALSE)) -> 0 | J134: 0 | K134: 0 | L134: 0 | M134: =IF(ISNA(VLOOKUP($D134&"_"&$E134,Tol[],6,FALSE)),$M$7,VLOOKUP($D134&"_"&$E134,Tol[],6,FALSE)) -> 100 | N134: =IF(ISNA(VLOOKUP($D134&"_"&$E134,Tol[],7,FALSE)),$N$7*100,VLOOKUP($D134&"_"&$E134,Tol[],7,FALSE)*100) -> 10 | O134: 1 | P134: 1 | W134: =IF(ISERROR(VLOOKUP($A134,#REF!,8,FALSE)),"",VLOOKUP($A134,#REF!,8,FALSE)) ->  | X134: =IF(ISERROR(VLOOKUP($A134,#REF!,9,FALSE)),"",VLOOKUP($A134,#REF!,9,FALSE)) ->  | Y134: =IF(ISERROR(VLOOKUP($A134,#REF!,10,FALSE)),0,VLOOKUP($A134,#REF!,10,FALSE)) -> 00:00:00
A135: 0_64_9 | B135: =IF(COUNTIF(Validations!$AB$8:$AB$56,A135)=1,1,"") ->  | D135: 64 | E135: 9 | G135: =IF(ISNA(VLOOKUP(D135,Rows[],4,FALSE)),"",VLOOKUP(D135,Rows[],4,FALSE)) -> H1 - Eiddo gwag hirdymor trethadwy heb unrhyw ddisgownt na phremiwm | H135: =IF(ISERROR(VLOOKUP($A135&"_"&H$10,qData1[],7,FALSE)),"",VLOOKUP($A135&"_"&H$10,qData1[],7,FALSE)) ->  | I135: =IF(ISERROR(VLOOKUP($A135&"_"&I$10,qData1[],7,FALSE)),0,VLOOKUP($A135&"_"&I$10,qData1[],7,FALSE)) -> 0 | J135: 0 | K135: 0 | L135: 0 | M135: =IF(ISNA(VLOOKUP($D135&"_"&$E135,Tol[],6,FALSE)),$M$7,VLOOKUP($D135&"_"&$E135,Tol[],6,FALSE)) -> 100 | N135: =IF(ISNA(VLOOKUP($D135&"_"&$E135,Tol[],7,FALSE)),$N$7*100,VLOOKUP($D135&"_"&$E135,Tol[],7,FALSE)*100) -> 10 | O135: 1 | P135: 1 | W135: =IF(ISERROR(VLOOKUP($A135,#REF!,8,FALSE)),"",VLOOKUP($A135,#REF!,8,FALSE)) ->  | X135: =IF(ISERROR(VLOOKUP($A135,#REF!,9,FALSE)),"",VLOOKUP($A135,#REF!,9,FALSE)) ->  | Y135: =IF(ISERROR(VLOOKUP($A135,#REF!,10,FALSE)),0,VLOOKUP($A135,#REF!,10,FALSE)) -> 00:00:00
A136: 0_64_10 | B136: =IF(COUNTIF(Validations!$AB$8:$AB$56,A136)=1,1,"") ->  | D136: 64 | E136: 10 | G136: =IF(ISNA(VLOOKUP(D136,Rows[],4,FALSE)),"",VLOOKUP(D136,Rows[],4,FALSE)) -> H1 - Eiddo gwag hirdymor trethadwy heb unrhyw ddisgownt na phremiwm | H136: =IF(ISERROR(VLOOKUP($A136&"_"&H$10,qData1[],7,FALSE)),"",VLOOKUP($A136&"_"&H$10,qData1[],7,FALSE)) ->  | I136: =IF(ISERROR(VLOOKUP($A136&"_"&I$10,qData1[],7,FALSE)),0,VLOOKUP($A136&"_"&I$10,qData1[],7,FALSE)) -> 0 | J136: 0 | K136: 0 | L136: 0 | M136: =IF(ISNA(VLOOKUP($D136&"_"&$E136,Tol[],6,FALSE)),$M$7,VLOOKUP($D136&"_"&$E136,Tol[],6,FALSE)) -> 100 | N136: =IF(ISNA(VLOOKUP($D136&"_"&$E136,Tol[],7,FALSE)),$N$7*100,VLOOKUP($D136&"_"&$E136,Tol[],7,FALSE)*100) -> 10 | O136: 1 | P136: 1 | W136: =IF(ISERROR(VLOOKUP($A136,#REF!,8,FALSE)),"",VLOOKUP($A136,#REF!,8,FALSE)) ->  | X136: =IF(ISERROR(VLOOKUP($A136,#REF!,9,FALSE)),"",VLOOKUP($A136,#REF!,9,FALSE)) ->  | Y136: =IF(ISERROR(VLOOKUP($A136,#REF!,10,FALSE)),0,VLOOKUP($A136,#REF!,10,FALSE)) -> 00:00:00
A137: 0_64_11 | B137: =IF(COUNTIF(Validations!$AB$8:$AB$56,A137)=1,1,"") ->  | D137: 64 | E137: 11 | F137: T | G137: =IF(ISNA(VLOOKUP(D137,Rows[],4,FALSE)),"",VLOOKUP(D137,Rows[],4,FALSE)) -> H1 - Eiddo gwag hirdymor trethadwy heb unrhyw ddisgownt na phremiwm | H137: =IF(ISERROR(VLOOKUP($A137&"_"&H$10,qData1[],7,FALSE)),"",VLOOKUP($A137&"_"&H$10,qData1[],7,FALSE)) ->  | I137: =IF(ISERROR(VLOOKUP($A137&"_"&I$10,qData1[],7,FALSE)),0,VLOOKUP($A137&"_"&I$10,qData1[],7,FALSE)) -> 0 | J137: 0 | K137: 0 | L137: 0 | M137: =IF(ISNA(VLOOKUP($D137&"_"&$E137,Tol[],6,FALSE)),$M$7,VLOOKUP($D137&"_"&$E137,Tol[],6,FALSE)) -> 100 | N137: =IF(ISNA(VLOOKUP($D137&"_"&$E137,Tol[],7,FALSE)),$N$7*100,VLOOKUP($D137&"_"&$E137,Tol[],7,FALSE)*100) -> 10 | O137: 1 | P137: 1 | W137: =IF(ISERROR(VLOOKUP($A137,#REF!,8,FALSE)),"",VLOOKUP($A137,#REF!,8,FALSE)) ->  | X137: =IF(ISERROR(VLOOKUP($A137,#REF!,9,FALSE)),"",VLOOKUP($A137,#REF!,9,FALSE)) ->  | Y137: =IF(ISERROR(VLOOKUP($A137,#REF!,10,FALSE)),0,VLOOKUP($A137,#REF!,10,FALSE)) -> 00:00:00
A138: 0_65_2 | B138: =IF(COUNTIF(Validations!$AB$8:$AB$56,A138)=1,1,"") ->  | D138: 65 | E138: 2 | G138: =IF(ISNA(VLOOKUP(D138,Rows[],4,FALSE)),"",VLOOKUP(D138,Rows[],4,FALSE)) -> H2 - Ail gartrefi sydd yn daladwy heb ddisgownt na phremiwm | H138: =IF(ISERROR(VLOOKUP($A138&"_"&H$10,qData1[],7,FALSE)),"",VLOOKUP($A138&"_"&H$10,qData1[],7,FALSE)) ->  | I138: =IF(ISERROR(VLOOKUP($A138&"_"&I$10,qData1[],7,FALSE)),0,VLOOKUP($A138&"_"&I$10,qData1[],7,FALSE)) -> 0 | J138: 0 | K138: 0 | L138: 0 | M138: =IF(ISNA(VLOOKUP($D138&"_"&$E138,Tol[],6,FALSE)),$M$7,VLOOKUP($D138&"_"&$E138,Tol[],6,FALSE)) -> 100 | N138: =IF(ISNA(VLOOKUP($D138&"_"&$E138,Tol[],7,FALSE)),$N$7*100,VLOOKUP($D138&"_"&$E138,Tol[],7,FALSE)*100) -> 10 | O138: 1 | P138: 1 | W138: =IF(ISERROR(VLOOKUP($A138,#REF!,8,FALSE)),"",VLOOKUP($A138,#REF!,8,FALSE)) ->  | X138: =IF(ISERROR(VLOOKUP($A138,#REF!,9,FALSE)),"",VLOOKUP($A138,#REF!,9,FALSE)) ->  | Y138: =IF(ISERROR(VLOOKUP($A138,#REF!,10,FALSE)),0,VLOOKUP($A138,#REF!,10,FALSE)) -> 00:00:00
A139: 0_65_3 | B139: =IF(COUNTIF(Validations!$AB$8:$AB$56,A139)=1,1,"") ->  | D139: 65 | E139: 3 | G139: =IF(ISNA(VLOOKUP(D139,Rows[],4,FALSE)),"",VLOOKUP(D139,Rows[],4,FALSE)) -> H2 - Ail gartrefi sydd yn daladwy heb ddisgownt na phremiwm | H139: =IF(ISERROR(VLOOKUP($A139&"_"&H$10,qData1[],7,FALSE)),"",VLOOKUP($A139&"_"&H$10,qData1[],7,FALSE)) ->  | I139: =IF(ISERROR(VLOOKUP($A139&"_"&I$10,qData1[],7,FALSE)),0,VLOOKUP($A139&"_"&I$10,qData1[],7,FALSE)) -> 0 | J139: 0 | K139: 0 | L139: 0 | M139: =IF(ISNA(VLOOKUP($D139&"_"&$E139,Tol[],6,FALSE)),$M$7,VLOOKUP($D139&"_"&$E139,Tol[],6,FALSE)) -> 100 | N139: =IF(ISNA(VLOOKUP($D139&"_"&$E139,Tol[],7,FALSE)),$N$7*100,VLOOKUP($D139&"_"&$E139,Tol[],7,FALSE)*100) -> 10 | O139: 1 | P139: 1 | W139: =IF(ISERROR(VLOOKUP($A139,#REF!,8,FALSE)),"",VLOOKUP($A139,#REF!,8,FALSE)) ->  | X139: =IF(ISERROR(VLOOKUP($A139,#REF!,9,FALSE)),"",VLOOKUP($A139,#REF!,9,FALSE)) ->  | Y139: =IF(ISERROR(VLOOKUP($A139,#REF!,10,FALSE)),0,VLOOKUP($A139,#REF!,10,FALSE)) -> 00:00:00
A140: 0_65_4 | B140: =IF(COUNTIF(Validations!$AB$8:$AB$56,A140)=1,1,"") ->  | D140: 65 | E140: 4 | G140: =IF(ISNA(VLOOKUP(D140,Rows[],4,FALSE)),"",VLOOKUP(D140,Rows[],4,FALSE)) -> H2 - Ail gartrefi sydd yn daladwy heb ddisgownt na phremiwm | H140: =IF(ISERROR(VLOOKUP($A140&"_"&H$10,qData1[],7,FALSE)),"",VLOOKUP($A140&"_"&H$10,qData1[],7,FALSE)) ->  | I140: =IF(ISERROR(VLOOKUP($A140&"_"&I$10,qData1[],7,FALSE)),0,VLOOKUP($A140&"_"&I$10,qData1[],7,FALSE)) -> 0 | J140: =IF(ISERROR(VLOOKUP(D140&"_"&E140,Figs,8,FALSE)),0,VLOOKUP(D140&"_"&E140,Figs,8,FALSE)) -> 0 | K140: 0 | L140: 0 | M140: =IF(ISNA(VLOOKUP($D140&"_"&$E140,Tol[],6,FALSE)),$M$7,VLOOKUP($D140&"_"&$E140,Tol[],6,FALSE)) -> 100 | N140: =IF(ISNA(VLOOKUP($D140&"_"&$E140,Tol[],7,FALSE)),$N$7*100,VLOOKUP($D140&"_"&$E140,Tol[],7,FALSE)*100) -> 10 | O140: 1 | P140: 1 | W140: =IF(ISERROR(VLOOKUP($A140,#REF!,8,FALSE)),"",VLOOKUP($A140,#REF!,8,FALSE)) ->  | X140: =IF(ISERROR(VLOOKUP($A140,#REF!,9,FALSE)),"",VLOOKUP($A140,#REF!,9,FALSE)) ->  | Y140: =IF(ISERROR(VLOOKUP($A140,#REF!,10,FALSE)),0,VLOOKUP($A140,#REF!,10,FALSE)) -> 00:00:00
A141: =uanumber&"_"&D141&"_"&E141 -> 0_65_5 | B141: =IF(COUNTIF(Validations!$AB$8:$AB$56,A141)=1,1,"") ->  | D141: 65 | E141: 5 | G141: =IF(ISNA(VLOOKUP(D141,Rows[],4,FALSE)),"",VLOOKUP(D141,Rows[],4,FALSE)) -> H2 - Ail gartrefi sydd yn daladwy heb ddisgownt na phremiwm | H141: =IF(ISERROR(VLOOKUP($A141&"_"&H$10,qData1[],7,FALSE)),"",VLOOKUP($A141&"_"&H$10,qData1[],7,FALSE)) ->  | I141: =IF(ISERROR(VLOOKUP($A141&"_"&I$10,qData1[],7,FALSE)),0,VLOOKUP($A141&"_"&I$10,qData1[],7,FALSE)) -> 0 | J141: 0 | K141: 0 | L141: 0 | M141: =IF(ISNA(VLOOKUP($D141&"_"&$E141,Tol[],6,FALSE)),$M$7,VLOOKUP($D141&"_"&$E141,Tol[],6,FALSE)) -> 100 | N141: =IF(ISNA(VLOOKUP($D141&"_"&$E141,Tol[],7,FALSE)),$N$7*100,VLOOKUP($D141&"_"&$E141,Tol[],7,FALSE)*100) -> 10 | O141: 1 | P141: 1 | W141: =IF(ISERROR(VLOOKUP($A141,#REF!,8,FALSE)),"",VLOOKUP($A141,#REF!,8,FALSE)) ->  | X141: =IF(ISERROR(VLOOKUP($A141,#REF!,9,FALSE)),"",VLOOKUP($A141,#REF!,9,FALSE)) ->  | Y141: =IF(ISERROR(VLOOKUP($A141,#REF!,10,FALSE)),0,VLOOKUP($A141,#REF!,10,FALSE)) -> 00:00:00
A142: 0_65_6 | B142: =IF(COUNTIF(Validations!$AB$8:$AB$56,A142)=1,1,"") ->  | D142: 65 | E142: 6 | G142: =IF(ISNA(VLOOKUP(D142,Rows[],4,FALSE)),"",VLOOKUP(D142,Rows[],4,FALSE)) -> H2 - Ail gartrefi sydd yn daladwy heb ddisgownt na phremiwm | H142: =IF(ISERROR(VLOOKUP($A142&"_"&H$10,qData1[],7,FALSE)),"",VLOOKUP($A142&"_"&H$10,qData1[],7,FALSE)) ->  | I142: =IF(ISERROR(VLOOKUP($A142&"_"&I$10,qData1[],7,FALSE)),0,VLOOKUP($A142&"_"&I$10,qData1[],7,FALSE)) -> 0 | J142: 0 | K142: =J142-I142 -> 0 | L142: =IF(OR(I142=0,J142=0),0,K142/I142*100) -> 0 | M142: =IF(ISNA(VLOOKUP($D142&"_"&$E142,Tol[],6,FALSE)),$M$7,VLOOKUP($D142&"_"&$E142,Tol[],6,FALSE)) -> 100 | N142: =IF(ISNA(VLOOKUP($D142&"_"&$E142,Tol[],7,FALSE)),$N$7*100,VLOOKUP($D142&"_"&$E142,Tol[],7,FALSE)*100) -> 10 | O142: =IF(I142=0,1,"") -> 1 | P142: =IF(J142=0,1,"") -> 1 | Q142: =IF(SUM(O142:P142)=2,"",IF(SUM(O142:P142)=1,9,IF(AND(ABS(K142)>M142,ABS(L142)>N142),3,IF(ABS(K142)>M142,1,IF(ABS(L142)>N142,2,""))))) ->  | R142: =IF(Q142=3,1,"") ->  | T142: =IF(OR(U142="C",U142="T"),"",IF(S142=1,1,"")) ->  | W142: =IF(ISERROR(VLOOKUP($A142,#REF!,8,FALSE)),"",VLOOKUP($A142,#REF!,8,FALSE)) ->  | X142: =IF(ISERROR(VLOOKUP($A142,#REF!,9,FALSE)),"",VLOOKUP($A142,#REF!,9,FALSE)) ->  | Y142: =IF(ISERROR(VLOOKUP($A142,#REF!,10,FALSE)),0,VLOOKUP($A142,#REF!,10,FALSE)) -> 00:00:00
A143: 0_65_7 | B143: =IF(COUNTIF(Validations!$AB$8:$AB$56,A143)=1,1,"") ->  | D143: 65 | E143: 7 | G143: =IF(ISNA(VLOOKUP(D143,Rows[],4,FALSE)),"",VLOOKUP(D143,Rows[],4,FALSE)) -> H2 - Ail gartrefi sydd yn daladwy heb ddisgownt na phremiwm | H143: =IF(ISERROR(VLOOKUP($A143&"_"&H$10,qData1[],7,FALSE)),"",VLOOKUP($A143&"_"&H$10,qData1[],7,FALSE)) ->  | I143: =IF(ISERROR(VLOOKUP($A143&"_"&I$10,qData1[],7,FALSE)),0,VLOOKUP($A143&"_"&I$10,qData1[],7,FALSE)) -> 0 | J143: 0 | K143: 0 | L143: 0 | M143: =IF(ISNA(VLOOKUP($D143&"_"&$E143,Tol[],6,FALSE)),$M$7,VLOOKUP($D143&"_"&$E143,Tol[],6,FALSE)) -> 100 | N143: =IF(ISNA(VLOOKUP($D143&"_"&$E143,Tol[],7,FALSE)),$N$7*100,VLOOKUP($D143&"_"&$E143,Tol[],7,FALSE)*100) -> 10 | O143: 1 | P143: 1 | W143: =IF(ISERROR(VLOOKUP($A143,#REF!,8,FALSE)),"",VLOOKUP($A143,#REF!,8,FALSE)) ->  | X143: =IF(ISERROR(VLOOKUP($A143,#REF!,9,FALSE)),"",VLOOKUP($A143,#REF!,9,FALSE)) ->  | Y143: =IF(ISERROR(VLOOKUP($A143,#REF!,10,FALSE)),0,VLOOKUP($A143,#REF!,10,FALSE)) -> 00:00:00
A144: 0_65_8 | B144: =IF(COUNTIF(Validations!$AB$8:$AB$56,A144)=1,1,"") ->  | D144: 65 | E144: 8 | G144: =IF(ISNA(VLOOKUP(D144,Rows[],4,FALSE)),"",VLOOKUP(D144,Rows[],4,FALSE)) -> H2 - Ail gartrefi sydd yn daladwy heb ddisgownt na phremiwm | H144: =IF(ISERROR(VLOOKUP($A144&"_"&H$10,qData1[],7,FALSE)),"",VLOOKUP($A144&"_"&H$10,qData1[],7,FALSE)) ->  | I144: =IF(ISERROR(VLOOKUP($A144&"_"&I$10,qData1[],7,FALSE)),0,VLOOKUP($A144&"_"&I$10,qData1[],7,FALSE)) -> 0 | J144: 0 | K144: 0 | L144: 0 | M144: =IF(ISNA(VLOOKUP($D144&"_"&$E144,Tol[],6,FALSE)),$M$7,VLOOKUP($D144&"_"&$E144,Tol[],6,FALSE)) -> 100 | N144: =IF(ISNA(VLOOKUP($D144&"_"&$E144,Tol[],7,FALSE)),$N$7*100,VLOOKUP($D144&"_"&$E144,Tol[],7,FALSE)*100) -> 10 | O144: 1 | P144: 1 | W144: =IF(ISERROR(VLOOKUP($A144,#REF!,8,FALSE)),"",VLOOKUP($A144,#REF!,8,FALSE)) ->  | X144: =IF(ISERROR(VLOOKUP($A144,#REF!,9,FALSE)),"",VLOOKUP($A144,#REF!,9,FALSE)) ->  | Y144: =IF(ISERROR(VLOOKUP($A144,#REF!,10,FALSE)),0,VLOOKUP($A144,#REF!,10,FALSE)) -> 00:00:00
A145: 0_65_9 | B145: =IF(COUNTIF(Validations!$AB$8:$AB$56,A145)=1,1,"") ->  | D145: 65 | E145: 9 | G145: =IF(ISNA(VLOOKUP(D145,Rows[],4,FALSE)),"",VLOOKUP(D145,Rows[],4,FALSE)) -> H2 - Ail gartrefi sydd yn daladwy heb ddisgownt na phremiwm | H145: =IF(ISERROR(VLOOKUP($A145&"_"&H$10,qData1[],7,FALSE)),"",VLOOKUP($A145&"_"&H$10,qData1[],7,FALSE)) ->  | I145: =IF(ISERROR(VLOOKUP($A145&"_"&I$10,qData1[],7,FALSE)),0,VLOOKUP($A145&"_"&I$10,qData1[],7,FALSE)) -> 0 | J145: 0 | K145: 0 | L145: 0 | M145: =IF(ISNA(VLOOKUP($D145&"_"&$E145,Tol[],6,FALSE)),$M$7,VLOOKUP($D145&"_"&$E145,Tol[],6,FALSE)) -> 100 | N145: =IF(ISNA(VLOOKUP($D145&"_"&$E145,Tol[],7,FALSE)),$N$7*100,VLOOKUP($D145&"_"&$E145,Tol[],7,FALSE)*100) -> 10 | O145: 1 | P145: 1 | W145: =IF(ISERROR(VLOOKUP($A145,#REF!,8,FALSE)),"",VLOOKUP($A145,#REF!,8,FALSE)) ->  | X145: =IF(ISERROR(VLOOKUP($A145,#REF!,9,FALSE)),"",VLOOKUP($A145,#REF!,9,FALSE)) ->  | Y145: =IF(ISERROR(VLOOKUP($A145,#REF!,10,FALSE)),0,VLOOKUP($A145,#REF!,10,FALSE)) -> 00:00:00
A146: 0_65_10 | B146: =IF(COUNTIF(Validations!$AB$8:$AB$56,A146)=1,1,"") ->  | D146: 65 | E146: 10 | G146: =IF(ISNA(VLOOKUP(D146,Rows[],4,FALSE)),"",VLOOKUP(D146,Rows[],4,FALSE)) -> H2 - Ail gartrefi sydd yn daladwy heb ddisgownt na phremiwm | H146: =IF(ISERROR(VLOOKUP($A146&"_"&H$10,qData1[],7,FALSE)),"",VLOOKUP($A146&"_"&H$10,qData1[],7,FALSE)) ->  | I146: =IF(ISERROR(VLOOKUP($A146&"_"&I$10,qData1[],7,FALSE)),0,VLOOKUP($A146&"_"&I$10,qData1[],7,FALSE)) -> 0 | J146: 0 | K146: 0 | L146: 0 | M146: =IF(ISNA(VLOOKUP($D146&"_"&$E146,Tol[],6,FALSE)),$M$7,VLOOKUP($D146&"_"&$E146,Tol[],6,FALSE)) -> 100 | N146: =IF(ISNA(VLOOKUP($D146&"_"&$E146,Tol[],7,FALSE)),$N$7*100,VLOOKUP($D146&"_"&$E146,Tol[],7,FALSE)*100) -> 10 | O146: 1 | P146: 1 | W146: =IF(ISERROR(VLOOKUP($A146,#REF!,8,FALSE)),"",VLOOKUP($A146,#REF!,8,FALSE)) ->  | X146: =IF(ISERROR(VLOOKUP($A146,#REF!,9,FALSE)),"",VLOOKUP($A146,#REF!,9,FALSE)) ->  | Y146: =IF(ISERROR(VLOOKUP($A146,#REF!,10,FALSE)),0,VLOOKUP($A146,#REF!,10,FALSE)) -> 00:00:00
A147: 0_65_11 | B147: =IF(COUNTIF(Validations!$AB$8:$AB$56,A147)=1,1,"") ->  | D147: 65 | E147: 11 | F147: T | G147: =IF(ISNA(VLOOKUP(D147,Rows[],4,FALSE)),"",VLOOKUP(D147,Rows[],4,FALSE)) -> H2 - Ail gartrefi sydd yn daladwy heb ddisgownt na phremiwm | H147: =IF(ISERROR(VLOOKUP($A147&"_"&H$10,qData1[],7,FALSE)),"",VLOOKUP($A147&"_"&H$10,qData1[],7,FALSE)) ->  | I147: =IF(ISERROR(VLOOKUP($A147&"_"&I$10,qData1[],7,FALSE)),0,VLOOKUP($A147&"_"&I$10,qData1[],7,FALSE)) -> 0 | J147: 0 | K147: 0 | L147: 0 | M147: =IF(ISNA(VLOOKUP($D147&"_"&$E147,Tol[],6,FALSE)),$M$7,VLOOKUP($D147&"_"&$E147,Tol[],6,FALSE)) -> 100 | N147: =IF(ISNA(VLOOKUP($D147&"_"&$E147,Tol[],7,FALSE)),$N$7*100,VLOOKUP($D147&"_"&$E147,Tol[],7,FALSE)*100) -> 10 | O147: 1 | P147: 1 | W147: =IF(ISERROR(VLOOKUP($A147,#REF!,8,FALSE)),"",VLOOKUP($A147,#REF!,8,FALSE)) ->  | X147: =IF(ISERROR(VLOOKUP($A147,#REF!,9,FALSE)),"",VLOOKUP($A147,#REF!,9,FALSE)) ->  | Y147: =IF(ISERROR(VLOOKUP($A147,#REF!,10,FALSE)),0,VLOOKUP($A147,#REF!,10,FALSE)) -> 00:00:00
A148: 0_72_2 | B148: =IF(COUNTIF(Validations!$AB$8:$AB$56,A148)=1,1,"") ->  | D148: 72 | E148: 2 | F148: T | G148: =IF(ISNA(VLOOKUP(D148,Rows[],4,FALSE)),"",VLOOKUP(D148,Rows[],4,FALSE)) -> H3g - Cyfanswm Disgownt eiddo gwag hirdymor | H148: =IF(ISERROR(VLOOKUP($A148&"_"&H$10,qData1[],7,FALSE)),"",VLOOKUP($A148&"_"&H$10,qData1[],7,FALSE)) ->  | I148: =IF(ISERROR(VLOOKUP($A148&"_"&I$10,qData1[],7,FALSE)),0,VLOOKUP($A148&"_"&I$10,qData1[],7,FALSE)) -> 0 | J148: 0 | K148: 0 | L148: 0 | M148: =IF(ISNA(VLOOKUP($D148&"_"&$E148,Tol[],6,FALSE)),$M$7,VLOOKUP($D148&"_"&$E148,Tol[],6,FALSE)) -> 100 | N148: =IF(ISNA(VLOOKUP($D148&"_"&$E148,Tol[],7,FALSE)),$N$7*100,VLOOKUP($D148&"_"&$E148,Tol[],7,FALSE)*100) -> 10 | O148: 1 | P148: 1 | W148: =IF(ISERROR(VLOOKUP($A148,#REF!,8,FALSE)),"",VLOOKUP($A148,#REF!,8,FALSE)) ->  | X148: =IF(ISERROR(VLOOKUP($A148,#REF!,9,FALSE)),"",VLOOKUP($A148,#REF!,9,FALSE)) ->  | Y148: =IF(ISERROR(VLOOKUP($A148,#REF!,10,FALSE)),0,VLOOKUP($A148,#REF!,10,FALSE)) -> 00:00:00
A149: 0_72_3 | B149: =IF(COUNTIF(Validations!$AB$8:$AB$56,A149)=1,1,"") ->  | D149: 72 | E149: 3 | F149: T | G149: =IF(ISNA(VLOOKUP(D149,Rows[],4,FALSE)),"",VLOOKUP(D149,Rows[],4,FALSE)) -> H3g - Cyfanswm Disgownt eiddo gwag hirdymor | H149: =IF(ISERROR(VLOOKUP($A149&"_"&H$10,qData1[],7,FALSE)),"",VLOOKUP($A149&"_"&H$10,qData1[],7,FALSE)) ->  | I149: =IF(ISERROR(VLOOKUP($A149&"_"&I$10,qData1[],7,FALSE)),0,VLOOKUP($A149&"_"&I$10,qData1[],7,FALSE)) -> 0 | J149: 0 | K149: 0 | L149: 0 | M149: =IF(ISNA(VLOOKUP($D149&"_"&$E149,Tol[],6,FALSE)),$M$7,VLOOKUP($D149&"_"&$E149,Tol[],6,FALSE)) -> 100 | N149: =IF(ISNA(VLOOKUP($D149&"_"&$E149,Tol[],7,FALSE)),$N$7*100,VLOOKUP($D149&"_"&$E149,Tol[],7,FALSE)*100) -> 10 | O149: 1 | P149: 1 | W149: =IF(ISERROR(VLOOKUP($A149,#REF!,8,FALSE)),"",VLOOKUP($A149,#REF!,8,FALSE)) ->  | X149: =IF(ISERROR(VLOOKUP($A149,#REF!,9,FALSE)),"",VLOOKUP($A149,#REF!,9,FALSE)) ->  | Y149: =IF(ISERROR(VLOOKUP($A149,#REF!,10,FALSE)),0,VLOOKUP($A149,#REF!,10,FALSE)) -> 00:00:00
A150: 0_72_4 | B150: =IF(COUNTIF(Validations!$AB$8:$AB$56,A150)=1,1,"") ->  | D150: 72 | E150: 4 | F150: T | G150: =IF(ISNA(VLOOKUP(D150,Rows[],4,FALSE)),"",VLOOKUP(D150,Rows[],4,FALSE)) -> H3g - Cyfanswm Disgownt eiddo gwag hirdymor | H150: =IF(ISERROR(VLOOKUP($A150&"_"&H$10,qData1[],7,FALSE)),"",VLOOKUP($A150&"_"&H$10,qData1[],7,FALSE)) ->  | I150: =IF(ISERROR(VLOOKUP($A150&"_"&I$10,qData1[],7,FALSE)),0,VLOOKUP($A150&"_"&I$10,qData1[],7,FALSE)) -> 0 | J150: 0 | K150: 0 | L150: 0 | M150: =IF(ISNA(VLOOKUP($D150&"_"&$E150,Tol[],6,FALSE)),$M$7,VLOOKUP($D150&"_"&$E150,Tol[],6,FALSE)) -> 100 | N150: =IF(ISNA(VLOOKUP($D150&"_"&$E150,Tol[],7,FALSE)),$N$7*100,VLOOKUP($D150&"_"&$E150,Tol[],7,FALSE)*100) -> 10 | O150: 1 | P150: 1 | W150: =IF(ISERROR(VLOOKUP($A150,#REF!,8,FALSE)),"",VLOOKUP($A150,#REF!,8,FALSE)) ->  | X150: =IF(ISERROR(VLOOKUP($A150,#REF!,9,FALSE)),"",VLOOKUP($A150,#REF!,9,FALSE)) ->  | Y150: =IF(ISERROR(VLOOKUP($A150,#REF!,10,FALSE)),0,VLOOKUP($A150,#REF!,10,FALSE)) -> 00:00:00
A151: 0_72_5 | B151: =IF(COUNTIF(Validations!$AB$8:$AB$56,A151)=1,1,"") ->  | D151: 72 | E151: 5 | F151: T | G151: =IF(ISNA(VLOOKUP(D151,Rows[],4,FALSE)),"",VLOOKUP(D151,Rows[],4,FALSE)) -> H3g - Cyfanswm Disgownt eiddo gwag hirdymor | H151: =IF(ISERROR(VLOOKUP($A151&"_"&H$10,qData1[],7,FALSE)),"",VLOOKUP($A151&"_"&H$10,qData1[],7,FALSE)) ->  | I151: =IF(ISERROR(VLOOKUP($A151&"_"&I$10,qData1[],7,FALSE)),0,VLOOKUP($A151&"_"&I$10,qData1[],7,FALSE)) -> 0 | J151: 0 | K151: 0 | L151: 0 | M151: =IF(ISNA(VLOOKUP($D151&"_"&$E151,Tol[],6,FALSE)),$M$7,VLOOKUP($D151&"_"&$E151,Tol[],6,FALSE)) -> 100 | N151: =IF(ISNA(VLOOKUP($D151&"_"&$E151,Tol[],7,FALSE)),$N$7*100,VLOOKUP($D151&"_"&$E151,Tol[],7,FALSE)*100) -> 10 | O151: 1 | P151: 1 | W151: =IF(ISERROR(VLOOKUP($A151,#REF!,8,FALSE)),"",VLOOKUP($A151,#REF!,8,FALSE)) ->  | X151: =IF(ISERROR(VLOOKUP($A151,#REF!,9,FALSE)),"",VLOOKUP($A151,#REF!,9,FALSE)) ->  | Y151: =IF(ISERROR(VLOOKUP($A151,#REF!,10,FALSE)),0,VLOOKUP($A151,#REF!,10,FALSE)) -> 00:00:00
A152: 0_72_6 | B152: =IF(COUNTIF(Validations!$AB$8:$AB$56,A152)=1,1,"") ->  | D152: 72 | E152: 6 | F152: T | G152: =IF(ISNA(VLOOKUP(D152,Rows[],4,FALSE)),"",VLOOKUP(D152,Rows[],4,FALSE)) -> H3g - Cyfanswm Disgownt eiddo gwag hirdymor | H152: =IF(ISERROR(VLOOKUP($A152&"_"&H$10,qData1[],7,FALSE)),"",VLOOKUP($A152&"_"&H$10,qData1[],7,FALSE)) ->  | I152: =IF(ISERROR(VLOOKUP($A152&"_"&I$10,qData1[],7,FALSE)),0,VLOOKUP($A152&"_"&I$10,qData1[],7,FALSE)) -> 0 | J152: 0 | K152: 0 | L152: 0 | M152: =IF(ISNA(VLOOKUP($D152&"_"&$E152,Tol[],6,FALSE)),$M$7,VLOOKUP($D152&"_"&$E152,Tol[],6,FALSE)) -> 100 | N152: =IF(ISNA(VLOOKUP($D152&"_"&$E152,Tol[],7,FALSE)),$N$7*100,VLOOKUP($D152&"_"&$E152,Tol[],7,FALSE)*100) -> 10 | O152: 1 | P152: 1 | W152: =IF(ISERROR(VLOOKUP($A152,#REF!,8,FALSE)),"",VLOOKUP($A152,#REF!,8,FALSE)) ->  | X152: =IF(ISERROR(VLOOKUP($A152,#REF!,9,FALSE)),"",VLOOKUP($A152,#REF!,9,FALSE)) ->  | Y152: =IF(ISERROR(VLOOKUP($A152,#REF!,10,FALSE)),0,VLOOKUP($A152,#REF!,10,FALSE)) -> 00:00:00
A153: 0_72_7 | B153: =IF(COUNTIF(Validations!$AB$8:$AB$56,A153)=1,1,"") ->  | D153: 72 | E153: 7 | F153: T | G153: =IF(ISNA(VLOOKUP(D153,Rows[],4,FALSE)),"",VLOOKUP(D153,Rows[],4,FALSE)) -> H3g - Cyfanswm Disgownt eiddo gwag hirdymor | H153: =IF(ISERROR(VLOOKUP($A153&"_"&H$10,qData1[],7,FALSE)),"",VLOOKUP($A153&"_"&H$10,qData1[],7,FALSE)) ->  | I153: =IF(ISERROR(VLOOKUP($A153&"_"&I$10,qData1[],7,FALSE)),0,VLOOKUP($A153&"_"&I$10,qData1[],7,FALSE)) -> 0 | J153: 0 | K153: 0 | L153: 0 | M153: =IF(ISNA(VLOOKUP($D153&"_"&$E153,Tol[],6,FALSE)),$M$7,VLOOKUP($D153&"_"&$E153,Tol[],6,FALSE)) -> 100 | N153: =IF(ISNA(VLOOKUP($D153&"_"&$E153,Tol[],7,FALSE)),$N$7*100,VLOOKUP($D153&"_"&$E153,Tol[],7,FALSE)*100) -> 10 | O153: 1 | P153: 1 | W153: =IF(ISERROR(VLOOKUP($A153,#REF!,8,FALSE)),"",VLOOKUP($A153,#REF!,8,FALSE)) ->  | X153: =IF(ISERROR(VLOOKUP($A153,#REF!,9,FALSE)),"",VLOOKUP($A153,#REF!,9,FALSE)) ->  | Y153: =IF(ISERROR(VLOOKUP($A153,#REF!,10,FALSE)),0,VLOOKUP($A153,#REF!,10,FALSE)) -> 00:00:00
A154: 0_72_8 | B154: =IF(COUNTIF(Validations!$AB$8:$AB$56,A154)=1,1,"") ->  | D154: 72 | E154: 8 | F154: T | G154: =IF(ISNA(VLOOKUP(D154,Rows[],4,FALSE)),"",VLOOKUP(D154,Rows[],4,FALSE)) -> H3g - Cyfanswm Disgownt eiddo gwag hirdymor | H154: =IF(ISERROR(VLOOKUP($A154&"_"&H$10,qData1[],7,FALSE)),"",VLOOKUP($A154&"_"&H$10,qData1[],7,FALSE)) ->  | I154: =IF(ISERROR(VLOOKUP($A154&"_"&I$10,qData1[],7,FALSE)),0,VLOOKUP($A154&"_"&I$10,qData1[],7,FALSE)) -> 0 | J154: 0 | K154: 0 | L154: 0 | M154: =IF(ISNA(VLOOKUP($D154&"_"&$E154,Tol[],6,FALSE)),$M$7,VLOOKUP($D154&"_"&$E154,Tol[],6,FALSE)) -> 100 | N154: =IF(ISNA(VLOOKUP($D154&"_"&$E154,Tol[],7,FALSE)),$N$7*100,VLOOKUP($D154&"_"&$E154,Tol[],7,FALSE)*100) -> 10 | O154: 1 | P154: 1 | W154: =IF(ISERROR(VLOOKUP($A154,#REF!,8,FALSE)),"",VLOOKUP($A154,#REF!,8,FALSE)) ->  | X154: =IF(ISERROR(VLOOKUP($A154,#REF!,9,FALSE)),"",VLOOKUP($A154,#REF!,9,FALSE)) ->  | Y154: =IF(ISERROR(VLOOKUP($A154,#REF!,10,FALSE)),0,VLOOKUP($A154,#REF!,10,FALSE)) -> 00:00:00
A155: 0_72_9 | B155: =IF(COUNTIF(Validations!$AB$8:$AB$56,A155)=1,1,"") ->  | D155: 72 | E155: 9 | F155: T | G155: =IF(ISNA(VLOOKUP(D155,Rows[],4,FALSE)),"",VLOOKUP(D155,Rows[],4,FALSE)) -> H3g - Cyfanswm Disgownt eiddo gwag hirdymor | H155: =IF(ISERROR(VLOOKUP($A155&"_"&H$10,qData1[],7,FALSE)),"",VLOOKUP($A155&"_"&H$10,qData1[],7,FALSE)) ->  | I155: =IF(ISERROR(VLOOKUP($A155&"_"&I$10,qData1[],7,FALSE)),0,VLOOKUP($A155&"_"&I$10,qData1[],7,FALSE)) -> 0 | J155: 0 | K155: 0 | L155: 0 | M155: =IF(ISNA(VLOOKUP($D155&"_"&$E155,Tol[],6,FALSE)),$M$7,VLOOKUP($D155&"_"&$E155,Tol[],6,FALSE)) -> 100 | N155: =IF(ISNA(VLOOKUP($D155&"_"&$E155,Tol[],7,FALSE)),$N$7*100,VLOOKUP($D155&"_"&$E155,Tol[],7,FALSE)*100) -> 10 | O155: 1 | P155: 1 | W155: =IF(ISERROR(VLOOKUP($A155,#REF!,8,FALSE)),"",VLOOKUP($A155,#REF!,8,FALSE)) ->  | X155: =IF(ISERROR(VLOOKUP($A155,#REF!,9,FALSE)),"",VLOOKUP($A155,#REF!,9,FALSE)) ->  | Y155: =IF(ISERROR(VLOOKUP($A155,#REF!,10,FALSE)),0,VLOOKUP($A155,#REF!,10,FALSE)) -> 00:00:00
A156: 0_72_10 | B156: =IF(COUNTIF(Validations!$AB$8:$AB$56,A156)=1,1,"") ->  | D156: 72 | E156: 10 | F156: T | G156: =IF(ISNA(VLOOKUP(D156,Rows[],4,FALSE)),"",VLOOKUP(D156,Rows[],4,FALSE)) -> H3g - Cyfanswm Disgownt eiddo gwag hirdymor | H156: =IF(ISERROR(VLOOKUP($A156&"_"&H$10,qData1[],7,FALSE)),"",VLOOKUP($A156&"_"&H$10,qData1[],7,FALSE)) ->  | I156: =IF(ISERROR(VLOOKUP($A156&"_"&I$10,qData1[],7,FALSE)),0,VLOOKUP($A156&"_"&I$10,qData1[],7,FALSE)) -> 0 | J156: 0 | K156: 0 | L156: 0 | M156: =IF(ISNA(VLOOKUP($D156&"_"&$E156,Tol[],6,FALSE)),$M$7,VLOOKUP($D156&"_"&$E156,Tol[],6,FALSE)) -> 100 | N156: =IF(ISNA(VLOOKUP($D156&"_"&$E156,Tol[],7,FALSE)),$N$7*100,VLOOKUP($D156&"_"&$E156,Tol[],7,FALSE)*100) -> 10 | O156: 1 | P156: 1 | W156: =IF(ISERROR(VLOOKUP($A156,#REF!,8,FALSE)),"",VLOOKUP($A156,#REF!,8,FALSE)) ->  | X156: =IF(ISERROR(VLOOKUP($A156,#REF!,9,FALSE)),"",VLOOKUP($A156,#REF!,9,FALSE)) ->  | Y156: =IF(ISERROR(VLOOKUP($A156,#REF!,10,FALSE)),0,VLOOKUP($A156,#REF!,10,FALSE)) -> 00:00:00
A157: 0_72_11 | B157: =IF(COUNTIF(Validations!$AB$8:$AB$56,A157)=1,1,"") ->  | D157: 72 | E157: 11 | F157: T | G157: =IF(ISNA(VLOOKUP(D157,Rows[],4,FALSE)),"",VLOOKUP(D157,Rows[],4,FALSE)) -> H3g - Cyfanswm Disgownt eiddo gwag hirdymor | H157: =IF(ISERROR(VLOOKUP($A157&"_"&H$10,qData1[],7,FALSE)),"",VLOOKUP($A157&"_"&H$10,qData1[],7,FALSE)) ->  | I157: =IF(ISERROR(VLOOKUP($A157&"_"&I$10,qData1[],7,FALSE)),0,VLOOKUP($A157&"_"&I$10,qData1[],7,FALSE)) -> 0 | J157: 0 | K157: 0 | L157: 0 | M157: =IF(ISNA(VLOOKUP($D157&"_"&$E157,Tol[],6,FALSE)),$M$7,VLOOKUP($D157&"_"&$E157,Tol[],6,FALSE)) -> 100 | N157: =IF(ISNA(VLOOKUP($D157&"_"&$E157,Tol[],7,FALSE)),$N$7*100,VLOOKUP($D157&"_"&$E157,Tol[],7,FALSE)*100) -> 10 | O157: 1 | P157: 1 | W157: =IF(ISERROR(VLOOKUP($A157,#REF!,8,FALSE)),"",VLOOKUP($A157,#REF!,8,FALSE)) ->  | X157: =IF(ISERROR(VLOOKUP($A157,#REF!,9,FALSE)),"",VLOOKUP($A157,#REF!,9,FALSE)) ->  | Y157: =IF(ISERROR(VLOOKUP($A157,#REF!,10,FALSE)),0,VLOOKUP($A157,#REF!,10,FALSE)) -> 00:00:00
A158: 0_79_2 | B158: =IF(COUNTIF(Validations!$AB$8:$AB$56,A158)=1,1,"") ->  | D158: 79 | E158: 2 | F158: T | G158: =IF(ISNA(VLOOKUP(D158,Rows[],4,FALSE)),"",VLOOKUP(D158,Rows[],4,FALSE)) -> H4g - Cyfanswm Premiwm eiddo gwag hirdymor | H158: =IF(ISERROR(VLOOKUP($A158&"_"&H$10,qData1[],7,FALSE)),"",VLOOKUP($A158&"_"&H$10,qData1[],7,FALSE)) ->  | I158: =IF(ISERROR(VLOOKUP($A158&"_"&I$10,qData1[],7,FALSE)),0,VLOOKUP($A158&"_"&I$10,qData1[],7,FALSE)) -> 0 | J158: 0 | K158: 0 | L158: 0 | M158: =IF(ISNA(VLOOKUP($D158&"_"&$E158,Tol[],6,FALSE)),$M$7,VLOOKUP($D158&"_"&$E158,Tol[],6,FALSE)) -> 100 | N158: =IF(ISNA(VLOOKUP($D158&"_"&$E158,Tol[],7,FALSE)),$N$7*100,VLOOKUP($D158&"_"&$E158,Tol[],7,FALSE)*100) -> 10 | O158: 1 | P158: 1 | W158: =IF(ISERROR(VLOOKUP($A158,#REF!,8,FALSE)),"",VLOOKUP($A158,#REF!,8,FALSE)) ->  | X158: =IF(ISERROR(VLOOKUP($A158,#REF!,9,FALSE)),"",VLOOKUP($A158,#REF!,9,FALSE)) ->  | Y158: =IF(ISERROR(VLOOKUP($A158,#REF!,10,FALSE)),0,VLOOKUP($A158,#REF!,10,FALSE)) -> 00:00:00
A159: 0_79_3 | B159: =IF(COUNTIF(Validations!$AB$8:$AB$56,A159)=1,1,"") ->  | D159: 79 | E159: 3 | F159: T | G159: =IF(ISNA(VLOOKUP(D159,Rows[],4,FALSE)),"",VLOOKUP(D159,Rows[],4,FALSE)) -> H4g - Cyfanswm Premiwm eiddo gwag hirdymor | H159: =IF(ISERROR(VLOOKUP($A159&"_"&H$10,qData1[],7,FALSE)),"",VLOOKUP($A159&"_"&H$10,qData1[],7,FALSE)) ->  | I159: =IF(ISERROR(VLOOKUP($A159&"_"&I$10,qData1[],7,FALSE)),0,VLOOKUP($A159&"_"&I$10,qData1[],7,FALSE)) -> 0 | J159: 0 | K159: 0 | L159: 0 | M159: =IF(ISNA(VLOOKUP($D159&"_"&$E159,Tol[],6,FALSE)),$M$7,VLOOKUP($D159&"_"&$E159,Tol[],6,FALSE)) -> 100 | N159: =IF(ISNA(VLOOKUP($D159&"_"&$E159,Tol[],7,FALSE)),$N$7*100,VLOOKUP($D159&"_"&$E159,Tol[],7,FALSE)*100) -> 10 | O159: 1 | P159: 1 | W159: =IF(ISERROR(VLOOKUP($A159,#REF!,8,FALSE)),"",VLOOKUP($A159,#REF!,8,FALSE)) ->  | X159: =IF(ISERROR(VLOOKUP($A159,#REF!,9,FALSE)),"",VLOOKUP($A159,#REF!,9,FALSE)) ->  | Y159: =IF(ISERROR(VLOOKUP($A159,#REF!,10,FALSE)),0,VLOOKUP($A159,#REF!,10,FALSE)) -> 00:00:00
A160: 0_79_4 | B160: =IF(COUNTIF(Validations!$AB$8:$AB$56,A160)=1,1,"") ->  | D160: 79 | E160: 4 | F160: T | G160: =IF(ISNA(VLOOKUP(D160,Rows[],4,FALSE)),"",VLOOKUP(D160,Rows[],4,FALSE)) -> H4g - Cyfanswm Premiwm eiddo gwag hirdymor | H160: =IF(ISERROR(VLOOKUP($A160&"_"&H$10,qData1[],7,FALSE)),"",VLOOKUP($A160&"_"&H$10,qData1[],7,FALSE)) ->  | I160: =IF(ISERROR(VLOOKUP($A160&"_"&I$10,qData1[],7,FALSE)),0,VLOOKUP($A160&"_"&I$10,qData1[],7,FALSE)) -> 0 | J160: 0 | K160: 0 | L160: 0 | M160: =IF(ISNA(VLOOKUP($D160&"_"&$E160,Tol[],6,FALSE)),$M$7,VLOOKUP($D160&"_"&$E160,Tol[],6,FALSE)) -> 100 | N160: =IF(ISNA(VLOOKUP($D160&"_"&$E160,Tol[],7,FALSE)),$N$7*100,VLOOKUP($D160&"_"&$E160,Tol[],7,FALSE)*100) -> 10 | O160: 1 | P160: 1 | W160: =IF(ISERROR(VLOOKUP($A160,#REF!,8,FALSE)),"",VLOOKUP($A160,#REF!,8,FALSE)) ->  | X160: =IF(ISERROR(VLOOKUP($A160,#REF!,9,FALSE)),"",VLOOKUP($A160,#REF!,9,FALSE)) ->  | Y160: =IF(ISERROR(VLOOKUP($A160,#REF!,10,FALSE)),0,VLOOKUP($A160,#REF!,10,FALSE)) -> 00:00:00
A161: 0_79_5 | B161: =IF(COUNTIF(Validations!$AB$8:$AB$56,A161)=1,1,"") ->  | D161: 79 | E161: 5 | F161: T | G161: =IF(ISNA(VLOOKUP(D161,Rows[],4,FALSE)),"",VLOOKUP(D161,Rows[],4,FALSE)) -> H4g - Cyfanswm Premiwm eiddo gwag hirdymor | H161: =IF(ISERROR(VLOOKUP($A161&"_"&H$10,qData1[],7,FALSE)),"",VLOOKUP($A161&"_"&H$10,qData1[],7,FALSE)) ->  | I161: =IF(ISERROR(VLOOKUP($A161&"_"&I$10,qData1[],7,FALSE)),0,VLOOKUP($A161&"_"&I$10,qData1[],7,FALSE)) -> 0 | J161: 0 | K161: 0 | L161: 0 | M161: =IF(ISNA(VLOOKUP($D161&"_"&$E161,Tol[],6,FALSE)),$M$7,VLOOKUP($D161&"_"&$E161,Tol[],6,FALSE)) -> 100 | N161: =IF(ISNA(VLOOKUP($D161&"_"&$E161,Tol[],7,FALSE)),$N$7*100,VLOOKUP($D161&"_"&$E161,Tol[],7,FALSE)*100) -> 10 | O161: 1 | P161: 1 | W161: =IF(ISERROR(VLOOKUP($A161,#REF!,8,FALSE)),"",VLOOKUP($A161,#REF!,8,FALSE)) ->  | X161: =IF(ISERROR(VLOOKUP($A161,#REF!,9,FALSE)),"",VLOOKUP($A161,#REF!,9,FALSE)) ->  | Y161: =IF(ISERROR(VLOOKUP($A161,#REF!,10,FALSE)),0,VLOOKUP($A161,#REF!,10,FALSE)) -> 00:00:00
A162: 0_79_6 | B162: =IF(COUNTIF(Validations!$AB$8:$AB$56,A162)=1,1,"") ->  | D162: 79 | E162: 6 | F162: T | G162: =IF(ISNA(VLOOKUP(D162,Rows[],4,FALSE)),"",VLOOKUP(D162,Rows[],4,FALSE)) -> H4g - Cyfanswm Premiwm eiddo gwag hirdymor | H162: =IF(ISERROR(VLOOKUP($A162&"_"&H$10,qData1[],7,FALSE)),"",VLOOKUP($A162&"_"&H$10,qData1[],7,FALSE)) ->  | I162: =IF(ISERROR(VLOOKUP($A162&"_"&I$10,qData1[],7,FALSE)),0,VLOOKUP($A162&"_"&I$10,qData1[],7,FALSE)) -> 0 | J162: 0 | K162: 0 | L162: 0 | M162: =IF(ISNA(VLOOKUP($D162&"_"&$E162,Tol[],6,FALSE)),$M$7,VLOOKUP($D162&"_"&$E162,Tol[],6,FALSE)) -> 100 | N162: =IF(ISNA(VLOOKUP($D162&"_"&$E162,Tol[],7,FALSE)),$N$7*100,VLOOKUP($D162&"_"&$E162,Tol[],7,FALSE)*100) -> 10 | O162: 1 | P162: 1 | W162: =IF(ISERROR(VLOOKUP($A162,#REF!,8,FALSE)),"",VLOOKUP($A162,#REF!,8,FALSE)) ->  | X162: =IF(ISERROR(VLOOKUP($A162,#REF!,9,FALSE)),"",VLOOKUP($A162,#REF!,9,FALSE)) ->  | Y162: =IF(ISERROR(VLOOKUP($A162,#REF!,10,FALSE)),0,VLOOKUP($A162,#REF!,10,FALSE)) -> 00:00:00
A163: 0_79_7 | B163: =IF(COUNTIF(Validations!$AB$8:$AB$56,A163)=1,1,"") ->  | D163: 79 | E163: 7 | F163: T | G163: =IF(ISNA(VLOOKUP(D163,Rows[],4,FALSE)),"",VLOOKUP(D163,Rows[],4,FALSE)) -> H4g - Cyfanswm Premiwm eiddo gwag hirdymor | H163: =IF(ISERROR(VLOOKUP($A163&"_"&H$10,qData1[],7,FALSE)),"",VLOOKUP($A163&"_"&H$10,qData1[],7,FALSE)) ->  | I163: =IF(ISERROR(VLOOKUP($A163&"_"&I$10,qData1[],7,FALSE)),0,VLOOKUP($A163&"_"&I$10,qData1[],7,FALSE)) -> 0 | J163: 0 | K163: 0 | L163: 0 | M163: =IF(ISNA(VLOOKUP($D163&"_"&$E163,Tol[],6,FALSE)),$M$7,VLOOKUP($D163&"_"&$E163,Tol[],6,FALSE)) -> 100 | N163: =IF(ISNA(VLOOKUP($D163&"_"&$E163,Tol[],7,FALSE)),$N$7*100,VLOOKUP($D163&"_"&$E163,Tol[],7,FALSE)*100) -> 10 | O163: 1 | P163: 1 | W163: =IF(ISERROR(VLOOKUP($A163,#REF!,8,FALSE)),"",VLOOKUP($A163,#REF!,8,FALSE)) ->  | X163: =IF(ISERROR(VLOOKUP($A163,#REF!,9,FALSE)),"",VLOOKUP($A163,#REF!,9,FALSE)) ->  | Y163: =IF(ISERROR(VLOOKUP($A163,#REF!,10,FALSE)),0,VLOOKUP($A163,#REF!,10,FALSE)) -> 00:00:00
A164: 0_79_8 | B164: =IF(COUNTIF(Validations!$AB$8:$AB$56,A164)=1,1,"") ->  | D164: 79 | E164: 8 | F164: T | G164: =IF(ISNA(VLOOKUP(D164,Rows[],4,FALSE)),"",VLOOKUP(D164,Rows[],4,FALSE)) -> H4g - Cyfanswm Premiwm eiddo gwag hirdymor | H164: =IF(ISERROR(VLOOKUP($A164&"_"&H$10,qData1[],7,FALSE)),"",VLOOKUP($A164&"_"&H$10,qData1[],7,FALSE)) ->  | I164: =IF(ISERROR(VLOOKUP($A164&"_"&I$10,qData1[],7,FALSE)),0,VLOOKUP($A164&"_"&I$10,qData1[],7,FALSE)) -> 0 | J164: 0 | K164: 0 | L164: 0 | M164: =IF(ISNA(VLOOKUP($D164&"_"&$E164,Tol[],6,FALSE)),$M$7,VLOOKUP($D164&"_"&$E164,Tol[],6,FALSE)) -> 100 | N164: =IF(ISNA(VLOOKUP($D164&"_"&$E164,Tol[],7,FALSE)),$N$7*100,VLOOKUP($D164&"_"&$E164,Tol[],7,FALSE)*100) -> 10 | O164: 1 | P164: 1 | W164: =IF(ISERROR(VLOOKUP($A164,#REF!,8,FALSE)),"",VLOOKUP($A164,#REF!,8,FALSE)) ->  | X164: =IF(ISERROR(VLOOKUP($A164,#REF!,9,FALSE)),"",VLOOKUP($A164,#REF!,9,FALSE)) ->  | Y164: =IF(ISERROR(VLOOKUP($A164,#REF!,10,FALSE)),0,VLOOKUP($A164,#REF!,10,FALSE)) -> 00:00:00
A165: 0_79_9 | B165: =IF(COUNTIF(Validations!$AB$8:$AB$56,A165)=1,1,"") ->  | D165: 79 | E165: 9 | F165: T | G165: =IF(ISNA(VLOOKUP(D165,Rows[],4,FALSE)),"",VLOOKUP(D165,Rows[],4,FALSE)) -> H4g - Cyfanswm Premiwm eiddo gwag hirdymor | H165: =IF(ISERROR(VLOOKUP($A165&"_"&H$10,qData1[],7,FALSE)),"",VLOOKUP($A165&"_"&H$10,qData1[],7,FALSE)) ->  | I165: =IF(ISERROR(VLOOKUP($A165&"_"&I$10,qData1[],7,FALSE)),0,VLOOKUP($A165&"_"&I$10,qData1[],7,FALSE)) -> 0 | J165: 0 | K165: 0 | L165: 0 | M165: =IF(ISNA(VLOOKUP($D165&"_"&$E165,Tol[],6,FALSE)),$M$7,VLOOKUP($D165&"_"&$E165,Tol[],6,FALSE)) -> 100 | N165: =IF(ISNA(VLOOKUP($D165&"_"&$E165,Tol[],7,FALSE)),$N$7*100,VLOOKUP($D165&"_"&$E165,Tol[],7,FALSE)*100) -> 10 | O165: 1 | P165: 1 | W165: =IF(ISERROR(VLOOKUP($A165,#REF!,8,FALSE)),"",VLOOKUP($A165,#REF!,8,FALSE)) ->  | X165: =IF(ISERROR(VLOOKUP($A165,#REF!,9,FALSE)),"",VLOOKUP($A165,#REF!,9,FALSE)) ->  | Y165: =IF(ISERROR(VLOOKUP($A165,#REF!,10,FALSE)),0,VLOOKUP($A165,#REF!,10,FALSE)) -> 00:00:00
A166: 0_79_10 | B166: =IF(COUNTIF(Validations!$AB$8:$AB$56,A166)=1,1,"") ->  | D166: 79 | E166: 10 | F166: T | G166: =IF(ISNA(VLOOKUP(D166,Rows[],4,FALSE)),"",VLOOKUP(D166,Rows[],4,FALSE)) -> H4g - Cyfanswm Premiwm eiddo gwag hirdymor | H166: =IF(ISERROR(VLOOKUP($A166&"_"&H$10,qData1[],7,FALSE)),"",VLOOKUP($A166&"_"&H$10,qData1[],7,FALSE)) ->  | I166: =IF(ISERROR(VLOOKUP($A166&"_"&I$10,qData1[],7,FALSE)),0,VLOOKUP($A166&"_"&I$10,qData1[],7,FALSE)) -> 0 | J166: 0 | K166: 0 | L166: 0 | M166: =IF(ISNA(VLOOKUP($D166&"_"&$E166,Tol[],6,FALSE)),$M$7,VLOOKUP($D166&"_"&$E166,Tol[],6,FALSE)) -> 100 | N166: =IF(ISNA(VLOOKUP($D166&"_"&$E166,Tol[],7,FALSE)),$N$7*100,VLOOKUP($D166&"_"&$E166,Tol[],7,FALSE)*100) -> 10 | O166: 1 | P166: 1 | W166: =IF(ISERROR(VLOOKUP($A166,#REF!,8,FALSE)),"",VLOOKUP($A166,#REF!,8,FALSE)) ->  | X166: =IF(ISERROR(VLOOKUP($A166,#REF!,9,FALSE)),"",VLOOKUP($A166,#REF!,9,FALSE)) ->  | Y166: =IF(ISERROR(VLOOKUP($A166,#REF!,10,FALSE)),0,VLOOKUP($A166,#REF!,10,FALSE)) -> 00:00:00
A167: 0_79_11 | B167: =IF(COUNTIF(Validations!$AB$8:$AB$56,A167)=1,1,"") ->  | D167: 79 | E167: 11 | F167: T | G167: =IF(ISNA(VLOOKUP(D167,Rows[],4,FALSE)),"",VLOOKUP(D167,Rows[],4,FALSE)) -> H4g - Cyfanswm Premiwm eiddo gwag hirdymor | H167: =IF(ISERROR(VLOOKUP($A167&"_"&H$10,qData1[],7,FALSE)),"",VLOOKUP($A167&"_"&H$10,qData1[],7,FALSE)) ->  | I167: =IF(ISERROR(VLOOKUP($A167&"_"&I$10,qData1[],7,FALSE)),0,VLOOKUP($A167&"_"&I$10,qData1[],7,FALSE)) -> 0 | J167: 0 | K167: 0 | L167: 0 | M167: =IF(ISNA(VLOOKUP($D167&"_"&$E167,Tol[],6,FALSE)),$M$7,VLOOKUP($D167&"_"&$E167,Tol[],6,FALSE)) -> 100 | N167: =IF(ISNA(VLOOKUP($D167&"_"&$E167,Tol[],7,FALSE)),$N$7*100,VLOOKUP($D167&"_"&$E167,Tol[],7,FALSE)*100) -> 10 | O167: 1 | P167: 1 | W167: =IF(ISERROR(VLOOKUP($A167,#REF!,8,FALSE)),"",VLOOKUP($A167,#REF!,8,FALSE)) ->  | X167: =IF(ISERROR(VLOOKUP($A167,#REF!,9,FALSE)),"",VLOOKUP($A167,#REF!,9,FALSE)) ->  | Y167: =IF(ISERROR(VLOOKUP($A167,#REF!,10,FALSE)),0,VLOOKUP($A167,#REF!,10,FALSE)) -> 00:00:00
A168: 0_86_2 | B168: =IF(COUNTIF(Validations!$AB$8:$AB$56,A168)=1,1,"") ->  | D168: 86 | E168: 2 | F168: T | G168: =IF(ISNA(VLOOKUP(D168,Rows[],4,FALSE)),"",VLOOKUP(D168,Rows[],4,FALSE)) -> H5g - Cyfanswm Disgownt ail gartref | H168: =IF(ISERROR(VLOOKUP($A168&"_"&H$10,qData1[],7,FALSE)),"",VLOOKUP($A168&"_"&H$10,qData1[],7,FALSE)) ->  | I168: =IF(ISERROR(VLOOKUP($A168&"_"&I$10,qData1[],7,FALSE)),0,VLOOKUP($A168&"_"&I$10,qData1[],7,FALSE)) -> 0 | J168: 0 | K168: 0 | L168: 0 | M168: =IF(ISNA(VLOOKUP($D168&"_"&$E168,Tol[],6,FALSE)),$M$7,VLOOKUP($D168&"_"&$E168,Tol[],6,FALSE)) -> 100 | N168: =IF(ISNA(VLOOKUP($D168&"_"&$E168,Tol[],7,FALSE)),$N$7*100,VLOOKUP($D168&"_"&$E168,Tol[],7,FALSE)*100) -> 10 | O168: 1 | P168: 1 | W168: =IF(ISERROR(VLOOKUP($A168,#REF!,8,FALSE)),"",VLOOKUP($A168,#REF!,8,FALSE)) ->  | X168: =IF(ISERROR(VLOOKUP($A168,#REF!,9,FALSE)),"",VLOOKUP($A168,#REF!,9,FALSE)) ->  | Y168: =IF(ISERROR(VLOOKUP($A168,#REF!,10,FALSE)),0,VLOOKUP($A168,#REF!,10,FALSE)) -> 00:00:00
A169: 0_86_3 | B169: =IF(COUNTIF(Validations!$AB$8:$AB$56,A169)=1,1,"") ->  | D169: 86 | E169: 3 | F169: T | G169: =IF(ISNA(VLOOKUP(D169,Rows[],4,FALSE)),"",VLOOKUP(D169,Rows[],4,FALSE)) -> H5g - Cyfanswm Disgownt ail gartref | H169: =IF(ISERROR(VLOOKUP($A169&"_"&H$10,qData1[],7,FALSE)),"",VLOOKUP($A169&"_"&H$10,qData1[],7,FALSE)) ->  | I169: =IF(ISERROR(VLOOKUP($A169&"_"&I$10,qData1[],7,FALSE)),0,VLOOKUP($A169&"_"&I$10,qData1[],7,FALSE)) -> 0 | J169: 0 | K169: 0 | L169: 0 | M169: =IF(ISNA(VLOOKUP($D169&"_"&$E169,Tol[],6,FALSE)),$M$7,VLOOKUP($D169&"_"&$E169,Tol[],6,FALSE)) -> 100 | N169: =IF(ISNA(VLOOKUP($D169&"_"&$E169,Tol[],7,FALSE)),$N$7*100,VLOOKUP($D169&"_"&$E169,Tol[],7,FALSE)*100) -> 10 | O169: 1 | P169: 1 | W169: =IF(ISERROR(VLOOKUP($A169,#REF!,8,FALSE)),"",VLOOKUP($A169,#REF!,8,FALSE)) ->  | X169: =IF(ISERROR(VLOOKUP($A169,#REF!,9,FALSE)),"",VLOOKUP($A169,#REF!,9,FALSE)) ->  | Y169: =IF(ISERROR(VLOOKUP($A169,#REF!,10,FALSE)),0,VLOOKUP($A169,#REF!,10,FALSE)) -> 00:00:00
A170: 0_86_4 | B170: =IF(COUNTIF(Validations!$AB$8:$AB$56,A170)=1,1,"") ->  | D170: 86 | E170: 4 | F170: T | G170: =IF(ISNA(VLOOKUP(D170,Rows[],4,FALSE)),"",VLOOKUP(D170,Rows[],4,FALSE)) -> H5g - Cyfanswm Disgownt ail gartref | H170: =IF(ISERROR(VLOOKUP($A170&"_"&H$10,qData1[],7,FALSE)),"",VLOOKUP($A170&"_"&H$10,qData1[],7,FALSE)) ->  | I170: =IF(ISERROR(VLOOKUP($A170&"_"&I$10,qData1[],7,FALSE)),0,VLOOKUP($A170&"_"&I$10,qData1[],7,FALSE)) -> 0 | J170: 0 | K170: 0 | L170: 0 | M170: =IF(ISNA(VLOOKUP($D170&"_"&$E170,Tol[],6,FALSE)),$M$7,VLOOKUP($D170&"_"&$E170,Tol[],6,FALSE)) -> 100 | N170: =IF(ISNA(VLOOKUP($D170&"_"&$E170,Tol[],7,FALSE)),$N$7*100,VLOOKUP($D170&"_"&$E170,Tol[],7,FALSE)*100) -> 10 | O170: 1 | P170: 1 | W170: =IF(ISERROR(VLOOKUP($A170,#REF!,8,FALSE)),"",VLOOKUP($A170,#REF!,8,FALSE)) ->  | X170: =IF(ISERROR(VLOOKUP($A170,#REF!,9,FALSE)),"",VLOOKUP($A170,#REF!,9,FALSE)) ->  | Y170: =IF(ISERROR(VLOOKUP($A170,#REF!,10,FALSE)),0,VLOOKUP($A170,#REF!,10,FALSE)) -> 00:00:00
A171: 0_86_5 | B171: =IF(COUNTIF(Validations!$AB$8:$AB$56,A171)=1,1,"") ->  | D171: 86 | E171: 5 | F171: T | G171: =IF(ISNA(VLOOKUP(D171,Rows[],4,FALSE)),"",VLOOKUP(D171,Rows[],4,FALSE)) -> H5g - Cyfanswm Disgownt ail gartref | H171: =IF(ISERROR(VLOOKUP($A171&"_"&H$10,qData1[],7,FALSE)),"",VLOOKUP($A171&"_"&H$10,qData1[],7,FALSE)) ->  | I171: =IF(ISERROR(VLOOKUP($A171&"_"&I$10,qData1[],7,FALSE)),0,VLOOKUP($A171&"_"&I$10,qData1[],7,FALSE)) -> 0 | J171: 0 | K171: 0 | L171: 0 | M171: =IF(ISNA(VLOOKUP($D171&"_"&$E171,Tol[],6,FALSE)),$M$7,VLOOKUP($D171&"_"&$E171,Tol[],6,FALSE)) -> 100 | N171: =IF(ISNA(VLOOKUP($D171&"_"&$E171,Tol[],7,FALSE)),$N$7*100,VLOOKUP($D171&"_"&$E171,Tol[],7,FALSE)*100) -> 10 | O171: 1 | P171: 1 | W171: =IF(ISERROR(VLOOKUP($A171,#REF!,8,FALSE)),"",VLOOKUP($A171,#REF!,8,FALSE)) ->  | X171: =IF(ISERROR(VLOOKUP($A171,#REF!,9,FALSE)),"",VLOOKUP($A171,#REF!,9,FALSE)) ->  | Y171: =IF(ISERROR(VLOOKUP($A171,#REF!,10,FALSE)),0,VLOOKUP($A171,#REF!,10,FALSE)) -> 00:00:00
A172: 0_86_6 | B172: =IF(COUNTIF(Validations!$AB$8:$AB$56,A172)=1,1,"") ->  | D172: 86 | E172: 6 | F172: T | G172: =IF(ISNA(VLOOKUP(D172,Rows[],4,FALSE)),"",VLOOKUP(D172,Rows[],4,FALSE)) -> H5g - Cyfanswm Disgownt ail gartref | H172: =IF(ISERROR(VLOOKUP($A172&"_"&H$10,qData1[],7,FALSE)),"",VLOOKUP($A172&"_"&H$10,qData1[],7,FALSE)) ->  | I172: =IF(ISERROR(VLOOKUP($A172&"_"&I$10,qData1[],7,FALSE)),0,VLOOKUP($A172&"_"&I$10,qData1[],7,FALSE)) -> 0 | J172: =IF(ISERROR(VLOOKUP(D172&"_"&E172,Figs,8,FALSE)),0,VLOOKUP(D172&"_"&E172,Figs,8,FALSE)) -> 0 | K172: 0 | L172: 0 | M172: =IF(ISNA(VLOOKUP($D172&"_"&$E172,Tol[],6,FALSE)),$M$7,VLOOKUP($D172&"_"&$E172,Tol[],6,FALSE)) -> 100 | N172: =IF(ISNA(VLOOKUP($D172&"_"&$E172,Tol[],7,FALSE)),$N$7*100,VLOOKUP($D172&"_"&$E172,Tol[],7,FALSE)*100) -> 10 | O172: 1 | P172: 1 | W172: =IF(ISERROR(VLOOKUP($A172,#REF!,8,FALSE)),"",VLOOKUP($A172,#REF!,8,FALSE)) ->  | X172: =IF(ISERROR(VLOOKUP($A172,#REF!,9,FALSE)),"",VLOOKUP($A172,#REF!,9,FALSE)) ->  | Y172: =IF(ISERROR(VLOOKUP($A172,#REF!,10,FALSE)),0,VLOOKUP($A172,#REF!,10,FALSE)) -> 00:00:00
A173: =uanumber&"_"&D173&"_"&E173 -> 0_86_7 | B173: =IF(COUNTIF(Validations!$AB$8:$AB$56,A173)=1,1,"") ->  | D173: 86 | E173: 7 | F173: T | G173: =IF(ISNA(VLOOKUP(D173,Rows[],4,FALSE)),"",VLOOKUP(D173,Rows[],4,FALSE)) -> H5g - Cyfanswm Disgownt ail gartref | H173: =IF(ISERROR(VLOOKUP($A173&"_"&H$10,qData1[],7,FALSE)),"",VLOOKUP($A173&"_"&H$10,qData1[],7,FALSE)) ->  | I173: =IF(ISERROR(VLOOKUP($A173&"_"&I$10,qData1[],7,FALSE)),0,VLOOKUP($A173&"_"&I$10,qData1[],7,FALSE)) -> 0 | J173: 0 | K173: 0 | L173: 0 | M173: =IF(ISNA(VLOOKUP($D173&"_"&$E173,Tol[],6,FALSE)),$M$7,VLOOKUP($D173&"_"&$E173,Tol[],6,FALSE)) -> 100 | N173: =IF(ISNA(VLOOKUP($D173&"_"&$E173,Tol[],7,FALSE)),$N$7*100,VLOOKUP($D173&"_"&$E173,Tol[],7,FALSE)*100) -> 10 | O173: 1 | P173: 1 | W173: =IF(ISERROR(VLOOKUP($A173,#REF!,8,FALSE)),"",VLOOKUP($A173,#REF!,8,FALSE)) ->  | X173: =IF(ISERROR(VLOOKUP($A173,#REF!,9,FALSE)),"",VLOOKUP($A173,#REF!,9,FALSE)) ->  | Y173: =IF(ISERROR(VLOOKUP($A173,#REF!,10,FALSE)),0,VLOOKUP($A173,#REF!,10,FALSE)) -> 00:00:00
A174: 0_86_8 | B174: =IF(COUNTIF(Validations!$AB$8:$AB$56,A174)=1,1,"") ->  | D174: 86 | E174: 8 | F174: T | G174: =IF(ISNA(VLOOKUP(D174,Rows[],4,FALSE)),"",VLOOKUP(D174,Rows[],4,FALSE)) -> H5g - Cyfanswm Disgownt ail gartref | H174: =IF(ISERROR(VLOOKUP($A174&"_"&H$10,qData1[],7,FALSE)),"",VLOOKUP($A174&"_"&H$10,qData1[],7,FALSE)) ->  | I174: =IF(ISERROR(VLOOKUP($A174&"_"&I$10,qData1[],7,FALSE)),0,VLOOKUP($A174&"_"&I$10,qData1[],7,FALSE)) -> 0 | J174: 0 | K174: 0 | L174: 0 | M174: =IF(ISNA(VLOOKUP($D174&"_"&$E174,Tol[],6,FALSE)),$M$7,VLOOKUP($D174&"_"&$E174,Tol[],6,FALSE)) -> 100 | N174: =IF(ISNA(VLOOKUP($D174&"_"&$E174,Tol[],7,FALSE)),$N$7*100,VLOOKUP($D174&"_"&$E174,Tol[],7,FALSE)*100) -> 10 | O174: 1 | P174: 1 | W174: =IF(ISERROR(VLOOKUP($A174,#REF!,8,FALSE)),"",VLOOKUP($A174,#REF!,8,FALSE)) ->  | X174: =IF(ISERROR(VLOOKUP($A174,#REF!,9,FALSE)),"",VLOOKUP($A174,#REF!,9,FALSE)) ->  | Y174: =IF(ISERROR(VLOOKUP($A174,#REF!,10,FALSE)),0,VLOOKUP($A174,#REF!,10,FALSE)) -> 00:00:00
A175: 0_86_9 | B175: =IF(COUNTIF(Validations!$AB$8:$AB$56,A175)=1,1,"") ->  | D175: 86 | E175: 9 | F175: T | G175: =IF(ISNA(VLOOKUP(D175,Rows[],4,FALSE)),"",VLOOKUP(D175,Rows[],4,FALSE)) -> H5g - Cyfanswm Disgownt ail gartref | H175: =IF(ISERROR(VLOOKUP($A175&"_"&H$10,qData1[],7,FALSE)),"",VLOOKUP($A175&"_"&H$10,qData1[],7,FALSE)) ->  | I175: =IF(ISERROR(VLOOKUP($A175&"_"&I$10,qData1[],7,FALSE)),0,VLOOKUP($A175&"_"&I$10,qData1[],7,FALSE)) -> 0 | J175: 0 | K175: 0 | L175: 0 | M175: =IF(ISNA(VLOOKUP($D175&"_"&$E175,Tol[],6,FALSE)),$M$7,VLOOKUP($D175&"_"&$E175,Tol[],6,FALSE)) -> 100 | N175: =IF(ISNA(VLOOKUP($D175&"_"&$E175,Tol[],7,FALSE)),$N$7*100,VLOOKUP($D175&"_"&$E175,Tol[],7,FALSE)*100) -> 10 | O175: 1 | P175: 1 | W175: =IF(ISERROR(VLOOKUP($A175,#REF!,8,FALSE)),"",VLOOKUP($A175,#REF!,8,FALSE)) ->  | X175: =IF(ISERROR(VLOOKUP($A175,#REF!,9,FALSE)),"",VLOOKUP($A175,#REF!,9,FALSE)) ->  | Y175: =IF(ISERROR(VLOOKUP($A175,#REF!,10,FALSE)),0,VLOOKUP($A175,#REF!,10,FALSE)) -> 00:00:00
A176: 0_86_10 | B176: =IF(COUNTIF(Validations!$AB$8:$AB$56,A176)=1,1,"") ->  | D176: 86 | E176: 10 | F176: T | G176: =IF(ISNA(VLOOKUP(D176,Rows[],4,FALSE)),"",VLOOKUP(D176,Rows[],4,FALSE)) -> H5g - Cyfanswm Disgownt ail gartref | H176: =IF(ISERROR(VLOOKUP($A176&"_"&H$10,qData1[],7,FALSE)),"",VLOOKUP($A176&"_"&H$10,qData1[],7,FALSE)) ->  | I176: =IF(ISERROR(VLOOKUP($A176&"_"&I$10,qData1[],7,FALSE)),0,VLOOKUP($A176&"_"&I$10,qData1[],7,FALSE)) -> 0 | J176: 0 | K176: 0 | L176: 0 | M176: =IF(ISNA(VLOOKUP($D176&"_"&$E176,Tol[],6,FALSE)),$M$7,VLOOKUP($D176&"_"&$E176,Tol[],6,FALSE)) -> 100 | N176: =IF(ISNA(VLOOKUP($D176&"_"&$E176,Tol[],7,FALSE)),$N$7*100,VLOOKUP($D176&"_"&$E176,Tol[],7,FALSE)*100) -> 10 | O176: 1 | P176: 1 | W176: =IF(ISERROR(VLOOKUP($A176,#REF!,8,FALSE)),"",VLOOKUP($A176,#REF!,8,FALSE)) ->  | X176: =IF(ISERROR(VLOOKUP($A176,#REF!,9,FALSE)),"",VLOOKUP($A176,#REF!,9,FALSE)) ->  | Y176: =IF(ISERROR(VLOOKUP($A176,#REF!,10,FALSE)),0,VLOOKUP($A176,#REF!,10,FALSE)) -> 00:00:00
A177: 0_86_11 | B177: =IF(COUNTIF(Validations!$AB$8:$AB$56,A177)=1,1,"") ->  | D177: 86 | E177: 11 | F177: T | G177: =IF(ISNA(VLOOKUP(D177,Rows[],4,FALSE)),"",VLOOKUP(D177,Rows[],4,FALSE)) -> H5g - Cyfanswm Disgownt ail gartref | H177: =IF(ISERROR(VLOOKUP($A177&"_"&H$10,qData1[],7,FALSE)),"",VLOOKUP($A177&"_"&H$10,qData1[],7,FALSE)) ->  | I177: =IF(ISERROR(VLOOKUP($A177&"_"&I$10,qData1[],7,FALSE)),0,VLOOKUP($A177&"_"&I$10,qData1[],7,FALSE)) -> 0 | J177: 0 | K177: 0 | L177: 0 | M177: =IF(ISNA(VLOOKUP($D177&"_"&$E177,Tol[],6,FALSE)),$M$7,VLOOKUP($D177&"_"&$E177,Tol[],6,FALSE)) -> 100 | N177: =IF(ISNA(VLOOKUP($D177&"_"&$E177,Tol[],7,FALSE)),$N$7*100,VLOOKUP($D177&"_"&$E177,Tol[],7,FALSE)*100) -> 10 | O177: 1 | P177: 1 | W177: =IF(ISERROR(VLOOKUP($A177,#REF!,8,FALSE)),"",VLOOKUP($A177,#REF!,8,FALSE)) ->  | X177: =IF(ISERROR(VLOOKUP($A177,#REF!,9,FALSE)),"",VLOOKUP($A177,#REF!,9,FALSE)) ->  | Y177: =IF(ISERROR(VLOOKUP($A177,#REF!,10,FALSE)),0,VLOOKUP($A177,#REF!,10,FALSE)) -> 00:00:00
A178: 0_93_2 | B178: =IF(COUNTIF(Validations!$AB$8:$AB$56,A178)=1,1,"") ->  | D178: 93 | E178: 2 | F178: T | G178: =IF(ISNA(VLOOKUP(D178,Rows[],4,FALSE)),"",VLOOKUP(D178,Rows[],4,FALSE)) -> H6g - Cyfanswm Premiwm ail gartref | H178: =IF(ISERROR(VLOOKUP($A178&"_"&H$10,qData1[],7,FALSE)),"",VLOOKUP($A178&"_"&H$10,qData1[],7,FALSE)) ->  | I178: =IF(ISERROR(VLOOKUP($A178&"_"&I$10,qData1[],7,FALSE)),0,VLOOKUP($A178&"_"&I$10,qData1[],7,FALSE)) -> 0 | J178: 0 | K178: 0 | L178: 0 | M178: =IF(ISNA(VLOOKUP($D178&"_"&$E178,Tol[],6,FALSE)),$M$7,VLOOKUP($D178&"_"&$E178,Tol[],6,FALSE)) -> 100 | N178: =IF(ISNA(VLOOKUP($D178&"_"&$E178,Tol[],7,FALSE)),$N$7*100,VLOOKUP($D178&"_"&$E178,Tol[],7,FALSE)*100) -> 10 | O178: 1 | P178: 1 | W178: =IF(ISERROR(VLOOKUP($A178,#REF!,8,FALSE)),"",VLOOKUP($A178,#REF!,8,FALSE)) ->  | X178: =IF(ISERROR(VLOOKUP($A178,#REF!,9,FALSE)),"",VLOOKUP($A178,#REF!,9,FALSE)) ->  | Y178: =IF(ISERROR(VLOOKUP($A178,#REF!,10,FALSE)),0,VLOOKUP($A178,#REF!,10,FALSE)) -> 00:00:00
A179: 0_93_3 | B179: =IF(COUNTIF(Validations!$AB$8:$AB$56,A179)=1,1,"") ->  | D179: 93 | E179: 3 | F179: T | G179: =IF(ISNA(VLOOKUP(D179,Rows[],4,FALSE)),"",VLOOKUP(D179,Rows[],4,FALSE)) -> H6g - Cyfanswm Premiwm ail gartref | H179: =IF(ISERROR(VLOOKUP($A179&"_"&H$10,qData1[],7,FALSE)),"",VLOOKUP($A179&"_"&H$10,qData1[],7,FALSE)) ->  | I179: =IF(ISERROR(VLOOKUP($A179&"_"&I$10,qData1[],7,FALSE)),0,VLOOKUP($A179&"_"&I$10,qData1[],7,FALSE)) -> 0 | J179: 0 | K179: 0 | L179: 0 | M179: =IF(ISNA(VLOOKUP($D179&"_"&$E179,Tol[],6,FALSE)),$M$7,VLOOKUP($D179&"_"&$E179,Tol[],6,FALSE)) -> 100 | N179: =IF(ISNA(VLOOKUP($D179&"_"&$E179,Tol[],7,FALSE)),$N$7*100,VLOOKUP($D179&"_"&$E179,Tol[],7,FALSE)*100) -> 10 | O179: 1 | P179: 1 | W179: =IF(ISERROR(VLOOKUP($A179,#REF!,8,FALSE)),"",VLOOKUP($A179,#REF!,8,FALSE)) ->  | X179: =IF(ISERROR(VLOOKUP($A179,#REF!,9,FALSE)),"",VLOOKUP($A179,#REF!,9,FALSE)) ->  | Y179: =IF(ISERROR(VLOOKUP($A179,#REF!,10,FALSE)),0,VLOOKUP($A179,#REF!,10,FALSE)) -> 00:00:00
A180: 0_93_4 | B180: =IF(COUNTIF(Validations!$AB$8:$AB$56,A180)=1,1,"") ->  | D180: 93 | E180: 4 | F180: T | G180: =IF(ISNA(VLOOKUP(D180,Rows[],4,FALSE)),"",VLOOKUP(D180,Rows[],4,FALSE)) -> H6g - Cyfanswm Premiwm ail gartref | H180: =IF(ISERROR(VLOOKUP($A180&"_"&H$10,qData1[],7,FALSE)),"",VLOOKUP($A180&"_"&H$10,qData1[],7,FALSE)) ->  | I180: =IF(ISERROR(VLOOKUP($A180&"_"&I$10,qData1[],7,FALSE)),0,VLOOKUP($A180&"_"&I$10,qData1[],7,FALSE)) -> 0 | J180: 0 | K180: 0 | L180: 0 | M180: =IF(ISNA(VLOOKUP($D180&"_"&$E180,Tol[],6,FALSE)),$M$7,VLOOKUP($D180&"_"&$E180,Tol[],6,FALSE)) -> 100 | N180: =IF(ISNA(VLOOKUP($D180&"_"&$E180,Tol[],7,FALSE)),$N$7*100,VLOOKUP($D180&"_"&$E180,Tol[],7,FALSE)*100) -> 10 | O180: 1 | P180: 1 | W180: =IF(ISERROR(VLOOKUP($A180,#REF!,8,FALSE)),"",VLOOKUP($A180,#REF!,8,FALSE)) ->  | X180: =IF(ISERROR(VLOOKUP($A180,#REF!,9,FALSE)),"",VLOOKUP($A180,#REF!,9,FALSE)) ->  | Y180: =IF(ISERROR(VLOOKUP($A180,#REF!,10,FALSE)),0,VLOOKUP($A180,#REF!,10,FALSE)) -> 00:00:00
A181: 0_93_5 | B181: =IF(COUNTIF(Validations!$AB$8:$AB$56,A181)=1,1,"") ->  | D181: 93 | E181: 5 | F181: T | G181: =IF(ISNA(VLOOKUP(D181,Rows[],4,FALSE)),"",VLOOKUP(D181,Rows[],4,FALSE)) -> H6g - Cyfanswm Premiwm ail gartref | H181: =IF(ISERROR(VLOOKUP($A181&"_"&H$10,qData1[],7,FALSE)),"",VLOOKUP($A181&"_"&H$10,qData1[],7,FALSE)) ->  | I181: =IF(ISERROR(VLOOKUP($A181&"_"&I$10,qData1[],7,FALSE)),0,VLOOKUP($A181&"_"&I$10,qData1[],7,FALSE)) -> 0 | J181: 0 | K181: 0 | L181: 0 | M181: =IF(ISNA(VLOOKUP($D181&"_"&$E181,Tol[],6,FALSE)),$M$7,VLOOKUP($D181&"_"&$E181,Tol[],6,FALSE)) -> 100 | N181: =IF(ISNA(VLOOKUP($D181&"_"&$E181,Tol[],7,FALSE)),$N$7*100,VLOOKUP($D181&"_"&$E181,Tol[],7,FALSE)*100) -> 10 | O181: 1 | P181: 1 | W181: =IF(ISERROR(VLOOKUP($A181,#REF!,8,FALSE)),"",VLOOKUP($A181,#REF!,8,FALSE)) ->  | X181: =IF(ISERROR(VLOOKUP($A181,#REF!,9,FALSE)),"",VLOOKUP($A181,#REF!,9,FALSE)) ->  | Y181: =IF(ISERROR(VLOOKUP($A181,#REF!,10,FALSE)),0,VLOOKUP($A181,#REF!,10,FALSE)) -> 00:00:00
A182: 0_93_6 | B182: =IF(COUNTIF(Validations!$AB$8:$AB$56,A182)=1,1,"") ->  | D182: 93 | E182: 6 | F182: T | G182: =IF(ISNA(VLOOKUP(D182,Rows[],4,FALSE)),"",VLOOKUP(D182,Rows[],4,FALSE)) -> H6g - Cyfanswm Premiwm ail gartref | H182: =IF(ISERROR(VLOOKUP($A182&"_"&H$10,qData1[],7,FALSE)),"",VLOOKUP($A182&"_"&H$10,qData1[],7,FALSE)) ->  | I182: =IF(ISERROR(VLOOKUP($A182&"_"&I$10,qData1[],7,FALSE)),0,VLOOKUP($A182&"_"&I$10,qData1[],7,FALSE)) -> 0 | J182: 0 | K182: 0 | L182: 0 | M182: =IF(ISNA(VLOOKUP($D182&"_"&$E182,Tol[],6,FALSE)),$M$7,VLOOKUP($D182&"_"&$E182,Tol[],6,FALSE)) -> 100 | N182: =IF(ISNA(VLOOKUP($D182&"_"&$E182,Tol[],7,FALSE)),$N$7*100,VLOOKUP($D182&"_"&$E182,Tol[],7,FALSE)*100) -> 10 | O182: 1 | P182: 1 | W182: =IF(ISERROR(VLOOKUP($A182,#REF!,8,FALSE)),"",VLOOKUP($A182,#REF!,8,FALSE)) ->  | X182: =IF(ISERROR(VLOOKUP($A182,#REF!,9,FALSE)),"",VLOOKUP($A182,#REF!,9,FALSE)) ->  | Y182: =IF(ISERROR(VLOOKUP($A182,#REF!,10,FALSE)),0,VLOOKUP($A182,#REF!,10,FALSE)) -> 00:00:00
A183: 0_93_7 | B183: =IF(COUNTIF(Validations!$AB$8:$AB$56,A183)=1,1,"") ->  | D183: 93 | E183: 7 | F183: T | G183: =IF(ISNA(VLOOKUP(D183,Rows[],4,FALSE)),"",VLOOKUP(D183,Rows[],4,FALSE)) -> H6g - Cyfanswm Premiwm ail gartref | H183: =IF(ISERROR(VLOOKUP($A183&"_"&H$10,qData1[],7,FALSE)),"",VLOOKUP($A183&"_"&H$10,qData1[],7,FALSE)) ->  | I183: =IF(ISERROR(VLOOKUP($A183&"_"&I$10,qData1[],7,FALSE)),0,VLOOKUP($A183&"_"&I$10,qData1[],7,FALSE)) -> 0 | J183: 0 | K183: 0 | L183: 0 | M183: =IF(ISNA(VLOOKUP($D183&"_"&$E183,Tol[],6,FALSE)),$M$7,VLOOKUP($D183&"_"&$E183,Tol[],6,FALSE)) -> 100 | N183: =IF(ISNA(VLOOKUP($D183&"_"&$E183,Tol[],7,FALSE)),$N$7*100,VLOOKUP($D183&"_"&$E183,Tol[],7,FALSE)*100) -> 10 | O183: 1 | P183: 1 | W183: =IF(ISERROR(VLOOKUP($A183,#REF!,8,FALSE)),"",VLOOKUP($A183,#REF!,8,FALSE)) ->  | X183: =IF(ISERROR(VLOOKUP($A183,#REF!,9,FALSE)),"",VLOOKUP($A183,#REF!,9,FALSE)) ->  | Y183: =IF(ISERROR(VLOOKUP($A183,#REF!,10,FALSE)),0,VLOOKUP($A183,#REF!,10,FALSE)) -> 00:00:00
A184: 0_93_8 | B184: =IF(COUNTIF(Validations!$AB$8:$AB$56,A184)=1,1,"") ->  | D184: 93 | E184: 8 | F184: T | G184: =IF(ISNA(VLOOKUP(D184,Rows[],4,FALSE)),"",VLOOKUP(D184,Rows[],4,FALSE)) -> H6g - Cyfanswm Premiwm ail gartref | H184: =IF(ISERROR(VLOOKUP($A184&"_"&H$10,qData1[],7,FALSE)),"",VLOOKUP($A184&"_"&H$10,qData1[],7,FALSE)) ->  | I184: =IF(ISERROR(VLOOKUP($A184&"_"&I$10,qData1[],7,FALSE)),0,VLOOKUP($A184&"_"&I$10,qData1[],7,FALSE)) -> 0 | J184: 0 | K184: 0 | L184: 0 | M184: =IF(ISNA(VLOOKUP($D184&"_"&$E184,Tol[],6,FALSE)),$M$7,VLOOKUP($D184&"_"&$E184,Tol[],6,FALSE)) -> 100 | N184: =IF(ISNA(VLOOKUP($D184&"_"&$E184,Tol[],7,FALSE)),$N$7*100,VLOOKUP($D184&"_"&$E184,Tol[],7,FALSE)*100) -> 10 | O184: 1 | P184: 1 | W184: =IF(ISERROR(VLOOKUP($A184,#REF!,8,FALSE)),"",VLOOKUP($A184,#REF!,8,FALSE)) ->  | X184: =IF(ISERROR(VLOOKUP($A184,#REF!,9,FALSE)),"",VLOOKUP($A184,#REF!,9,FALSE)) ->  | Y184: =IF(ISERROR(VLOOKUP($A184,#REF!,10,FALSE)),0,VLOOKUP($A184,#REF!,10,FALSE)) -> 00:00:00
A185: 0_93_9 | B185: =IF(COUNTIF(Validations!$AB$8:$AB$56,A185)=1,1,"") ->  | D185: 93 | E185: 9 | F185: T | G185: =IF(ISNA(VLOOKUP(D185,Rows[],4,FALSE)),"",VLOOKUP(D185,Rows[],4,FALSE)) -> H6g - Cyfanswm Premiwm ail gartref | H185: =IF(ISERROR(VLOOKUP($A185&"_"&H$10,qData1[],7,FALSE)),"",VLOOKUP($A185&"_"&H$10,qData1[],7,FALSE)) ->  | I185: =IF(ISERROR(VLOOKUP($A185&"_"&I$10,qData1[],7,FALSE)),0,VLOOKUP($A185&"_"&I$10,qData1[],7,FALSE)) -> 0 | J185: 0 | K185: 0 | L185: 0 | M185: =IF(ISNA(VLOOKUP($D185&"_"&$E185,Tol[],6,FALSE)),$M$7,VLOOKUP($D185&"_"&$E185,Tol[],6,FALSE)) -> 100 | N185: =IF(ISNA(VLOOKUP($D185&"_"&$E185,Tol[],7,FALSE)),$N$7*100,VLOOKUP($D185&"_"&$E185,Tol[],7,FALSE)*100) -> 10 | O185: 1 | P185: 1 | W185: =IF(ISERROR(VLOOKUP($A185,#REF!,8,FALSE)),"",VLOOKUP($A185,#REF!,8,FALSE)) ->  | X185: =IF(ISERROR(VLOOKUP($A185,#REF!,9,FALSE)),"",VLOOKUP($A185,#REF!,9,FALSE)) ->  | Y185: =IF(ISERROR(VLOOKUP($A185,#REF!,10,FALSE)),0,VLOOKUP($A185,#REF!,10,FALSE)) -> 00:00:00
A186: 0_93_10 | B186: =IF(COUNTIF(Validations!$AB$8:$AB$56,A186)=1,1,"") ->  | D186: 93 | E186: 10 | F186: T | G186: =IF(ISNA(VLOOKUP(D186,Rows[],4,FALSE)),"",VLOOKUP(D186,Rows[],4,FALSE)) -> H6g - Cyfanswm Premiwm ail gartref | H186: =IF(ISERROR(VLOOKUP($A186&"_"&H$10,qData1[],7,FALSE)),"",VLOOKUP($A186&"_"&H$10,qData1[],7,FALSE)) ->  | I186: =IF(ISERROR(VLOOKUP($A186&"_"&I$10,qData1[],7,FALSE)),0,VLOOKUP($A186&"_"&I$10,qData1[],7,FALSE)) -> 0 | J186: 0 | K186: 0 | L186: 0 | M186: =IF(ISNA(VLOOKUP($D186&"_"&$E186,Tol[],6,FALSE)),$M$7,VLOOKUP($D186&"_"&$E186,Tol[],6,FALSE)) -> 100 | N186: =IF(ISNA(VLOOKUP($D186&"_"&$E186,Tol[],7,FALSE)),$N$7*100,VLOOKUP($D186&"_"&$E186,Tol[],7,FALSE)*100) -> 10 | O186: 1 | P186: 1 | W186: =IF(ISERROR(VLOOKUP($A186,#REF!,8,FALSE)),"",VLOOKUP($A186,#REF!,8,FALSE)) ->  | X186: =IF(ISERROR(VLOOKUP($A186,#REF!,9,FALSE)),"",VLOOKUP($A186,#REF!,9,FALSE)) ->  | Y186: =IF(ISERROR(VLOOKUP($A186,#REF!,10,FALSE)),0,VLOOKUP($A186,#REF!,10,FALSE)) -> 00:00:00
A187: 0_93_11 | B187: =IF(COUNTIF(Validations!$AB$8:$AB$56,A187)=1,1,"") ->  | D187: 93 | E187: 11 | F187: T | G187: =IF(ISNA(VLOOKUP(D187,Rows[],4,FALSE)),"",VLOOKUP(D187,Rows[],4,FALSE)) -> H6g - Cyfanswm Premiwm ail gartref | H187: =IF(ISERROR(VLOOKUP($A187&"_"&H$10,qData1[],7,FALSE)),"",VLOOKUP($A187&"_"&H$10,qData1[],7,FALSE)) ->  | I187: =IF(ISERROR(VLOOKUP($A187&"_"&I$10,qData1[],7,FALSE)),0,VLOOKUP($A187&"_"&I$10,qData1[],7,FALSE)) -> 0 | J187: 0 | K187: 0 | L187: 0 | M187: =IF(ISNA(VLOOKUP($D187&"_"&$E187,Tol[],6,FALSE)),$M$7,VLOOKUP($D187&"_"&$E187,Tol[],6,FALSE)) -> 100 | N187: =IF(ISNA(VLOOKUP($D187&"_"&$E187,Tol[],7,FALSE)),$N$7*100,VLOOKUP($D187&"_"&$E187,Tol[],7,FALSE)*100) -> 10 | O187: 1 | P187: 1 | W187: =IF(ISERROR(VLOOKUP($A187,#REF!,8,FALSE)),"",VLOOKUP($A187,#REF!,8,FALSE)) ->  | X187: =IF(ISERROR(VLOOKUP($A187,#REF!,9,FALSE)),"",VLOOKUP($A187,#REF!,9,FALSE)) ->  | Y187: =IF(ISERROR(VLOOKUP($A187,#REF!,10,FALSE)),0,VLOOKUP($A187,#REF!,10,FALSE)) -> 00:00:00

Sheet Comments
C2: =PartsAtoD!C1 -> Cod: 0 Awdurdod: Dewiswch eich awdurdod | H2: =PartsAtoD!O1 -> CT1 2026-27
C5: =Text!F122 -> Dyluniad y ffurflen
C8: =Text!F123 -> Dilysu
C11: =Text!F124 -> Dogfennaeth
C14: =Text!F125 -> Sylwadau cyffredinol

Sheet Survey Response Burden
C2: =PartsAtoD!C1 -> Cod: 0 Awdurdod: Dewiswch eich awdurdod | I2: =PartsAtoD!O1 -> CT1 2026-27
C5: =Text!F110 -> Y Baich o Ymateb i'r Arolwg
C6: =Text!F111 -> Mae Llywodraeth Cymru yn monitro'r baich o lenwi'r ffurflen casglu data hon.
C7: =Text!F112 -> Nodwch yr amser a gymerwyd gennych chi (ac unrhyw gydweithwyr) i baratoi ac anfon y ffurflen.
C8: =Text!F113 -> Dylech gynnwys yr amser a dreuliwyd ar weithgarwch i baratoi ac anfon y ffurflen hon yn unig, megis:
C9: =" ● "&Text!F114 -> ● casglu, dadansoddi a chyfuno'r cofnodion a'r data gofynnol
C10: =" ● "&Text!F115 -> ● cwblhau, gwirio, diwygio a chymeradwyo'r ffurflen.
C12: =Text!F116 -> Nifer yr oriau
C14: =Text!F117 -> Mae croeso i chi ychwanegu unrhyw sylwadau

Sheet ValidationData (hidden)
B2: Grand Total Check: | C2: =T55+P82+J90+BO75+BO6 -> 
A3: UPDATED FOR 2026-27
A4: VOAList | C4: Agency Check Date | D4: ="25/09/"&LEFT(Transfer!X2,4) -> 25/09/2025 | F4: feeds into VOA section of validation sheet | S4: Negation Checks
A5: Index | B5: Area Name | C5: Attribute | D5: Value | E5: UACode | G5: qryVOAData | H5: Z:\stats\sd3\Revenue\Council Tax\Dwellings\CT1.mdb | S5: PartAtoD | AI5: PartH | AZ5: PartH | BM5: Part H
A6: =E6&C6 -> 512A | B6: Isle of Anglesey | C6: A | D6: 4972 | E6: 512 | K6: Row Data for populating RowRef table in CT1 database - do not delete | S6: Link to Sheet | AI6: Link to sheet | AZ6: Pivot from Transfer Sheet (_tab1) | BN6: ZeroCheck | BO6: =SUM(BO8:BY8) -> 
A7: 512B | B7: Isle of Anglesey | C7: B | D7: 6948 | E7: 512 | G7: Range: PartF (DO NOT DELETE) | K7: RowRef | L7: RowDesc | S7: =PartsAtoD!B3 -> 0 | T7: =PartsAtoD!C3 -> 0 | U7: =PartsAtoD!D3 -> 0 | V7: =PartsAtoD!E3 -> 1 | W7: =PartsAtoD!F3 -> 2 | X7: =PartsAtoD!G3 -> 3 | Y7: =PartsAtoD!H3 -> 4 | Z7: =PartsAtoD!I3 -> 5 | AA7: =PartsAtoD!J3 -> 6 | AB7: =PartsAtoD!K3 -> 7 | AC7: =PartsAtoD!L3 -> 8 | AD7: =PartsAtoD!M3 -> 9 | AE7: =PartsAtoD!N3 -> 10 | AF7: =PartsAtoD!O3 -> 11 | AI7: =PartH!B4 -> 0 | AJ7: =PartH!C4 -> 0 | AK7: =PartH!D4 -> 12 | AL7: =PartH!E4 -> 2 | AM7: =PartH!F4 -> 3 | AN7: =PartH!G4 -> 4 | AO7: =PartH!H4 -> 5 | AP7: =PartH!I4 -> 6 | AQ7: =PartH!J4 -> 7 | AR7: =PartH!K4 -> 8 | AS7: =PartH!L4 -> 9 | AT7: =PartH!M4 -> 10 | AU7: =PartH!N4 -> 11
A8: 512C | B8: Isle of Anglesey | C8: C | D8: 7210 | E8: 512 | G8: 28 | H8: A | I8: =PartsEandF!E26 -> 0 | K8: =PartH!B7 -> 64 | L8: =PartH!C7&" - "&PartH!D7 -> H1 - Eiddo gwag trethadwy (dros 6 mis) heb unrhyw ddisgownt na phremiwm | O8: =K8 -> 64 | P8: =LEFT(L8,3) -> H1 | S8: =PartsAtoD!B4 -> 0 | T8: =PartsAtoD!C4 -> 0 | U8: =PartsAtoD!D4 -> 0 | V8: =PartsAtoD!E4 -> 0 | W8: =PartsAtoD!F4 -> 0 | X8: =PartsAtoD!G4 -> 0 | Y8: =PartsAtoD!H4 -> 0 | Z8: =PartsAtoD!I4 -> 0 | AA8: =PartsAtoD!J4 -> 0 | AB8: =PartsAtoD!K4 -> 0 | AC8: =PartsAtoD!L4 -> 0 | AD8: =PartsAtoD!M4 -> 0 | AE8: =PartsAtoD!N4 -> 0 | AF8: =PartsAtoD!O4 -> 0 | AI8: =PartH!B5 -> 0 | AJ8: =PartH!C5 -> 0 | AK8: =PartH!D5 -> Cofnodwch y nifer gwirioneddol o anheddau | AL8: =PartH!E5 -> 0 | AM8: =PartH!F5 -> 0 | AN8: =PartH!G5 -> 0 | AO8: =PartH!H5 -> 0 | AP8: =PartH!I5 -> 0 | AQ8: =PartH!J5 -> 0 | AR8: =PartH!K5 -> 0 | AS8: =PartH!L5 -> 0 | AT8: =PartH!M5 -> 0 | AU8: =PartH!N5 -> 0 | AZ8: Sum of Data2 | BA8: ColumnRef | BO8: =SUM(BO10:BO69) -> 0 | BP8: =SUM(BP10:BP69) -> 
A9: 512D | B9: Isle of Anglesey | C9: D | D9: 7419 | E9: 512 | G9: 29 | H9: B | I9: =PartsEandF!E28 -> 0 | K9: =PartH!B10 -> 65 | L9: =PartH!C10&" - "&PartH!D10 -> H2 - Ail gartrefi sydd yn daladwy heb ddisgownt na phremiwm | O9: 65 | P9: H2 | S9: =PartsAtoD!B5 -> 0 | T9: =PartsAtoD!C5 -> 0 | U9: =PartsAtoD!D5 -> 0 | V9: =PartsAtoD!E5 -> 0 | W9: =PartsAtoD!F5 -> 0 | X9: =PartsAtoD!G5 -> 0 | Y9: =PartsAtoD!H5 -> 0 | Z9: =PartsAtoD!I5 -> 0 | AA9: =PartsAtoD!J5 -> band priso | AB9: =PartsAtoD!K5 -> 0 | AC9: =PartsAtoD!L5 -> 0 | AD9: =PartsAtoD!M5 -> 0 | AE9: =PartsAtoD!N5 -> 0 | AF9: =PartsAtoD!O5 -> Cyfanswm ( = swm ffigurau pob band ) | AI9: =PartH!B6 -> 0 | AJ9: =PartH!C6 -> 0 | AK9: =PartH!D6 -> 0 | AL9: =PartH!E6 -> A | AM9: =PartH!F6 -> B | AN9: =PartH!G6 -> C | AO9: =PartH!H6 -> D | AP9: =PartH!I6 -> E | AQ9: =PartH!J6 -> F | AR9: =PartH!K6 -> G | AS9: =PartH!L6 -> H | AT9: =PartH!M6 -> I | AU9: =PartH!N6 -> Cyfanswm | AV9: Row Count | AZ9: rowref | BA9: 1 | BB9: 12 | BC9: 2 | BD9: 3 | BE9: 4 | BF9: 5 | BG9: 6 | BH9: 7 | BI9: 8 | BJ9: 9 | BK9: 10 | BL9: 11 | BO9: =BA9 -> 1 | BP9: 12 | BQ9: 2 | BR9: 3 | BS9: 4 | BT9: 5 | BU9: =BG9 -> 6 | BV9: =BH9 -> 7 | BW9: =BI9 -> 8 | BX9: =BJ9 -> 9 | BY9: =BK9 -> 10
A10: 512E | B10: Isle of Anglesey | C10: E | D10: 5562 | E10: 512 | G10: 30 | H10: C | I10: =PartsEandF!E30 -> 0 | K10: =PartH!B16 -> 67 | L10: =PartH!C16&" - "&PartH!$D$13&" "&PartH!D16&"%" -> H3b - Disgownt eiddo gwag 25% | O10: 67 | P10: H3b | S10: =PartsAtoD!B6 -> 0 | V10: =PartsAtoD!E6 -> A* | W10: =PartsAtoD!F6 -> A | X10: =PartsAtoD!G6 -> B | Y10: =PartsAtoD!H6 -> C | Z10: =PartsAtoD!I6 -> D | AA10: =PartsAtoD!J6 -> E | AB10: =PartsAtoD!K6 -> F | AC10: =PartsAtoD!L6 -> G | AD10: =PartsAtoD!M6 -> H | AE10: =PartsAtoD!N6 -> I | AG10: Row Count | AI10: =PartH!B7 -> 64 | AJ10: =PartH!C7 -> H1 | AK10: =PartH!D7 -> Eiddo gwag trethadwy (dros 6 mis) heb unrhyw ddisgownt na phremiwm | AL10: =PartH!E7 -> 0 | AM10: =PartH!F7 -> 0 | AN10: =PartH!G7 -> 0 | AO10: =PartH!H7 -> 0 | AP10: =PartH!I7 -> 0 | AQ10: =PartH!J7 -> 0 | AR10: =PartH!K7 -> 0 | AS10: =PartH!L7 -> 0 | AT10: =PartH!M7 -> 0 | AU10: =PartH!N7 -> 0 | AV10: =COUNT(AK10:AU10) -> 10 | AZ10: 64 | BC10: 0 | BD10: 0 | BE10: 0 | BF10: 0 | BG10: 0 | BH10: 0 | BI10: 0 | BJ10: 0 | BK10: 0 | BL10: 0 | BN10: =AZ10 -> 64 | BP10: =AK10-BB10 ->  | BQ10: =AL10-BC10 -> 0 | BR10: =AM10-BD10 -> 0 | BS10: 0 | BT10: 0 | BU10: 0 | BV10: 0 | BW10: 0 | BX10: 0 | BY10: 0
A11: 512F | B11: Isle of Anglesey | C11: F | D11: 2786 | E11: 512 | G11: 31 | H11: D | I11: =PartsEandF!E32 -> 0 | K11: =PartH!B17 -> 68 | L11: =PartH!C17&" - "&PartH!$D$13&" "&PartH!D17&"%" -> H3c - Disgownt eiddo gwag 50% | O11: 68 | P11: H3c | S11: =PartsAtoD!B7 -> 1 | T11: =PartsAtoD!C7 -> A1 | U11: =PartsAtoD!D7 -> Holl anheddau trethadwy | W11: =PartsAtoD!F7 -> 0 | X11: =PartsAtoD!G7 -> 0 | Y11: =PartsAtoD!H7 -> 0 | Z11: =PartsAtoD!I7 -> 0 | AA11: =PartsAtoD!J7 -> 0 | AB11: =PartsAtoD!K7 -> 0 | AC11: =PartsAtoD!L7 -> 0 | AD11: =PartsAtoD!M7 -> 0 | AE11: =PartsAtoD!N7 -> 0 | AF11: =PartsAtoD!O7 -> 0 | AG11: =COUNT(V11:AF11) -> 10 | AI11: =PartH!B10 -> 65 | AJ11: =PartH!C10 -> H2 | AK11: =PartH!D10 -> Ail gartrefi sydd yn daladwy heb ddisgownt na phremiwm | AL11: =PartH!E10 -> 0 | AM11: =PartH!F10 -> 0 | AN11: =PartH!G10 -> 0 | AO11: =PartH!H10 -> 0 | AP11: =PartH!I10 -> 0 | AQ11: =PartH!J10 -> 0 | AR11: =PartH!K10 -> 0 | AS11: =PartH!L10 -> 0 | AT11: =PartH!M10 -> 0 | AU11: =PartH!N10 -> 0 | AV11: =COUNT(AK11:AU11) -> 10 | AZ11: 65 | BC11: 0 | BD11: 0 | BE11: 0 | BF11: 0 | BG11: 0 | BH11: 0 | BI11: 0 | BJ11: 0 | BK11: 0 | BL11: 0 | BN11: 65 | BP11: =AK11-BB11 ->  | BQ11: =AL11-BC11 -> 0 | BR11: =AM11-BD11 -> 0 | BS11: =AN11-BE11 -> 0 | BT11: =AO11-BF11 -> 0 | BU11: =AP11-BG11 -> 0 | BV11: =AQ11-BH11 -> 0 | BW11: =AR11-BI11 -> 0 | BX11: =AS11-BJ11 -> 0 | BY11: =AT11-BK11 -> 0
A12: 512G | B12: Isle of Anglesey | C12: G | D12: 1086 | E12: 512 | G12: 32 | H12: E | I12: =PartsEandF!E34 -> 0 | K12: =PartH!B18 -> 70 | L12: =PartH!C18&" - "&PartH!$D$13&" "&PartH!D18&"%" -> H3e - Disgownt eiddo gwag 100% | O12: 70 | P12: H3e | S12: =PartsAtoD!B8 -> 2 | T12: =PartsAtoD!C8 -> A2 | U12: =PartsAtoD!D8 -> Anheddau sy'n derbyn gostyngiad anabledd ( sy'n gynwysedig yn llinell A1 ) | W12: =PartsAtoD!F8 -> 0 | X12: =PartsAtoD!G8 -> 0 | Y12: =PartsAtoD!H8 -> 0 | Z12: =PartsAtoD!I8 -> 0 | AA12: =PartsAtoD!J8 -> 0 | AB12: =PartsAtoD!K8 -> 0 | AC12: =PartsAtoD!L8 -> 0 | AD12: =PartsAtoD!M8 -> 0 | AE12: =PartsAtoD!N8 -> 0 | AF12: =PartsAtoD!O8 -> 0 | AG12: =COUNT(V12:AF12) -> 10 | AI12: =PartH!B12 -> 0 | AJ12: =PartH!C12 -> 0 | AK12: =PartH!D12 -> 0 | AL12: =PartH!E12 -> 0 | AM12: =PartH!F12 -> 0 | AN12: =PartH!G12 -> 0 | AO12: =PartH!H12 -> 0 | AP12: =PartH!I12 -> 0 | AQ12: =PartH!J12 -> 0 | AR12: =PartH!K12 -> 0 | AS12: =PartH!L12 -> 0 | AT12: =PartH!M12 -> 0 | AU12: =PartH!N12 -> 0 | AV12: 11 | AZ12: 67 | BB12: 25 | BC12: 0 | BD12: 0 | BE12: 0 | BF12: 0 | BG12: 0 | BH12: 0 | BI12: 0 | BJ12: 0 | BK12: 0 | BL12: 0 | BN12: 67 | BP12: -25 | BQ12: 0 | BR12: 0 | BS12: 0 | BT12: 0 | BU12: 0 | BV12: 0 | BW12: 0 | BX12: 0 | BY12: 0
A13: 512H | B13: Isle of Anglesey | C13: H | D13: 170 | E13: 512 | G13: 33 | H13: F | I13: =PartsEandF!E36 -> 0 | K13: =PartH!B19 -> 71 | L13: =PartH!C19&" - "&PartH!$D$13&" "&PartH!D19&"%" -> H3f - Disgownt eiddo gwag 0% | O13: 71 | P13: H3f | S13: =PartsAtoD!B9 -> 3 | T13: =PartsAtoD!C9 -> A3 | U13: =PartsAtoD!D9 -> Cyfanswm yr anheddau trethadwy wedi'i addasu ( gan gymryd i ystyriaeth y gostyngiadau anabledd ) | V13: =PartsAtoD!E9 -> 0 | W13: =PartsAtoD!F9 -> 0 | X13: =PartsAtoD!G9 -> 0 | Y13: =PartsAtoD!H9 -> 0 | Z13: =PartsAtoD!I9 -> 0 | AA13: =PartsAtoD!J9 -> 0 | AB13: =PartsAtoD!K9 -> 0 | AC13: =PartsAtoD!L9 -> 0 | AD13: =PartsAtoD!M9 -> 0 | AE13: =PartsAtoD!N9 -> 0 | AF13: =PartsAtoD!O9 -> 0 | AG13: 11 | AI13: =PartH!B13 -> 0 | AJ13: =PartH!C13 -> 0 | AK13: =PartH!D13 -> Disgownt eiddo gwag | AL13: =PartH!E13 -> 0 | AM13: =PartH!F13 -> 0 | AN13: =PartH!G13 -> 0 | AO13: =PartH!H13 -> 0 | AP13: =PartH!I13 -> 0 | AQ13: =PartH!J13 -> 0 | AR13: =PartH!K13 -> 0 | AS13: =PartH!L13 -> 0 | AT13: =PartH!M13 -> 0 | AU13: =PartH!N13 -> 0 | AV13: 10 | AZ13: 68 | BB13: 50 | BC13: 0 | BD13: 0 | BE13: 0 | BF13: 0 | BG13: 0 | BH13: 0 | BI13: 0 | BJ13: 0 | BK13: 0 | BL13: 0 | BN13: 68 | BQ13: 0 | BR13: 0 | BS13: 0 | BT13: 0 | BU13: 0 | BV13: 0 | BW13: 0 | BX13: 0 | BY13: 0
A14: 512I | B14: Isle of Anglesey | C14: I | D14: 55 | E14: 512 | G14: 34 | H14: G | I14: =PartsEandF!E38 -> 0 | K14: =PartH!B20 -> 71.1 | L14: =PartH!C20&" - "&PartH!$D$13&" "&PartH!D20&"%" -> H3fa - Disgownt eiddo gwag 0% | O14: 71.1 | P14: H3f | S14: =PartsAtoD!B11 -> 4 | T14: =PartsAtoD!C11 -> B1 | U14: =PartsAtoD!D11 -> Anheddau heb ddisgownt neu premiwm (gan gynnwys eiddo gwag hirdymor ac ail gartrefi heb ddisgownt neu premiwm) | V14: =PartsAtoD!E11 -> 0 | W14: =PartsAtoD!F11 -> 0 | X14: =PartsAtoD!G11 -> 0 | Y14: =PartsAtoD!H11 -> 0 | Z14: =PartsAtoD!I11 -> 0 | AA14: =PartsAtoD!J11 -> 0 | AB14: =PartsAtoD!K11 -> 0 | AC14: =PartsAtoD!L11 -> 0 | AD14: =PartsAtoD!M11 -> 0 | AE14: =PartsAtoD!N11 -> 0 | AF14: =PartsAtoD!O11 -> 0 | AG14: 11 | AI14: =PartH!B14 -> 0 | AJ14: =PartH!C14 -> 0 | AK14: =PartH!D14 -> Nodwch yn ôl band a gostyngiad canrannol, nifer yr anheddau sy'n wag. | AL14: =PartH!E14 -> 0 | AM14: =PartH!F14 -> 0 | AN14: =PartH!G14 -> 0 | AO14: =PartH!H14 -> 0 | AP14: =PartH!I14 -> 0 | AQ14: =PartH!J14 -> 0 | AR14: =PartH!K14 -> 0 | AS14: =PartH!L14 -> 0 | AT14: =PartH!M14 -> 0 | AU14: =PartH!N14 -> 0 | AV14: 10 | AZ14: 70 | BB14: 100 | BC14: 0 | BD14: 0 | BE14: 0 | BF14: 0 | BG14: 0 | BH14: 0 | BI14: 0 | BJ14: 0 | BK14: 0 | BL14: 0 | BN14: 70 | BQ14: 0 | BR14: 0 | BS14: 0 | BT14: 0 | BU14: 0 | BV14: 0 | BW14: 0 | BX14: 0 | BY14: 0
A15: 512ALL | B15: Isle of Anglesey | C15: ALL | D15: 36208 | E15: 512 | G15: 35 | H15: H | I15: =PartsEandF!E40 -> 0 | K15: =PartH!B21 -> 71.2 | L15: =PartH!C21&" - "&PartH!$D$13&" "&PartH!D21&"%" -> H3fb - Disgownt eiddo gwag 0% | O15: 71.2 | P15: H3f | S15: =PartsAtoD!B12 -> 4.1 | T15: =PartsAtoD!C12 -> B2a | U15: =PartsAtoD!D12 -> Anheddau gyda disgownt o 25% (ag eithrio eiddo gwag hirdymor ac ail gartrefi heb ddisgownt) | V15: =PartsAtoD!E12 -> 0 | W15: =PartsAtoD!F12 -> 0 | X15: =PartsAtoD!G12 -> 0 | Y15: =PartsAtoD!H12 -> 0 | Z15: =PartsAtoD!I12 -> 0 | AA15: =PartsAtoD!J12 -> 0 | AB15: =PartsAtoD!K12 -> 0 | AC15: =PartsAtoD!L12 -> 0 | AD15: =PartsAtoD!M12 -> 0 | AE15: =PartsAtoD!N12 -> 0 | AF15: =PartsAtoD!O12 -> 0 | AG15: 11 | AI15: =PartH!B15 -> 0 | AJ15: =PartH!C15 -> 0 | AK15: =PartH!D15 -> Canran disgownt | AL15: =PartH!E15 -> A | AM15: =PartH!F15 -> B | AN15: =PartH!G15 -> C | AO15: =PartH!H15 -> D | AP15: =PartH!I15 -> E | AQ15: =PartH!J15 -> F | AR15: =PartH!K15 -> G | AS15: =PartH!L15 -> H | AT15: =PartH!M15 -> I | AU15: =PartH!N15 -> Cyfanswm | AV15: 0 | AZ15: 71 | BB15: 0 | BC15: 0 | BD15: 0 | BE15: 0 | BF15: 0 | BG15: 0 | BH15: 0 | BI15: 0 | BJ15: 0 | BK15: 0 | BL15: 0 | BN15: 71
A16: 514A | B16: Gwynedd | C16: A | D16: 9386 | E16: 514 | G16: 36 | H16: I | I16: =PartsEandF!H26 -> 0 | K16: =PartH!B22 -> 72 | L16: =PartH!C22&" - "&PartH!$D$13&" "&PartH!D22&"%" -> H3g - Disgownt eiddo gwag Cyfanswm% | O16: 72 | P16: H3g | S16: =PartsAtoD!B13 -> 4.2 | T16: =PartsAtoD!C13 -> B2b | U16: =PartsAtoD!D13 -> Anheddau gyda disgownt o 50% (ag eithrio eiddo gwag hirdymor ac ail gartrefi heb ddisgownt) | V16: =PartsAtoD!E13 -> 0 | W16: =PartsAtoD!F13 -> 0 | X16: =PartsAtoD!G13 -> 0 | Y16: =PartsAtoD!H13 -> 0 | Z16: =PartsAtoD!I13 -> 0 | AA16: =PartsAtoD!J13 -> 0 | AB16: =PartsAtoD!K13 -> 0 | AC16: =PartsAtoD!L13 -> 0 | AD16: =PartsAtoD!M13 -> 0 | AE16: =PartsAtoD!N13 -> 0 | AF16: =PartsAtoD!O13 -> 0 | AG16: 11 | AI16: =PartH!B16 -> 67 | AJ16: =PartH!C16 -> H3b | AK16: =PartH!D16 -> 25 | AL16: =PartH!E16 -> 0 | AM16: =PartH!F16 -> 0 | AN16: =PartH!G16 -> 0 | AO16: =PartH!H16 -> 0 | AP16: =PartH!I16 -> 0 | AQ16: =PartH!J16 -> 0 | AR16: =PartH!K16 -> 0 | AS16: =PartH!L16 -> 0 | AT16: =PartH!M16 -> 0 | AU16: =PartH!N16 -> 0 | AV16: 11 | AZ16: 72 | BC16: 0 | BD16: 0 | BE16: 0 | BF16: 0 | BG16: 0 | BH16: 0 | BI16: 0 | BJ16: 0 | BK16: 0 | BL16: 0 | BN16: 72 | BP16: 25 | BQ16: 0 | BR16: 0 | BS16: 0 | BT16: 0 | BU16: 0 | BV16: 0 | BW16: 0 | BX16: 0 | BY16: 0
A17: 514B | B17: Gwynedd | C17: B | D17: 15847 | E17: 514 | G17: 37 | H17: J | I17: =PartsEandF!H28 -> 0 | K17: =PartH!B27 -> 74 | L17: =PartH!C27&" - "&PartH!$D$24&" "&PartH!D27&"%" -> H4b - Premiwm eiddo gwag hirdymor (dros 12 mis) 25% | O17: 74 | P17: H4b | S17: =PartsAtoD!B14 -> 7 | T17: =PartsAtoD!C14 -> B3a | U17: =PartsAtoD!D14 -> Anheddau gyda disgownt amrywiol ag eithrio 25% neu 50% (Rhan G, llinell 11) | V17: =PartsAtoD!E14 -> 0 | W17: =PartsAtoD!F14 -> 0 | X17: =PartsAtoD!G14 -> 0 | Y17: =PartsAtoD!H14 -> 0 | Z17: =PartsAtoD!I14 -> 0 | AA17: =PartsAtoD!J14 -> 0 | AB17: =PartsAtoD!K14 -> 0 | AC17: =PartsAtoD!L14 -> 0 | AD17: =PartsAtoD!M14 -> 0 | AE17: =PartsAtoD!N14 -> 0 | AF17: =PartsAtoD!O14 -> 0 | AG17: 11 | AI17: =PartH!B17 -> 68 | AJ17: =PartH!C17 -> H3c | AK17: =PartH!D17 -> 50 | AL17: =PartH!E17 -> 0 | AM17: =PartH!F17 -> 0 | AN17: =PartH!G17 -> 0 | AO17: =PartH!H17 -> 0 | AP17: =PartH!I17 -> 0 | AQ17: =PartH!J17 -> 0 | AR17: =PartH!K17 -> 0 | AS17: =PartH!L17 -> 0 | AT17: =PartH!M17 -> 0 | AU17: =PartH!N17 -> 0 | AV17: 11 | AZ17: 74 | BB17: 25 | BC17: 0 | BD17: 0 | BE17: 0 | BF17: 0 | BG17: 0 | BH17: 0 | BI17: 0 | BJ17: 0 | BK17: 0 | BL17: 0 | BN17: 74 | BP17: 25 | BQ17: 0 | BR17: 0 | BS17: 0 | BT17: 0 | BU17: 0 | BV17: 0 | BW17: 0 | BX17: 0 | BY17: 0
A18: 514C | B18: Gwynedd | C18: C | D18: 12739 | E18: 514 | G18: 38 | H18: K | I18: =PartsEandF!H30 -> 0 | K18: =PartH!B28 -> 75 | L18: =PartH!C28&" - "&PartH!$D$24&" "&PartH!D28&"%" -> H4c - Premiwm eiddo gwag hirdymor (dros 12 mis) 50% | O18: 75 | P18: H4c | S18: =PartsAtoD!B15 -> 7.1 | T18: =PartsAtoD!C15 -> B3b | U18: =PartsAtoD!D15 -> Anheddau gyda disgownt eiddo gwag hirdymor neu ail gartref | W18: =PartsAtoD!F15 -> 0 | X18: =PartsAtoD!G15 -> 0 | Y18: =PartsAtoD!H15 -> 0 | Z18: =PartsAtoD!I15 -> 0 | AA18: =PartsAtoD!J15 -> 0 | AB18: =PartsAtoD!K15 -> 0 | AC18: =PartsAtoD!L15 -> 0 | AD18: =PartsAtoD!M15 -> 0 | AE18: =PartsAtoD!N15 -> 0 | AF18: =PartsAtoD!O15 -> 0 | AG18: 10 | AI18: =PartH!B18 -> 70 | AJ18: =PartH!C18 -> H3e | AK18: =PartH!D18 -> 100 | AL18: =PartH!E18 -> 0 | AM18: =PartH!F18 -> 0 | AN18: =PartH!G18 -> 0 | AO18: =PartH!H18 -> 0 | AP18: =PartH!I18 -> 0 | AQ18: =PartH!J18 -> 0 | AR18: =PartH!K18 -> 0 | AS18: =PartH!L18 -> 0 | AT18: =PartH!M18 -> 0 | AU18: =PartH!N18 -> 0 | AV18: 11 | AZ18: 75 | BB18: 50 | BC18: 0 | BD18: 0 | BE18: 0 | BF18: 0 | BG18: 0 | BH18: 0 | BI18: 0 | BJ18: 0 | BK18: 0 | BL18: 0 | BN18: 75 | BP18: 50 | BQ18: 0 | BR18: 0 | BS18: 0 | BT18: 0 | BU18: 0 | BV18: 0 | BW18: 0 | BX18: 0 | BY18: 0
A19: 514D | B19: Gwynedd | C19: D | D19: 10783 | E19: 514 | G19: 39 | H19: L | I19: =PartsEandF!H32 -> 0 | K19: =PartH!B29 -> 77 | L19: =PartH!C29&" - "&PartH!$D$24&" "&PartH!D29&"%" -> H4e - Premiwm eiddo gwag hirdymor (dros 12 mis) 100% | O19: 77 | P19: H4e | S19: =PartsAtoD!B16 -> 7.2 | T19: =PartsAtoD!C16 -> B3c | U19: =PartsAtoD!D16 -> Anheddau gyda phremiwm eiddo gwag hirdymor neu ail gartref | W19: =PartsAtoD!F16 -> 0 | X19: =PartsAtoD!G16 -> 0 | Y19: =PartsAtoD!H16 -> 0 | Z19: =PartsAtoD!I16 -> 0 | AA19: =PartsAtoD!J16 -> 0 | AB19: =PartsAtoD!K16 -> 0 | AC19: =PartsAtoD!L16 -> 0 | AD19: =PartsAtoD!M16 -> 0 | AE19: =PartsAtoD!N16 -> 0 | AF19: =PartsAtoD!O16 -> 0 | AG19: 10 | AI19: =PartH!B19 -> 71 | AJ19: =PartH!C19 -> H3f | AK19: =PartH!D19 -> 0 | AL19: =PartH!E19 -> 0 | AM19: =PartH!F19 -> 0 | AN19: =PartH!G19 -> 0 | AO19: =PartH!H19 -> 0 | AP19: =PartH!I19 -> 0 | AQ19: =PartH!J19 -> 0 | AR19: =PartH!K19 -> 0 | AS19: =PartH!L19 -> 0 | AT19: =PartH!M19 -> 0 | AU19: =PartH!N19 -> 0 | AV19: 11 | AZ19: 77 | BB19: 100 | BC19: 0 | BD19: 0 | BE19: 0 | BF19: 0 | BG19: 0 | BH19: 0 | BI19: 0 | BJ19: 0 | BK19: 0 | BL19: 0 | BN19: 77 | BP19: -100 | BQ19: 0 | BR19: 0 | BS19: 0 | BT19: 0 | BU19: 0 | BV19: 0 | BW19: 0 | BX19: 0 | BY19: 0
A20: 514E | B20: Gwynedd | C20: E | D20: 8339 | E20: 514 | G20: 40 | H20: M | I20: =PartsEandF!H34 -> 0 | K20: =PartH!B30 -> 78 | L20: =PartH!C30&" - "&PartH!$D$24&" "&PartH!D30&"%" -> H4f - Premiwm eiddo gwag hirdymor (dros 12 mis) 0% | O20: 78 | P20: H4f | S20: =PartsAtoD!B17 -> 8 | T20: =PartsAtoD!C17 -> B4 | U20: =PartsAtoD!D17 -> Cyfanswm yr anheddau a addaswyd sydd yn daladwy (cyfanswm o B1 i B3c=A3) | V20: =PartsAtoD!E17 -> 0 | W20: =PartsAtoD!F17 -> 0 | X20: =PartsAtoD!G17 -> 0 | Y20: =PartsAtoD!H17 -> 0 | Z20: =PartsAtoD!I17 -> 0 | AA20: =PartsAtoD!J17 -> 0 | AB20: =PartsAtoD!K17 -> 0 | AC20: =PartsAtoD!L17 -> 0 | AD20: =PartsAtoD!M17 -> 0 | AE20: =PartsAtoD!N17 -> 0 | AF20: =PartsAtoD!O17 -> 0 | AG20: 11 | AI20: =PartH!B20 -> 71.1 | AJ20: =PartH!C20 -> H3fa | AK20: =PartH!D20 -> 0 | AL20: =PartH!E20 -> 0 | AM20: =PartH!F20 -> 0 | AN20: =PartH!G20 -> 0 | AO20: =PartH!H20 -> 0 | AP20: =PartH!I20 -> 0 | AQ20: =PartH!J20 -> 0 | AR20: =PartH!K20 -> 0 | AS20: =PartH!L20 -> 0 | AT20: =PartH!M20 -> 0 | AU20: =PartH!N20 -> 0 | AV20: 11 | AZ20: 78 | BB20: 0 | BC20: 0 | BD20: 0 | BE20: 0 | BF20: 0 | BG20: 0 | BH20: 0 | BI20: 0 | BJ20: 0 | BK20: 0 | BL20: 0 | BN20: 78 | BP20: 0 | BQ20: 0 | BR20: 0 | BS20: 0 | BT20: 0 | BU20: 0 | BV20: 0 | BW20: 0 | BX20: 0 | BY20: 0
A21: 514F | B21: Gwynedd | C21: F | D21: 4050 | E21: 514 | G21: 41 | H21: N | I21: =PartsEandF!H36 -> 0 | K21: =PartH!B31 -> 78.1 | L21: =PartH!C31&" - "&PartH!$D$24&" "&PartH!D31&"%" -> H4fa - Premiwm eiddo gwag hirdymor (dros 12 mis) 0% | O21: 78.1 | P21: H4f | S21: =PartsAtoD!B20 -> 9 | T21: =PartsAtoD!C20 -> B5 | U21: =PartsAtoD!D20 -> Holl disgowntiau newidiol ( =Rhan G, llinell 12 ) | V21: =PartsAtoD!E20 -> 0 | W21: =PartsAtoD!F20 -> 0 | X21: =PartsAtoD!G20 -> 0 | Y21: =PartsAtoD!H20 -> 0 | Z21: =PartsAtoD!I20 -> 0 | AA21: =PartsAtoD!J20 -> 0 | AB21: =PartsAtoD!K20 -> 0 | AC21: =PartsAtoD!L20 -> 0 | AD21: =PartsAtoD!M20 -> 0 | AE21: =PartsAtoD!N20 -> 0 | AF21: =PartsAtoD!O20 -> 0 | AG21: 11 | AI21: =PartH!B21 -> 71.2 | AJ21: =PartH!C21 -> H3fb | AK21: =PartH!D21 -> 0 | AL21: =PartH!E21 -> 0 | AM21: =PartH!F21 -> 0 | AN21: =PartH!G21 -> 0 | AO21: =PartH!H21 -> 0 | AP21: =PartH!I21 -> 0 | AQ21: =PartH!J21 -> 0 | AR21: =PartH!K21 -> 0 | AS21: =PartH!L21 -> 0 | AT21: =PartH!M21 -> 0 | AU21: =PartH!N21 -> 0 | AV21: 11 | AZ21: 79 | BC21: 0 | BD21: 0 | BE21: 0 | BF21: 0 | BG21: 0 | BH21: 0 | BI21: 0 | BJ21: 0 | BK21: 0 | BL21: 0 | BN21: 79 | BP21: 0 | BQ21: 0 | BR21: 0 | BS21: 0 | BT21: 0 | BU21: 0 | BV21: 0 | BW21: 0 | BX21: 0 | BY21: 0
A22: 514G | B22: Gwynedd | C22: G | D22: 1284 | E22: 514 | G22: 42 | H22: O | I22: =PartsEandF!H38 -> 0 | K22: =PartH!B32 -> 78.2 | L22: =PartH!C32&" - "&PartH!$D$24&" "&PartH!D32&"%" -> H4fb - Premiwm eiddo gwag hirdymor (dros 12 mis) 0% | O22: 78.2 | P22: H4f | S22: =PartsAtoD!B21 -> 9.1 | T22: =PartsAtoD!C21 -> B6 | U22: =PartsAtoD!D21 -> Addasiad disgownt am eiddo gwag tymor hir ac ail gartref (Rhan H, llinio 9g, 11g) | W22: =PartsAtoD!F21 -> 0 | X22: =PartsAtoD!G21 -> 0 | Y22: =PartsAtoD!H21 -> 0 | Z22: =PartsAtoD!I21 -> 0 | AA22: =PartsAtoD!J21 -> 0 | AB22: =PartsAtoD!K21 -> 0 | AC22: =PartsAtoD!L21 -> 0 | AD22: =PartsAtoD!M21 -> 0 | AE22: =PartsAtoD!N21 -> 0 | AF22: =PartsAtoD!O21 -> 0 | AG22: 10 | AI22: =PartH!B22 -> 72 | AJ22: =PartH!C22 -> H3g | AK22: =PartH!D22 -> Cyfanswm | AL22: =PartH!E22 -> 0 | AM22: =PartH!F22 -> 0 | AN22: =PartH!G22 -> 0 | AO22: =PartH!H22 -> 0 | AP22: =PartH!I22 -> 0 | AQ22: =PartH!J22 -> 0 | AR22: =PartH!K22 -> 0 | AS22: =PartH!L22 -> 0 | AT22: =PartH!M22 -> 0 | AU22: =PartH!N22 -> 0 | AV22: 10 | AZ22: 81 | BB22: 25 | BC22: 0 | BD22: 0 | BE22: 0 | BF22: 0 | BG22: 0 | BH22: 0 | BI22: 0 | BJ22: 0 | BK22: 0 | BL22: 0 | BN22: 81 | BQ22: 0 | BR22: 0 | BS22: 0 | BT22: 0 | BU22: 0 | BV22: 0 | BW22: 0 | BX22: 0 | BY22: 0
A23: 514H | B23: Gwynedd | C23: H | D23: 211 | E23: 514 | G23: 43 | H23: P | I23: =PartsEandF!H40 -> 0 | K23: =PartH!B33 -> 79 | L23: =PartH!C33&" - "&PartH!$D$24&" "&PartH!D33&"%" -> H4g - Premiwm eiddo gwag hirdymor (dros 12 mis) Cyfanswm% | O23: 79 | P23: H4g | S23: =PartsAtoD!B22 -> 9.2 | T23: =PartsAtoD!C22 -> B7 | U23: =PartsAtoD!D22 -> Addasiad premiwm am eiddo gwag tymor hir ac ail gartref (Rhan H, llinio 10g, 12g) | W23: =PartsAtoD!F22 -> 0 | X23: =PartsAtoD!G22 -> 0 | Y23: =PartsAtoD!H22 -> 0 | Z23: =PartsAtoD!I22 -> 0 | AA23: =PartsAtoD!J22 -> 0 | AB23: =PartsAtoD!K22 -> 0 | AC23: =PartsAtoD!L22 -> 0 | AD23: =PartsAtoD!M22 -> 0 | AE23: =PartsAtoD!N22 -> 0 | AF23: =PartsAtoD!O22 -> 0 | AG23: 10 | AI23: =PartH!B23 -> 0 | AJ23: =PartH!C23 -> 0 | AK23: =PartH!D23 -> 0 | AL23: =PartH!E23 -> 0 | AM23: =PartH!F23 -> 0 | AN23: =PartH!G23 -> 0 | AO23: =PartH!H23 -> 0 | AP23: =PartH!I23 -> 0 | AQ23: =PartH!J23 -> 0 | AR23: =PartH!K23 -> 0 | AS23: =PartH!L23 -> 0 | AT23: =PartH!M23 -> 0 | AU23: =PartH!N23 -> 0 | AV23: 11 | AZ23: 82 | BB23: 50 | BC23: 0 | BD23: 0 | BE23: 0 | BF23: 0 | BG23: 0 | BH23: 0 | BI23: 0 | BJ23: 0 | BK23: 0 | BL23: 0 | BN23: 82 | BP23: -50 | BQ23: 0 | BR23: 0 | BS23: 0 | BT23: 0 | BU23: 0 | BV23: 0 | BW23: 0 | BX23: 0 | BY23: 0
A24: 514I | B24: Gwynedd | C24: I | D24: 94 | E24: 514 | G24: 44 | H24: Q | I24: =PartsEandF!K26 -> 0 | K24: =PartH!B38 -> 81 | L24: =PartH!C39&" - "&PartH!$D$35&" "&PartH!D39&"%" -> H5c - Disgownt ail gartref 50% | O24: 81 | P24: H5c | S24: =PartsAtoD!B24 -> 11 | T24: =PartsAtoD!C24 -> C2 | U24: =PartsAtoD!D24 -> Cyfanswm anheddau gan gynnwys disgowntiau a phremiymau (=A3-(B2ax0.25)-(B2bx0.5)-B5-B6+B7) | V24: =PartsAtoD!E24 -> 0 | W24: =PartsAtoD!F24 -> 0 | X24: =PartsAtoD!G24 -> 0 | Y24: =PartsAtoD!H24 -> 0 | Z24: =PartsAtoD!I24 -> 0 | AA24: =PartsAtoD!J24 -> 0 | AB24: =PartsAtoD!K24 -> 0 | AC24: =PartsAtoD!L24 -> 0 | AD24: =PartsAtoD!M24 -> 0 | AE24: =PartsAtoD!N24 -> 0 | AG24: 10 | AI24: =PartH!B24 -> 0 | AJ24: =PartH!C24 -> 0 | AK24: =PartH!D24 -> Premiwm eiddo gwag hirdymor (dros 12 mis) | AL24: =PartH!E24 -> 0 | AM24: =PartH!F24 -> 0 | AN24: =PartH!G24 -> 0 | AO24: =PartH!H24 -> 0 | AP24: =PartH!I24 -> 0 | AQ24: =PartH!J24 -> 0 | AR24: =PartH!K24 -> 0 | AS24: =PartH!L24 -> 0 | AT24: =PartH!M24 -> 0 | AU24: =PartH!N24 -> 0 | AV24: 10 | AZ24: 84 | BB24: 100 | BC24: 0 | BD24: 0 | BE24: 0 | BF24: 0 | BG24: 0 | BH24: 0 | BI24: 0 | BJ24: 0 | BK24: 0 | BL24: 0 | BN24: 84 | BQ24: 0 | BR24: 0 | BS24: 0 | BT24: 0 | BU24: 0 | BV24: 0 | BW24: 0 | BX24: 0 | BY24: 0
A25: 514ALL | B25: Gwynedd | C25: ALL | D25: 62733 | E25: 514 | G25: 45 | H25: R | I25: =PartsEandF!K28 -> 0 | K25: =PartH!B39 -> 82 | L25: =PartH!C40&" - "&PartH!$D$35&" "&PartH!D40&"%" -> H5e - Disgownt ail gartref 100% | O25: 82 | P25: H5e | S25: =PartsAtoD!B26 -> 13 | T25: =PartsAtoD!C26 -> C4 | U25: =PartsAtoD!D26 -> Cyfwerthoedd Band D ( = C2 x C3 ) ( wedi'u talgrynnu i ddau le degol ) | V25: =PartsAtoD!E26 -> 0 | W25: =PartsAtoD!F26 -> 0 | X25: =PartsAtoD!G26 -> 0 | Y25: =PartsAtoD!H26 -> 0 | Z25: =PartsAtoD!I26 -> 0 | AA25: =PartsAtoD!J26 -> 0 | AB25: =PartsAtoD!K26 -> 0 | AC25: =PartsAtoD!L26 -> 0 | AD25: =PartsAtoD!M26 -> 0 | AE25: =PartsAtoD!N26 -> 0 | AF25: =PartsAtoD!O26 -> 0 | AG25: 11 | AI25: =PartH!B25 -> 0 | AJ25: =PartH!C25 -> 0 | AK25: =PartH!D25 -> Cofnodwch, yn ôl band a chanran, y premiwm y mae eich awdurdod yn ei godi ar gyfer eiddo gwag hirdymor nad yw wedi ei gynnwys yn y tabl uchod | AL25: =PartH!E25 -> 0 | AM25: =PartH!F25 -> 0 | AN25: =PartH!G25 -> 0 | AO25: =PartH!H25 -> 0 | AP25: =PartH!I25 -> 0 | AQ25: =PartH!J25 -> 0 | AR25: =PartH!K25 -> 0 | AS25: =PartH!L25 -> 0 | AT25: =PartH!M25 -> 0 | AU25: =PartH!N25 -> 0 | AV25: 10 | AZ25: 85 | BB25: 0 | BC25: 0 | BD25: 0 | BE25: 0 | BF25: 0 | BG25: 0 | BH25: 0 | BI25: 0 | BJ25: 0 | BK25: 0 | BL25: 0 | BN25: 85 | BQ25: 0 | BR25: 0 | BS25: 0 | BT25: 0 | BU25: 0 | BV25: 0 | BW25: 0 | BX25: 0 | BY25: 0
A26: 516A | B26: Conwy | C26: A | D26: 5493 | E26: 516 | G26: 46 | H26: S | I26: =PartsEandF!K30 -> 0 | K26: =PartH!B40 -> 84 | L26: =PartH!C41&" - "&PartH!$D$35&" "&PartH!D41&"%" -> H5f - Disgownt ail gartref 0% | O26: 84 | P26: H5f | S26: =PartsAtoD!B27 -> 13.3 | T26: =PartsAtoD!C27 -> C7 | U26: =PartsAtoD!D27 -> Cyfanswm anheddau gostyngedig ac eithrio addasiad tymor hir gwag ac ail gartref | V26: =PartsAtoD!E27 -> 0 | W26: =PartsAtoD!F27 -> 0 | X26: =PartsAtoD!G27 -> 0 | Y26: =PartsAtoD!H27 -> 0 | Z26: =PartsAtoD!I27 -> 0 | AA26: =PartsAtoD!J27 -> 0 | AB26: =PartsAtoD!K27 -> 0 | AC26: =PartsAtoD!L27 -> 0 | AD26: =PartsAtoD!M27 -> 0 | AE26: =PartsAtoD!N27 -> 0 | AG26: 10 | AI26: =PartH!B26 -> 0 | AJ26: =PartH!C26 -> 0 | AK26: =PartH!D26 -> Canran premiwm | AL26: =PartH!E26 -> A | AM26: =PartH!F26 -> B | AN26: =PartH!G26 -> C | AO26: =PartH!H26 -> D | AP26: =PartH!I26 -> E | AQ26: =PartH!J26 -> F | AR26: =PartH!K26 -> G | AS26: =PartH!L26 -> H | AT26: =PartH!M26 -> I | AU26: =PartH!N26 -> Cyfanswm | AV26: 0 | AZ26: 86 | BC26: 0 | BD26: 0 | BE26: 0 | BF26: 0 | BG26: 0 | BH26: 0 | BI26: 0 | BJ26: 0 | BK26: 0 | BL26: 0 | BN26: 86
A27: 516B | B27: Conwy | C27: B | D27: 8362 | E27: 516 | G27: 47 | H27: T | I27: =PartsEandF!K32 -> 0 | K27: =PartH!B41 -> 85 | L27: =PartH!C42&" - "&PartH!$D$35&" "&PartH!D42&"%" -> H5fa - Disgownt ail gartref 0% | O27: 85 | P27: H5f | S27: =PartsAtoD!B28 -> 13.4 | T27: =PartsAtoD!C28 -> C8 | U27: =PartsAtoD!D28 -> Cyfwerthoedd Band D ac eithrio addasiad tymor hir gwag ac ail gartref | V27: =PartsAtoD!E28 -> 0 | W27: =PartsAtoD!F28 -> 0 | X27: =PartsAtoD!G28 -> 0 | Y27: =PartsAtoD!H28 -> 0 | Z27: =PartsAtoD!I28 -> 0 | AA27: =PartsAtoD!J28 -> 0 | AB27: =PartsAtoD!K28 -> 0 | AC27: =PartsAtoD!L28 -> 0 | AD27: =PartsAtoD!M28 -> 0 | AE27: =PartsAtoD!N28 -> 0 | AF27: =PartsAtoD!O28 -> 0 | AG27: 11 | AI27: =PartH!B27 -> 74 | AJ27: =PartH!C27 -> H4b | AK27: =PartH!D27 -> 25 | AL27: =PartH!E27 -> 0 | AM27: =PartH!F27 -> 0 | AN27: =PartH!G27 -> 0 | AO27: =PartH!H27 -> 0 | AP27: =PartH!I27 -> 0 | AQ27: =PartH!J27 -> 0 | AR27: =PartH!K27 -> 0 | AS27: =PartH!L27 -> 0 | AT27: =PartH!M27 -> 0 | AU27: =PartH!N27 -> 0 | AV27: 11 | AZ27: 88 | BB27: 25 | BC27: 0 | BD27: 0 | BE27: 0 | BF27: 0 | BG27: 0 | BH27: 0 | BI27: 0 | BJ27: 0 | BK27: 0 | BL27: 0 | BN27: 88 | BP27: 0 | BQ27: 0 | BR27: 0 | BS27: 0 | BT27: 0 | BU27: 0 | BV27: 0 | BW27: 0 | BX27: 0 | BY27: 0
A28: 516C | B28: Conwy | C28: C | D28: 15631 | E28: 516 | G28: 49 | H28: U | I28: =PartsEandF!K34 -> 0 | K28: =PartH!B42 -> 85.1 | L28: =PartH!C43&" - "&PartH!$D$35&" "&PartH!D43&"%" -> H5fb - Disgownt ail gartref 0% | O28: 85.1 | P28: H5f | S28: =PartsAtoD!B30 -> 14 | T28: =PartsAtoD!C30 -> D1 | U28: =PartsAtoD!D30 -> Anheddau ag eithriadau Dosbarthiadau A i N a P i W ( heb eu cynnwys yn adrannau A i C uchod ) ( gweler nodyn 6 ) | W28: =PartsAtoD!F30 -> 0 | X28: =PartsAtoD!G30 -> 0 | Y28: =PartsAtoD!H30 -> 0 | Z28: =PartsAtoD!I30 -> 0 | AA28: =PartsAtoD!J30 -> 0 | AB28: =PartsAtoD!K30 -> 0 | AC28: =PartsAtoD!L30 -> 0 | AD28: =PartsAtoD!M30 -> 0 | AE28: =PartsAtoD!N30 -> 0 | AF28: =PartsAtoD!O30 -> 0 | AG28: =COUNT(V28:AF28) -> 10 | AI28: =PartH!B28 -> 75 | AJ28: =PartH!C28 -> H4c | AK28: =PartH!D28 -> 50 | AL28: =PartH!E28 -> 0 | AM28: =PartH!F28 -> 0 | AN28: =PartH!G28 -> 0 | AO28: =PartH!H28 -> 0 | AP28: =PartH!I28 -> 0 | AQ28: =PartH!J28 -> 0 | AR28: =PartH!K28 -> 0 | AS28: =PartH!L28 -> 0 | AT28: =PartH!M28 -> 0 | AU28: =PartH!N28 -> 0 | AV28: 11 | AZ28: 89 | BB28: 50 | BC28: 0 | BD28: 0 | BE28: 0 | BF28: 0 | BG28: 0 | BH28: 0 | BI28: 0 | BJ28: 0 | BK28: 0 | BL28: 0 | BN28: 89 | BP28: 0 | BQ28: 0 | BR28: 0 | BS28: 0 | BT28: 0 | BU28: 0 | BV28: 0 | BW28: 0 | BX28: 0 | BY28: 0
A29: 516D | B29: Conwy | C29: D | D29: 11978 | E29: 516 | G29: 50 | H29: V | I29: =PartsEandF!K36 -> 0 | K29: =PartH!B43 -> 85.2 | L29: =PartH!C44&" - "&PartH!$D$35&" "&PartH!D44&"%" -> H5g - Disgownt ail gartref Cyfanswm% | O29: 85.2 | P29: H5g | S29: =PartsAtoD!B31 -> 15 | T29: =PartsAtoD!C31 -> D2 | U29: =PartsAtoD!D31 -> Anheddau ag eithriad dosbarth O ( heb eu cynnwys yn adrannau A i C uchod ) ( gweler nodiadau 6 a 7 ) | W29: =PartsAtoD!F31 -> 0 | X29: =PartsAtoD!G31 -> 0 | Y29: =PartsAtoD!H31 -> 0 | Z29: =PartsAtoD!I31 -> 0 | AA29: =PartsAtoD!J31 -> 0 | AB29: =PartsAtoD!K31 -> 0 | AC29: =PartsAtoD!L31 -> 0 | AD29: =PartsAtoD!M31 -> 0 | AE29: =PartsAtoD!N31 -> 0 | AF29: =PartsAtoD!O31 -> 0 | AG29: =COUNT(V29:AF29) -> 10 | AI29: =PartH!B29 -> 77 | AJ29: =PartH!C29 -> H4e | AK29: =PartH!D29 -> 100 | AL29: =PartH!E29 -> 0 | AM29: =PartH!F29 -> 0 | AN29: =PartH!G29 -> 0 | AO29: =PartH!H29 -> 0 | AP29: =PartH!I29 -> 0 | AQ29: =PartH!J29 -> 0 | AR29: =PartH!K29 -> 0 | AS29: =PartH!L29 -> 0 | AT29: =PartH!M29 -> 0 | AU29: =PartH!N29 -> 0 | AV29: 11 | AZ29: 91 | BB29: 100 | BC29: 0 | BD29: 0 | BE29: 0 | BF29: 0 | BG29: 0 | BH29: 0 | BI29: 0 | BJ29: 0 | BK29: 0 | BL29: 0 | BN29: 91 | BP29: 0 | BQ29: 0 | BR29: 0 | BS29: 0 | BT29: 0 | BU29: 0 | BV29: 0 | BW29: 0 | BX29: 0 | BY29: 0
A30: 516E | B30: Conwy | C30: E | D30: 9327 | E30: 516 | G30: 51 | H30: W | I30: =PartsEandF!K38 -> 0 | K30: =PartH!B44 -> 86 | L30: =PartH!C45&" - "&PartH!$D$35&" "&PartH!D45&"%" -> - Disgownt ail gartref % | O30: 86 | P30: - | AI30: =PartH!B30 -> 78 | AJ30: =PartH!C30 -> H4f | AK30: =PartH!D30 -> 0 | AL30: =PartH!E30 -> 0 | AM30: =PartH!F30 -> 0 | AN30: =PartH!G30 -> 0 | AO30: =PartH!H30 -> 0 | AP30: =PartH!I30 -> 0 | AQ30: =PartH!J30 -> 0 | AR30: =PartH!K30 -> 0 | AS30: =PartH!L30 -> 0 | AT30: =PartH!M30 -> 0 | AU30: =PartH!N30 -> 0 | AV30: 11 | AZ30: 92 | BB30: 0 | BC30: 0 | BD30: 0 | BE30: 0 | BF30: 0 | BG30: 0 | BH30: 0 | BI30: 0 | BJ30: 0 | BK30: 0 | BL30: 0 | BN30: 92 | BP30: 0 | BQ30: 0 | BR30: 0 | BS30: 0 | BT30: 0 | BU30: 0 | BV30: 0 | BW30: 0 | BX30: 0 | BY30: 0
A31: 516F | B31: Conwy | C31: F | D31: 5128 | E31: 516 | G31: 51.1 | H31: X | I31: =PartsEandF!K40 -> 0 | K31: =PartH!B49 -> 88 | L31: =PartH!C49&" - "&PartH!$D$46&" "&PartH!D49&"%" -> H6b - Premiwm ail gartref 25% | O31: 88 | P31: H6b | S31: Transfer Sheet Pivot | AI31: =PartH!B31 -> 78.1 | AJ31: =PartH!C31 -> H4fa | AK31: =PartH!D31 -> 0 | AL31: =PartH!E31 -> 0 | AM31: =PartH!F31 -> 0 | AN31: =PartH!G31 -> 0 | AO31: =PartH!H31 -> 0 | AP31: =PartH!I31 -> 0 | AQ31: =PartH!J31 -> 0 | AR31: =PartH!K31 -> 0 | AS31: =PartH!L31 -> 0 | AT31: =PartH!M31 -> 0 | AU31: =PartH!N31 -> 0 | AV31: 11 | AZ31: 93 | BC31: 0 | BD31: 0 | BE31: 0 | BF31: 0 | BG31: 0 | BH31: 0 | BI31: 0 | BJ31: 0 | BK31: 0 | BL31: 0 | BN31: 93 | BP31: 0 | BQ31: 0 | BR31: 0 | BS31: 0 | BT31: 0 | BU31: 0 | BV31: 0 | BW31: 0 | BX31: 0 | BY31: 0
A32: 516G | B32: Conwy | C32: G | D32: 1949 | E32: 516 | G32: 51.5 | H32: TOTAL | I32: =PartsEandF!K42 -> 0 | K32: =PartH!B50 -> 89 | L32: =PartH!C50&" - "&PartH!$D$46&" "&PartH!D50&"%" -> H6c - Premiwm ail gartref 50% | O32: 89 | P32: H6c | AI32: =PartH!B32 -> 78.2 | AJ32: =PartH!C32 -> H4fb | AK32: =PartH!D32 -> 0 | AL32: =PartH!E32 -> 0 | AM32: =PartH!F32 -> 0 | AN32: =PartH!G32 -> 0 | AO32: =PartH!H32 -> 0 | AP32: =PartH!I32 -> 0 | AQ32: =PartH!J32 -> 0 | AR32: =PartH!K32 -> 0 | AS32: =PartH!L32 -> 0 | AT32: =PartH!M32 -> 0 | AU32: =PartH!N32 -> 0 | AV32: 11 | AZ32: 94 | BC32: 0 | BD32: 0 | BE32: 0 | BF32: 0 | BG32: 0 | BH32: 0 | BI32: 0 | BJ32: 0 | BK32: 0 | BL32: 0 | BN32: 94 | BP32: 0 | BQ32: 0 | BR32: 0 | BS32: 0 | BT32: 0 | BU32: 0 | BV32: 0 | BW32: 0 | BX32: 0 | BY32: 0
A33: 516H | B33: Conwy | C33: H | D33: 434 | E33: 516 | G33: PartF Pivot | K33: =PartH!B51 -> 91 | L33: =PartH!C51&" - "&PartH!$D$46&" "&PartH!D51&"%" -> H6e - Premiwm ail gartref 100% | O33: 91 | P33: H6e | U33: Sum of Data2 | V33: ColumnRef | AI33: =PartH!B33 -> 79 | AJ33: =PartH!C33 -> H4g | AK33: =PartH!D33 -> Cyfanswm | AL33: =PartH!E33 -> 0 | AM33: =PartH!F33 -> 0 | AN33: =PartH!G33 -> 0 | AO33: =PartH!H33 -> 0 | AP33: =PartH!I33 -> 0 | AQ33: =PartH!J33 -> 0 | AR33: =PartH!K33 -> 0 | AS33: =PartH!L33 -> 0 | AT33: =PartH!M33 -> 0 | AU33: =PartH!N33 -> 0 | AV33: 10 | AZ33: 95 | BC33: 0 | BD33: 0 | BE33: 0 | BF33: 0 | BG33: 0 | BH33: 0 | BI33: 0 | BJ33: 0 | BK33: 0 | BL33: 0 | BN33: 95 | BQ33: 0 | BR33: 0 | BS33: 0 | BT33: 0 | BU33: 0 | BV33: 0 | BW33: 0 | BX33: 0 | BY33: 0
A34: 516I | B34: Conwy | C34: I | D34: 162 | E34: 516 | H34: Sum of Data2 | I34: ColumnRef | U34: rowref | V34: 1 | W34: 2 | X34: 3 | Y34: 4 | Z34: 5 | AA34: 6 | AB34: 7 | AC34: 8 | AD34: 9 | AE34: 10 | AF34: 11 | AG34: 12 | AI34: =PartH!B34 -> 0 | AJ34: =PartH!C34 -> 0 | AK34: =PartH!D34 -> 0 | AL34: =PartH!E34 -> 0 | AM34: =PartH!F34 -> 0 | AN34: =PartH!G34 -> 0 | AO34: =PartH!H34 -> 0 | AP34: =PartH!I34 -> 0 | AQ34: =PartH!J34 -> 0 | AR34: =PartH!K34 -> 0 | AS34: =PartH!L34 -> 0 | AT34: =PartH!M34 -> 0 | AU34: =PartH!N34 -> 0 | AV34: 11 | AZ34: 97 | BB34: 25 | BC34: 0 | BD34: 0 | BE34: 0 | BF34: 0 | BG34: 0 | BH34: 0 | BI34: 0 | BJ34: 0 | BK34: 0 | BL34: 0 | BN34: 97 | BP34: -25 | BQ34: 0 | BR34: 0 | BS34: 0 | BT34: 0 | BU34: 0 | BV34: 0 | BW34: 0 | BX34: 0 | BY34: 0
A35: 516ALL | B35: Conwy | C35: ALL | D35: 58464 | E35: 516 | H35: rowref | I35: 1 | J35: 2 | K35: 3 | L35: 4 | M35: 5 | N35: 6 | O35: 7 | P35: 8 | Q35: 9 | R35: 10 | S35: 11 | T35: 12 | U35: 1 | W35: 0 | X35: 0 | Y35: 0 | Z35: 0 | AA35: 0 | AB35: 0 | AC35: 0 | AD35: 0 | AE35: 0 | AF35: 0 | AI35: =PartH!B35 -> 0 | AJ35: =PartH!C35 -> 0 | AK35: =PartH!D35 -> Disgownt ail gartref | AL35: =PartH!E35 -> 0 | AM35: =PartH!F35 -> 0 | AN35: =PartH!G35 -> 0 | AO35: =PartH!H35 -> 0 | AP35: =PartH!I35 -> 0 | AQ35: =PartH!J35 -> 0 | AR35: =PartH!K35 -> 0 | AS35: =PartH!L35 -> 0 | AT35: =PartH!M35 -> 0 | AU35: =PartH!N35 -> 0 | AV35: 10 | AZ35: 98 | BB35: 50 | BC35: 0 | BD35: 0 | BE35: 0 | BF35: 0 | BG35: 0 | BH35: 0 | BI35: 0 | BJ35: 0 | BK35: 0 | BL35: 0 | BN35: 98 | BQ35: 0 | BR35: 0 | BS35: 0 | BT35: 0 | BU35: 0 | BV35: 0 | BW35: 0 | BX35: 0 | BY35: 0
A36: 518A | B36: Denbighshire | C36: A | D36: 4169 | E36: 518 | H36: 28 | S36: 0 | U36: 2 | W36: 0 | X36: 0 | Y36: 0 | Z36: 0 | AA36: 0 | AB36: 0 | AC36: 0 | AD36: 0 | AE36: 0 | AF36: 0 | AI36: =PartH!B36 -> 0 | AJ36: =PartH!C36 -> 0 | AK36: =PartH!D36 -> Cofnodwch, yn ôl band a chanran, y disgownt y mae eich awdurdod yn ei ddyfarnu ar gyfer anheddau a gofrestrir fel ail gartrefi | AL36: =PartH!E36 -> 0 | AM36: =PartH!F36 -> 0 | AN36: =PartH!G36 -> 0 | AO36: =PartH!H36 -> 0 | AP36: =PartH!I36 -> 0 | AQ36: =PartH!J36 -> 0 | AR36: =PartH!K36 -> 0 | AS36: =PartH!L36 -> 0 | AT36: =PartH!M36 -> 0 | AU36: =PartH!N36 -> 0 | AV36: 10 | AZ36: 100 | BB36: 100 | BC36: 0 | BD36: 0 | BE36: 0 | BF36: 0 | BG36: 0 | BH36: 0 | BI36: 0 | BJ36: 0 | BK36: 0 | BL36: 0 | BN36: 100 | BQ36: 0 | BR36: 0 | BS36: 0 | BT36: 0 | BU36: 0 | BV36: 0 | BW36: 0 | BX36: 0 | BY36: 0
A37: 518B | B37: Denbighshire | C37: B | D37: 7421 | E37: 518 | H37: 29 | S37: 0 | U37: 3 | V37: 0 | W37: 0 | X37: 0 | Y37: 0 | Z37: 0 | AA37: 0 | AB37: 0 | AC37: 0 | AD37: 0 | AE37: 0 | AF37: 0 | AI37: =PartH!B37 -> 0 | AJ37: =PartH!C37 -> 0 | AK37: =PartH!D37 -> Canran disgownt | AL37: =PartH!E37 -> A | AM37: =PartH!F37 -> B | AN37: =PartH!G37 -> C | AO37: =PartH!H37 -> D | AP37: =PartH!I37 -> E | AQ37: =PartH!J37 -> F | AR37: =PartH!K37 -> G | AS37: =PartH!L37 -> H | AT37: =PartH!M37 -> I | AU37: =PartH!N37 -> Cyfanswm | AV37: 0 | AZ37: 101 | BB37: 0 | BC37: 0 | BD37: 0 | BE37: 0 | BF37: 0 | BG37: 0 | BH37: 0 | BI37: 0 | BJ37: 0 | BK37: 0 | BL37: 0 | BN37: 101
A38: 518C | B38: Denbighshire | C38: C | D38: 14976 | E38: 518 | H38: 30 | S38: 0 | U38: 4 | V38: 0 | W38: 0 | X38: 0 | Y38: 0 | Z38: 0 | AA38: 0 | AB38: 0 | AC38: 0 | AD38: 0 | AE38: 0 | AF38: 0 | AI38: =PartH!B38 -> 81 | AJ38: =PartH!C38 -> H5b | AK38: =PartH!D38 -> 25 | AL38: =PartH!E38 -> 0 | AM38: =PartH!F38 -> 0 | AN38: =PartH!G38 -> 0 | AO38: =PartH!H38 -> 0 | AP38: =PartH!I38 -> 0 | AQ38: =PartH!J38 -> 0 | AR38: =PartH!K38 -> 0 | AS38: =PartH!L38 -> 0 | AT38: =PartH!M38 -> 0 | AU38: =PartH!N38 -> 0 | AV38: 11 | AZ38: 102 | BC38: 0 | BD38: 0 | BE38: 0 | BF38: 0 | BG38: 0 | BH38: 0 | BI38: 0 | BJ38: 0 | BK38: 0 | BL38: 0 | BN38: 102 | BP38: 25 | BQ38: 0 | BR38: 0 | BS38: 0 | BT38: 0 | BU38: 0 | BV38: 0 | BW38: 0 | BX38: 0 | BY38: 0
A39: 518D | B39: Denbighshire | C39: D | D39: 8069 | E39: 518 | H39: 31 | S39: 0 | U39: 4.1 | V39: 0 | W39: 0 | X39: 0 | Y39: 0 | Z39: 0 | AA39: 0 | AB39: 0 | AC39: 0 | AD39: 0 | AE39: 0 | AF39: 0 | AI39: =PartH!B39 -> 82 | AJ39: =PartH!C39 -> H5c | AK39: =PartH!D39 -> 50 | AL39: =PartH!E39 -> 0 | AM39: =PartH!F39 -> 0 | AN39: =PartH!G39 -> 0 | AO39: =PartH!H39 -> 0 | AP39: =PartH!I39 -> 0 | AQ39: =PartH!J39 -> 0 | AR39: =PartH!K39 -> 0 | AS39: =PartH!L39 -> 0 | AT39: =PartH!M39 -> 0 | AU39: =PartH!N39 -> 0 | AV39: 11 | AZ39: 104 | BB39: 25 | BC39: 0 | BD39: 0 | BE39: 0 | BF39: 0 | BG39: 0 | BH39: 0 | BI39: 0 | BJ39: 0 | BK39: 0 | BL39: 0 | BN39: 104 | BP39: 25 | BQ39: 0 | BR39: 0 | BS39: 0 | BT39: 0 | BU39: 0 | BV39: 0 | BW39: 0 | BX39: 0 | BY39: 0
A40: 518E | B40: Denbighshire | C40: E | D40: 5656 | E40: 518 | H40: 32 | S40: 0 | U40: 4.2 | V40: 0 | W40: 0 | X40: 0 | Y40: 0 | Z40: 0 | AA40: 0 | AB40: 0 | AC40: 0 | AD40: 0 | AE40: 0 | AF40: 0 | AI40: =PartH!B40 -> 84 | AJ40: =PartH!C40 -> H5e | AK40: =PartH!D40 -> 100 | AL40: =PartH!E40 -> 0 | AM40: =PartH!F40 -> 0 | AN40: =PartH!G40 -> 0 | AO40: =PartH!H40 -> 0 | AP40: =PartH!I40 -> 0 | AQ40: =PartH!J40 -> 0 | AR40: =PartH!K40 -> 0 | AS40: =PartH!L40 -> 0 | AT40: =PartH!M40 -> 0 | AU40: =PartH!N40 -> 0 | AV40: 11 | AZ40: 105 | BB40: 50 | BC40: 0 | BD40: 0 | BE40: 0 | BF40: 0 | BG40: 0 | BH40: 0 | BI40: 0 | BJ40: 0 | BK40: 0 | BL40: 0 | BN40: 105 | BP40: 50 | BQ40: 0 | BR40: 0 | BS40: 0 | BT40: 0 | BU40: 0 | BV40: 0 | BW40: 0 | BX40: 0 | BY40: 0
A41: 518F | B41: Denbighshire | C41: F | D41: 3918 | E41: 518 | H41: 33 | S41: 0 | U41: 7 | V41: 0 | W41: 0 | X41: 0 | Y41: 0 | Z41: 0 | AA41: 0 | AB41: 0 | AC41: 0 | AD41: 0 | AE41: 0 | AF41: 0 | AI41: =PartH!B41 -> 85 | AJ41: =PartH!C41 -> H5f | AK41: =PartH!D41 -> 0 | AL41: =PartH!E41 -> 0 | AM41: =PartH!F41 -> 0 | AN41: =PartH!G41 -> 0 | AO41: =PartH!H41 -> 0 | AP41: =PartH!I41 -> 0 | AQ41: =PartH!J41 -> 0 | AR41: =PartH!K41 -> 0 | AS41: =PartH!L41 -> 0 | AT41: =PartH!M41 -> 0 | AU41: =PartH!N41 -> 0 | AV41: 11 | AZ41: 107 | BB41: 100 | BC41: 0 | BD41: 0 | BE41: 0 | BF41: 0 | BG41: 0 | BH41: 0 | BI41: 0 | BJ41: 0 | BK41: 0 | BL41: 0 | BN41: 107 | BP41: -100 | BQ41: 0 | BR41: 0 | BS41: 0 | BT41: 0 | BU41: 0 | BV41: 0 | BW41: 0 | BX41: 0 | BY41: 0
A42: 518G | B42: Denbighshire | C42: G | D42: 2057 | E42: 518 | H42: 34 | S42: 0 | U42: 7.1 | W42: 0 | X42: 0 | Y42: 0 | Z42: 0 | AA42: 0 | AB42: 0 | AC42: 0 | AD42: 0 | AE42: 0 | AF42: 0 | AI42: =PartH!B42 -> 85.1 | AJ42: =PartH!C42 -> H5fa | AK42: =PartH!D42 -> 0 | AL42: =PartH!E42 -> 0 | AM42: =PartH!F42 -> 0 | AN42: =PartH!G42 -> 0 | AO42: =PartH!H42 -> 0 | AP42: =PartH!I42 -> 0 | AQ42: =PartH!J42 -> 0 | AR42: =PartH!K42 -> 0 | AS42: =PartH!L42 -> 0 | AT42: =PartH!M42 -> 0 | AU42: =PartH!N42 -> 0 | AV42: 11 | AZ42: 108 | BB42: 0 | BC42: 0 | BD42: 0 | BE42: 0 | BF42: 0 | BG42: 0 | BH42: 0 | BI42: 0 | BJ42: 0 | BK42: 0 | BL42: 0 | BN42: 108 | BP42: 0 | BQ42: 0 | BR42: 0 | BS42: 0 | BT42: 0 | BU42: 0 | BV42: 0 | BW42: 0 | BX42: 0 | BY42: 0
A43: 518H | B43: Denbighshire | C43: H | D43: 324 | E43: 518 | H43: 35 | S43: 0 | U43: 7.2 | W43: 0 | X43: 0 | Y43: 0 | Z43: 0 | AA43: 0 | AB43: 0 | AC43: 0 | AD43: 0 | AE43: 0 | AF43: 0 | AI43: =PartH!B43 -> 85.2 | AJ43: =PartH!C43 -> H5fb | AK43: =PartH!D43 -> 0 | AL43: =PartH!E43 -> 0 | AM43: =PartH!F43 -> 0 | AN43: =PartH!G43 -> 0 | AO43: =PartH!H43 -> 0 | AP43: =PartH!I43 -> 0 | AQ43: =PartH!J43 -> 0 | AR43: =PartH!K43 -> 0 | AS43: =PartH!L43 -> 0 | AT43: =PartH!M43 -> 0 | AU43: =PartH!N43 -> 0 | AV43: 11 | AZ43: 109 | BC43: 0 | BD43: 0 | BE43: 0 | BF43: 0 | BG43: 0 | BH43: 0 | BI43: 0 | BJ43: 0 | BK43: 0 | BL43: 0 | BN43: 109 | BP43: 0 | BQ43: 0 | BR43: 0 | BS43: 0 | BT43: 0 | BU43: 0 | BV43: 0 | BW43: 0 | BX43: 0 | BY43: 0
A44: 518I | B44: Denbighshire | C44: I | D44: 169 | E44: 518 | H44: 36 | S44: 0 | U44: 8 | V44: 0 | W44: 0 | X44: 0 | Y44: 0 | Z44: 0 | AA44: 0 | AB44: 0 | AC44: 0 | AD44: 0 | AE44: 0 | AF44: 0 | AI44: =PartH!B44 -> 86 | AJ44: =PartH!C44 -> H5g | AK44: =PartH!D44 -> Cyfanswm | AL44: =PartH!E44 -> 0 | AM44: =PartH!F44 -> 0 | AN44: =PartH!G44 -> 0 | AO44: =PartH!H44 -> 0 | AP44: =PartH!I44 -> 0 | AQ44: =PartH!J44 -> 0 | AR44: =PartH!K44 -> 0 | AS44: =PartH!L44 -> 0 | AT44: =PartH!M44 -> 0 | AU44: =PartH!N44 -> 0 | AV44: 10 | AZ44: 111 | BB44: 25 | BC44: 0 | BD44: 0 | BE44: 0 | BF44: 0 | BG44: 0 | BH44: 0 | BI44: 0 | BJ44: 0 | BK44: 0 | BL44: 0 | BN44: 111 | BQ44: 0 | BR44: 0 | BS44: 0 | BT44: 0 | BU44: 0 | BV44: 0 | BW44: 0 | BX44: 0 | BY44: 0
A45: 518ALL | B45: Denbighshire | C45: ALL | D45: 46759 | E45: 518 | H45: 37 | S45: 0 | U45: 9 | V45: 0 | W45: 0 | X45: 0 | Y45: 0 | Z45: 0 | AA45: 0 | AB45: 0 | AC45: 0 | AD45: 0 | AE45: 0 | AF45: 0 | AI45: =PartH!B45 -> 0 | AJ45: =PartH!C45 -> 0 | AK45: =PartH!D45 -> 0 | AL45: =PartH!E45 -> 0 | AM45: =PartH!F45 -> 0 | AN45: =PartH!G45 -> 0 | AO45: =PartH!H45 -> 0 | AP45: =PartH!I45 -> 0 | AQ45: =PartH!J45 -> 0 | AR45: =PartH!K45 -> 0 | AS45: =PartH!L45 -> 0 | AT45: =PartH!M45 -> 0 | AU45: =PartH!N45 -> 0 | AV45: 11 | AZ45: 112 | BB45: 50 | BC45: 0 | BD45: 0 | BE45: 0 | BF45: 0 | BG45: 0 | BH45: 0 | BI45: 0 | BJ45: 0 | BK45: 0 | BL45: 0 | BN45: 112 | BP45: -50 | BQ45: 0 | BR45: 0 | BS45: 0 | BT45: 0 | BU45: 0 | BV45: 0 | BW45: 0 | BX45: 0 | BY45: 0
A46: 520A | B46: Flintshire | C46: A | D46: 4535 | E46: 520 | H46: 38 | S46: 0 | U46: 9.1 | W46: 0 | X46: 0 | Y46: 0 | Z46: 0 | AA46: 0 | AB46: 0 | AC46: 0 | AD46: 0 | AE46: 0 | AF46: 0 | AI46: =PartH!B46 -> 0 | AJ46: =PartH!C46 -> 0 | AK46: =PartH!D46 -> Premiwm ail gartref | AL46: =PartH!E46 -> 0 | AM46: =PartH!F46 -> 0 | AN46: =PartH!G46 -> 0 | AO46: =PartH!H46 -> 0 | AP46: =PartH!I46 -> 0 | AQ46: =PartH!J46 -> 0 | AR46: =PartH!K46 -> 0 | AS46: =PartH!L46 -> 0 | AT46: =PartH!M46 -> 0 | AU46: =PartH!N46 -> 0 | AV46: 10 | AZ46: 114 | BB46: 100 | BC46: 0 | BD46: 0 | BE46: 0 | BF46: 0 | BG46: 0 | BH46: 0 | BI46: 0 | BJ46: 0 | BK46: 0 | BL46: 0 | BN46: 114 | BQ46: 0 | BR46: 0 | BS46: 0 | BT46: 0 | BU46: 0 | BV46: 0 | BW46: 0 | BX46: 0 | BY46: 0
A47: 520B | B47: Flintshire | C47: B | D47: 9643 | E47: 520 | H47: 39 | S47: 0 | U47: 9.2 | W47: 0 | X47: 0 | Y47: 0 | Z47: 0 | AA47: 0 | AB47: 0 | AC47: 0 | AD47: 0 | AE47: 0 | AF47: 0 | AI47: =PartH!B47 -> 0 | AJ47: =PartH!C47 -> 0 | AK47: =PartH!D47 -> Cofnodwch, yn ôl band a chanran, y premiwm y mae eich awdurdod yn ei godi ar gyfer anheddau a gofrestrir fel ail gartrefi nad yw wedi ei gynnwys yn y tabl uchod | AL47: =PartH!E47 -> 0 | AM47: =PartH!F47 -> 0 | AN47: =PartH!G47 -> 0 | AO47: =PartH!H47 -> 0 | AP47: =PartH!I47 -> 0 | AQ47: =PartH!J47 -> 0 | AR47: =PartH!K47 -> 0 | AS47: =PartH!L47 -> 0 | AT47: =PartH!M47 -> 0 | AU47: =PartH!N47 -> 0 | AV47: 10 | AZ47: 115 | BB47: 0 | BC47: 0 | BD47: 0 | BE47: 0 | BF47: 0 | BG47: 0 | BH47: 0 | BI47: 0 | BJ47: 0 | BK47: 0 | BL47: 0 | BN47: 115 | BQ47: 0 | BR47: 0 | BS47: 0 | BT47: 0 | BU47: 0 | BV47: 0 | BW47: 0 | BX47: 0 | BY47: 0
A48: 520C | B48: Flintshire | C48: C | D48: 21045 | E48: 520 | H48: 40 | S48: 0 | U48: 11 | V48: 0 | W48: 0 | X48: 0 | Y48: 0 | Z48: 0 | AA48: 0 | AB48: 0 | AC48: 0 | AD48: 0 | AE48: 0 | AI48: =PartH!B48 -> 0 | AJ48: =PartH!C48 -> 0 | AK48: =PartH!D48 -> Canran premiwm | AL48: =PartH!E48 -> A | AM48: =PartH!F48 -> B | AN48: =PartH!G48 -> C | AO48: =PartH!H48 -> D | AP48: =PartH!I48 -> E | AQ48: =PartH!J48 -> F | AR48: =PartH!K48 -> G | AS48: =PartH!L48 -> H | AT48: =PartH!M48 -> I | AU48: =PartH!N48 -> Cyfanswm | AV48: 0 | AZ48: 116 | BC48: 0 | BD48: 0 | BE48: 0 | BF48: 0 | BG48: 0 | BH48: 0 | BI48: 0 | BJ48: 0 | BK48: 0 | BL48: 0 | BN48: 116
A49: 520D | B49: Flintshire | C49: D | D49: 13437 | E49: 520 | H49: 41 | S49: 0 | U49: 13 | V49: 0 | W49: 0 | X49: 0 | Y49: 0 | Z49: 0 | AA49: 0 | AB49: 0 | AC49: 0 | AD49: 0 | AE49: 0 | AF49: 0 | AI49: =PartH!B49 -> 88 | AJ49: =PartH!C49 -> H6b | AK49: =PartH!D49 -> 25 | AL49: =PartH!E49 -> 0 | AM49: =PartH!F49 -> 0 | AN49: =PartH!G49 -> 0 | AO49: =PartH!H49 -> 0 | AP49: =PartH!I49 -> 0 | AQ49: =PartH!J49 -> 0 | AR49: =PartH!K49 -> 0 | AS49: =PartH!L49 -> 0 | AT49: =PartH!M49 -> 0 | AU49: =PartH!N49 -> 0 | AV49: 11 | AZ49: 118 | BB49: 25 | BC49: 0 | BD49: 0 | BE49: 0 | BF49: 0 | BG49: 0 | BH49: 0 | BI49: 0 | BJ49: 0 | BK49: 0 | BL49: 0 | BN49: 118 | BP49: 0 | BQ49: 0 | BR49: 0 | BS49: 0 | BT49: 0 | BU49: 0 | BV49: 0 | BW49: 0 | BX49: 0 | BY49: 0
A50: 520E | B50: Flintshire | C50: E | D50: 11164 | E50: 520 | H50: 42 | S50: 0 | U50: 13.3 | V50: 0 | W50: 0 | X50: 0 | Y50: 0 | Z50: 0 | AA50: 0 | AB50: 0 | AC50: 0 | AD50: 0 | AE50: 0 | AI50: =PartH!B50 -> 89 | AJ50: =PartH!C50 -> H6c | AK50: =PartH!D50 -> 50 | AL50: =PartH!E50 -> 0 | AM50: =PartH!F50 -> 0 | AN50: =PartH!G50 -> 0 | AO50: =PartH!H50 -> 0 | AP50: =PartH!I50 -> 0 | AQ50: =PartH!J50 -> 0 | AR50: =PartH!K50 -> 0 | AS50: =PartH!L50 -> 0 | AT50: =PartH!M50 -> 0 | AU50: =PartH!N50 -> 0 | AV50: 11 | AZ50: 119 | BB50: 50 | BC50: 0 | BD50: 0 | BE50: 0 | BF50: 0 | BG50: 0 | BH50: 0 | BI50: 0 | BJ50: 0 | BK50: 0 | BL50: 0 | BN50: 119 | BP50: 0 | BQ50: 0 | BR50: 0 | BS50: 0 | BT50: 0 | BU50: 0 | BV50: 0 | BW50: 0 | BX50: 0 | BY50: 0
A51: 520F | B51: Flintshire | C51: F | D51: 7838 | E51: 520 | H51: 43 | S51: 0 | U51: 13.4 | V51: 0 | W51: 0 | X51: 0 | Y51: 0 | Z51: 0 | AA51: 0 | AB51: 0 | AC51: 0 | AD51: 0 | AE51: 0 | AF51: 0 | AI51: =PartH!B51 -> 91 | AJ51: =PartH!C51 -> H6e | AK51: =PartH!D51 -> 100 | AL51: =PartH!E51 -> 0 | AM51: =PartH!F51 -> 0 | AN51: =PartH!G51 -> 0 | AO51: =PartH!H51 -> 0 | AP51: =PartH!I51 -> 0 | AQ51: =PartH!J51 -> 0 | AR51: =PartH!K51 -> 0 | AS51: =PartH!L51 -> 0 | AT51: =PartH!M51 -> 0 | AU51: =PartH!N51 -> 0 | AV51: 11 | AZ51: 121 | BB51: 100 | BC51: 0 | BD51: 0 | BE51: 0 | BF51: 0 | BG51: 0 | BH51: 0 | BI51: 0 | BJ51: 0 | BK51: 0 | BL51: 0 | BN51: 121 | BP51: 0 | BQ51: 0 | BR51: 0 | BS51: 0 | BT51: 0 | BU51: 0 | BV51: 0 | BW51: 0 | BX51: 0 | BY51: 0
A52: 520G | B52: Flintshire | C52: G | D52: 3230 | E52: 520 | H52: 44 | S52: 0 | U52: 14 | W52: 0 | X52: 0 | Y52: 0 | Z52: 0 | AA52: 0 | AB52: 0 | AC52: 0 | AD52: 0 | AE52: 0 | AF52: 0 | AI52: =PartH!B52 -> 92 | AJ52: =PartH!C52 -> H6f | AK52: =PartH!D52 -> 0 | AL52: =PartH!E52 -> 0 | AM52: =PartH!F52 -> 0 | AN52: =PartH!G52 -> 0 | AO52: =PartH!H52 -> 0 | AP52: =PartH!I52 -> 0 | AQ52: =PartH!J52 -> 0 | AR52: =PartH!K52 -> 0 | AS52: =PartH!L52 -> 0 | AT52: =PartH!M52 -> 0 | AU52: =PartH!N52 -> 0 | AV52: 11 | AZ52: 122 | BB52: 0 | BC52: 0 | BD52: 0 | BE52: 0 | BF52: 0 | BG52: 0 | BH52: 0 | BI52: 0 | BJ52: 0 | BK52: 0 | BL52: 0 | BN52: 122 | BP52: 0 | BQ52: 0 | BR52: 0 | BS52: 0 | BT52: 0 | BU52: 0 | BV52: 0 | BW52: 0 | BX52: 0 | BY52: 0
A53: 520H | B53: Flintshire | C53: H | D53: 599 | E53: 520 | H53: 45 | S53: 0 | U53: 15 | W53: 0 | X53: 0 | Y53: 0 | Z53: 0 | AA53: 0 | AB53: 0 | AC53: 0 | AD53: 0 | AE53: 0 | AF53: 0 | AI53: =PartH!B53 -> 92.1 | AJ53: =PartH!C53 -> H6fa | AK53: =PartH!D53 -> 0 | AL53: =PartH!E53 -> 0 | AM53: =PartH!F53 -> 0 | AN53: =PartH!G53 -> 0 | AO53: =PartH!H53 -> 0 | AP53: =PartH!I53 -> 0 | AQ53: =PartH!J53 -> 0 | AR53: =PartH!K53 -> 0 | AS53: =PartH!L53 -> 0 | AT53: =PartH!M53 -> 0 | AU53: =PartH!N53 -> 0 | AV53: 11 | AZ53: 123 | BC53: 0 | BD53: 0 | BE53: 0 | BF53: 0 | BG53: 0 | BH53: 0 | BI53: 0 | BJ53: 0 | BK53: 0 | BL53: 0 | BN53: 123 | BP53: 0 | BQ53: 0 | BR53: 0 | BS53: 0 | BT53: 0 | BU53: 0 | BV53: 0 | BW53: 0 | BX53: 0 | BY53: 0
A54: 520I | B54: Flintshire | C54: I | D54: 222 | E54: 520 | H54: 46 | S54: 0 | U54: 26.2 | AF54: 0 | AI54: =PartH!B54 -> 92.2 | AJ54: =PartH!C54 -> H6fb | AK54: =PartH!D54 -> 0 | AL54: =PartH!E54 -> 0 | AM54: =PartH!F54 -> 0 | AN54: =PartH!G54 -> 0 | AO54: =PartH!H54 -> 0 | AP54: =PartH!I54 -> 0 | AQ54: =PartH!J54 -> 0 | AR54: =PartH!K54 -> 0 | AS54: =PartH!L54 -> 0 | AT54: =PartH!M54 -> 0 | AU54: =PartH!N54 -> 0 | AV54: 11 | AZ54: 13.3 | BA54: 0 | BC54: 0 | BD54: 0 | BE54: 0 | BF54: 0 | BG54: 0 | BH54: 0 | BI54: 0 | BJ54: 0 | BK54: 0 | BN54: 13.3 | BP54: 0 | BQ54: 0 | BR54: 0 | BS54: 0 | BT54: 0 | BU54: 0 | BV54: 0 | BW54: 0 | BX54: 0 | BY54: 0
A55: 520ALL | B55: Flintshire | C55: ALL | D55: 71713 | E55: 520 | H55: 47 | S55: 0 | U55: 51.1 | AF55: 0 | AI55: =PartH!B55 -> 93 | AJ55: =PartH!C55 -> H6g | AK55: =PartH!D55 -> Cyfanswm | AL55: =PartH!E55 -> 0 | AM55: =PartH!F55 -> 0 | AN55: =PartH!G55 -> 0 | AO55: =PartH!H55 -> 0 | AP55: =PartH!I55 -> 0 | AQ55: =PartH!J55 -> 0 | AR55: =PartH!K55 -> 0 | AS55: =PartH!L55 -> 0 | AT55: =PartH!M55 -> 0 | AU55: =PartH!N55 -> 0 | AV55: 10 | AZ55: 13.4 | BA55: 0 | BC55: 0 | BD55: 0 | BE55: 0 | BF55: 0 | BG55: 0 | BH55: 0 | BI55: 0 | BJ55: 0 | BK55: 0 | BL55: 0 | BN55: 13.4 | BQ55: 0 | BR55: 0 | BS55: 0 | BT55: 0 | BU55: 0 | BV55: 0 | BW55: 0 | BX55: 0 | BY55: 0
A56: 522A | B56: Wrexham | C56: A | D56: 4526 | E56: 522 | H56: 49 | S56: 0 | U56: 71.1 | W56: 0 | X56: 0 | Y56: 0 | Z56: 0 | AA56: 0 | AB56: 0 | AC56: 0 | AD56: 0 | AE56: 0 | AF56: 0 | AG56: 0 | AI56: =PartH!B57 -> 0 | AJ56: =PartH!C57 -> 0 | AK56: =PartH!D57 -> 0 | AL56: =PartH!E57 -> 0 | AM56: =PartH!F57 -> 0 | AN56: =PartH!G57 -> 0 | AO56: =PartH!H57 -> 0 | AP56: =PartH!I57 -> 0 | AQ56: =PartH!J57 -> 0 | AR56: =PartH!K57 -> 0 | AS56: =PartH!L57 -> 0 | AT56: =PartH!M57 -> 0 | AU56: =PartH!N57 -> 0 | AV56: 11 | AZ56: 26.2 | BL56: 0 | BN56: 26.2 | BP56: 0 | BQ56: 0 | BR56: 0 | BS56: 0 | BT56: 0 | BU56: 0 | BV56: 0 | BW56: 0 | BX56: 0 | BY56: 0
A57: 522B | B57: Wrexham | C57: B | D57: 12774 | E57: 522 | H57: 50 | S57: 0 | U57: 71.2 | W57: 0 | X57: 0 | Y57: 0 | Z57: 0 | AA57: 0 | AB57: 0 | AC57: 0 | AD57: 0 | AE57: 0 | AF57: 0 | AG57: 0 | AI57: =PartH!B58 -> 94 | AJ57: =PartH!C58 -> H7 | AK57: =PartH!D58 -> Cyfanswm eiddo gwag sy'n daladwy | AL57: =PartH!E58 -> 0 | AM57: =PartH!F58 -> 0 | AN57: =PartH!G58 -> 0 | AO57: =PartH!H58 -> 0 | AP57: =PartH!I58 -> 0 | AQ57: =PartH!J58 -> 0 | AR57: =PartH!K58 -> 0 | AS57: =PartH!L58 -> 0 | AT57: =PartH!M58 -> 0 | AU57: =PartH!N58 -> 0 | AV57: 10 | AZ57: 51.1 | BL57: 0 | BN57: 51.1 | BQ57: 0 | BR57: 0 | BS57: 0 | BT57: 0 | BU57: 0 | BV57: 0 | BW57: 0 | BX57: 0 | BY57: 0
A58: 522C | B58: Wrexham | C58: C | D58: 17268 | E58: 522 | H58: 51 | S58: 0 | U58: 78.1 | W58: 0 | X58: 0 | Y58: 0 | Z58: 0 | AA58: 0 | AB58: 0 | AC58: 0 | AD58: 0 | AE58: 0 | AF58: 0 | AG58: 0 | AI58: =PartH!B59 -> 95 | AJ58: =PartH!C59 -> H8 | AK58: =PartH!D59 -> Cyfanswm ail gartrefi sy'n daladwy | AL58: =PartH!E59 -> 0 | AM58: =PartH!F59 -> 0 | AN58: =PartH!G59 -> 0 | AO58: =PartH!H59 -> 0 | AP58: =PartH!I59 -> 0 | AQ58: =PartH!J59 -> 0 | AR58: =PartH!K59 -> 0 | AS58: =PartH!L59 -> 0 | AT58: =PartH!M59 -> 0 | AU58: =PartH!N59 -> 0 | AV58: 10 | AZ58: 71.1 | BB58: 0 | BC58: 0 | BD58: 0 | BE58: 0 | BF58: 0 | BG58: 0 | BH58: 0 | BI58: 0 | BJ58: 0 | BK58: 0 | BL58: 0 | BN58: 71.1 | BQ58: 0 | BR58: 0 | BS58: 0 | BT58: 0 | BU58: 0 | BV58: 0 | BW58: 0 | BX58: 0 | BY58: 0
A59: 522D | B59: Wrexham | C59: D | D59: 10404 | E59: 522 | H59: 51.5 | S59: 0 | U59: 78.2 | W59: 0 | X59: 0 | Y59: 0 | Z59: 0 | AA59: 0 | AB59: 0 | AC59: 0 | AD59: 0 | AE59: 0 | AF59: 0 | AG59: 0 | AI59: =PartH!B60 -> 0 | AJ59: =PartH!C60 -> 0 | AK59: =PartH!D60 -> 0 | AL59: =PartH!E60 -> 0 | AM59: =PartH!F60 -> 0 | AN59: =PartH!G60 -> 0 | AO59: =PartH!H60 -> 0 | AP59: =PartH!I60 -> 0 | AQ59: =PartH!J60 -> 0 | AR59: =PartH!K60 -> 0 | AS59: =PartH!L60 -> 0 | AT59: =PartH!M60 -> 0 | AU59: =PartH!N60 -> 0 | AV59: 11 | AZ59: 71.2 | BB59: 0 | BC59: 0 | BD59: 0 | BE59: 0 | BF59: 0 | BG59: 0 | BH59: 0 | BI59: 0 | BJ59: 0 | BK59: 0 | BL59: 0 | BN59: 71.2 | BP59: 0 | BQ59: 0 | BR59: 0 | BS59: 0 | BT59: 0 | BU59: 0 | BV59: 0 | BW59: 0 | BX59: 0 | BY59: 0
A60: 522E | B60: Wrexham | C60: E | D60: 8311 | E60: 522 | H60: 13.3 | I60: 0 | J60: 0 | K60: 0 | L60: 0 | M60: 0 | N60: 0 | O60: 0 | P60: 0 | Q60: 0 | R60: 0 | U60: 85.1 | W60: 0 | X60: 0 | Y60: 0 | Z60: 0 | AA60: 0 | AB60: 0 | AC60: 0 | AD60: 0 | AE60: 0 | AF60: 0 | AG60: 0 | AI60: =PartH!B61 -> 0 | AJ60: =PartH!C61 -> 0 | AK60: =PartH!D61 -> Cyfwerthoedd anheddau | AL60: =PartH!E61 -> 0 | AM60: =PartH!F61 -> 0 | AN60: =PartH!G61 -> 0 | AO60: =PartH!H61 -> 0 | AP60: =PartH!I61 -> 0 | AQ60: =PartH!J61 -> 0 | AR60: =PartH!K61 -> 0 | AS60: =PartH!L61 -> 0 | AT60: =PartH!M61 -> 0 | AU60: =PartH!N61 -> 0 | AV60: 10 | AZ60: 78.1 | BB60: 0 | BC60: 0 | BD60: 0 | BE60: 0 | BF60: 0 | BG60: 0 | BH60: 0 | BI60: 0 | BJ60: 0 | BK60: 0 | BL60: 0 | BN60: 78.1 | BQ60: 0 | BR60: 0 | BS60: 0 | BT60: 0 | BU60: 0 | BV60: 0 | BW60: 0 | BX60: 0 | BY60: 0
A61: 522F | B61: Wrexham | C61: F | D61: 5203 | E61: 522 | G61: Part F | H61: 13.4 | I61: 0 | J61: 0 | K61: 0 | L61: 0 | M61: 0 | N61: 0 | O61: 0 | P61: 0 | Q61: 0 | R61: 0 | S61: 0 | U61: 85.2 | W61: 0 | X61: 0 | Y61: 0 | Z61: 0 | AA61: 0 | AB61: 0 | AC61: 0 | AD61: 0 | AE61: 0 | AF61: 0 | AG61: 0 | AI61: =PartH!B62 -> 0 | AJ61: =PartH!C62 -> 0 | AK61: =PartH!D62 -> Gostyngiad oherwydd disgownt eiddo gwag hirdymor | AL61: =PartH!E62 -> 0 | AM61: =PartH!F62 -> 0 | AN61: =PartH!G62 -> 0 | AO61: =PartH!H62 -> 0 | AP61: =PartH!I62 -> 0 | AQ61: =PartH!J62 -> 0 | AR61: =PartH!K62 -> 0 | AS61: =PartH!L62 -> 0 | AT61: =PartH!M62 -> 0 | AU61: =PartH!N62 -> 0 | AV61: 10 | AZ61: 78.2 | BB61: 0 | BC61: 0 | BD61: 0 | BE61: 0 | BF61: 0 | BG61: 0 | BH61: 0 | BI61: 0 | BJ61: 0 | BK61: 0 | BL61: 0 | BN61: 78.2 | BQ61: 0 | BR61: 0 | BS61: 0 | BT61: 0 | BU61: 0 | BV61: 0 | BW61: 0 | BX61: 0 | BY61: 0
A62: 522G | B62: Wrexham | C62: G | D62: 2573 | E62: 522 | H62: 26.2 | S62: 0 | U62: 92.1 | W62: 0 | X62: 0 | Y62: 0 | Z62: 0 | AA62: 0 | AB62: 0 | AC62: 0 | AD62: 0 | AE62: 0 | AF62: 0 | AG62: 0 | AI62: =PartH!B63 -> 0 | AJ62: =PartH!C63 -> 0 | AK62: =PartH!D63 -> Canran disgownt | AL62: =PartH!E63 -> A | AM62: =PartH!F63 -> B | AN62: =PartH!G63 -> C | AO62: =PartH!H63 -> D | AP62: =PartH!I63 -> E | AQ62: =PartH!J63 -> F | AR62: =PartH!K63 -> G | AS62: =PartH!L63 -> H | AT62: =PartH!M63 -> I | AU62: =PartH!N63 -> Cyfanswm | AV62: 0 | AZ62: 85.1 | BB62: 0 | BC62: 0 | BD62: 0 | BE62: 0 | BF62: 0 | BG62: 0 | BH62: 0 | BI62: 0 | BJ62: 0 | BK62: 0 | BL62: 0 | BN62: 85.1
A63: 522H | B63: Wrexham | C63: H | D63: 722 | E63: 522 | H63: 51.1 | S63: 0 | U63: 92.2 | W63: 0 | X63: 0 | Y63: 0 | Z63: 0 | AA63: 0 | AB63: 0 | AC63: 0 | AD63: 0 | AE63: 0 | AF63: 0 | AG63: 0 | AI63: =PartH!B64 -> 97 | AJ63: =PartH!C64 -> H9b | AK63: =PartH!D64 -> 25 | AL63: =PartH!E64 -> 0 | AM63: =PartH!F64 -> 0 | AN63: =PartH!G64 -> 0 | AO63: =PartH!H64 -> 0 | AP63: =PartH!I64 -> 0 | AQ63: =PartH!J64 -> 0 | AR63: =PartH!K64 -> 0 | AS63: =PartH!L64 -> 0 | AT63: =PartH!M64 -> 0 | AU63: =PartH!N64 -> 0 | AV63: 11 | AZ63: 85.2 | BB63: 0 | BC63: 0 | BD63: 0 | BE63: 0 | BF63: 0 | BG63: 0 | BH63: 0 | BI63: 0 | BJ63: 0 | BK63: 0 | BL63: 0 | BN63: 85.2 | BP63: 25 | BQ63: 0 | BR63: 0 | BS63: 0 | BT63: 0 | BU63: 0 | BV63: 0 | BW63: 0 | BX63: 0 | BY63: 0
A64: 522I | B64: Wrexham | C64: I | D64: 292 | E64: 522 | H64: 71.1 | J64: 0 | K64: 0 | L64: 0 | M64: 0 | N64: 0 | O64: 0 | P64: 0 | Q64: 0 | R64: 0 | S64: 0 | T64: 0 | U64: 101.1 | W64: 0 | X64: 0 | Y64: 0 | Z64: 0 | AA64: 0 | AB64: 0 | AC64: 0 | AD64: 0 | AE64: 0 | AF64: 0 | AG64: 0 | AI64: =PartH!B65 -> 98 | AJ64: =PartH!C65 -> H9c | AK64: =PartH!D65 -> 50 | AL64: =PartH!E65 -> 0 | AM64: =PartH!F65 -> 0 | AN64: =PartH!G65 -> 0 | AO64: =PartH!H65 -> 0 | AP64: =PartH!I65 -> 0 | AQ64: =PartH!J65 -> 0 | AR64: =PartH!K65 -> 0 | AS64: =PartH!L65 -> 0 | AT64: =PartH!M65 -> 0 | AU64: =PartH!N65 -> 0 | AV64: 11 | AZ64: 92.1 | BB64: 0 | BC64: 0 | BD64: 0 | BE64: 0 | BF64: 0 | BG64: 0 | BH64: 0 | BI64: 0 | BJ64: 0 | BK64: 0 | BL64: 0 | BN64: 92.1 | BP64: 50 | BQ64: 0 | BR64: 0 | BS64: 0 | BT64: 0 | BU64: 0 | BV64: 0 | BW64: 0 | BX64: 0 | BY64: 0
A65: 522ALL | B65: Wrexham | C65: ALL | D65: 62073 | E65: 522 | H65: 71.2 | J65: 0 | K65: 0 | L65: 0 | M65: 0 | N65: 0 | O65: 0 | P65: 0 | Q65: 0 | R65: 0 | S65: 0 | T65: 0 | U65: 101.2 | W65: 0 | X65: 0 | Y65: 0 | Z65: 0 | AA65: 0 | AB65: 0 | AC65: 0 | AD65: 0 | AE65: 0 | AF65: 0 | AG65: 0 | AI65: =PartH!B66 -> 100 | AJ65: =PartH!C66 -> H9e | AK65: =PartH!D66 -> 100 | AL65: =PartH!E66 -> 0 | AM65: =PartH!F66 -> 0 | AN65: =PartH!G66 -> 0 | AO65: =PartH!H66 -> 0 | AP65: =PartH!I66 -> 0 | AQ65: =PartH!J66 -> 0 | AR65: =PartH!K66 -> 0 | AS65: =PartH!L66 -> 0 | AT65: =PartH!M66 -> 0 | AU65: =PartH!N66 -> 0 | AV65: 11 | AZ65: 92.2 | BB65: 0 | BC65: 0 | BD65: 0 | BE65: 0 | BF65: 0 | BG65: 0 | BH65: 0 | BI65: 0 | BJ65: 0 | BK65: 0 | BL65: 0 | BN65: 92.2 | BP65: 100 | BQ65: 0 | BR65: 0 | BS65: 0 | BT65: 0 | BU65: 0 | BV65: 0 | BW65: 0 | BX65: 0 | BY65: 0
A66: 524A | B66: Powys | C66: A | D66: 6109 | E66: 524 | H66: 78.1 | J66: 0 | K66: 0 | L66: 0 | M66: 0 | N66: 0 | O66: 0 | P66: 0 | Q66: 0 | R66: 0 | S66: 0 | T66: 0 | U66: 108.1 | W66: 0 | X66: 0 | Y66: 0 | Z66: 0 | AA66: 0 | AB66: 0 | AC66: 0 | AD66: 0 | AE66: 0 | AF66: 0 | AG66: 0 | AI66: =PartH!B67 -> 101 | AJ66: =PartH!C67 -> H9f | AK66: =PartH!D67 -> 0 | AL66: =PartH!E67 -> 0 | AM66: =PartH!F67 -> 0 | AN66: =PartH!G67 -> 0 | AO66: =PartH!H67 -> 0 | AP66: =PartH!I67 -> 0 | AQ66: =PartH!J67 -> 0 | AR66: =PartH!K67 -> 0 | AS66: =PartH!L67 -> 0 | AT66: =PartH!M67 -> 0 | AU66: =PartH!N67 -> 0 | AV66: 11 | AZ66: 101.1 | BB66: 0 | BC66: 0 | BD66: 0 | BE66: 0 | BF66: 0 | BG66: 0 | BH66: 0 | BI66: 0 | BJ66: 0 | BK66: 0 | BL66: 0 | BN66: 101.1 | BP66: 0 | BQ66: 0 | BR66: 0 | BS66: 0 | BT66: 0 | BU66: 0 | BV66: 0 | BW66: 0 | BX66: 0 | BY66: 0
A67: 524B | B67: Powys | C67: B | D67: 9461 | E67: 524 | H67: 78.2 | J67: 0 | K67: 0 | L67: 0 | M67: 0 | N67: 0 | O67: 0 | P67: 0 | Q67: 0 | R67: 0 | S67: 0 | T67: 0 | U67: 108.2 | W67: 0 | X67: 0 | Y67: 0 | Z67: 0 | AA67: 0 | AB67: 0 | AC67: 0 | AD67: 0 | AE67: 0 | AF67: 0 | AG67: 0 | AI67: =PartH!B68 -> 101.1 | AJ67: =PartH!C68 -> H9fa | AK67: =PartH!D68 -> 0 | AL67: =PartH!E68 -> 0 | AM67: =PartH!F68 -> 0 | AN67: =PartH!G68 -> 0 | AO67: =PartH!H68 -> 0 | AP67: =PartH!I68 -> 0 | AQ67: =PartH!J68 -> 0 | AR67: =PartH!K68 -> 0 | AS67: =PartH!L68 -> 0 | AT67: =PartH!M68 -> 0 | AU67: =PartH!N68 -> 0 | AV67: 11 | AZ67: 101.2 | BB67: 0 | BC67: 0 | BD67: 0 | BE67: 0 | BF67: 0 | BG67: 0 | BH67: 0 | BI67: 0 | BJ67: 0 | BK67: 0 | BL67: 0 | BN67: 101.2 | BP67: 0 | BQ67: 0 | BR67: 0 | BS67: 0 | BT67: 0 | BU67: 0 | BV67: 0 | BW67: 0 | BX67: 0 | BY67: 0
A68: 524C | B68: Powys | C68: C | D68: 13368 | E68: 524 | H68: 85.1 | J68: 0 | K68: 0 | L68: 0 | M68: 0 | N68: 0 | O68: 0 | P68: 0 | Q68: 0 | R68: 0 | S68: 0 | T68: 0 | U68: 115.1 | W68: 0 | X68: 0 | Y68: 0 | Z68: 0 | AA68: 0 | AB68: 0 | AC68: 0 | AD68: 0 | AE68: 0 | AF68: 0 | AG68: 0 | AI68: =PartH!B69 -> 101.2 | AJ68: =PartH!C69 -> H9fb | AK68: =PartH!D69 -> 0 | AL68: =PartH!E69 -> 0 | AM68: =PartH!F69 -> 0 | AN68: =PartH!G69 -> 0 | AO68: =PartH!H69 -> 0 | AP68: =PartH!I69 -> 0 | AQ68: =PartH!J69 -> 0 | AR68: =PartH!K69 -> 0 | AS68: =PartH!L69 -> 0 | AT68: =PartH!M69 -> 0 | AU68: =PartH!N69 -> 0 | AV68: 11 | AZ68: 108.1 | BB68: 0 | BC68: 0 | BD68: 0 | BE68: 0 | BF68: 0 | BG68: 0 | BH68: 0 | BI68: 0 | BJ68: 0 | BK68: 0 | BL68: 0 | BN68: 108.1 | BP68: 0 | BQ68: 0 | BR68: 0 | BS68: 0 | BT68: 0 | BU68: 0 | BV68: 0 | BW68: 0 | BX68: 0 | BY68: 0
